Workbook

Sheet Instructions (hidden)
C3: Instructions
B4: 1 | C4: Move final numbers from last year end into prior year columns, or current year prelim to prelim
C5: column. | Q5: Final 2006-07 | R5: Prelim 2006-07 | S5: 2005-06 | T5: 2004-05
P6: DOE statewide allocations | Q6: 176459185 | R6: 176438228 | S6: 177049957
B7: 2 | C7: Update drivers on the "Assumption Sheet" | P7: Adjustment or Carryover | Q7: 4577 | R7: 4577 | S7: 28854
C8: Include any unallocated adjustments from prior year on line 6. | P8: Total to be allocated | Q8: 176463762 | R8: 176442805 | S8: 177078811 | T8: 170650866
C9: Send assumptions sheet to veronica schindler for approval. | P9: School Improvement - 4% | Q9: -7058550 | R9: -7057712 | S9: -7083152 | T9: -6826034.64
P10: Subtotal | Q10: 169405212 | R10: 169385093 | S10: 169995659 | T10: 163824831.4
B11: 3 | C11: Obtain the Allocation from Sandy (Paul) Brown at USDOE | P11: Statewide Admin - 1% | Q11: -1764638 | R11: -1764428 | S11: -1770788 | T11: -1706508.66
Q12: 167640574 | R12: 167620665 | S12: 168224871 | T12: 162118322.7
B13: 4. | C13: From the USDOE allocation, vlookup (or copy and paste) the 2005-06 allocation amounts into the | P13: Increase over prior year | Q13: -615049 | R13: -636006 | S13: 6427945 | T13: 13484070
C14: "2005-06" Sheet for the basic, EFIG, Targeted and Concentration amounts
P15: Awards - 5% of the increase | Q15: 0 | R15: 0 | S15: 321397 | T15: 674203.5
B16: 5. | C16: Part of the packet from Sandy should contain a sheet of "Populations" | P16: Net to Districts | Q16: 167640574 | R16: 167620665 | S16: 167903474 | T16: 161444119.2
C17: These counts must be copied into the current year "Populations" sheet.
B19: 6. | C19: Review sheet to ensure that the formulas are pulling from the correct areas.
C20: Revise cautiously as necessary.
B22: 7. | C22: Review the iterations performed. By third or fourth the total "Test" should be 0 (zero)
C23: If not then additional iterations must be established. Before taking this on review all
C24: calcuations to ensure that earlier formulas are correct and are not causing the iteration
C25: failure.
C26: Adding iteration must be approached with utmost care!!! Have them reviewed carefully!
B28: 8. | C28: Review Assumption worksheet to ensure that the total of the following agrees to the
C29: calcuated totals on the bottom of the Assumption page
C30: School Improvement
C31: Statewide Administration **
C32: Awards & Recognition
C33: Plug and change comment as needed for rounding.
C34: **State Admin is limited if the national allocation for parts a, c & d exceeds $14 Billion.
C35: See Section 1004 for more info.
B37: 9. | C37: Look over again carefully. If okay then:
C38: ** Populate the "Comaprision" sheet to compare the current year final with priro year by district.
C39: Identify biggest losers. Send copy of this sheet to Cal, then Bob and Gayle for their approval/information.
C40: ** Populate the iGRANTS sheet and provide to Pete Bratt and/or Kim Smack
C41: ** Update "District Page". This is extremely useful in addressing school district questions/ complaints.
B43: 10 | C43: Notify Kathleen Sande of the Part D Subpart II amount. We may do the allocation of that amount as well.

Sheet Assumption (hidden)
A1: Assumptions and Factors — Title I
B2: Caution: Yellow Cells below drive inputs into the calculations in this model
S3: For Model | T3: For Model | U3: For Model | V3: For Model | AP3: For Awards & Recognition 16-17
C4: 2010-11 Final | D4: 2011-12 Prelim | E4: 2011-12 Final | F4: 2011-12 Final Revised | G4: 2011-12 Re-Revised | H4: 2012-13 Prelim | I4: 2012-13 Final | J4: 2013-14 Preliminary | K4: 2013-14 Final | L4: 2014-15 Preliminary | M4: 2014-15 Final | N4: 2015-16 Preliminary | O4: 2015-16 Final | P4: 2016-17 Preliminary | Q4: 2016-17 Final | R4: 2016-17 Rev Final | S4: 2016-17 Preliminary | T4: 2016-17 Final | U4: 2016-17 Rev Final | V4: 2016-17 2nd Rev Final | W4: 2017-18 Preliminary | X4: 2017-18 Final | Y4: 2017-18 Revised Final | Z4: 2017-18 2nd Revised Final | AA4: 2018-19 Preliminary | AB4: 2018-19 Final | AC4: 2018-19 Revised Final | AD4: 2019-20 Preliminary | AE4: 2019-20 Final | AF4: 2019-20 Rev. Final | AG4: 2020-21 Preliminary | AH4: 2020-21 Final | AI4: 2020-21 Rev. Final | AJ4: 2021-22 Preliminary | AK4: 2021-22 Final | AL4: Section | AP4: 2015-16 Final | AQ4: 2016-17 Final
B5: ="DOE "&LEFT(G2,6)&" statewide allocations -*** See Note ***" -> DOE statewide allocations -*** See Note *** | C5: 190737762 | D5: 211972413 | E5: 211174588 | F5: 207708174 | G5: 210581925 | H5: 213509829 | I5: 213017558 | J5: 203754455 | K5: 203817971 | L5: 215575942 | M5: 215415550.1 | N5: 230008466 | O5: 229848308 | P5: 230130409 | Q5: 230365163 | R5: 229660405 | S5: 230130409 | T5: 230365163 | U5: 229660405 | V5: 230477100 | W5: 228354182 | X5: 228316493 | Y5: 227571154 | Z5: 228562997 | AA5: 228030120 | AB5: 228059780 | AC5: 228027059 | AD5: 256793122 | AE5: 256916035 | AF5: 256762096 | AG5: 250009534 | AH5: 250296759 | AI5: 250340359 | AJ5: 275960879 | AK5: 273459092 | AL5: =T5-U5 -> 704758 | AM5: =AL5/S5 -> 0.003062428834 | AN5: =+F5/E5-1 -> -0.01641492015 | AP5: =O5+Q6 -> 230247957 | AQ5: 230477100
B6: Adjustment or Carryover | H6: -1703 | I6: 0 | J6: 42362 | K6: 42362 | L6: =ROUND('USDOE Alloc 1415P'!AC8,0) -> -9209046 | N6: =SUM('USDOE Alloc 1516P'!AG10:AG318) -> 95754 | O6: 95754 | P6: 399649 | Q6: 399649 | R6: 399649
B7: Total to be allocated | C7: 190737762 | D7: 211972413 | E7: 211174588 | F7: 207708174 | G7: 210581925 | H7: =+H5+H6 -> 213508126 | I7: 213017558 | J7: 203796817 | K7: 203860333 | L7: 206366896 | M7: 215415550.1 | N7: 230104220 | O7: =+O5+O6 -> 229944062 | P7: 230530058 | Q7: 230764812 | R7: 230060054 | S7: 230130409 | T7: 230365163 | U7: 229660405 | V7: =+V5+V6 -> 230477100 | W7: =+W5+W6 -> 228354182 | X7: 228316493 | Y7: =+Y5+Y6 -> 227571154 | Z7: =+Z5+Z6 -> 228562997 | AA7: =+AA5+AA6 -> 228030120 | AB7: 228059780 | AC7: 228027059 | AD7: =+AD5+AD6 -> 256793122 | AE7: 256916035 | AF7: 256762096 | AG7: 250009534 | AH7: 250296759 | AI7: 250340359 | AJ7: =+AJ5+AJ6 -> 275960879 | AK7: =+AK5+AK6 -> 273459092 | AN7: =+F7/E7-1 -> -0.01641492015 | AP7: =+AP5+AP6 -> 230247957 | AQ7: =+AQ5+AQ6 -> 230477100
B9: FFY16 1003(g) Grant Award & 4% Set Aside: | W9: =V13-7169226 -> -16388310 | X9: =V13-7169226 -> -16388310 | Y9: =V13-7169226 -> -16388310 | Z9: =V13-7169226 -> -16388310 | AA9: =V13-7169226 -> -16388310 | AB9: -16388310 | AC9: -16388310 | AD9: -16388310 | AE9: -16388310 | AF9: -16388310 | AG9: -16388310 | AH9: -16388310 | AI9: -16388310 | AJ9: -16388310 | AK9: -16388310 | AL9: =AF9/AF7 -> -0.06382682746
B10: 7% Set Aside Amount | W10: =ROUND(V7*-0.07,0) -> -16133397 | X10: =ROUND(V7*-0.07,0) -> -16133397 | Y10: =ROUND(V7*-0.07,0) -> -16133397 | Z10: =ROUND(W7*-0.07,0) -> -15984793 | AA10: =ROUND(X7*-0.07,0) -> -15982155 | AB10: -15964185 | AC10: -15961894 | AD10: =ROUND(AD7*-0.07,0) -> -17975519 | AE10: -17984122 | AF10: -17973347 | AG10: -17500667 | AH10: -17520773 | AI10: =ROUND(AI7*-0.07,0) -> -17523825 | AJ10: =ROUND(AJ7*-0.07,0) -> -19317262 | AK10: =ROUND(AK7*-0.07,0) -> -19142136 | AL10: =AF10/AF7 -> -0.07000000109
B11: Percentage School Improvement Withheld | W11: =(MIN(W9:W10))/W7 -> -0.07176706753 | X11: =(MIN(X9:X10))/X7 -> -0.07177891437 | Y11: =(MIN(Y9:Y10))/Y7 -> -0.07201400402 | Z11: =(MIN(Z9:Z10))/Z7 -> -0.07170150118 | AA11: =(MIN(AA9:AA10))/AA7 -> -0.07186905835 | AB11: -0.07185971152 | AC11: -0.07187002311 | AD11: =(MIN(AD9:AD10))/AD7 -> -0.07000000179 | AE11: -0.06999999825 | AF11: -0.07000000109 | AG11: -0.06999999848 | AH11: -0.06999999948 | AI11: -0.06999999948 | AJ11: =(MIN(AJ9:AJ10))/AJ7 -> -0.0700000017 | AK11: =(MIN(AK9:AK10))/AK7 -> -0.06999999839
B12: <-------(Use Hold Harmless Calc) | W12: NO | X12: NO | Y12: NO | Z12: NO | AA12: YES | AB12: YES | AC12: YES | AD12: YES | AE12: YES | AF12: YES | AG12: YES | AH12: YES | AI12: YES | AJ12: YES | AK12: YES
A13: =AD11*-1 -> 0.07000000179 | B13: School Improvement (Before Hold Harmless) | C13: =ROUND(-C7*$A13,0) -> -13351644 | D13: =ROUND(-D7*$A13,0) -> -14838069 | E13: =ROUND(-E7*$A13,0) -> -14782222 | F13: =ROUND(F7*-0.04,0) -> -8308327 | G13: -8423277 | H13: -8540325 | I13: -8520702 | J13: -8151873 | K13: -8154413 | L13: -8254676 | M13: -8616622 | N13: -9204169 | O13: =ROUND(O7*-0.04,0) -> -9197762 | P13: -9221202 | Q13: -9230592 | R13: -9202402 | S13: -9205216 | T13: -9214607 | U13: =ROUND(U7*-0.04,0) -> -9186416 | V13: =ROUND(V7*-0.04,0) -> -9219084 | W13: =ROUND(W7*W11,0) -> -16388310 | X13: =ROUND(X7*X11,0) -> -16388310 | Y13: =ROUND(Y7*Y11,0) -> -16388310 | Z13: =ROUND(Z7*Z11,0) -> -16388310 | AA13: =ROUND(AA7*AA11,0) -> -16388310 | AB13: -16388310 | AC13: -16388310 | AD13: =ROUND(AD7*AD11,0) -> -17975519 | AE13: -17984122 | AF13: -17973347 | AG13: -17500667 | AH13: -17520773 | AI13: -17523825 | AJ13: =ROUND(AJ7*AJ11,0) -> -19317262 | AK13: =ROUND(AK7*AK11,0) -> -19142136 | AL13: Sec. 1003(e) | AN13: -0.4379514122 | AP13: =ROUND(AP7*-0.04,0) -> -9209918 | AQ13: =ROUND(AQ7*-0.04,0) -> -9219084
B14: Subtotal | C14: =+C7+C13 -> 177386118 | D14: 197134344 | E14: 196392366 | F14: 199399847 | G14: 202158648 | H14: 204967801 | I14: 204496856 | J14: 195644944 | K14: 195705920 | L14: 198112220 | M14: =+M7+M13 -> 206798928.1 | N14: 220900051 | O14: 220746300 | P14: 221308856 | Q14: 221534220 | R14: =+R7+R13 -> 220857652 | S14: 220925193 | T14: 221150556 | U14: =+U7+U13 -> 220473989 | V14: 221258016 | W14: 211965872 | X14: 211928183 | Y14: 211182844 | Z14: 212174687 | AA14: 211641810 | AB14: 211671470 | AC14: 211638749 | AD14: =+AD7+AD13 -> 238817603 | AE14: 238931913 | AF14: 238788749 | AG14: 232508867 | AH14: 232775986 | AI14: 232816534 | AJ14: =+AJ7+AJ13 -> 256643617 | AK14: =+AK7+AK13 -> 254316956 | AN14: 0.01531363495 | AP14: =+AP7+AP13 -> 221038039 | AQ14: =+AQ7+AQ13 -> 221258016
B15: Allocation under $14 B rule | C15: 179886497 | D15: 189924422 | E15: 189450083 | F15: 189450083 | G15: 189450083 | H15: 196680301 | I15: 196302140 | J15: 200271536 | K15: 200330883 | L15: 202575982 | M15: 202512553 | N15: 213329493 | O15: 213460768 | P15: 210349117 | Q15: 210511697 | R15: 210563965 | S15: 210349117 | T15: 210511697 | U15: 210563965 | V15: 210555111 | W15: 202754057 | X15: 202721392 | Y15: 202818315 | Z15: 202810239 | AA15: 195366234 | AB15: 195250570 | AC15: 195245396 | AD15: 226025491 | AE15: 200403964 | AF15: 226314519 | AG15: 211211930 | AH15: 211576489 | AI15: 211588812 | AJ15: 209986516 | AK15: 208870001 | AN15: 0 | AP15: =O15 -> 213460768 | AQ15: =V15 -> 210555111
A16: 0.01 | B16: Statewide Administration (After hold Harmless) | C16: =-ROUND(179886497*0.01,0) -> -1798865 | D16: =-ROUND(189924422*0.01,0) -> -1899244 | E16: =-ROUND(E15*0.01,0) -> -1894501 | F16: =-ROUND(F15*0.01,0) -> -1894501 | G16: =-ROUND(G15*0.01,0) -> -1894501 | H16: =-ROUND(H15*0.01,0) -> -1966803 | I16: =-ROUND(I15*0.01,0) -> -1963021 | J16: =ROUND(J15*-0.01,0) -> -2002715 | K16: -2003309 | L16: -2025760 | M16: -2025126 | N16: -2133295 | O16: -2134608 | P16: -2103491 | Q16: =ROUND(Q15*-0.01,0) -> -2105117 | R16: =ROUND(R15*-0.01,0) -> -2105640 | S16: -2103491 | T16: =ROUND(T15*-0.01,0) -> -2105117 | U16: -2105640 | V16: -2105551 | W16: -2027541 | X16: -2027214 | Y16: -2028183 | Z16: -2028102 | AA16: -1953662 | AB16: -1952506 | AC16: -1952454 | AD16: =ROUND(AD15*-0.01,0) -> -2260255 | AE16: -2004040 | AF16: -2263145 | AG16: -2112119 | AH16: -2115765 | AI16: -2115888 | AJ16: =ROUND(AJ15*-0.01,0) -> -2099865 | AK16: =ROUND(AK15*-0.01,0) -> -2088700 | AL16: Sec. 1004-see section b for limits | AN16: 0 | AO16: =O16/O5 -> -0.009287029426 | AP16: =ROUND(AP15*-0.01,0) -> -2134608 | AQ16: =ROUND(AQ15*-0.01,0) -> -2105551
C17: =+C16+C14 -> 175587253 | D17: 195235100 | E17: 194497865 | F17: 197505346 | G17: 200264147 | H17: 203000998 | I17: 202533835 | J17: =+J14+J16 -> 193642229 | K17: 193702611 | L17: 196086460 | M17: 204773802.1 | N17: 218766756 | O17: 218611692 | P17: =+P14+P16 -> 219205365 | Q17: =+Q14+Q16 -> 219429103 | R17: =+R14+R16 -> 218752012 | S17: 218821702 | T17: =+T14+T16 -> 219045439 | U17: 218368349 | V17: 219152465 | W17: 209938331 | X17: 209900969 | Y17: 209154661 | Z17: =+Z14+Z16 -> 210146585 | AA17: =+AA14+AA16 -> 209688148 | AB17: 209718964 | AC17: 209686295 | AD17: =+AD14+AD16 -> 236557348 | AE17: 236927873 | AF17: 236525604 | AG17: 230396748 | AH17: 230660221 | AI17: 230700646 | AJ17: =+AJ14+AJ16 -> 254543752 | AK17: =+AK14+AK16 -> 252228256 | AL17: Nationwide alloc is $14.5 Billion | AN17: 0.01546279698 | AP17: =+AP14+AP16 -> 218903431 | AQ17: =+AQ14+AQ16 -> 219152465
B18: Increase over prior year | D18: =D17-C17 -> 19647847 | E18: =E17-C17 -> 18910612 | F18: =F17-C17 -> 21918093 | G18: =G17-C17 -> 24676894 | H18: =H17-G17 -> 2736851 | I18: =+I17-G17 -> 2269688 | J18: =+J17-H17 -> -9358769 | K18: =+K17-I17 -> -8831224 | L18: =+L17-K17 -> 2383849 | M18: =+M17-K17 -> 11071191.14 | N18: =+N17-M17 -> 13992953.86 | O18: =+O17-M17 -> 13837889.86 | Q18: 142008 | R18: =AQ18 -> 249034 | S18: 0 | T18: 142008 | U18: =AQ18 -> 249034 | V18: =AR18 -> 0 | W18: =+W17-V17 -> -9214134 | X18: =+X17-V17 -> -9251496 | Y18: =+Y17-V17 -> -9997804 | Z18: =+Z17-V17 -> -9005880 | AA18: =+AA17-W17 -> -250183 | AB18: -427621 | AC18: -460290 | AD18: =+AD17-AA17 -> 26869200 | AE18: =+AE17-AC17 -> 27241578 | AF18: =+AF17-AC17 -> 26839309 | AG18: =+AG17-AF17 -> -6128856 | AH18: =+AH17-AG17 -> 263473 | AI18: =+AI17-AH17 -> 40425 | AJ18: =+AJ17-AI17 -> 23843106 | AK18: =+AK17-AJ17 -> -2315496 | AN18: 0.1590366827 | AQ18: =+AQ17-AP17 -> 249034
B19: Awards and recognition
A20: 0.01 | B20: 5% of the increase in Title 1 allocation | C20: =IF(C18>0,ROUND(+C18*$A20*-1,0),0) -> 0 | D20: =-ROUND(D18*A20,0) -> -196478 | E20: -700000 | F20: -700000 | G20: -700000 | H20: =-ROUND(H18*A20,0) -> -27369 | I20: =-ROUND(I18*$A20,0) -> -22697 | J20: 0 | K20: 0 | L20: =-ROUND(L18*$A20,0) -> -23838 | M20: -400000 | N20: -400000 | O20: -400000 | Q20: -7100 | R20: =AQ20 -> -2490 | S20: 0 | T20: -7100 | U20: =AQ20 -> -2490 | V20: =AR20 -> 0 | W20: =IF(W18>0,ROUND(W18*$A20,0),0) -> 0 | X20: =IF(X18>0,ROUND(X18*$A20,0),0) -> 0 | Y20: =IF(Y18>0,ROUND(Y18*$A20,0),0) -> 0 | Z20: =IF(Z18>0,ROUND(Z18*$A20,0),0) -> 0 | AL20: Sec. 1117(c)(2) | AN20: =+F20/E20-1 -> 0 | AP20: 0 | AQ20: =IF(AQ18<0,0,(-ROUND(AQ18*$A20,0))) -> -2490
B22: MOE
B23: MOE reduction | X23: -8842 | Y23: -8838 | Z23: ='2017-18 Final'!AW13 -> -8842 | AA23: ='2018-19 Prelim'!AW13 -> -65126 | AB23: 0 | AC23: 0 | AD23: ='2019-20 Prelim'!AW13 -> -633 | AE23: ='2019-20 Final'!AW13 -> -609 | AF23: ='2019-20 Final'!AW13 -> -609 | AG23: ='2020-21 Prelim'!AW13 -> 0 | AH23: ='2020-21 Final'!AW13 -> 0 | AI23: ='2020-21 Rev. Final'!AW13 -> 0 | AL23: =AI16+2115888 -> 0
B24: Net to Districts | C24: =+C17+C20 -> 175587253 | D24: =+D17+D20 -> 195038622 | E24: =E17+E20 -> 193797865 | F24: =F17+F20 -> 196805346 | G24: =G17+G20 -> 199564147 | H24: =H17+H20 -> 202973629 | I24: =I17+I20 -> 202511138 | J24: =+J17+J20 -> 193642229 | K24: 193702611 | L24: 196062622 | M24: 204373802.1 | N24: 218366756 | O24: 218211692 | P24: 219205365 | Q24: =+Q17+Q20 -> 219422003 | R24: =+R17+R20 -> 218749522 | S24: 218821702 | T24: =+T17+T20 -> 219038339 | U24: =+U17+U20 -> 218365859 | V24: =+V17+V20 -> 219152465 | W24: =+W17+W20 -> 209938331 | X24: =+X17+X20+X23 -> 209892127 | Y24: =+Y17+Y20+Y23 -> 209145823 | Z24: =+Z17+Z20+Z23 -> 210137743 | AA24: =+AA17+AA20+AA23 -> 209623022 | AB24: 209718964 | AC24: 209686295 | AD24: =+AD17+AD20+AD23 -> 236556715 | AE24: 236927264 | AF24: 236524995 | AG24: 230396748 | AH24: 230660221 | AI24: 230700646 | AJ24: 254543752 | AK24: =+AK17+AK20+AK23 -> 252228256 | AN24: =+F24/E24-1 -> 0.01551864877 | AP24: =+AP17+AP20 -> 218903431 | AQ24: =+AQ17+AQ20 -> 219149975
O25: Charters to be reallocated: | P25: 388120 | Q25: 388120 | R25: 388120
B26: Per Worksheet Calculations | O26: Mary Walker ALE: | P26: -247424 | Q26: -247424 | R26: -247424 | AK26: =230700646-AI24 -> 0
B27: School Improvement per worksheet | C27: =ROUND('2010-11 Final Original'!$S$13-'2010-11 Final Original'!$AL$13,0) -> 7629509 | D27: =ROUND('2011-12 Prelim'!X12,0) -> 14838069 | E27: =ROUND('2011-12 Final'!X12,0) -> 14782222 | O27: Final Net to Districts with 2015-16 rollover: | P27: =SUM(P24:P26) -> 219346061 | Q27: =SUM(Q24:Q26) -> 219562699 | R27: =SUM(R24:R26) -> 218890218
B28: Statewide Administration Per Worksheet | C28: =ROUND(SUM('2010-11 Final Original'!$AR$14:$AR$311),0) -> 1798865 | D28: ='2011-12 Prelim'!AR13 -> 1899244 | E28: ='2011-12 Final'!AR13 -> 1894501
B29: Awards & Recognition | C29: ='2010-11 Final Original'!AT13 -> 0 | D29: ='2011-12 Prelim'!AT13 -> 196483 | E29: ='2011-12 Final'!AT13 -> 700006 | O29: =O17-P26 -> 218859116 | P29: =P27 -> 219346061 | Q29: =Q27 -> 219562699
B30: Net To Districts | C30: =ROUND(+'2010-11 Final Original'!$AV$13,0) -> 181309387 | D30: ='2011-12 Prelim'!AX309 -> 3351858 | E30: ='2011-12 Final'!AV309 -> 3343973 | P30: =P29-O29 -> 486945 | Q30: =Q29-O29 -> 703583
B31: Total Allocation | C31: =SUM(C27:C30) -> 190737761 | D31: ='2011-12 Prelim'!AX12 -> 191686768 | E31: ='2011-12 Final'!AV12 -> 190453875 | P31: =ROUND(P30*A20,0) -> 4869 | Q31: =ROUND(Q30*A20,0) -> 7036
AM32: =2103491/230130409 -> 0.009140430459
L33: Vicky Dyer, Financial Analyst | AM33: =230130409-229848308 -> 282101
B34: Total Prior Years Title I Part A | D34: =D5/C5 -> 1.111329035 | AM34: =2103491-2134608 -> -31117
L37: Jon Mishra, Title I Director
A44: NOTES:
B45: There was a late adjustment for 2010-11, due to the adjustment of school district boundaries.
B46: Per phone call with Sandy Brown @ DOE on May 12, the amounts will adjust district's hold harmless amounts, but should not be reflected in the districts' 2011-12 allocations.
AK47: =#REF!+#REF! -> 
B48: Vader School District no longer appears as of 2009-10
B51: Reconciliation for OSPI Budget Allocation Process
C52: Final 2013-14 | D52: Carryover from 2012-13 | E52: Allocated 2013-14 | G52: Final 2012-13 | H52: Carryover from 2011-12 | I52: Allocated 2012-13
B53: Original Award | C53: =K5 -> 203817971 | D53: 42362 | E53: =+C53+D53 -> 203860333 | G53: 213017558 | H53: 0 | I53: =+G53+H53 -> 213017558
B54: 4% School Improvement | C54: =C53*-0.04 -> -8152718.84 | D54: =D53*-0.04 -> -1694.48 | E54: =+C54+D54 -> -8154413.32 | G54: =G53*-0.04 -> -8520702.32 | H54: =H53*-0.04 -> 0 | I54: =+G54+H54 -> -8520702.32
B55: Subtotal | C55: =C53+C54 -> 195665252.2 | D55: =+D53+D54 -> 40667.52 | E55: =+C55+D55 -> 195705919.7 | G55: =G53+G54 -> 204496855.7 | H55: =+H53+H54 -> 0 | I55: =+G55+H55 -> 204496855.7
B56: 1% Statewide Administration | C56: =-ROUND(200330883*0.01,0) -> -2003309 | D56: 0 | E56: =+C56+D56 -> -2003309 | G56: =-ROUND(196302140*0.01,0) -> -1963021 | H56: 0 | I56: =+G56+H56 -> -1963021
B57: Subtotal | C57: =+C55+C56 -> 193661943.2 | D57: =+D55+D56 -> 40667.52 | E57: =+C57+D57 -> 193702610.7 | G57: =+G55+G56 -> 202533834.7 | H57: =+H55+H56 -> 0 | I57: =+G57+H57 -> 202533834.7
B59: Increase over Prior Year | C59: =C57-G17 -> -6602203.84 | D59: =+E59-C59 -> 40667.52 | E59: =E57-G17 -> -6561536.32 | G59: =G57-G17 -> 2269687.68 | H59: =+I59-G59 -> 0 | I59: =I57-G17 -> 2269687.68
B60: 5% of increase | C60: 0 | D60: 0 | E60: 0 | G60: =G59*-0.05 -> -113484.384 | H60: =+I60-G60 -> 90787.384 | I60: =I20 -> -22697
B61: Allocation Amount | C61: =+C57+C60 -> 193661943.2 | D61: =+E61-C61 -> 40667.52 | E61: =+E57+E60 -> 193702610.7 | G61: =+G57+G60 -> 202420350.3 | H61: =+I61-G61 -> 90787.384 | I61: =+I57+I60 -> 202511137.7
B62: Neglected & Delinquent | C62: ='2013-14 Final'!$AW$310 -> 3026259 | D62: 0 | E62: ='2013-14 Prelim'!AY309 -> 3026258 | G62: ='2012-13 Final'!$AV$309 -> 3187229 | H62: =+I62-G62 -> 0 | I62: ='2012-13 Final'!AV309 -> 3187229
B63: Formula Grants to Districts | C63: =C61-C62 -> 190635684.2 | D63: =+E63-C63 -> 40668.52 | E63: =E61-E62 -> 190676352.7 | G63: =G61-G62 -> 199233121.3 | H63: =+I63-G63 -> 90787.384 | I63: =I61-I62 -> 199323908.7
B65: Reconciliation for OSPI Budget Allocation Process
C66: Preliminary 2014-15 | D66: Carryover from 2013-14 | E66: Allocated 2014-15 | G66: Final 2013-14 | H66: Carryover from 2011-12 | I66: Allocated 2013-14
B67: Original Award | C67: =L5 -> 215575942 | D67: -61716 | E67: =+C67+D67 -> 215514226 | G67: 213017558 | H67: 0 | I67: =+G67+H67 -> 213017558
B68: 4% School Improvement | C68: =C67*-0.04 -> -8623037.68 | D68: =D67*-0.04 -> 2468.64 | E68: =+C68+D68 -> -8620569.04 | G68: =G67*-0.04 -> -8520702.32 | H68: =H67*-0.04 -> 0 | I68: =+G68+H68 -> -8520702.32
B69: Subtotal | C69: =C67+C68 -> 206952904.3 | D69: =+D67+D68 -> -59247.36 | E69: =+C69+D69 -> 206893657 | G69: =G67+G68 -> 204496855.7 | H69: =+H67+H68 -> 0 | I69: =+G69+H69 -> 204496855.7
B70: 1% Statewide Administration | C70: =-ROUND(202575982*0.01,0) -> -2025760 | D70: 0 | E70: =+C70+D70 -> -2025760 | G70: =-ROUND(196302140*0.01,0) -> -1963021 | H70: 0 | I70: =+G70+H70 -> -1963021
B71: Subtotal | C71: =+C69+C70 -> 204927144.3 | D71: =+D69+D70 -> -59247.36 | E71: =+C71+D71 -> 204867897 | G71: =+G69+G70 -> 202533834.7 | H71: =+H69+H70 -> 0 | I71: =+G71+H71 -> 202533834.7
B73: Increase over Prior Year | C73: =C71-K24 -> 11224533.32 | D73: =+E73-C73 -> -59247.36 | E73: =E71-K24 -> 11165285.96 | G73: =G71-G34 -> 202533834.7 | H73: =+I73-G73 -> 0 | I73: =I71-G34 -> 202533834.7
B74: 5% of increase | C74: =ROUND(C73*-0.05,0) -> -561227 | D74: 0 | E74: =ROUND(E73*-0.05,0) -> -558264 | G74: =G73*-0.05 -> -10126691.73 | H74: =+I74-G74 -> 10126691.73 | I74: =I37 -> 0
B75: Allocation Amount | C75: =+C71+C74 -> 204365917.3 | D75: =+E75-C75 -> -56284.36 | E75: =+E71+E74 -> 204309633 | G75: =+G71+G74 -> 192407142.9 | H75: =+I75-G75 -> 10126691.73 | I75: =+I71+I74 -> 202533834.7
B76: Neglected & Delinquent | C76: ='2014-15 Prelim'!$AW$310 -> 2876238 | D76: 0 | E76: ='2014-15 Prelim'!AY310 -> 2876238 | G76: ='2012-13 Final'!$AV$309 -> 3187229 | H76: =+I76-G76 -> -3187229 | I76: ='2012-13 Final'!AV323 -> 0
B77: Formula Grants to Districts | C77: =C75-C76 -> 201489679.3 | D77: =+E77-C77 -> -56284.36 | E77: =E75-E76 -> 201433395 | G77: =G75-G76 -> 189219913.9 | H77: =+I77-G77 -> 13313920.73 | I77: =I75-I76 -> 202533834.7
I88: 96661676.15 | AK88: 2008-09 | AL88: BASIC | AM88: ALLOCATION
I89: 14941026.81 | AK89: 2008-09 | AL89: CONC. | AM89: ALLOCATION
I90: 34299574.84 | AK90: 2008-09 | AL90: TARGETED | AM90: ALLOCATION
I91: 42886029.88 | AK91: 2008-09 | AL91: EFIG | AM91: ALLOCATION
I92: 188788307.7 | AK92: 2008-09 | AL92: TITLE I | AM92: ALLOCATION
B93: Change
A94: =+B94/I88 -> 0.003189891014 | B94: =I94-I88 -> 308340.2122 | D94: =I94/$I$98 -> 0.4862664784 | G94: 97080900.16 | I94: ='USDOE Alloc 0910F'!O11 -> 96970016.36 | AK94: 2009-10 | AL94: BASIC | AM94: ALLOCATION
A95: =+B95/I89 -> -6.383053672e-05 | B95: =I95-I89 -> -953.6937607 | D95: =I95/$I$98 -> 0.07491858839 | G95: 14884675.41 | I95: ='USDOE Alloc 0910F'!P11 -> 14940073.12 | AK95: 2009-10 | AL95: CONC. | AM95: ALLOCATION
A96: =+B96/I90 -> 0.1240278044 | B96: =I96-I90 -> 4254100.958 | D96: =I96/$I$98 -> 0.1933315148 | G96: 38656263.69 | I96: ='USDOE Alloc 0910F'!Q11 -> 38553675.8 | AK96: 2009-10 | AL96: TARGETED | AM96: ALLOCATION
A97: =+B97/I91 -> 0.14148302 | B97: =I97-I91 -> 6067645.024 | D97: =I97/$I$98 -> 0.2454834184 | G97: 49032851.94 | I97: ='USDOE Alloc 0910F'!R11 -> 48953674.91 | AK97: 2009-10 | AL97: EFIG | AM97: ALLOCATION
B98: =I98-I92 -> 10629132.5 | I98: =SUM(I94:I97) -> 199417440.2 | AK98: 2009-10 | AL98: TITLE I | AM98: ALLOCATION | AN98: with PY ADJ

Sheet CCDDD (hidden)
A2: Fed Code | B2: CCDDD | C2: Fed Code | D2: District | E2: Fed Code
A3: =C3 -> 5300030 | B3: 14005 | C3: 5300030 | D3: =VLOOKUP(C3,'2021-22 Prelim'!$D$14:$E$328,2,0) -> ABERDEEN | E3: =C3 -> 5300030
A4: =C4 -> 5300060 | B4: 21226 | C4: 5300060 | D4: =VLOOKUP(C4,'2021-22 Prelim'!$D$14:$E$328,2,0) -> ADNA | E4: =C4 -> 5300060
A5: 5300090 | B5: 22017 | C5: 5300090 | D5: =VLOOKUP(C5,'2021-22 Prelim'!$D$14:$E$328,2,0) -> ALMIRA | E5: 5300090
A6: 5300150 | B6: 29103 | C6: 5300150 | D6: =VLOOKUP(C6,'2021-22 Prelim'!$D$14:$E$328,2,0) -> ANACORTES | E6: 5300150
A7: 5300240 | B7: 31016 | C7: 5300240 | D7: =VLOOKUP(C7,'2021-22 Prelim'!$D$14:$E$328,2,0) -> ARLINGTON | E7: 5300240
A8: 5300280 | B8: 02420 | C8: 5300280 | D8: =VLOOKUP(C8,'2021-22 Prelim'!$D$14:$E$328,2,0) -> ASOTIN-ANATONE | E8: 5300280
A9: 5300300 | B9: 17408 | C9: 5300300 | D9: =VLOOKUP(C9,'2021-22 Prelim'!$D$14:$E$328,2,0) -> AUBURN | E9: 5300300
A10: 5300330 | B10: 18303 | C10: 5300330 | D10: =VLOOKUP(C10,'2021-22 Prelim'!$D$14:$E$328,2,0) -> BAINBRIDGE ISLAND | E10: 5300330
A11: 5300380 | B11: 06119 | C11: 5300380 | D11: =VLOOKUP(C11,'2021-22 Prelim'!$D$14:$E$328,2,0) -> BATTLE GROUND | E11: 5300380
A12: 5300390 | B12: 17405 | C12: 5300390 | D12: =VLOOKUP(C12,'2021-22 Prelim'!$D$14:$E$328,2,0) -> BELLEVUE | E12: 5300390
A13: 5300420 | B13: 37501 | C13: 5300420 | D13: =VLOOKUP(C13,'2021-22 Prelim'!$D$14:$E$328,2,0) -> BELLINGHAM | E13: 5300420
A14: 5300450 | B14: 01122 | C14: 5300450 | D14: =VLOOKUP(C14,'2021-22 Prelim'!$D$14:$E$328,2,0) -> BENGE | E14: 5300450
A15: 5300480 | B15: 27403 | C15: 5300480 | D15: =VLOOKUP(C15,'2021-22 Prelim'!$D$14:$E$328,2,0) -> BETHEL | E15: 5300480
A16: 5300510 | B16: 20203 | C16: 5300510 | D16: =VLOOKUP(C16,'2021-22 Prelim'!$D$14:$E$328,2,0) -> BICKLETON | E16: 5300510
A17: 5300570 | B17: 37503 | C17: 5300570 | D17: =VLOOKUP(C17,'2021-22 Prelim'!$D$14:$E$328,2,0) -> BLAINE | E17: 5300570
A18: 5300630 | B18: 21234 | C18: 5300630 | D18: =VLOOKUP(C18,'2021-22 Prelim'!$D$14:$E$328,2,0) -> BOISTFORT | E18: 5300630
A19: 5300660 | B19: 18100 | C19: 5300660 | D19: =VLOOKUP(C19,'2021-22 Prelim'!$D$14:$E$328,2,0) -> BREMERTON | E19: 5300660
A20: 5300690 | B20: 24111 | C20: 5300690 | D20: =VLOOKUP(C20,'2021-22 Prelim'!$D$14:$E$328,2,0) -> BREWSTER | E20: 5300690
A21: 5300720 | B21: 09075 | C21: 5300720 | D21: =VLOOKUP(C21,'2021-22 Prelim'!$D$14:$E$328,2,0) -> BRIDGEPORT | E21: 5300720
A22: 5300750 | B22: 16046 | C22: 5300750 | D22: =VLOOKUP(C22,'2021-22 Prelim'!$D$14:$E$328,2,0) -> BRINNON | E22: 5300750
A23: 5300780 | B23: 29100 | C23: 5300780 | D23: =VLOOKUP(C23,'2021-22 Prelim'!$D$14:$E$328,2,0) -> BURLINGTON-EDISON | E23: 5300780
A24: 5300810 | B24: 06117 | C24: 5300810 | D24: =VLOOKUP(C24,'2021-22 Prelim'!$D$14:$E$328,2,0) -> CAMAS | E24: 5300810
A25: 5300840 | B25: 05401 | C25: 5300840 | D25: =VLOOKUP(C25,'2021-22 Prelim'!$D$14:$E$328,2,0) -> CAPE FLATTERY | E25: 5300840
A26: 5300870 | B26: 27019 | C26: 5300870 | D26: =VLOOKUP(C26,'2021-22 Prelim'!$D$14:$E$328,2,0) -> CARBONADO | E26: 5300870
A27: 5300950 | B27: 04228 | C27: 5300950 | D27: =VLOOKUP(C27,'2021-22 Prelim'!$D$14:$E$328,2,0) -> CASCADE | E27: 5300950
A28: 5300960 | B28: 04222 | C28: 5300960 | D28: =VLOOKUP(C28,'2021-22 Prelim'!$D$14:$E$328,2,0) -> CASHMERE | E28: 5300960
A29: 5300990 | B29: 08401 | C29: 5300990 | D29: =VLOOKUP(C29,'2021-22 Prelim'!$D$14:$E$328,2,0) -> CASTLE ROCK | E29: 5300990
A30: 5301000 | B30: 18901 | C30: 5301000 | D30: =VLOOKUP(C30,'2021-22 Prelim'!$D$14:$E$328,2,0) -> CATALYST BREMERTON CHARTER | E30: 5301000
A31: 5301050 | B31: 20215 | C31: 5301050 | D31: =VLOOKUP(C31,'2021-22 Prelim'!$D$14:$E$328,2,0) -> CENTERVILLE | E31: 5301050
A32: 5301080 | B32: 18401 | C32: 5301080 | D32: =VLOOKUP(C32,'2021-22 Prelim'!$D$14:$E$328,2,0) -> CENTRAL KITSAP | E32: 5301080
A33: 5301110 | B33: 32356 | C33: 5301110 | D33: =VLOOKUP(C33,'2021-22 Prelim'!$D$14:$E$328,2,0) -> CENTRAL VALLEY | E33: 5301110
A34: 5301140 | B34: 21401 | C34: 5301140 | D34: =VLOOKUP(C34,'2021-22 Prelim'!$D$14:$E$328,2,0) -> CENTRALIA | E34: 5301140
A35: 5301170 | B35: 21302 | C35: 5301170 | D35: =VLOOKUP(C35,'2021-22 Prelim'!$D$14:$E$328,2,0) -> CHEHALIS | E35: 5301170
A36: 5301230 | B36: 32360 | C36: 5301230 | D36: =VLOOKUP(C36,'2021-22 Prelim'!$D$14:$E$328,2,0) -> CHENEY | E36: 5301230
A37: 5301260 | B37: 33036 | C37: 5301260 | D37: =VLOOKUP(C37,'2021-22 Prelim'!$D$14:$E$328,2,0) -> CHEWELAH | E37: 5301260
A38: 5301290 | B38: 16049 | C38: 5301290 | D38: =VLOOKUP(C38,'2021-22 Prelim'!$D$14:$E$328,2,0) -> CHIMACUM | E38: 5301290
A39: 5301320 | B39: 02250 | C39: 5301320 | D39: =VLOOKUP(C39,'2021-22 Prelim'!$D$14:$E$328,2,0) -> CLARKSTON | E39: 5301320
A40: 5301350 | B40: 19404 | C40: 5301350 | D40: =VLOOKUP(C40,'2021-22 Prelim'!$D$14:$E$328,2,0) -> CLE ELUM-ROSLYN | E40: 5301350
A41: 5301410 | B41: 27400 | C41: 5301410 | D41: =VLOOKUP(C41,'2021-22 Prelim'!$D$14:$E$328,2,0) -> CLOVER PARK | E41: 5301410
A42: 5301440 | B42: 38300 | C42: 5301440 | D42: =VLOOKUP(C42,'2021-22 Prelim'!$D$14:$E$328,2,0) -> COLFAX | E42: 5301440
A43: 5301470 | B43: 36250 | C43: 5301470 | D43: =VLOOKUP(C43,'2021-22 Prelim'!$D$14:$E$328,2,0) -> COLLEGE PLACE | E43: 5301470
A44: 5301500 | B44: 38306 | C44: 5301500 | D44: =VLOOKUP(C44,'2021-22 Prelim'!$D$14:$E$328,2,0) -> COLTON | E44: 5301500
A45: 5301560 | B45: 33206 | C45: 5301560 | D45: =VLOOKUP(C45,'2021-22 Prelim'!$D$14:$E$328,2,0) -> COLUMBIA (STEV) | E45: 5301560
A46: 5301590 | B46: 36400 | C46: 5301590 | D46: =VLOOKUP(C46,'2021-22 Prelim'!$D$14:$E$328,2,0) -> COLUMBIA (WALLA) | E46: 5301590
A47: 5301630 | B47: 33115 | C47: 5301630 | D47: =VLOOKUP(C47,'2021-22 Prelim'!$D$14:$E$328,2,0) -> COLVILLE | E47: 5301630
A48: 5301660 | B48: 29011 | C48: 5301660 | D48: =VLOOKUP(C48,'2021-22 Prelim'!$D$14:$E$328,2,0) -> CONCRETE | E48: 5301660
A49: 5301680 | B49: 29317 | C49: 5301680 | D49: =VLOOKUP(C49,'2021-22 Prelim'!$D$14:$E$328,2,0) -> CONWAY | E49: 5301680
A50: 5301710 | B50: 14099 | C50: 5301710 | D50: =VLOOKUP(C50,'2021-22 Prelim'!$D$14:$E$328,2,0) -> COSMOPOLIS | E50: 5301710
A51: 5303440 | B51: 13151 | C51: 5303440 | D51: =VLOOKUP(C51,'2021-22 Prelim'!$D$14:$E$328,2,0) -> COULEE-HARTLINE | E51: 5303440
A52: 5301800 | B52: 15204 | C52: 5301800 | D52: =VLOOKUP(C52,'2021-22 Prelim'!$D$14:$E$328,2,0) -> COUPEVILLE | E52: 5301800
A53: 5301830 | B53: 05313 | C53: 5301830 | D53: =VLOOKUP(C53,'2021-22 Prelim'!$D$14:$E$328,2,0) -> CRESCENT | E53: 5301830
A54: 5301860 | B54: 22073 | C54: 5301860 | D54: =VLOOKUP(C54,'2021-22 Prelim'!$D$14:$E$328,2,0) -> CRESTON | E54: 5301860
A55: 5301890 | B55: 10050 | C55: 5301890 | D55: =VLOOKUP(C55,'2021-22 Prelim'!$D$14:$E$328,2,0) -> CURLEW | E55: 5301890
A56: 5301920 | B56: 26059 | C56: 5301920 | D56: =VLOOKUP(C56,'2021-22 Prelim'!$D$14:$E$328,2,0) -> CUSICK | E56: 5301920
A57: 5301950 | B57: 19007 | C57: 5301950 | D57: =VLOOKUP(C57,'2021-22 Prelim'!$D$14:$E$328,2,0) -> DAMMAN | E57: 5301950
A58: 5301980 | B58: 31330 | C58: 5301980 | D58: =VLOOKUP(C58,'2021-22 Prelim'!$D$14:$E$328,2,0) -> DARRINGTON | E58: 5301980
A59: 5302010 | B59: 22207 | C59: 5302010 | D59: =VLOOKUP(C59,'2021-22 Prelim'!$D$14:$E$328,2,0) -> DAVENPORT | E59: 5302010
A60: 5302040 | B60: 07002 | C60: 5302040 | D60: =VLOOKUP(C60,'2021-22 Prelim'!$D$14:$E$328,2,0) -> DAYTON | E60: 5302040
A61: 5302070 | B61: 32414 | C61: 5302070 | D61: =VLOOKUP(C61,'2021-22 Prelim'!$D$14:$E$328,2,0) -> DEER PARK | E61: 5302070
A62: 5302130 | B62: 27343 | C62: 5302130 | D62: =VLOOKUP(C62,'2021-22 Prelim'!$D$14:$E$328,2,0) -> DIERINGER | E62: 5302130
... 77 more rows

Sheet Changes from revision (hidden)
A1: CoDistID | B1: District | C1: 2014-15 Previous | D1: Change with Federal Reduction | E1: FP 201 2014-15 Final with Revisions | F1: 2013-14 Max Carryover | G1: 2013-14 Excess Carryover | H1: 2014-15 Allocation plus Max Carryover | I1: 2014-15 Allocation plus Excess Carryover
A2: 14005 | B2: =VLOOKUP(A2,'2010-11 Prelim'!$A$14:$E$308,5,FALSE) -> ABERDEEN | C2: 1102286 | D2: =E2-C2 -> -2900 | E2: =ROUND(VLOOKUP(A2,'2014-15 Final'!$A$14:$AZ$310,52,FALSE),0) -> 1099386 | F2: 127646 | G2: 0 | H2: =E2+F2 -> 1227032 | I2: =H2+G2 -> 1227032
A3: 21226 | B3: =VLOOKUP(A3,'2010-11 Prelim'!$A$14:$E$308,5,FALSE) -> ADNA | C3: 159370 | D3: -417 | E3: =ROUND(VLOOKUP(A3,'2014-15 Final'!$A$14:$AZ$310,52,FALSE),0) -> 158953 | F3: 19559.25 | G3: 695.75 | H3: =E3+F3 -> 178512.25 | I3: =H3+G3 -> 179208
A4: 22017 | B4: =VLOOKUP(A4,'2010-11 Prelim'!$A$14:$E$308,5,FALSE) -> ALMIRA | C4: 28486 | D4: -1 | E4: =ROUND(VLOOKUP(A4,'2014-15 Final'!$A$14:$AZ$310,52,FALSE),0) -> 28485 | F4: 0 | G4: 0 | H4: 28485 | I4: 28485
A5: 29103 | B5: =VLOOKUP(A5,'2010-11 Prelim'!$A$14:$E$308,5,FALSE) -> ANACORTES | C5: 299320 | D5: -783 | E5: =ROUND(VLOOKUP(A5,'2014-15 Final'!$A$14:$AZ$310,52,FALSE),0) -> 298537 | F5: 20316 | G5: 0 | H5: 318853 | I5: 318853
A6: 31016 | B6: =VLOOKUP(A6,'2010-11 Prelim'!$A$14:$E$308,5,FALSE) -> ARLINGTON | C6: 424729 | D6: -2 | E6: =ROUND(VLOOKUP(A6,'2014-15 Final'!$A$14:$AZ$310,52,FALSE),0) -> 424727 | F6: 25514 | G6: 0 | H6: 450241 | I6: 450241
A7: 02420 | B7: =VLOOKUP(A7,'2010-11 Prelim'!$A$14:$E$308,5,FALSE) -> ASOTIN-ANATONE | C7: 84906 | D7: -1 | E7: =ROUND(VLOOKUP(A7,'2014-15 Final'!$A$14:$AZ$310,52,FALSE),0) -> 84905 | F7: 15006.3 | G7: 1943.7 | H7: 99911.3 | I7: 101855
A8: 17408 | B8: =VLOOKUP(A8,'2010-11 Prelim'!$A$14:$E$308,5,FALSE) -> AUBURN | C8: 3134406 | D8: -8228 | E8: =ROUND(VLOOKUP(A8,'2014-15 Final'!$A$14:$AZ$310,52,FALSE),0) -> 3126178 | F8: 893 | G8: 0 | H8: 3127071 | I8: 3127071
A9: 18303 | B9: =VLOOKUP(A9,'2010-11 Prelim'!$A$14:$E$308,5,FALSE) -> BAINBRIDGE ISLAND | C9: 192083 | D9: -358 | E9: =ROUND(VLOOKUP(A9,'2014-15 Final'!$A$14:$AZ$310,52,FALSE),0) -> 191725 | F9: 11693 | G9: 0 | H9: 203418 | I9: 203418
A10: 06119 | B10: =VLOOKUP(A10,'2010-11 Prelim'!$A$14:$E$308,5,FALSE) -> BATTLE GROUND | C10: 1414194 | D10: -7 | E10: =ROUND(VLOOKUP(A10,'2014-15 Final'!$A$14:$AZ$310,52,FALSE),0) -> 1414187 | F10: 51986 | G10: 0 | H10: 1466173 | I10: 1466173
A11: 17405 | B11: =VLOOKUP(A11,'2010-11 Prelim'!$A$14:$E$308,5,FALSE) -> BELLEVUE | C11: 1662638 | D11: -4373 | E11: =ROUND(VLOOKUP(A11,'2014-15 Final'!$A$14:$AZ$310,52,FALSE),0) -> 1658265 | F11: 167635 | G11: 0 | H11: 1825900 | I11: 1825900
A12: 37501 | B12: =VLOOKUP(A12,'2010-11 Prelim'!$A$14:$E$308,5,FALSE) -> BELLINGHAM | C12: 1928291 | D12: -5045 | E12: =ROUND(VLOOKUP(A12,'2014-15 Final'!$A$14:$AZ$310,52,FALSE),0) -> 1923246 | F12: 231280 | G12: 0 | H12: 2154526 | I12: 2154526
A13: 01122 | B13: =VLOOKUP(A13,'2010-11 Prelim'!$A$14:$E$308,5,FALSE) -> BENGE | C13: 0 | D13: 0 | E13: =ROUND(VLOOKUP(A13,'2014-15 Final'!$A$14:$AZ$310,52,FALSE),0) -> 0 | F13: 0 | G13: 0 | H13: 0 | I13: 0
A14: 27403 | B14: =VLOOKUP(A14,'2010-11 Prelim'!$A$14:$E$308,5,FALSE) -> BETHEL | C14: 2497082 | D14: -6587 | E14: =ROUND(VLOOKUP(A14,'2014-15 Final'!$A$14:$AZ$310,52,FALSE),0) -> 2490495 | F14: 233885 | G14: 0 | H14: 2724380 | I14: 2724380
A15: 20203 | B15: =VLOOKUP(A15,'2010-11 Prelim'!$A$14:$E$308,5,FALSE) -> BICKLETON | C15: 17300 | D15: -46 | E15: =ROUND(VLOOKUP(A15,'2014-15 Final'!$A$14:$AZ$310,52,FALSE),0) -> 17254 | F15: 0 | G15: 0 | H15: 17254 | I15: 17254
A16: 37503 | B16: =VLOOKUP(A16,'2010-11 Prelim'!$A$14:$E$308,5,FALSE) -> BLAINE | C16: 392374 | D16: -1021 | E16: =ROUND(VLOOKUP(A16,'2014-15 Final'!$A$14:$AZ$310,52,FALSE),0) -> 391353 | F16: 15658 | G16: 0 | H16: 407011 | I16: 407011
A17: 21234 | B17: =VLOOKUP(A17,'2010-11 Prelim'!$A$14:$E$308,5,FALSE) -> BOISTFORT | C17: 43953 | D17: 0 | E17: =ROUND(VLOOKUP(A17,'2014-15 Final'!$A$14:$AZ$310,52,FALSE),0) -> 43953 | F17: 0 | G17: 0 | H17: 43953 | I17: 43953
A18: 18100 | B18: =VLOOKUP(A18,'2010-11 Prelim'!$A$14:$E$308,5,FALSE) -> BREMERTON | C18: 1334948 | D18: -1395 | E18: =ROUND(VLOOKUP(A18,'2014-15 Final'!$A$14:$AZ$310,52,FALSE),0) -> 1333553 | F18: 219859.8 | G18: 73602.2 | H18: 1553412.8 | I18: 1627015
A19: 24111 | B19: =VLOOKUP(A19,'2010-11 Prelim'!$A$14:$E$308,5,FALSE) -> BREWSTER | C19: 445375 | D19: -1 | E19: =ROUND(VLOOKUP(A19,'2014-15 Final'!$A$14:$AZ$310,52,FALSE),0) -> 445374 | F19: 32010 | G19: 0 | H19: 477384 | I19: 477384
A20: 09075 | B20: =VLOOKUP(A20,'2010-11 Prelim'!$A$14:$E$308,5,FALSE) -> BRIDGEPORT | C20: 297488 | D20: -222 | E20: =ROUND(VLOOKUP(A20,'2014-15 Final'!$A$14:$AZ$310,52,FALSE),0) -> 297266 | F20: 0 | G20: 0 | H20: 297266 | I20: 297266
A21: 16046 | B21: =VLOOKUP(A21,'2010-11 Prelim'!$A$14:$E$308,5,FALSE) -> BRINNON | C21: 28588 | D21: 0 | E21: =ROUND(VLOOKUP(A21,'2014-15 Final'!$A$14:$AZ$310,52,FALSE),0) -> 28588 | F21: 2268 | G21: 0 | H21: 30856 | I21: 30856
A22: 29100 | B22: =VLOOKUP(A22,'2010-11 Prelim'!$A$14:$E$308,5,FALSE) -> BURLINGTON-EDISON | C22: 579763 | D22: -1509 | E22: =ROUND(VLOOKUP(A22,'2014-15 Final'!$A$14:$AZ$310,52,FALSE),0) -> 578254 | F22: 82981.8 | G22: 20183.2 | H22: 661235.8 | I22: 681419
A23: 06117 | B23: =VLOOKUP(A23,'2010-11 Prelim'!$A$14:$E$308,5,FALSE) -> CAMAS | C23: 451450 | D23: -840 | E23: =ROUND(VLOOKUP(A23,'2014-15 Final'!$A$14:$AZ$310,52,FALSE),0) -> 450610 | F23: 59758 | G23: 0 | H23: 510368 | I23: 510368
A24: 05401 | B24: =VLOOKUP(A24,'2010-11 Prelim'!$A$14:$E$308,5,FALSE) -> CAPE FLATTERY | C24: 239677 | D24: -2 | E24: =ROUND(VLOOKUP(A24,'2014-15 Final'!$A$14:$AZ$310,52,FALSE),0) -> 239675 | F24: 6926 | G24: 0 | H24: 246601 | I24: 246601
A25: 27019 | B25: =VLOOKUP(A25,'2010-11 Prelim'!$A$14:$E$308,5,FALSE) -> CARBONADO | C25: 17150 | D25: -45 | E25: =ROUND(VLOOKUP(A25,'2014-15 Final'!$A$14:$AZ$310,52,FALSE),0) -> 17105 | F25: 0 | G25: 0 | H25: 17105 | I25: 17105
A26: 04228 | B26: =VLOOKUP(A26,'2010-11 Prelim'!$A$14:$E$308,5,FALSE) -> CASCADE | C26: 212076 | D26: -551 | E26: =ROUND(VLOOKUP(A26,'2014-15 Final'!$A$14:$AZ$310,52,FALSE),0) -> 211525 | F26: 1648 | G26: 0 | H26: 213173 | I26: 213173
A27: 04222 | B27: =VLOOKUP(A27,'2010-11 Prelim'!$A$14:$E$308,5,FALSE) -> CASHMERE | C27: 258025 | D27: -554 | E27: =ROUND(VLOOKUP(A27,'2014-15 Final'!$A$14:$AZ$310,52,FALSE),0) -> 257471 | F27: 9740 | G27: 0 | H27: 267211 | I27: 267211
A28: 08401 | B28: =VLOOKUP(A28,'2010-11 Prelim'!$A$14:$E$308,5,FALSE) -> CASTLE ROCK | C28: 314211 | D28: -237 | E28: =ROUND(VLOOKUP(A28,'2014-15 Final'!$A$14:$AZ$310,52,FALSE),0) -> 313974 | F28: 40310 | G28: 0 | H28: 354284 | I28: 354284
A29: 20215 | B29: =VLOOKUP(A29,'2010-11 Prelim'!$A$14:$E$308,5,FALSE) -> CENTERVILLE | C29: 31056 | D29: 0 | E29: =ROUND(VLOOKUP(A29,'2014-15 Final'!$A$14:$AZ$310,52,FALSE),0) -> 31056 | F29: 0 | G29: 0 | H29: 31056 | I29: 31056
A30: 18401 | B30: =VLOOKUP(A30,'2010-11 Prelim'!$A$14:$E$308,5,FALSE) -> CENTRAL KITSAP | C30: 1094960 | D30: -2052 | E30: =ROUND(VLOOKUP(A30,'2014-15 Final'!$A$14:$AZ$310,52,FALSE),0) -> 1092908 | F30: 124518 | G30: 0 | H30: 1217426 | I30: 1217426
A31: 32356 | B31: =VLOOKUP(A31,'2010-11 Prelim'!$A$14:$E$308,5,FALSE) -> CENTRAL VALLEY | C31: 1682087 | D31: -4425 | E31: =ROUND(VLOOKUP(A31,'2014-15 Final'!$A$14:$AZ$310,52,FALSE),0) -> 1677662 | F31: 152930 | G31: 0 | H31: 1830592 | I31: 1830592
A32: 21401 | B32: =VLOOKUP(A32,'2010-11 Prelim'!$A$14:$E$308,5,FALSE) -> CENTRALIA | C32: 1099938 | D32: -2887 | E32: =ROUND(VLOOKUP(A32,'2014-15 Final'!$A$14:$AZ$310,52,FALSE),0) -> 1097051 | F32: 100497 | G32: 0 | H32: 1197548 | I32: 1197548
A33: 21302 | B33: =VLOOKUP(A33,'2010-11 Prelim'!$A$14:$E$308,5,FALSE) -> CHEHALIS | C33: 475327 | D33: -1239 | E33: =ROUND(VLOOKUP(A33,'2014-15 Final'!$A$14:$AZ$310,52,FALSE),0) -> 474088 | F33: 0 | G33: 0 | H33: 474088 | I33: 474088
A34: 32360 | B34: =VLOOKUP(A34,'2010-11 Prelim'!$A$14:$E$308,5,FALSE) -> CHENEY | C34: 713245 | D34: -1856 | E34: =ROUND(VLOOKUP(A34,'2014-15 Final'!$A$14:$AZ$310,52,FALSE),0) -> 711389 | F34: 94984.65 | G34: 32098.35 | H34: 806373.65 | I34: 838472
A35: 33036 | B35: =VLOOKUP(A35,'2010-11 Prelim'!$A$14:$E$308,5,FALSE) -> CHEWELAH | C35: 426613 | D35: -1127 | E35: =ROUND(VLOOKUP(A35,'2014-15 Final'!$A$14:$AZ$310,52,FALSE),0) -> 425486 | F35: 14305 | G35: 0 | H35: 439791 | I35: 439791
A36: 16049 | B36: =VLOOKUP(A36,'2010-11 Prelim'!$A$14:$E$308,5,FALSE) -> CHIMACUM | C36: 185427 | D36: 0 | E36: =ROUND(VLOOKUP(A36,'2014-15 Final'!$A$14:$AZ$310,52,FALSE),0) -> 185427 | F36: 1215 | G36: 0 | H36: 186642 | I36: 186642
A37: 02250 | B37: =VLOOKUP(A37,'2010-11 Prelim'!$A$14:$E$308,5,FALSE) -> CLARKSTON | C37: 672261 | D37: -1253 | E37: =ROUND(VLOOKUP(A37,'2014-15 Final'!$A$14:$AZ$310,52,FALSE),0) -> 671008 | F37: 36091 | G37: 0 | H37: 707099 | I37: 707099
A38: 19404 | B38: =VLOOKUP(A38,'2010-11 Prelim'!$A$14:$E$308,5,FALSE) -> CLE ELUM-ROSLYN | C38: 252495 | D38: -1 | E38: =ROUND(VLOOKUP(A38,'2014-15 Final'!$A$14:$AZ$310,52,FALSE),0) -> 252494 | F38: 38324.7 | G38: 13964.3 | H38: 290818.7 | I38: 304783
A39: 27400 | B39: =VLOOKUP(A39,'2010-11 Prelim'!$A$14:$E$308,5,FALSE) -> CLOVER PARK | C39: 3774823 | D39: -7091 | E39: =ROUND(VLOOKUP(A39,'2014-15 Final'!$A$14:$AZ$310,52,FALSE),0) -> 3767732 | F39: 590775 | G39: 0 | H39: 4358507 | I39: 4358507
A40: 38300 | B40: =VLOOKUP(A40,'2010-11 Prelim'!$A$14:$E$308,5,FALSE) -> COLFAX | C40: 95129 | D40: -247 | E40: =ROUND(VLOOKUP(A40,'2014-15 Final'!$A$14:$AZ$310,52,FALSE),0) -> 94882 | F40: 0 | G40: 0 | H40: 94882 | I40: 94882
A41: 36250 | B41: =VLOOKUP(A41,'2010-11 Prelim'!$A$14:$E$308,5,FALSE) -> COLLEGE PLACE | C41: 467823 | D41: -1224 | E41: =ROUND(VLOOKUP(A41,'2014-15 Final'!$A$14:$AZ$310,52,FALSE),0) -> 466599 | F41: 42432 | G41: 0 | H41: 509031 | I41: 509031
A42: 38306 | B42: =VLOOKUP(A42,'2010-11 Prelim'!$A$14:$E$308,5,FALSE) -> COLTON | C42: 17151 | D42: -45 | E42: =ROUND(VLOOKUP(A42,'2014-15 Final'!$A$14:$AZ$310,52,FALSE),0) -> 17106 | F42: 0 | G42: 0 | H42: 17106 | I42: 17106
A43: 33206 | B43: =VLOOKUP(A43,'2010-11 Prelim'!$A$14:$E$308,5,FALSE) -> COLUMBIA (STEV) | C43: 63975 | D43: -1 | E43: =ROUND(VLOOKUP(A43,'2014-15 Final'!$A$14:$AZ$310,52,FALSE),0) -> 63974 | F43: 0 | G43: 0 | H43: 63974 | I43: 63974
A44: 36400 | B44: =VLOOKUP(A44,'2010-11 Prelim'!$A$14:$E$308,5,FALSE) -> COLUMBIA (WALLA) | C44: 100751 | D44: -165 | E44: =ROUND(VLOOKUP(A44,'2014-15 Final'!$A$14:$AZ$310,52,FALSE),0) -> 100586 | F44: 10428 | G44: 0 | H44: 111014 | I44: 111014
A45: 33115 | B45: =VLOOKUP(A45,'2010-11 Prelim'!$A$14:$E$308,5,FALSE) -> COLVILLE | C45: 556301 | D45: -1461 | E45: =ROUND(VLOOKUP(A45,'2014-15 Final'!$A$14:$AZ$310,52,FALSE),0) -> 554840 | F45: 69981 | G45: 0 | H45: 624821 | I45: 624821
A46: 29011 | B46: =VLOOKUP(A46,'2010-11 Prelim'!$A$14:$E$308,5,FALSE) -> CONCRETE | C46: 292135 | D46: -1 | E46: =ROUND(VLOOKUP(A46,'2014-15 Final'!$A$14:$AZ$310,52,FALSE),0) -> 292134 | F46: 41856 | G46: 0 | H46: 333990 | I46: 333990
A47: 29317 | B47: =VLOOKUP(A47,'2010-11 Prelim'!$A$14:$E$308,5,FALSE) -> CONWAY | C47: 45311 | D47: -84 | E47: =ROUND(VLOOKUP(A47,'2014-15 Final'!$A$14:$AZ$310,52,FALSE),0) -> 45227 | F47: 6735 | G47: 0 | H47: 51962 | I47: 51962
A48: 14099 | B48: =VLOOKUP(A48,'2010-11 Prelim'!$A$14:$E$308,5,FALSE) -> COSMOPOLIS | C48: 65598 | D48: -119 | E48: =ROUND(VLOOKUP(A48,'2014-15 Final'!$A$14:$AZ$310,52,FALSE),0) -> 65479 | F48: 8609 | G48: 0 | H48: 74088 | I48: 74088
A49: 13151 | B49: =VLOOKUP(A49,'2010-11 Prelim'!$A$14:$E$308,5,FALSE) -> COULEE-HARTLINE | C49: 50281 | D49: 0 | E49: =ROUND(VLOOKUP(A49,'2014-15 Final'!$A$14:$AZ$310,52,FALSE),0) -> 50281 | F49: 0 | G49: 0 | H49: 50281 | I49: 50281
A50: 15204 | B50: =VLOOKUP(A50,'2010-11 Prelim'!$A$14:$E$308,5,FALSE) -> COUPEVILLE | C50: 184642 | D50: -481 | E50: =ROUND(VLOOKUP(A50,'2014-15 Final'!$A$14:$AZ$310,52,FALSE),0) -> 184161 | F50: 0 | G50: 0 | H50: 184161 | I50: 184161
A51: 05313 | B51: =VLOOKUP(A51,'2010-11 Prelim'!$A$14:$E$308,5,FALSE) -> CRESCENT | C51: 163537 | D51: -432 | E51: =ROUND(VLOOKUP(A51,'2014-15 Final'!$A$14:$AZ$310,52,FALSE),0) -> 163105 | F51: 15272 | G51: 0 | H51: 178377 | I51: 178377
A52: 22073 | B52: =VLOOKUP(A52,'2010-11 Prelim'!$A$14:$E$308,5,FALSE) -> CRESTON | C52: 23921 | D52: 0 | E52: =ROUND(VLOOKUP(A52,'2014-15 Final'!$A$14:$AZ$310,52,FALSE),0) -> 23921 | F52: 0 | G52: 0 | H52: 23921 | I52: 23921
A53: 10050 | B53: =VLOOKUP(A53,'2010-11 Prelim'!$A$14:$E$308,5,FALSE) -> CURLEW | C53: 70588 | D53: 0 | E53: =ROUND(VLOOKUP(A53,'2014-15 Final'!$A$14:$AZ$310,52,FALSE),0) -> 70588 | F53: 0 | G53: 0 | H53: 70588 | I53: 70588
A54: 26059 | B54: =VLOOKUP(A54,'2010-11 Prelim'!$A$14:$E$308,5,FALSE) -> CUSICK | C54: 151377 | D54: -1 | E54: =ROUND(VLOOKUP(A54,'2014-15 Final'!$A$14:$AZ$310,52,FALSE),0) -> 151376 | F54: 22976.55 | G54: 30282.45 | H54: 174352.55 | I54: 204635
A55: 19007 | B55: =VLOOKUP(A55,'2010-11 Prelim'!$A$14:$E$308,5,FALSE) -> DAMMAN | C55: 7965 | D55: 0 | E55: =ROUND(VLOOKUP(A55,'2014-15 Final'!$A$14:$AZ$310,52,FALSE),0) -> 7965 | F55: 0 | G55: 0 | H55: 7965 | I55: 7965
A56: 31330 | B56: =VLOOKUP(A56,'2010-11 Prelim'!$A$14:$E$308,5,FALSE) -> DARRINGTON | C56: 309284 | D56: -1 | E56: =ROUND(VLOOKUP(A56,'2014-15 Final'!$A$14:$AZ$310,52,FALSE),0) -> 309283 | F56: 42142 | G56: 0 | H56: 351425 | I56: 351425
A57: 22207 | B57: =VLOOKUP(A57,'2010-11 Prelim'!$A$14:$E$308,5,FALSE) -> DAVENPORT | C57: 110133 | D57: -288 | E57: =ROUND(VLOOKUP(A57,'2014-15 Final'!$A$14:$AZ$310,52,FALSE),0) -> 109845 | F57: 6759 | G57: 0 | H57: 116604 | I57: 116604
A58: 07002 | B58: =VLOOKUP(A58,'2010-11 Prelim'!$A$14:$E$308,5,FALSE) -> DAYTON | C58: 108295 | D58: -120 | E58: =ROUND(VLOOKUP(A58,'2014-15 Final'!$A$14:$AZ$310,52,FALSE),0) -> 108175 | F58: 11875 | G58: 0 | H58: 120050 | I58: 120050
A59: 32414 | B59: =VLOOKUP(A59,'2010-11 Prelim'!$A$14:$E$308,5,FALSE) -> DEER PARK | C59: 485853 | D59: -1270 | E59: =ROUND(VLOOKUP(A59,'2014-15 Final'!$A$14:$AZ$310,52,FALSE),0) -> 484583 | F59: 43321 | G59: 0 | H59: 527904 | I59: 527904
A60: 27343 | B60: =VLOOKUP(A60,'2010-11 Prelim'!$A$14:$E$308,5,FALSE) -> DIERINGER | C60: 133279 | D60: -348 | E60: =ROUND(VLOOKUP(A60,'2014-15 Final'!$A$14:$AZ$310,52,FALSE),0) -> 132931 | F60: 17929 | G60: 0 | H60: 150860 | I60: 150860
A61: 36101 | B61: =VLOOKUP(A61,'2010-11 Prelim'!$A$14:$E$308,5,FALSE) -> DIXIE | C61: 11425 | D61: 0 | E61: =ROUND(VLOOKUP(A61,'2014-15 Final'!$A$14:$AZ$310,52,FALSE),0) -> 11425 | F61: 0 | G61: 0 | H61: 11425 | I61: 11425
A62: 32361 | B62: =VLOOKUP(A62,'2010-11 Prelim'!$A$14:$E$308,5,FALSE) -> EAST VALLEY (SPK) | C62: 750606 | D62: -1954 | E62: =ROUND(VLOOKUP(A62,'2014-15 Final'!$A$14:$AZ$310,52,FALSE),0) -> 748652 | F62: 107190.9 | G62: 616.1 | H62: 855842.9 | I62: 856459
... 77 more rows

Sheet Stimulus - Regular Breakdown P (hidden)
B1: Program | C1: Award | D1: 4% Sch Imp | E1: 1% Admin | F1: 5% Awards | O1: 1 - Per District
B2: Title I | C2: =Assumption!#REF! ->  | D2: =$C6*D$4 ->  | E2: 1875190 | O2: 2 - Per State Total
B3: ARRA T I | C3: =Assumption!#REF! -> 
B4: Total | C4: =C2+C3 ->  | D4: =C4*0.04 ->  | E4: =C4*0.01 ->  | F4: =C3*0.05-Assumption!#REF! -> 
O5: 1 - Per District | P5: =IF(LEFT($O$5,1)="1",$M15,$C$6) -> 0.6191754238 | Q5: =IF(LEFT($O$5,1)="1",$N15,$C$7) -> 0.3808245762
B6: Breakdown | C6: =$C2/$C$4 ->  | F6: 1
F7: 0
D9: BASIC | E9: CONC. | F9: TARGETED | G9: EFIG | I9: TITLE I | J9: FINAL | K9: FINAL
D10: ALLOCATION | E10: ALLOCATION | F10: ALLOCATION | G10: ALLOCATION | H10: CARRYOVER | I10: ALLOCATION | J10: FY 2009 | K10: FY 2009
D11: REGULAR | E11: REGULAR | F11: REGULAR | G11: REGULAR | H11: 07-08 | I11: REGULAR | J11: ARRA | K11: ARRA | L11: TOTAL | T11: =+T14+S14 -> 13393309.84 | W11: =+W14+V14 -> 13393309.84 | AC11: =+AC14+AB14 ->  | AL11: =+AL14+AK14 -> 
D12: APPROP. | E12: APPROP. | F12: APPROP. | G12: APPROP. | H12: REGULAR | I12: APPROP. | J12: TARGETED | K12: EFIG | L12: ARRA | O12: TOTAL | P12: =+P14+Q14 -> 334832746 | S12: % | T12: % | V12: 7988385.848 | W12: 5404923.992 | AA12: 3226421 | AB12: =-Assumption!#REF! ->  | AC12: =-Assumption!#REF! ->  | AH12: =Assumption!#REF!*-1 ->  | AI12: =-Assumption!#REF! -> 
A13: CCDDD | B13: LEAID | C13: LEA | D13: ONLY | E13: ONLY | F13: ONLY | G13: ONLY | H13: ONLY | I13: ONLY | J13: ALLOCATION | K13: ALLOCATION | L13: ALLOCATION | M13: REGULAR | N13: ARRA | O13: ALLOCATION | P13: Regular | Q13: ARRA | R13: SCH IMP Base | S13: Regular | T13: ARRA | U13: SCH IMP | V13: Regular | W13: ARRA | X13: Net after Sch Imp | Y13: Regular | Z13: ARRA | AA13: ADMIN | AB13: Regular | AC13: ARRA | AD13: Net After Admin | AG13: AWARDS | AH13: Regular | AI13: ARRA | AJ13: NET | AK13: Regular | AL13: ARRA
O14: =SUM(O15:O311) -> 334832746 | P14: =SUM(P15:P311) -> 199709646.2 | Q14: 135123099.8 | R14: 13393309.84 | S14: 7988385.848 | T14: =SUM(T15:T311) -> 5404923.992 | U14: 13393309.84 | V14: 7988385.848 | W14: 5404923.992 | X14: 321439436.2 | Y14: 191721260.4 | Z14: 129718175.8 | AB14: =SUM(AB15:AB311) ->  | AC14: =SUM(AC15:AC311) ->  | AD14: =SUM(AD15:AD311) ->  | AE14: =SUM(AE15:AE311) ->  | AF14: =SUM(AF15:AF311) ->  | AJ14: =SUM(AJ15:AJ311) ->  | AK14: =SUM(AK15:AK311) ->  | AL14: =SUM(AL15:AL311) -> 
A15: 14005 | B15: 5300030 | C15: ABERDEEN | D15: 489079.1149 | E15: 124611.6801 | F15: 178659.5949 | G15: 226635.282 | H15: =VLOOKUP(B15,'USDOE Alloc 0910P'!$E$13:$AA$309,23,FALSE) -> 377.0360955 | I15: =SUM(D15:H15) -> 1019362.708 | J15: 278529.0457 | K15: 348431.1927 | L15: =J15+K15 -> 626960.2384 | M15: =IF(SUM(L15+I15)=0,0,I15/SUM($L15+$I15)) -> 0.6191754238 | N15: =IF(SUM(L15+I15)=0,0,L15/SUM($L15+$I15)) -> 0.3808245762 | O15: =VLOOKUP(B15,'2009-10 Prelim'!$D$14:$S$310,16,FALSE) -> 1646322.946 | P15: =I15 -> 1019362.708 | Q15: =L15 -> 626960.2384 | R15: =O15*0.04 -> 65852.91785 | S15: =R15*M15 -> 40774.50832 | T15: =$R15*N15 -> 25078.40953 | U15: =V15+W15 -> 66006.29155 | V15: =VLOOKUP($B15,'Sch Imp Realloc'!$B$15:$AG$311,31,FALSE) -> 40927.46646 | W15: =VLOOKUP($B15,'Sch Imp Realloc'!$B$15:$AG$311,32,FALSE) -> 25078.82508 | X15: =O15-U15 -> 1580316.655 | Y15: =P15-V15 -> 978435.2415 | Z15: =Q15-W15 -> 601881.4133 | AA15: =AB15+AC15 ->  | AB15: =(P15-V15)/($P$14-$V$14)*$AB$12 ->  | AC15: =(Q15-W15)/($Q$14-$W$14)*$AC$12 ->  | AD15: =X15-AA15 ->  | AE15: =Y15-AB15 ->  | AF15: =Z15-AC15 ->  | AG15: =AH15+AI15 ->  | AH15: =AE15/$AE$14*$AH$12 ->  | AI15: =AF15/$AF$14*$AI$12 ->  | AJ15: =ROUND(AD15-AG15,0) ->  | AK15: =ROUND(AE15-AH15,0) ->  | AL15: =AJ15-AK15 -> 
A16: 21226 | B16: 5300060 | C16: ADNA | D16: 30607.29793 | E16: 0 | F16: 8940.134179 | G16: 11340.83973 | H16: =VLOOKUP(B16,'USDOE Alloc 0910P'!$E$13:$AA$309,23,FALSE) -> 18.89695079 | I16: =SUM(D16:H16) -> 50907.16879 | J16: 13937.606 | K16: 17435.51258 | L16: =J16+K16 -> 31373.11858 | M16: =IF(SUM(L16+I16)=0,0,I16/SUM($L16+$I16)) -> 0.6187043144 | N16: =IF(SUM(L16+I16)=0,0,L16/SUM($L16+$I16)) -> 0.3812956856 | O16: =VLOOKUP(B16,'2009-10 Prelim'!$D$14:$S$310,16,FALSE) -> 82280.28737 | P16: =I16 -> 50907.16879 | Q16: =L16 -> 31373.11858 | R16: =O16*0.04 -> 3291.211495 | S16: =R16*M16 -> 2036.286752 | T16: =$R16*N16 -> 1254.924743 | U16: =V16+W16 -> 3298.871048 | V16: =VLOOKUP($B16,'Sch Imp Realloc'!$B$15:$AG$311,31,FALSE) -> 2043.92551 | W16: =VLOOKUP($B16,'Sch Imp Realloc'!$B$15:$AG$311,32,FALSE) -> 1254.945537 | X16: =O16-U16 -> 78981.41633 | Y16: =P16-V16 -> 48863.24328 | Z16: =Q16-W16 -> 30118.17305 | AA16: =AB16+AC16 ->  | AB16: =(P16-V16)/($P$14-$V$14)*$AB$12 ->  | AC16: =(Q16-W16)/($Q$14-$W$14)*$AC$12 ->  | AD16: =X16-AA16 ->  | AE16: =Y16-AB16 ->  | AF16: =Z16-AC16 ->  | AG16: =AH16+AI16 ->  | AH16: =AE16/$AE$14*$AH$12 ->  | AI16: =AF16/$AF$14*$AI$12 ->  | AJ16: =ROUND(AD16-AG16,0) ->  | AK16: =ROUND(AE16-AH16,0) ->  | AL16: =AJ16-AK16 -> 
A17: 22017 | B17: 5300090 | C17: ALMIRA | D17: 14028.34489 | E17: 3574.259403 | F17: 4972.605069 | G17: 6307.905003 | H17: =VLOOKUP(B17,'USDOE Alloc 0910P'!$E$13:$AA$309,23,FALSE) -> 6.718362948 | I17: 28889.83273 | J17: 7752.256158 | K17: 9697.831881 | L17: 17450.08804 | M17: 0.6234329332 | N17: 0.3765670668 | O17: =VLOOKUP(B17,'2009-10 Prelim'!$D$14:$S$310,16,FALSE) -> 46339.92076 | P17: 28889.83273 | Q17: 17450.08804 | R17: 1853.596831 | S17: 1155.593309 | T17: 698.0035216 | U17: 1857.943394 | V17: =VLOOKUP($B17,'Sch Imp Realloc'!$B$15:$AG$311,31,FALSE) -> 1159.928307 | W17: =VLOOKUP($B17,'Sch Imp Realloc'!$B$15:$AG$311,32,FALSE) -> 698.0150875 | X17: 44481.97737 | Y17: 27729.90442 | Z17: 16752.07295
A18: 29103 | B18: 5300150 | C18: ANACORTES | D18: 230192.3865 | E18: 0 | F18: 67237.25914 | G18: 85292.56545 | H18: =VLOOKUP(B18,'USDOE Alloc 0910P'!$E$13:$AA$309,23,FALSE) -> 146.183959 | I18: 382868.3951 | J18: 104822.4118 | K18: 131129.5842 | L18: 235951.996 | M18: 0.618706818 | N18: 0.381293182 | O18: =VLOOKUP(B18,'2009-10 Prelim'!$D$14:$S$310,16,FALSE) -> 618820.3911 | P18: 382868.3951 | Q18: 235951.996 | R18: 24752.81564 | S18: 15314.7358 | T18: 9438.079841 | U18: 24810.42247 | V18: =VLOOKUP($B18,'Sch Imp Realloc'!$B$15:$AG$311,31,FALSE) -> 15372.18625 | W18: =VLOOKUP($B18,'Sch Imp Realloc'!$B$15:$AG$311,32,FALSE) -> 9438.23623 | X18: 594009.9686 | Y18: 367496.2088 | Z18: 226513.7598
A19: 31016 | B19: 5300240 | C19: ARLINGTON | D19: 262074.9886 | E19: 0 | F19: 76549.89891 | G19: 97105.94016 | H19: =VLOOKUP(B19,'USDOE Alloc 0910P'!$E$13:$AA$309,23,FALSE) -> 179.6993057 | I19: 435910.5269 | J19: 119340.7514 | K19: 149291.5765 | L19: 268632.3279 | M19: 0.6187139987 | N19: 0.3812860013 | O19: =VLOOKUP(B19,'2009-10 Prelim'!$D$14:$S$310,16,FALSE) -> 704542.8548 | P19: 435910.5269 | Q19: 268632.3279 | R19: 28181.71419 | S19: 17436.42108 | T19: 10745.29311 | U19: 28247.3018 | V19: =VLOOKUP($B19,'Sch Imp Realloc'!$B$15:$AG$311,31,FALSE) -> 17501.83063 | W19: =VLOOKUP($B19,'Sch Imp Realloc'!$B$15:$AG$311,32,FALSE) -> 10745.47116 | X19: 676295.553 | Y19: 418408.6963 | Z19: 257886.8567
A20: 02420 | B20: 5300280 | C20: ASOTIN-ANATONE | D20: 72692.33259 | E20: 18521.16236 | F20: 25513.88574 | G20: 32365.16178 | H20: =VLOOKUP(B20,'USDOE Alloc 0910P'!$E$13:$AA$309,23,FALSE) -> 57.53219404 | I20: 149150.0747 | J20: 39775.96755 | K20: 49758.50105 | L20: 89534.46859 | M20: 0.6248836755 | N20: 0.3751163245 | O20: =VLOOKUP(B20,'2009-10 Prelim'!$D$14:$S$310,16,FALSE) -> 238684.5433 | P20: 149150.0747 | Q20: 89534.46859 | R20: 9547.38173 | S20: 5966.002987 | T20: 3581.378744 | U20: 9569.821447 | V20: =VLOOKUP($B20,'Sch Imp Realloc'!$B$15:$AG$311,31,FALSE) -> 5988.38336 | W20: =VLOOKUP($B20,'Sch Imp Realloc'!$B$15:$AG$311,32,FALSE) -> 3581.438087 | X20: 229114.7218 | Y20: 143161.6913 | Z20: 85953.03051 | AB20: =(P20-V20)/($P$14-$V$14)*$AB$12 -> 
A21: 17408 | B21: 5300300 | C21: AUBURN | D21: 1207075.312 | E21: 0 | F21: 464514.4717 | G21: 589251.1308 | H21: =VLOOKUP(B21,'USDOE Alloc 0910P'!$E$13:$AA$309,23,FALSE) -> 357.7535987 | I21: 2261198.668 | J21: 724174.7784 | K21: 905920.1747 | L21: 1630094.953 | M21: 0.5810917624 | N21: 0.4189082376 | O21: =VLOOKUP(B21,'2009-10 Prelim'!$D$14:$S$310,16,FALSE) -> 3891293.621 | P21: 2261198.668 | Q21: 1630094.953 | R21: 155651.7449 | S21: 90447.94674 | T21: 65203.79812 | U21: 155992.1243 | V21: =VLOOKUP($B21,'Sch Imp Realloc'!$B$15:$AG$311,31,FALSE) -> 90787.24573 | W21: =VLOOKUP($B21,'Sch Imp Realloc'!$B$15:$AG$311,32,FALSE) -> 65204.87855 | X21: 3735301.497 | Y21: 2170411.423 | Z21: 1564890.075
A22: 18303 | B22: 5300330 | C22: BAINBRIDGE ISLAND | D22: 100749.0224 | E22: 0 | F22: 0 | G22: 0 | H22: =VLOOKUP(B22,'USDOE Alloc 0910P'!$E$13:$AA$309,23,FALSE) -> 0 | I22: 100749.0224 | J22: 0 | K22: 0 | L22: 0 | M22: 1 | N22: 0 | O22: =VLOOKUP(B22,'2009-10 Prelim'!$D$14:$S$310,16,FALSE) -> 100749.0224 | P22: 100749.0224 | Q22: 0 | R22: 4029.960895 | S22: 4029.960895 | T22: 0 | U22: 4009.022364 | V22: =VLOOKUP($B22,'Sch Imp Realloc'!$B$15:$AG$311,31,FALSE) -> 4009.022364 | W22: =VLOOKUP($B22,'Sch Imp Realloc'!$B$15:$AG$311,32,FALSE) -> 0 | X22: 96740 | Y22: 96740 | Z22: 0
A23: 06119 | B23: 5300380 | C23: BATTLE GROUND | D23: 688664.2035 | E23: 0 | F23: 237379.1877 | G23: 301122.9215 | H23: =VLOOKUP(B23,'USDOE Alloc 0910P'!$E$13:$AA$309,23,FALSE) -> -3096.970359 | I23: 1224069.342 | J23: 370072.476 | K23: 462949.1831 | L23: 833021.6591 | M23: 0.5950487079 | N23: 0.4049512921 | O23: =VLOOKUP(B23,'2009-10 Prelim'!$D$14:$S$310,16,FALSE) -> 2057091.001 | P23: 1224069.342 | Q23: 833021.6591 | R23: 82283.64006 | S23: 48962.7737 | T23: 33320.86636 | U23: 82467.86711 | V23: =VLOOKUP($B23,'Sch Imp Realloc'!$B$15:$AG$311,31,FALSE) -> 49146.44862 | W23: =VLOOKUP($B23,'Sch Imp Realloc'!$B$15:$AG$311,32,FALSE) -> 33321.41849 | X23: 1974623.134 | Y23: 1174922.894 | Z23: 799700.2406
A24: 17405 | B24: 5300390 | C24: BELLEVUE | D24: 902915.289 | E24: 0 | F24: 331250.5966 | G24: 420201.7386 | H24: =VLOOKUP(B24,'USDOE Alloc 0910P'!$E$13:$AA$309,23,FALSE) -> 541.5507694 | I24: 1654909.175 | J24: 516417.3389 | K24: 646022.0652 | L24: 1162439.404 | M24: 0.58739951 | N24: 0.41260049 | O24: =VLOOKUP(B24,'2009-10 Prelim'!$D$14:$S$310,16,FALSE) -> 2817348.579 | P24: 1654909.175 | Q24: 1162439.404 | R24: 112693.9432 | S24: 66196.367 | T24: 46497.57617 | U24: 112943.0372 | V24: =VLOOKUP($B24,'Sch Imp Realloc'!$B$15:$AG$311,31,FALSE) -> 66444.69062 | W24: =VLOOKUP($B24,'Sch Imp Realloc'!$B$15:$AG$311,32,FALSE) -> 46498.34663 | X24: 2704405.542 | Y24: 1588464.484 | Z24: 1115941.058
A25: 37501 | B25: 5300420 | C25: BELLINGHAM | D25: 1062328.299 | E25: 0 | F25: 401095.3949 | G25: 508802.049 | H25: =VLOOKUP(B25,'USDOE Alloc 0910P'!$E$13:$AA$309,23,FALSE) -> 321.3762496 | I25: 1972547.119 | J25: 625304.8858 | K25: 782237.0073 | L25: 1407541.893 | M25: 0.5835784537 | N25: 0.4164215463 | O25: =VLOOKUP(B25,'2009-10 Prelim'!$D$14:$S$310,16,FALSE) -> 3380089.012 | P25: 1972547.119 | Q25: 1407541.893 | R25: 135203.5605 | S25: 78901.88477 | T25: 56301.67572 | U25: 135500.4795 | V25: =VLOOKUP($B25,'Sch Imp Realloc'!$B$15:$AG$311,31,FALSE) -> 79197.87082 | W25: =VLOOKUP($B25,'Sch Imp Realloc'!$B$15:$AG$311,32,FALSE) -> 56302.60864 | X25: 3244588.533 | Y25: 1893349.248 | Z25: 1351239.284
A26: 01122 | B26: 5300450 | C26: BENGE | D26: 0 | E26: 0 | F26: 0 | G26: 0 | H26: =VLOOKUP(B26,'USDOE Alloc 0910P'!$E$13:$AA$309,23,FALSE) -> 0 | I26: 0 | J26: 0 | K26: 0 | L26: 0 | M26: 0 | N26: 0 | O26: =VLOOKUP(B26,'2009-10 Prelim'!$D$14:$S$310,16,FALSE) -> 0 | P26: 0 | Q26: 0 | R26: 0 | S26: 0 | T26: 0 | U26: 0 | V26: =VLOOKUP($B26,'Sch Imp Realloc'!$B$15:$AG$311,31,FALSE) -> 0 | W26: =VLOOKUP($B26,'Sch Imp Realloc'!$B$15:$AG$311,32,FALSE) -> 0 | X26: 0 | Y26: 0 | Z26: 0
A27: 27403 | B27: 5300480 | C27: BETHEL | D27: 1338431.633 | E27: 0 | F27: 522066.5855 | G27: 662257.7866 | H27: =VLOOKUP(B27,'USDOE Alloc 0910P'!$E$13:$AA$309,23,FALSE) -> 193.9729433 | I27: 2522949.978 | J27: 813898.117 | K27: 1018161.287 | L27: 1832059.404 | M27: 0.5793213646 | N27: 0.4206786354 | O27: =VLOOKUP(B27,'2009-10 Prelim'!$D$14:$S$310,16,FALSE) -> 4355009.381 | P27: 2522949.978 | Q27: 1832059.404 | R27: 174200.3753 | S27: 100917.9991 | T27: 73282.37616 | U27: 174580.165 | V27: =VLOOKUP($B27,'Sch Imp Realloc'!$B$15:$AG$311,31,FALSE) -> 101296.5746 | W27: =VLOOKUP($B27,'Sch Imp Realloc'!$B$15:$AG$311,32,FALSE) -> 73283.59045 | X27: 4180429.216 | Y27: 2421653.403 | Z27: 1758775.814
A28: 20203 | B28: 5300510 | C28: BICKLETON | D28: 0 | E28: 1405.093254 | F28: 0 | G28: 0 | H28: =VLOOKUP(B28,'USDOE Alloc 0910P'!$E$13:$AA$309,23,FALSE) -> 4.117243924 | I28: 1409.210498 | J28: 0 | K28: 0 | L28: 0 | M28: 1 | N28: 0 | O28: =VLOOKUP(B28,'2009-10 Prelim'!$D$14:$S$310,16,FALSE) -> 1409.210498 | P28: 1409.210498 | Q28: 0 | R28: 56.36841993 | S28: 56.36841993 | T28: 0 | U28: -9.237055565e-14 | V28: =VLOOKUP($B28,'Sch Imp Realloc'!$B$15:$AG$311,31,FALSE) -> -9.237055565e-14 | W28: =VLOOKUP($B28,'Sch Imp Realloc'!$B$15:$AG$311,32,FALSE) -> 0 | X28: 1409.210498 | Y28: 1409.210498 | Z28: 0
A29: 37503 | B29: 5300570 | C29: BLAINE | D29: 181093.1794 | E29: 0 | F29: 52895.79389 | G29: 67099.96838 | H29: =VLOOKUP(B29,'USDOE Alloc 0910P'!$E$13:$AA$309,23,FALSE) -> 94.12820772 | I29: 301183.0699 | J29: 82464.16883 | K29: 103160.1161 | L29: 185624.285 | M29: 0.6186904674 | N29: 0.3813095326 | O29: =VLOOKUP(B29,'2009-10 Prelim'!$D$14:$S$310,16,FALSE) -> 486807.3549 | P29: 301183.0699 | Q29: 185624.285 | R29: 19472.2942 | S29: 12047.3228 | T29: 7424.971398 | U29: 19517.61056 | V29: =VLOOKUP($B29,'Sch Imp Realloc'!$B$15:$AG$311,31,FALSE) -> 12092.51613 | W29: =VLOOKUP($B29,'Sch Imp Realloc'!$B$15:$AG$311,32,FALSE) -> 7425.09443 | X29: 467289.7443 | Y29: 289090.5538 | Z29: 178199.1905
A30: 21234 | B30: 5300630 | C30: BOISTFORT | D30: 26143.73365 | E30: 6661.119797 | F30: 9206.782993 | G30: 11679.09209 | H30: =VLOOKUP(B30,'USDOE Alloc 0910P'!$E$13:$AA$309,23,FALSE) -> 10.77134092 | I30: 53701.49987 | J30: 14353.30962 | K30: 17955.54491 | L30: 32308.85453 | M30: 0.624360872 | N30: 0.375639128 | O30: =VLOOKUP(B30,'2009-10 Prelim'!$D$14:$S$310,16,FALSE) -> 86010.35439 | P30: 53701.49987 | Q30: 32308.85453 | R30: 3440.414176 | S30: 2148.059995 | T30: 1292.354181 | U30: 3448.493646 | V30: =VLOOKUP($B30,'Sch Imp Realloc'!$B$15:$AG$311,31,FALSE) -> 2156.118051 | W30: =VLOOKUP($B30,'Sch Imp Realloc'!$B$15:$AG$311,32,FALSE) -> 1292.375595 | X30: 82561.86075 | Y30: 51545.38182 | Z30: 31016.47893
A31: 18100 | B31: 5300660 | C31: BREMERTON | D31: 878046.8595 | E31: 223716.1454 | F31: 320354.8081 | G31: 406380.0902 | H31: =VLOOKUP(B31,'USDOE Alloc 0910P'!$E$13:$AA$309,23,FALSE) -> 277.7750298 | I31: 1828775.678 | J31: 499430.8816 | K31: 624772.5343 | L31: 1124203.416 | M31: 0.6192985524 | N31: 0.3807014476 | O31: =VLOOKUP(B31,'2009-10 Prelim'!$D$14:$S$310,16,FALSE) -> 2952979.094 | P31: 1828775.678 | Q31: 1124203.416 | R31: 118119.1638 | S31: 73151.02713 | T31: 44968.13664 | U31: 118394.3216 | V31: =VLOOKUP($B31,'Sch Imp Realloc'!$B$15:$AG$311,31,FALSE) -> 73425.43988 | W31: =VLOOKUP($B31,'Sch Imp Realloc'!$B$15:$AG$311,32,FALSE) -> 44968.88176 | X31: 2834584.772 | Y31: 1755350.238 | Z31: 1079234.534
A32: 24111 | B32: 5300690 | C32: BREWSTER | D32: 244858.3835 | E32: 62387.07322 | F32: 151077.1064 | G32: 191646.0331 | H32: =VLOOKUP(B32,'USDOE Alloc 0910P'!$E$13:$AA$309,23,FALSE) -> 113.7511537 | I32: 650082.3473 | J32: 235528.1412 | K32: 294638.3955 | L32: 530166.5367 | M32: 0.5508010693 | N32: 0.4491989307 | O32: =VLOOKUP(B32,'2009-10 Prelim'!$D$14:$S$310,16,FALSE) -> 1180248.884 | P32: 650082.3473 | Q32: 530166.5367 | R32: 47209.95536 | S32: 26003.29389 | T32: 21206.66147 | U32: 47307.85338 | V32: =VLOOKUP($B32,'Sch Imp Realloc'!$B$15:$AG$311,31,FALSE) -> 26100.84051 | W32: =VLOOKUP($B32,'Sch Imp Realloc'!$B$15:$AG$311,32,FALSE) -> 21207.01286 | X32: 1132941.031 | Y32: 623981.5068 | Z32: 508959.5238
A33: 09075 | B33: 5300720 | C33: BRIDGEPORT | D33: 154311.7937 | E33: 39316.85344 | F33: 80805.70544 | G33: 102504.5638 | H33: =VLOOKUP(B33,'USDOE Alloc 0910P'!$E$13:$AA$309,23,FALSE) -> 119.1135646 | I33: 377058.03 | J33: 125975.5237 | K33: 157591.4708 | L33: 283566.9944 | M33: 0.5707595323 | N33: 0.4292404677 | O33: =VLOOKUP(B33,'2009-10 Prelim'!$D$14:$S$310,16,FALSE) -> 660625.0244 | P33: 377058.03 | Q33: 283566.9944 | R33: 26425.00098 | S33: 15082.3212 | T33: 11342.67978 | U33: 26481.76751 | V33: =VLOOKUP($B33,'Sch Imp Realloc'!$B$15:$AG$311,31,FALSE) -> 15138.89978 | W33: =VLOOKUP($B33,'Sch Imp Realloc'!$B$15:$AG$311,32,FALSE) -> 11342.86773 | X33: 634143.2569 | Y33: 361919.1302 | Z33: 272224.1267
A34: 16046 | B34: 5300750 | C34: BRINNON | D34: 27565.3125 | E34: 7791.45723 | F34: 5123.413958 | G34: 6499.210793 | H34: =VLOOKUP(B34,'USDOE Alloc 0910P'!$E$13:$AA$309,23,FALSE) -> 5.19256989 | I34: 46984.58705 | J34: 7987.36615 | K34: 9991.947184 | L34: 17979.31333 | M34: 0.7232414737 | N34: 0.2767585263 | O34: =VLOOKUP(B34,'2009-10 Prelim'!$D$14:$S$310,16,FALSE) -> 64963.90039 | P34: 46984.58705 | Q34: 17979.31333 | R34: 2598.556015 | S34: 1879.383482 | T34: 719.1725334 | U34: 2605.618097 | V34: =VLOOKUP($B34,'Sch Imp Realloc'!$B$15:$AG$311,31,FALSE) -> 1886.433647 | W34: =VLOOKUP($B34,'Sch Imp Realloc'!$B$15:$AG$311,32,FALSE) -> 719.1844501 | X34: 62358.28229 | Y34: 45098.1534 | Z34: 17260.12888
A35: 29100 | B35: 5300780 | C35: BURLINGTON-EDISON | D35: 337317.9293 | E35: 0 | F35: 98527.72876 | G35: 124985.5045 | H35: =VLOOKUP(B35,'USDOE Alloc 0910P'!$E$13:$AA$309,23,FALSE) -> 45.94589553 | I35: 560877.1085 | J35: 153604.0328 | K35: 192153.8783 | L35: 345757.9111 | M35: 0.6186360513 | N35: 0.3813639487 | O35: =VLOOKUP(B35,'2009-10 Prelim'!$D$14:$S$310,16,FALSE) -> 906635.0195 | P35: 560877.1085 | Q35: 345757.9111 | R35: 36265.40078 | S35: 22435.08434 | T35: 13830.31644 | U35: 36349.79108 | V35: =VLOOKUP($B35,'Sch Imp Realloc'!$B$15:$AG$311,31,FALSE) -> 22519.24547 | W35: =VLOOKUP($B35,'Sch Imp Realloc'!$B$15:$AG$311,32,FALSE) -> 13830.54561 | X35: 870285.2284 | Y35: 538357.863 | Z35: 331927.3654
A36: 06117 | B36: 5300810 | C36: CAMAS | D36: 176079.6294 | E36: 0 | F36: 47579.3116 | G36: 60196.8951 | H36: =VLOOKUP(B36,'USDOE Alloc 0910P'!$E$13:$AA$309,23,FALSE) -> 495.1656195 | I36: 284351.0017 | J36: 68715.86764 | K36: 86082.89582 | L36: 154798.7635 | M36: 0.6475034812 | N36: 0.3524965188 | O36: =VLOOKUP(B36,'2009-10 Prelim'!$D$14:$S$310,16,FALSE) -> 439149.7651 | P36: 284351.0017 | Q36: 154798.7635 | R36: 17565.99061 | S36: 11374.04007 | T36: 6191.950538 | U36: 17608.76085 | V36: =VLOOKUP($B36,'Sch Imp Realloc'!$B$15:$AG$311,31,FALSE) -> 11416.70771 | W36: =VLOOKUP($B36,'Sch Imp Realloc'!$B$15:$AG$311,32,FALSE) -> 6192.053139 | X36: 421541.0043 | Y36: 272934.294 | Z36: 148606.7103
A37: 05401 | B37: 5300840 | C37: CAPE FLATTERY | D37: 112226.7591 | E37: 28594.07523 | F37: 49519.44047 | G37: 62816.9585 | H37: =VLOOKUP(B37,'USDOE Alloc 0910P'!$E$13:$AA$309,23,FALSE) -> 61.63322776 | I37: 253218.8665 | J37: 77200.4577 | K37: 96575.37685 | L37: 173775.8346 | M37: 0.593025782 | N37: 0.406974218 | O37: =VLOOKUP(B37,'2009-10 Prelim'!$D$14:$S$310,16,FALSE) -> 426994.7011 | P37: 253218.8665 | Q37: 173775.8346 | R37: 17079.78804 | S37: 10128.75466 | T37: 6951.033382 | U37: 17117.8994 | V37: =VLOOKUP($B37,'Sch Imp Realloc'!$B$15:$AG$311,31,FALSE) -> 10166.75084 | W37: =VLOOKUP($B37,'Sch Imp Realloc'!$B$15:$AG$311,32,FALSE) -> 6951.148561 | X37: 409876.8017 | Y37: 243052.1157 | Z37: 166824.686
A38: 27019 | B38: 5300870 | C38: CARBONADO | D38: 0 | E38: 0 | F38: 0 | G38: 0 | H38: =VLOOKUP(B38,'USDOE Alloc 0910P'!$E$13:$AA$309,23,FALSE) -> 0 | I38: 0 | J38: 0 | K38: 0 | L38: 0 | M38: 0 | N38: 0 | O38: =VLOOKUP(B38,'2009-10 Prelim'!$D$14:$S$310,16,FALSE) -> 0 | P38: 0 | Q38: 0 | R38: 0 | S38: 0 | T38: 0 | U38: 0 | V38: =VLOOKUP($B38,'Sch Imp Realloc'!$B$15:$AG$311,31,FALSE) -> 0 | W38: =VLOOKUP($B38,'Sch Imp Realloc'!$B$15:$AG$311,32,FALSE) -> 0 | X38: 0 | Y38: 0 | Z38: 0
A39: 04228 | B39: 5300950 | C39: CASCADE | D39: 68413.34236 | E39: 0 | F39: 18997.78513 | G39: 24099.28442 | H39: =VLOOKUP(B39,'USDOE Alloc 0910P'!$E$13:$AA$309,23,FALSE) -> 47.4206501 | I39: 111557.8326 | J39: 29617.41275 | K39: 37050.46424 | L39: 66667.87699 | M39: 0.6259356904 | N39: 0.3740643096 | O39: =VLOOKUP(B39,'2009-10 Prelim'!$D$14:$S$310,16,FALSE) -> 178225.7095 | P39: 111557.8326 | Q39: 66667.87699 | R39: 7129.028382 | S39: 4462.313302 | T39: 2666.71508 | U39: 7145.812125 | V39: =VLOOKUP($B39,'Sch Imp Realloc'!$B$15:$AG$311,31,FALSE) -> 4479.052858 | W39: =VLOOKUP($B39,'Sch Imp Realloc'!$B$15:$AG$311,32,FALSE) -> 2666.759267 | X39: 171079.8974 | Y39: 107078.7797 | Z39: 64001.11772
A40: 04222 | B40: 5300960 | C40: CASHMERE | D40: 96285.45808 | E40: 0 | F40: 28124.1721 | G40: 35676.39164 | H40: =VLOOKUP(B40,'USDOE Alloc 0910P'!$E$13:$AA$309,23,FALSE) -> 59.18667607 | I40: 160145.2085 | J40: 43845.38554 | K40: 54849.21667 | L40: 98694.60221 | M40: 0.6187039314 | N40: 0.3812960686 | O40: =VLOOKUP(B40,'2009-10 Prelim'!$D$14:$S$310,16,FALSE) -> 258839.8107 | P40: 160145.2085 | Q40: 98694.60221 | R40: 10353.59243 | S40: 6405.80834 | T40: 3947.784088 | U40: 10377.68807 | V40: =VLOOKUP($B40,'Sch Imp Realloc'!$B$15:$AG$311,31,FALSE) -> 6429.838563 | W40: =VLOOKUP($B40,'Sch Imp Realloc'!$B$15:$AG$311,32,FALSE) -> 3947.849503 | X40: 248462.1226 | Y40: 153715.3699 | Z40: 94746.75271
A41: 08401 | B41: 5300990 | C41: CASTLE ROCK | D41: 146022.3172 | E41: 0 | F41: 42651.89015 | G41: 54105.2562 | H41: =VLOOKUP(B41,'USDOE Alloc 0910P'!$E$13:$AA$309,23,FALSE) -> 78.88376946 | I41: 242858.3473 | J41: 66493.99529 | K41: 83181.92462 | L41: 149675.9199 | M41: 0.6186933667 | N41: 0.3813066333 | O41: =VLOOKUP(B41,'2009-10 Prelim'!$D$14:$S$310,16,FALSE) -> 392534.2672 | P41: 242858.3473 | Q41: 149675.9199 | R41: 15701.37069 | S41: 9714.333893 | T41: 5987.036796 | U41: 15737.91145 | V41: =VLOOKUP($B41,'Sch Imp Realloc'!$B$15:$AG$311,31,FALSE) -> 9750.775448 | W41: =VLOOKUP($B41,'Sch Imp Realloc'!$B$15:$AG$311,32,FALSE) -> 5987.136002 | X41: 376796.3558 | Y41: 233107.5719 | Z41: 143688.7839
A42: 20215 | B42: 5301050 | C42: CENTERVILLE | D42: 15941.30101 | E42: 4061.658413 | F42: 6323.249809 | G42: 8021.240085 | H42: =VLOOKUP(B42,'USDOE Alloc 0910P'!$E$13:$AA$309,23,FALSE) -> 13.41929111 | I42: 34360.86861 | J42: 9857.901762 | K42: 12331.92919 | L42: 22189.83095 | M42: 0.6076117338 | N42: 0.3923882662 | O42: =VLOOKUP(B42,'2009-10 Prelim'!$D$14:$S$310,16,FALSE) -> 56550.69956 | P42: 34360.86861 | Q42: 22189.83095 | R42: 2262.027982 | S42: 1374.434744 | T42: 887.593238 | U42: 2267.198631 | V42: =VLOOKUP($B42,'Sch Imp Realloc'!$B$15:$AG$311,31,FALSE) -> 1379.590686 | W42: =VLOOKUP($B42,'Sch Imp Realloc'!$B$15:$AG$311,32,FALSE) -> 887.6079454 | X42: 54283.50092 | Y42: 32981.27792 | Z42: 21302.223
A43: 18401 | B43: 5301080 | C43: CENTRAL KITSAP | D43: 663795.7739 | E43: 0 | F43: 226483.3992 | G43: 287301.2731 | H43: =VLOOKUP(B43,'USDOE Alloc 0910P'!$E$13:$AA$309,23,FALSE) -> 119.1675191 | I43: 1177699.614 | J43: 353086.0186 | K43: 441699.6521 | L43: 794785.6708 | M43: 0.5970638275 | N43: 0.4029361725 | O43: =VLOOKUP(B43,'2009-10 Prelim'!$D$14:$S$310,16,FALSE) -> 1972485.285 | P43: 1177699.614 | Q43: 794785.6708 | R43: 78899.41138 | S43: 47107.98455 | T43: 31791.42683 | U43: 79076.65519 | V43: =VLOOKUP($B43,'Sch Imp Realloc'!$B$15:$AG$311,31,FALSE) -> 47284.70157 | W43: =VLOOKUP($B43,'Sch Imp Realloc'!$B$15:$AG$311,32,FALSE) -> 31791.95362 | X43: 1893408.629 | Y43: 1130414.912 | Z43: 762993.7172
A44: 32356 | B44: 5301110 | C44: CENTRAL VALLEY | D44: 853178.4299 | E44: 0 | F44: 309459.0195 | G44: 392558.4418 | H44: =VLOOKUP(B44,'USDOE Alloc 0910P'!$E$13:$AA$309,23,FALSE) -> 661.9229285 | I44: 1555857.814 | J44: 482444.4243 | K44: 603523.0033 | L44: 1085967.428 | M44: 0.588932905 | N44: 0.411067095 | O44: =VLOOKUP(B44,'2009-10 Prelim'!$D$14:$S$310,16,FALSE) -> 2641825.242 | P44: 1555857.814 | Q44: 1085967.428 | R44: 105673.0097 | S44: 62234.31257 | T44: 43438.69711 | U44: 105907.1901 | V44: =VLOOKUP($B44,'Sch Imp Realloc'!$B$15:$AG$311,31,FALSE) -> 62467.77325 | W44: =VLOOKUP($B44,'Sch Imp Realloc'!$B$15:$AG$311,32,FALSE) -> 43439.41689 | X44: 2535918.052 | Y44: 1493390.041 | Z44: 1042528.011
A45: 21401 | B45: 5301140 | C45: CENTRALIA | D45: 486528.5067 | E45: 123961.8148 | F45: 172238.3807 | G45: 218489.7712 | H45: =VLOOKUP(B45,'USDOE Alloc 0910P'!$E$13:$AA$309,23,FALSE) -> 359.8002907 | I45: 1001578.274 | J45: 268518.4183 | K45: 335908.2084 | L45: 604426.6267 | M45: 0.6236458391 | N45: 0.3763541609 | O45: =VLOOKUP(B45,'2009-10 Prelim'!$D$14:$S$310,16,FALSE) -> 1606004.9 | P45: 1001578.274 | Q45: 604426.6267 | R45: 64240.19601 | S45: 40063.13095 | T45: 24177.06507 | U45: 64390.88617 | V45: =VLOOKUP($B45,'Sch Imp Realloc'!$B$15:$AG$311,31,FALSE) -> 40213.42049 | W45: =VLOOKUP($B45,'Sch Imp Realloc'!$B$15:$AG$311,32,FALSE) -> 24177.46568 | X45: 1541614.014 | Y45: 961364.8532 | Z45: 580249.161
A46: 21302 | B46: 5301170 | C46: CHEHALIS | D46: 228917.0825 | E46: 0 | F46: 66864.75355 | G46: 84820.03046 | H46: =VLOOKUP(B46,'USDOE Alloc 0910P'!$E$13:$AA$309,23,FALSE) -> 124.078092 | I46: 380725.9446 | J46: 104241.6782 | K46: 130403.1045 | L46: 234644.7827 | M46: 0.6186936227 | N46: 0.3813063773 | O46: =VLOOKUP(B46,'2009-10 Prelim'!$D$14:$S$310,16,FALSE) -> 615370.7273 | P46: 380725.9446 | Q46: 234644.7827 | R46: 24614.82909 | S46: 15229.03778 | T46: 9385.79131 | U46: 24672.11358 | V46: =VLOOKUP($B46,'Sch Imp Realloc'!$B$15:$AG$311,31,FALSE) -> 15286.16674 | W46: =VLOOKUP($B46,'Sch Imp Realloc'!$B$15:$AG$311,32,FALSE) -> 9385.946832 | X46: 590698.6137 | Y46: 365439.7778 | Z46: 225258.8359
A47: 32360 | B47: 5301230 | C47: CHENEY | D47: 376852.3558 | E47: 92202.56174 | F47: 110075.4021 | G47: 139634.0891 | H47: =VLOOKUP(B47,'USDOE Alloc 0910P'!$E$13:$AA$309,23,FALSE) -> 122.8019929 | I47: 718887.2108 | J47: 171606.7739 | K47: 214674.7487 | L47: 386281.5226 | M47: 0.6504773335 | N47: 0.3495226665 | O47: =VLOOKUP(B47,'2009-10 Prelim'!$D$14:$S$310,16,FALSE) -> 1105168.733 | P47: 718887.2108 | Q47: 386281.5226 | R47: 44206.74933 | S47: 28755.48843 | T47: 15451.2609 | U47: 44314.87634 | V47: =VLOOKUP($B47,'Sch Imp Realloc'!$B$15:$AG$311,31,FALSE) -> 28863.35941 | W47: =VLOOKUP($B47,'Sch Imp Realloc'!$B$15:$AG$311,32,FALSE) -> 15451.51693 | X47: 1060853.857 | Y47: 690023.8514 | Z47: 370830.0056
A48: 33036 | B48: 5301260 | C48: CHEWELAH | D48: 142196.405 | E48: 36229.99304 | F48: 52661.09674 | G48: 66802.24772 | H48: =VLOOKUP(B48,'USDOE Alloc 0910P'!$E$13:$AA$309,23,FALSE) -> 44.1126097 | I48: 297933.8551 | J48: 82098.27763 | K48: 102702.3976 | L48: 184800.6752 | M48: 0.617179498 | N48: 0.382820502 | O48: =VLOOKUP(B48,'2009-10 Prelim'!$D$14:$S$310,16,FALSE) -> 482734.5303 | P48: 297933.8551 | Q48: 184800.6752 | R48: 19309.38121 | S48: 11917.3542 | T48: 7392.027009 | U48: 19354.20948 | V48: =VLOOKUP($B48,'Sch Imp Realloc'!$B$15:$AG$311,31,FALSE) -> 11962.05999 | W48: =VLOOKUP($B48,'Sch Imp Realloc'!$B$15:$AG$311,32,FALSE) -> 7392.149495 | X48: 463380.3208 | Y48: 285971.7951 | Z48: 177408.5257
A49: 16049 | B49: 5301290 | C49: CHIMACUM | D49: 119240.9315 | E49: 0 | F49: 34829.27274 | G49: 44182.02144 | H49: =VLOOKUP(B49,'USDOE Alloc 0910P'!$E$13:$AA$309,23,FALSE) -> 72.02234076 | I49: 198324.248 | J49: 54298.59004 | K49: 67925.85111 | L49: 122224.4411 | M49: 0.6187024147 | N49: 0.3812975853 | O49: =VLOOKUP(B49,'2009-10 Prelim'!$D$14:$S$310,16,FALSE) -> 320548.6892 | P49: 198324.248 | Q49: 122224.4411 | R49: 12821.94757 | S49: 7932.969922 | T49: 4888.977646 | U49: 12851.78767 | V49: =VLOOKUP($B49,'Sch Imp Realloc'!$B$15:$AG$311,31,FALSE) -> 7962.729014 | W49: =VLOOKUP($B49,'Sch Imp Realloc'!$B$15:$AG$311,32,FALSE) -> 4889.058656 | X49: 307696.9015 | Y49: 190361.519 | Z49: 117335.3825
A50: 02250 | B50: 5301320 | C50: CLARKSTON | D50: 384518.6885 | E50: 99199.58376 | F50: 131093.2304 | G50: 165857.9154 | H50: =VLOOKUP(B50,'USDOE Alloc 0910P'!$E$13:$AA$309,23,FALSE) -> 318.0211108 | I50: 780987.4391 | J50: 163415.7796 | K50: 204584.924 | L50: 368000.7035 | M50: 0.6797175794 | N50: 0.3202824206 | O50: =VLOOKUP(B50,'2009-10 Prelim'!$D$14:$S$310,16,FALSE) -> 1148988.143 | P50: 780987.4391 | Q50: 368000.7035 | R50: 45959.5257 | S50: 31239.49756 | T50: 14720.02814 | U50: 46076.9589 | V50: =VLOOKUP($B50,'Sch Imp Realloc'!$B$15:$AG$311,31,FALSE) -> 31356.68685 | W50: =VLOOKUP($B50,'Sch Imp Realloc'!$B$15:$AG$311,32,FALSE) -> 14720.27205 | X50: 1102911.184 | Y50: 749630.7522 | Z50: 353280.4315
A51: 19404 | B51: 5301350 | C51: CLE ELUM-ROSLYN | D51: 68228.76831 | E51: 0 | F51: 19929.04911 | G51: 25280.62189 | H51: =VLOOKUP(B51,'USDOE Alloc 0910P'!$E$13:$AA$309,23,FALSE) -> 37.0808091 | I51: 113475.5201 | J51: 31069.24671 | K51: 38866.66347 | L51: 69935.91018 | M51: 0.6186938291 | N51: 0.3813061709 | O51: =VLOOKUP(B51,'2009-10 Prelim'!$D$14:$S$310,16,FALSE) -> 183411.4303 | P51: 113475.5201 | Q51: 69935.91018 | R51: 7336.457212 | S51: 4539.020805 | T51: 2797.436407 | U51: 7353.530875 | V51: =VLOOKUP($B51,'Sch Imp Realloc'!$B$15:$AG$311,31,FALSE) -> 4556.048114 | W51: =VLOOKUP($B51,'Sch Imp Realloc'!$B$15:$AG$311,32,FALSE) -> 2797.482761 | X51: 176057.8994 | Y51: 108919.472 | Z51: 67138.42742
A52: 27400 | B52: 5301410 | C52: CLOVER PARK | D52: 1942925.767 | E52: 495034.9273 | F52: 860022.2827 | G52: 1090965.155 | H52: =VLOOKUP(B52,'USDOE Alloc 0910P'!$E$13:$AA$309,23,FALSE) -> 1648.894745 | I52: 4390597.027 | J52: 1340768.66 | K52: 1677259.987 | L52: 3018028.647 | M52: 0.5926331306 | N52: 0.4073668694 | O52: =VLOOKUP(B52,'2009-10 Prelim'!$D$14:$S$310,16,FALSE) -> 7408625.674 | P52: 4390597.027 | Q52: 3018028.647 | R52: 296345.0269 | S52: 175623.8811 | T52: 120721.1459 | U52: 297005.8483 | V52: =VLOOKUP($B52,'Sch Imp Realloc'!$B$15:$AG$311,31,FALSE) -> 176282.7021 | W52: =VLOOKUP($B52,'Sch Imp Realloc'!$B$15:$AG$311,32,FALSE) -> 120723.1462 | X52: 7111619.825 | Y52: 4214314.324 | Z52: 2897305.501
A53: 38300 | B53: 5301440 | C53: COLFAX | D53: 37550.18039 | E53: 0 | F53: 10140.96378 | G53: 12830.25147 | H53: =VLOOKUP(B53,'USDOE Alloc 0910P'!$E$13:$AA$309,23,FALSE) -> 26.02787562 | I53: 60547.42351 | J53: 14643.25475 | K53: 18344.1302 | L53: 32987.38495 | M53: 0.6473250388 | N53: 0.3526749612 | O53: =VLOOKUP(B53,'2009-10 Prelim'!$D$14:$S$310,16,FALSE) -> 93534.80846 | P53: 60547.42351 | Q53: 32987.38495 | R53: 3741.392339 | S53: 2421.896941 | T53: 1319.495398 | U53: 3750.499508 | V53: =VLOOKUP($B53,'Sch Imp Realloc'!$B$15:$AG$311,31,FALSE) -> 2430.982246 | W53: =VLOOKUP($B53,'Sch Imp Realloc'!$B$15:$AG$311,32,FALSE) -> 1319.517262 | X53: 89784.30896 | Y53: 58116.44127 | Z53: 31667.86769
A54: 36250 | B54: 5301470 | C54: COLLEGE PLACE | D54: 198947.4366 | E54: 50689.49699 | F54: 64369.38516 | G54: 81654.57764 | H54: =VLOOKUP(B54,'USDOE Alloc 0910P'!$E$13:$AA$309,23,FALSE) -> 131.5570974 | I54: 395792.4535 | J54: 100351.4165 | K54: 125536.5079 | L54: 225887.9244 | M54: 0.6366494223 | N54: 0.3633505777 | O54: =VLOOKUP(B54,'2009-10 Prelim'!$D$14:$S$310,16,FALSE) -> 621680.3779 | P54: 395792.4535 | Q54: 225887.9244 | R54: 24867.21511 | S54: 15831.69814 | T54: 9035.516977 | U54: 24926.75457 | V54: =VLOOKUP($B54,'Sch Imp Realloc'!$B$15:$AG$311,31,FALSE) -> 15891.08787 | W54: =VLOOKUP($B54,'Sch Imp Realloc'!$B$15:$AG$311,32,FALSE) -> 9035.666695 | X54: 596753.6233 | Y54: 379901.3656 | Z54: 216852.2577
A55: 38306 | B55: 5301500 | C55: COLTON | D55: 7014.172443 | E55: 0 | F55: 2048.780749 | G55: 2598.942437 | H55: =VLOOKUP(B55,'USDOE Alloc 0910P'!$E$13:$AA$309,23,FALSE) -> 4.278554896 | I55: 11666.17418 | J55: 3194.034708 | K55: 3995.638301 | L55: 7189.673009 | M55: 0.618703263 | N55: 0.381296737 | O55: =VLOOKUP(B55,'2009-10 Prelim'!$D$14:$S$310,16,FALSE) -> 18855.84719 | P55: 11666.17418 | Q55: 7189.673009 | R55: 754.2338877 | S55: 466.6469674 | T55: 287.5869203 | U55: 755.9891942 | V55: =VLOOKUP($B55,'Sch Imp Realloc'!$B$15:$AG$311,31,FALSE) -> 468.3975085 | W55: =VLOOKUP($B55,'Sch Imp Realloc'!$B$15:$AG$311,32,FALSE) -> 287.5916857 | X55: 18099.858 | Y55: 11197.77668 | Z55: 6902.081323
A56: 33206 | B56: 5301560 | C56: COLUMBIA (STEV) | D56: 40762.36184 | E56: 10235.3792 | F56: 19274.161 | G56: 24449.87585 | H56: =VLOOKUP(B56,'USDOE Alloc 0910P'!$E$13:$AA$309,23,FALSE) -> 16.20638852 | I56: 94737.98427 | J56: 30048.28077 | K56: 37589.46677 | L56: 67637.74754 | M56: 0.5834491596 | N56: 0.4165508404 | O56: =VLOOKUP(B56,'2009-10 Prelim'!$D$14:$S$310,16,FALSE) -> 162375.7318 | P56: 94737.98427 | Q56: 67637.74754 | R56: 6495.029272 | S56: 3789.519371 | T56: 2705.509902 | U56: 6509.289794 | V56: =VLOOKUP($B56,'Sch Imp Realloc'!$B$15:$AG$311,31,FALSE) -> 3803.735062 | W56: =VLOOKUP($B56,'Sch Imp Realloc'!$B$15:$AG$311,32,FALSE) -> 2705.554732 | X56: 155866.442 | Y56: 90934.24921 | Z56: 64932.19281
A57: 36400 | B57: 5301590 | C57: COLUMBIA (WALLA) | D57: 82257.1132 | E57: 0 | F57: 24026.61061 | G57: 30478.50677 | H57: =VLOOKUP(B57,'USDOE Alloc 0910P'!$E$13:$AA$309,23,FALSE) -> 46.35101138 | I57: 136808.5816 | J57: 37457.31612 | K57: 46857.94007 | L57: 84315.25619 | M57: 0.6186966677 | N57: 0.3813033323 | O57: =VLOOKUP(B57,'2009-10 Prelim'!$D$14:$S$310,16,FALSE) -> 221123.8378 | P57: 136808.5816 | Q57: 84315.25619 | R57: 8844.953511 | S57: 5472.343263 | T57: 3372.610248 | U57: 8865.537894 | V57: =VLOOKUP($B57,'Sch Imp Realloc'!$B$15:$AG$311,31,FALSE) -> 5492.871762 | W57: =VLOOKUP($B57,'Sch Imp Realloc'!$B$15:$AG$311,32,FALSE) -> 3372.666132 | X57: 212258.2999 | Y57: 131315.7098 | Z57: 80942.59006
A58: 33115 | B58: 5301630 | C58: COLVILLE | D58: 258249.0763 | E58: 65798.86629 | F58: 88566.44501 | G58: 112349.3046 | H58: =VLOOKUP(B58,'USDOE Alloc 0910P'!$E$13:$AA$309,23,FALSE) -> 149.3580377 | I58: 525113.0502 | J58: 138074.4618 | K58: 172726.8669 | L58: 310801.3287 | M58: 0.6281899958 | N58: 0.3718100042 | O58: =VLOOKUP(B58,'2009-10 Prelim'!$D$14:$S$310,16,FALSE) -> 835914.379 | P58: 525113.0502 | Q58: 310801.3287 | R58: 33436.57516 | S58: 21004.52201 | T58: 12432.05315 | U58: 33515.5758 | V58: =VLOOKUP($B58,'Sch Imp Realloc'!$B$15:$AG$311,31,FALSE) -> 21083.31665 | W58: =VLOOKUP($B58,'Sch Imp Realloc'!$B$15:$AG$311,32,FALSE) -> 12432.25915 | X58: 802398.8032 | Y58: 504029.7336 | Z58: 298369.0696
A59: 29011 | B59: 5301660 | C59: CONCRETE | D59: 184281.4396 | E59: 79284.61683 | F59: 80602.41051 | G59: 102246.6778 | H59: =VLOOKUP(B59,'USDOE Alloc 0910P'!$E$13:$AA$309,23,FALSE) -> 141.1342307 | I59: 446556.2791 | J59: 125658.5883 | K59: 157194.9945 | L59: 282853.5828 | M59: 0.6122158507 | N59: 0.3877841493 | O59: =VLOOKUP(B59,'2009-10 Prelim'!$D$14:$S$310,16,FALSE) -> 729409.8618 | P59: 446556.2791 | Q59: 282853.5828 | R59: 29176.39447 | S59: 17862.25116 | T59: 11314.14331 | U59: 29243.58893 | V59: =VLOOKUP($B59,'Sch Imp Realloc'!$B$15:$AG$311,31,FALSE) -> 17929.25814 | W59: =VLOOKUP($B59,'Sch Imp Realloc'!$B$15:$AG$311,32,FALSE) -> 11314.33079 | X59: 700166.2729 | Y59: 428627.0209 | Z59: 271539.252
A60: 29317 | B60: 5301680 | C60: CONWAY | D60: 38896.77446 | E60: 0 | F60: 11361.42052 | G60: 14412.31715 | H60: =VLOOKUP(B60,'USDOE Alloc 0910P'!$E$13:$AA$309,23,FALSE) -> 196.5542785 | I60: 64867.06641 | J60: 17712.37429 | K60: 22157.63058 | L60: 39870.00487 | M60: 0.6193324447 | N60: 0.3806675553 | O60: =VLOOKUP(B60,'2009-10 Prelim'!$D$14:$S$310,16,FALSE) -> 104737.0713 | P60: 64867.06641 | Q60: 39870.00487 | R60: 4189.482851 | S60: 2594.682656 | T60: 1594.800195 | U60: 4199.242756 | V60: =VLOOKUP($B60,'Sch Imp Realloc'!$B$15:$AG$311,31,FALSE) -> 2604.416136 | W60: =VLOOKUP($B60,'Sch Imp Realloc'!$B$15:$AG$311,32,FALSE) -> 1594.826621 | X60: 100537.8285 | Y60: 62262.65027 | Z60: 38275.17825
A61: 14099 | B61: 5301710 | C61: COSMOPOLIS | D61: 35070.86222 | E61: 8935.648508 | F61: 10918.93975 | G61: 13851.01647 | H61: =VLOOKUP(B61,'USDOE Alloc 0910P'!$E$13:$AA$309,23,FALSE) -> 26.35494336 | I61: 68802.82189 | J61: 17022.5499 | K61: 21294.68168 | L61: 38317.23158 | M61: 0.6422963737 | N61: 0.3577036263 | O61: =VLOOKUP(B61,'2009-10 Prelim'!$D$14:$S$310,16,FALSE) -> 107120.0535 | P61: 68802.82189 | Q61: 38317.23158 | R61: 4284.802139 | S61: 2752.112875 | T61: 1532.689263 | U61: 4295.151585 | V61: =VLOOKUP($B61,'Sch Imp Realloc'!$B$15:$AG$311,31,FALSE) -> 2762.436926 | W61: =VLOOKUP($B61,'Sch Imp Realloc'!$B$15:$AG$311,32,FALSE) -> 1532.71466 | X61: 102824.9019 | Y61: 66040.38496 | Z61: 36784.51692
A62: 13151 | B62: 5303440 | C62: COULEE-HARTLINE | D62: 37621.47038 | E62: 9585.513854 | F62: 12875.6185 | G62: 16333.12463 | H62: =VLOOKUP(B62,'USDOE Alloc 0910P'!$E$13:$AA$309,23,FALSE) -> 21.91613398 | I62: 76437.64349 | J62: 20072.99823 | K62: 25110.69787 | L62: 45183.69611 | M62: 0.6284887483 | N62: 0.3715112517 | O62: =VLOOKUP(B62,'2009-10 Prelim'!$D$14:$S$310,16,FALSE) -> 121621.3396 | P62: 76437.64349 | Q62: 45183.69611 | R62: 4864.853584 | S62: 3057.50574 | T62: 1807.347844 | U62: 4876.353207 | V62: =VLOOKUP($B62,'Sch Imp Realloc'!$B$15:$AG$311,31,FALSE) -> 3068.975415 | W62: =VLOOKUP($B62,'Sch Imp Realloc'!$B$15:$AG$311,32,FALSE) -> 1807.377792 | X62: 116744.9864 | Y62: 73368.66807 | Z62: 43376.31831
... 77 more rows

Sheet District w alt Boundaries (hidden)
A1: 1 | B1: 1 | C1: TITLE I DISTRICT REPORT | AE1: District Names | AJ1: 2004-05
A2: 2 | B2: Type district name or select from drop-down list in cell C2 | AE2: Total | AJ2: 2003-04
A3: 3 | B3: Enter Name | C3: Bellevue | D3: CURRENT YEAR | G3: HISTORICAL | AE3: Aberdeen | AJ3: 2002-03
A4: 4 | B4: Names are in column R | C4: =VLOOKUP(C3,'2007-08'!BE14:BG310,3,FALSE) -> 5300390 | D4: Final | E4: % Inc (Dec) | F4: Preliminary | G4: Final | H4: % or Inc (Dec) | J4: 09-10 Total | K4: Final | L4: Final | M4: % or Inc (Dec) | O4: % or Inc (Dec) | Q4: % or Inc (Dec) | S4: % or Inc (Dec) | U4: % or Inc (Dec) | W4: % or Inc (Dec) | Y4: % or Inc (Dec) | AA4: % or Inc (Dec) | AE4: Adna
A5: 5 | D5: 2011-12 | E5: of Prior Year | F5: 2011-12 | G5: 2010-11 | H5: of Prior Year | I5: ARRA | J5: (with ARRA) | K5: 2009-10 | L5: 09-10 ARRA | M5: of Prior Year | N5: 2008-09 | O5: of Prior Year | P5: 2007-08 | Q5: of Prior Year | R5: 2006-07 | S5: of Prior Year | T5: 2005-06 | U5: of Prior Year | V5: =AJ1 -> 2004-05 | W5: of Prior Year | X5: 2003-04 | Y5: of Prior Year | Z5: 2002-03 | AA5: of Prior Year | AB5: 2001-02 | AE5: Almira
A6: 6 | B6: ALLOCATION | AE6: Anacortes
A7: 7 | B7: Basic | D7: =VLOOKUP($C$3,'USDOE Alloc 1112F'!$E$9:$Q$305,10,FALSE) -> 817718.7805 | E7: =IF(AND(G7=0,D7=0),0,IF(G7=0,1,D7/G7)) -> 1.068897608 | F7: =VLOOKUP($C$3,'USDOE Alloc 1112P'!$E$9:$Q$305,10,FALSE) -> 840697.029 | G7: =VLOOKUP($C$3,'USDOE Alloc 1112F'!$E$9:$Q$305,5,FALSE) -> 765011.3299 | H7: =IF(K7=0,0,G7/K7) -> 0.8487405666 | J7: =VLOOKUP($C$3,'2009-10 Final'!$E$13:$AV$310,11,FALSE) -> 901348.8455 | K7: =VLOOKUP($C$4,'USDOE Alloc 0910F'!$E$10:$R$309,11,FALSE) -> 901348.8455 | M7: =IF(N7>0,+K7/N7,0) ->  | N7: =VLOOKUP($C$3,#REF!,11,FALSE) ->  | O7: =IF(P7>0,+N7/P7,0) ->  | P7: =VLOOKUP($C$3,'2007-08'!$E$13:$AV$310,11,FALSE) -> 857462.5769 | Q7: =IF(R7>0,+P7/R7,0) ->  | R7: =VLOOKUP($C$3,#REF!,11,FALSE) ->  | S7: =IF(T7>0,+R7/T7,0) ->  | T7: =VLOOKUP($C$3,#REF!,11,FALSE) ->  | U7: =IF(V7>0,+T7/V7,0) ->  | V7: =VLOOKUP($C$3,#REF!,11,FALSE) ->  | W7: =IF(X7>0,+V7/X7,0) ->  | X7: =VLOOKUP($C$3,#REF!,6,FALSE) ->  | Y7: =IF(Z7>0,+X7/Z7,0) ->  | Z7: =VLOOKUP($C$3,#REF!,8,FALSE) ->  | AA7: =+Z7/AB7 ->  | AB7: =VLOOKUP($C$3,#REF!,5,FALSE) ->  | AE7: Arlington
A8: 8 | B8: Concentration | D8: =VLOOKUP($C$3,'USDOE Alloc 1112F'!$E$9:$Q$305,11,FALSE) -> 0 | E8: =IF(AND(G8=0,D8=0),0,IF(G8=0,1,D8/G8)) -> 0 | F8: =VLOOKUP($C$3,'USDOE Alloc 1112P'!$E$9:$Q$305,11,FALSE) -> 0 | G8: =VLOOKUP($C$3,'USDOE Alloc 1112F'!$E$9:$Q$305,6,FALSE) -> 0 | H8: =IF(K8=0,0,G8/K8) -> 0 | J8: =VLOOKUP($C$3,'2009-10 Final'!$E$13:$AV$310,12,FALSE) -> 0 | K8: =VLOOKUP($C$4,'USDOE Alloc 0910F'!$E$10:$R$309,12,FALSE) -> 0 | M8: =IF(N8>0,+K8/N8,0) ->  | N8: =VLOOKUP($C$3,#REF!,12,FALSE) ->  | O8: =IF(P8>0,+N8/P8,0) -> 0 | P8: =VLOOKUP($C$3,'2007-08'!$E$13:$AV$310,12,FALSE) -> 0 | Q8: =IF(R8>0,+P8/R8,0) ->  | R8: =VLOOKUP($C$3,#REF!,12,FALSE) ->  | S8: =IF(T8>0,+R8/T8,0) ->  | T8: =VLOOKUP($C$3,#REF!,12,FALSE) ->  | U8: =IF(V8>0,+T8/V8,0) ->  | V8: =VLOOKUP($C$3,#REF!,12,FALSE) ->  | W8: =IF(X8>0,+V8/X8,0) ->  | X8: =VLOOKUP($C$3,#REF!,7,FALSE) ->  | Y8: =IF(Z8>0,+X8/Z8,0) ->  | Z8: =VLOOKUP($C$3,#REF!,9,FALSE) ->  | AA8: =IF(AB8>0,+Z8/AB8,0) ->  | AB8: =VLOOKUP($C$3,#REF!,6,FALSE) ->  | AE8: Asotin-Anatone
A9: 9 | B9: Targeted | D9: =VLOOKUP($C$3,'USDOE Alloc 1112F'!$E$9:$Q$305,12,FALSE) -> 278636.1112 | E9: =IF(AND(G9=0,D9=0),0,IF(G9=0,1,D9/G9)) -> 0.9971080768 | F9: =VLOOKUP($C$3,'USDOE Alloc 1112P'!$E$9:$Q$305,12,FALSE) -> 288108.9778 | G9: =VLOOKUP($C$3,'USDOE Alloc 1112F'!$E$9:$Q$305,7,FALSE) -> 279444.2425 | H9: =IF(K9=0,0,G9/K9) -> 0.8461461497 | I9: =VLOOKUP($C$4,'USDOE Alloc 0910P'!$E$13:$T$309,16,FALSE) -> 516417.3389 | J9: =VLOOKUP($C$3,'2009-10 Final'!$E$13:$AV$310,13,FALSE) -> 846672.6294 | K9: =VLOOKUP($C$4,'USDOE Alloc 0910F'!$E$10:$R$309,13,FALSE) -> 330255.2905 | L9: =VLOOKUP($C$4,'USDOE Alloc 0910P'!$E$13:$T$309,16,FALSE) -> 516417.3389 | M9: =IF(N9>0,+K9/N9,0) ->  | N9: =VLOOKUP($C$3,#REF!,13,FALSE) ->  | O9: =IF(P9>0,+N9/P9,0) ->  | P9: =VLOOKUP($C$3,'2007-08'!$E$13:$AV$310,13,FALSE) -> 205392.7377 | Q9: =IF(R9>0,+P9/R9,0) ->  | R9: =VLOOKUP($C$3,#REF!,13,FALSE) ->  | S9: =IF(T9>0,+R9/T9,0) ->  | T9: =VLOOKUP($C$3,#REF!,13,FALSE) ->  | U9: =IF(V9>0,+T9/V9,0) ->  | V9: =VLOOKUP($C$3,#REF!,13,FALSE) ->  | W9: =IF(X9>0,+V9/X9,0) ->  | X9: =VLOOKUP($C$3,#REF!,8,FALSE) ->  | Y9: =IF(Z9>0,+X9/Z9,0) ->  | Z9: =VLOOKUP($C$3,#REF!,10,FALSE) ->  | AA9: =IF(AB9>0,+Z9/AB9,0) -> 0 | AE9: Auburn
A10: 10 | B10: EFIG | D10: =VLOOKUP($C$3,'USDOE Alloc 1112F'!$E$9:$Q$305,13,FALSE) -> 351371.9336 | E10: =IF(AND(G10=0,D10=0),0,IF(G10=0,1,D10/G10)) -> 0.9901341426 | F10: =VLOOKUP($C$3,'USDOE Alloc 1112P'!$E$9:$Q$305,13,FALSE) -> 363856.9058 | G10: =VLOOKUP($C$3,'USDOE Alloc 1112F'!$E$9:$Q$305,8,FALSE) -> 354873.0606 | H10: =IF(K10=0,0,G10/K10) -> 0.8461461497 | I10: =VLOOKUP($C4,'USDOE Alloc 0910P'!$E$13:$U$309,17,FALSE) -> 646022.0652 | J10: =VLOOKUP($C$3,'2009-10 Final'!$E$13:$AV$310,14,FALSE) -> 1065421.315 | K10: =VLOOKUP($C$4,'USDOE Alloc 0910F'!$E$10:$R$309,14,FALSE) -> 419399.25 | L10: =VLOOKUP($C4,'USDOE Alloc 0910P'!$E$13:$U$309,17,FALSE) -> 646022.0652 | M10: =IF(N10>0,+K10/N10,0) ->  | N10: =VLOOKUP($C$3,#REF!,14,FALSE) ->  | O10: =IF(P10>0,+N10/P10,0) ->  | P10: =VLOOKUP($C$3,'2007-08'!$E$13:$AV$310,14,FALSE) -> 255013.7505 | Q10: =IF(R10>0,+P10/R10,0) ->  | R10: =VLOOKUP($C$3,#REF!,14,FALSE) ->  | S10: =IF(T10>0,+R10/T10,0) ->  | T10: =VLOOKUP($C$3,#REF!,14,FALSE) ->  | U10: =IF(V10>0,+T10/V10,0) ->  | V10: =VLOOKUP($C$3,#REF!,14,FALSE) ->  | W10: =IF(X10>0,+V10/X10,0) ->  | X10: =VLOOKUP($C$3,#REF!,9,FALSE) ->  | Y10: =IF(Z10>0,+X10/Z10,0) ->  | Z10: =VLOOKUP($C$3,#REF!,11,FALSE) ->  | AA10: =IF(AB10>0,+Z10/AB10,0) -> 0 | AE10: Bainbridge Island
A11: 11 | B11: Total per Department of Education | D11: =SUM(D7:D10) -> 1447726.825 | E11: =IF(AND(G11=0,D11=0),0,IF(G11=0,1,D11/G11)) -> 1.034586723 | F11: =SUM(F7:F10) -> 1492662.913 | G11: =SUM(G7:G10) -> 1399328.633 | H11: =IF(K11=0,0,G11/K11) -> 0.8475625457 | I11: =SUM(I7:I10) -> 1162439.404 | J11: =SUM(J7:J10) -> 2813442.79 | K11: =SUM(K7:K10) -> 1651003.386 | L11: =SUM(L7:L10) -> 1162439.404 | M11: =IF(N11>0,+K11/N11,0) ->  | N11: =SUM(N7:N10) ->  | O11: =IF(P11=0,1,+N11/P11) ->  | P11: =SUM(P7:P10) -> 1317869.065 | Q11: =IF(R11>0,+P11/R11,0) ->  | R11: =SUM(R7:R10) ->  | S11: =IF(T11>0,+R11/T11,0) ->  | T11: =SUM(T7:T10) ->  | U11: =IF(V11>0,+T11/V11,0) ->  | V11: =SUM(V7:V10) ->  | W11: =IF(X11>0,+V11/X11,0) ->  | X11: =SUM(X7:X10) ->  | Y11: =+X11/Z11 ->  | Z11: =SUM(Z7:Z10) ->  | AA11: =+Z11/AB11 ->  | AB11: =SUM(AB7:AB10) ->  | AE11: Battle Ground
A12: 12 | B12: Prior Year Adjustment - | C12: US Dept of Ed adjustment for prior year allocation | J12: =+K12 -> 541.5507694 | K12: =J13-J11 -> 541.5507694 | N12: =N13-N11 ->  | P12: =P13-P11 -> -1527.889584 | R12: =R13-R11 ->  | T12: =T13-T11 ->  | AE12: Bellevue
A13: 13 | B13: Gross Allocation | D13: =VLOOKUP($C$3,'2011-12 Final'!$E$13:$AV$310,15,FALSE) -> 1447726.825 | E13: =D13-G13 -> 48398.1923 | F13: =VLOOKUP($C$3,'2011-12 Prelim'!$E$13:$AV$310,15,FALSE) -> 1492662.913 | G13: =+G11 -> 1399328.633 | H13: =G13-K13 -> -252216.3039 | I13: =ROUND(VLOOKUP($C$4,'USDOE Alloc 0910P'!$E$13:$V$309,18,FALSE),0) -> 1162439 | J13: =VLOOKUP($C$3,'2009-10 Final'!$E$13:$AV$310,15,FALSE) -> 2813984.341 | K13: =K11+K12 -> 1651544.937 | L13: =VLOOKUP($C$4,'USDOE Alloc 0910P'!$E$13:$V$309,18,FALSE) -> 1162439.404 | M13: =K13-N13 ->  | N13: =VLOOKUP($C$3,#REF!,15,FALSE) ->  | O13: =N13-P13 ->  | P13: =VLOOKUP($C$3,'2007-08'!$E$13:$AV$310,15,FALSE) -> 1316341.176 | Q13: =P13-R13 ->  | R13: =VLOOKUP($C$3,#REF!,15,FALSE) ->  | S13: =R13-T13 ->  | T13: =VLOOKUP($C$3,#REF!,10,FALSE) ->  | U13: =T13-V13 ->  | V13: =VLOOKUP($C$3,#REF!,15,FALSE) ->  | W13: =V13-X13 ->  | X13: =VLOOKUP($C$3,#REF!,15,FALSE) ->  | AE13: Bellingham
A14: 14 | B14: Adjustments: | AE14: Benge
A15: 15 | B15: Less 4% School Improvement | D15: =D13*0.04*-1 -> -57909.07301 | E15: =D15-G15 -> -1935.927692 | F15: =F13*0.04*-1 -> -59706.5165 | G15: =G13*0.04*-1 -> -55973.14532 | H15: =G15-K15 -> 10088.65216 | I15: =-VLOOKUP($C$4,'Stimulus - Regular Breakdown F'!$B$15:$W$312,19,FALSE) -> -46497.57617 | J15: =J13*0.04*-1 -> -112559.3736 | K15: =-VLOOKUP($C$4,'Stimulus - Regular Breakdown F'!$B$15:$W$312,18,FALSE) -> -66061.79747 | L15: =-VLOOKUP($C$4,'Stimulus - Regular Breakdown F'!$B$15:$W$312,19,FALSE) -> -46497.57617 | M15: =K15-N15 ->  | N15: =N13*0.04*-1 ->  | O15: =N15-P15 ->  | P15: =P13*0.04*-1 -> -52653.64702 | Q15: =P15-R15 ->  | R15: =R13*0.04*-1 ->  | S15: =R15-T15 ->  | T15: =T13*0.04*-1 ->  | U15: =T15-V15 ->  | V15: =V13*0.04*-1 ->  | W15: =V15-X15 ->  | X15: =X13*0.02*-1 ->  | AE15: Bethel
A16: 16 | B16: Plus (Minus) School Imp from Pool Note 1 below | D16: =D59-D38 -> 39196.05722 | E16: =D16-G16 -> -16777.08075 | F16: =F59-F38 -> -2594.506828 | G16: =G59-G38 -> 55973.13796 | H16: =G16-K16 -> 56191.58522 | I16: =-I15-VLOOKUP($C$4,'Stimulus - Regular Breakdown F'!$B$15:$W$312,22,FALSE) -> -0.770465654 | J16: =L16+K16 -> -219.2177224 | K16: =-VLOOKUP($C$4,'Stimulus - Regular Breakdown F'!$B$15:$W$312,21,FALSE)-K15 -> -218.4472567 | L16: =-L15-VLOOKUP($C$4,'Stimulus - Regular Breakdown F'!$B$15:$W$312,22,FALSE) -> -0.770465654 | M16: =K16-N16 ->  | N16: =N59-N38 ->  | O16: =N16-P16 ->  | P16: =P59-P38 -> -19514.22621 | Q16: =P16-R16 ->  | R16: =R59-R38 ->  | S16: =R16-T16 ->  | T16: =T59-T38 ->  | U16: =T16-V16 ->  | V16: =V59-V38 ->  | W16: =V16-X16 ->  | X16: =X59-X38 ->  | AE16: Bickleton
A17: 17 | B17: Less proportionate share of State Admin | D17: =VLOOKUP($C$3,'2011-12 Prelim'!$E$14:$AR$309,40,FALSE)*-1 -> -13349.06058 | E17: =D17-G17 -> 437.5511535 | F17: =VLOOKUP($C$3,'2011-12 Prelim'!$E$14:$AR$309,40,FALSE)*-1 -> -13349.06058 | G17: =VLOOKUP($C$3,'2010-11 Final Original'!$E$14:$AR$309,40,FALSE)*-1 -> -13786.61173 | H17: =G17-K17 -> 1626.507133 | I17: =-VLOOKUP($C$4,'Stimulus - Regular Breakdown F'!$B$15:$AI$312,28,FALSE) -> -5812.188715 | J17: =VLOOKUP($C$3,'2009-10 Final'!$E$13:$AV$310,40,FALSE)*-1 -> -21225.30758 | K17: =-VLOOKUP($C$4,'Stimulus - Regular Breakdown F'!$B$15:$AL$312,27,FALSE) -> -15413.11886 | L17: =-VLOOKUP($C$3,'Old ARRA Breakdown'!$C$15:$AI$309,27,FALSE) -> 0 | M17: =K17-N17 ->  | N17: =VLOOKUP($C$3,#REF!,40,FALSE)*-1 ->  | O17: =N17-P17 ->  | P17: =VLOOKUP($C$3,'2007-08'!$E$13:$AV$310,40,FALSE)*-1 -> -12960.14137 | Q17: =P17-R17 ->  | R17: =VLOOKUP($C$3,#REF!,40,FALSE)*-1 ->  | S17: =R17-T17 ->  | T17: =VLOOKUP($C$3,#REF!,40,FALSE)*-1 ->  | U17: =T17-V17 ->  | V17: =VLOOKUP($C$3,#REF!,40,FALSE)*-1 ->  | W17: =V17-X17 ->  | X17: =VLOOKUP($C$3,#REF!,38,FALSE)*-1 ->  | AE17: Blaine
A18: 18 | B18: Less proportionate share of Awards | D18: =VLOOKUP($C$3,'2011-12 Prelim'!$E$14:$AT$309,42,FALSE)*-1 -> -1381 | E18: =D18-G18 -> -1381 | F18: =VLOOKUP($C$3,'2011-12 Prelim'!$E$14:$AT$309,42,FALSE)*-1 -> -1381 | G18: =VLOOKUP($C$3,'2010-11 Final Original'!$E$14:$AT$309,42,FALSE)*-1 -> 0 | H18: =G18-K18 -> 3176.370461 | I18: =-VLOOKUP($C$4,'Stimulus - Regular Breakdown F'!$B$15:$AI$312,34,FALSE) -> -1290.421775 | J18: =VLOOKUP($C$3,'2009-10 Final'!$E$13:$AV$310,42,FALSE)*-1 -> -3176.37 | K18: =-VLOOKUP($C$4,'Stimulus - Regular Breakdown F'!$B$15:$AL$312,33,FALSE) -> -3176.370461 | L18: =-VLOOKUP(C3,'Old ARRA Breakdown'!$C$15:$AI$311,33,FALSE) -> -11624.38603 | M18: =K18-N18 ->  | N18: =VLOOKUP($C$3,#REF!,42,FALSE)*-1 ->  | O18: =N18-P18 ->  | P18: =VLOOKUP($C$3,'2007-08'!$E$13:$AV$310,42,FALSE)*-1 -> -2078.26 | Q18: =P18-R18 ->  | R18: =VLOOKUP($C$3,#REF!,42,FALSE)*-1 ->  | S18: =R18-T18 ->  | T18: =VLOOKUP($C$3,#REF!,42,FALSE)*-1 ->  | U18: =T18-V18 ->  | V18: =VLOOKUP($C$3,#REF!,42,FALSE)*-1 ->  | W18: =V18-X18 ->  | X18: =VLOOKUP($C$3,#REF!,40,FALSE)*-1 ->  | AE18: Boistfort
A19: 19 | G19: Less ARRA Allocation in 2009-10: | I19: =-VLOOKUP(C3,'Stimulus - Regular Breakdown F'!$C$15:$AU$310,45,FALSE) -> -552158.5 | L19: 50% of allocation: | AE19: Bremerton
A20: 20 | B20: Net Allocation to District | D20: =VLOOKUP($C$3,'2011-12 Final'!$E$14:$AV$309,44,FALSE) -> 1367277 | E20: =IF(AND(G20=0,D20<>0),1,+D20/G20) -> 0.986788945 | F20: =VLOOKUP($C$3,'2011-12 Prelim'!$E$14:$AV$309,44,FALSE) -> 1370852 | G20: =VLOOKUP($C$3,'2010-11 Final w Rev Boundaries'!$E$14:$AV$309,44,FALSE) -> 1385582 | H20: =IF(AND(K20=0,G20<>0),1,+G20/K20) -> 0.8844093382 | I20: =VLOOKUP(C4,'Stimulus - Regular Breakdown F'!$B$15:$AV$312,47,FALSE) -> 556680.5 | J20: =VLOOKUP($C$3,'Stimulus - Regular Breakdown F'!$C$15:$AL$312,34,FALSE) -> 2675514 | K20: =VLOOKUP($C$3,'Stimulus - Regular Breakdown F'!$C$15:$AL$312,35,FALSE) -> 1566675 | L20: =VLOOKUP($C$3,'Old ARRA Breakdown'!$C$15:$AL$311,36,FALSE)*0.5 -> 552158.5 | M20: =IF(AND(N20=0,K20<>0),1,+K20/N20) ->  | N20: =VLOOKUP($C$3,#REF!,44,FALSE) ->  | O20: =IF(AND(P20=0,N20<>0),1,+N20/P20) ->  | P20: =VLOOKUP($C$3,'2007-08'!$E$13:$AV$310,44,FALSE) -> 1229135 | Q20: =+P20/R20 ->  | R20: =VLOOKUP($C$3,#REF!,44,FALSE) ->  | S20: =IF(T20>0,+R20/T20,0) ->  | T20: =VLOOKUP($C$3,#REF!,44,FALSE) ->  | U20: =IF(V20>0,+T20/V20,0) ->  | V20: =VLOOKUP($C$3,#REF!,44,FALSE) ->  | W20: =IF(X20>0,+V20/X20,0) ->  | X20: =VLOOKUP($C$3,#REF!,17,FALSE) ->  | Y20: =+X20/Z20 ->  | Z20: =VLOOKUP($C$3,#REF!,15,FALSE) ->  | AA20: =+Z20/AB20 ->  | AB20: =VLOOKUP($C$3,#REF!,2,FALSE) ->  | AE20: Brewster
A21: 21 | B21: Percent of Total State Distributions | D21: =+D20/'2011-12 Final'!$AS$13 -> 0.007029778964 | F21: =+F20/'2011-12 Prelim'!$AS$13 -> 0.007021544794 | G21: =+G20/'2010-11 Final w Rev Boundaries'!$AS$13 -> 0.007642086397 | K21: =+J20/'2009-10 Final'!$AS$13 -> 0.008395772987 | O21: =+N20/#REF! ->  | Q21: =R20/#REF! ->  | S21: =T20/#REF! ->  | U21: =V20/#REF! ->  | W21: =X20/#REF! ->  | Y21: =+Z20/#REF! ->  | AA21: =+AB20/#REF! ->  | AE21: Bridgeport
A22: 22 | AE22: Brinnon
A23: 23 | B23: ELIGIBLES | C23: Eligibility Criteria | N23: Units | O23: % of State Total | P23: Units | Q23: % of State Total | R23: Units | S23: % of State Total | T23: Units | U23: % of State Total | V23: Units | W23: % of State Total | X23: Units | Y23: % of State Total | Z23: Units | AA23: % of State Total | AE23: Burlington-Edison
A24: 24 | B24: Basic | C24: >= 10 5-17 population and poverty > 2% | D24: =VLOOKUP($C$4,'11-12 Pop F'!$D$9:$R$305,11,FALSE) -> 1332 | E24: =F24/'11-12 Pop F'!N8 -> 0.008125211285 | F24: =VLOOKUP($C$4,'11-12 Pop P'!$D$9:$R$305,11,FALSE) -> 1370 | G24: =VLOOKUP($C$4,'10-11 Pop F'!$A$8:$O$320,11,FALSE) -> 1174 | H24: =+$G24/+'10-11 Pop F'!$K8 -> 0.008205085196 | K24: =VLOOKUP($C$4,'09-10 Pop F'!$A$8:$O$320,11,FALSE) -> 1414 | M24: =+$K24/+'09-10 Pop F'!$K8 -> 0.009362874283 | N24: =VLOOKUP($C$4,#REF!,11,FALSE) ->  | O24: =+$N24/+#REF! ->  | P24: =VLOOKUP($C$4,#REF!,11,FALSE) ->  | Q24: =+P24/+#REF! ->  | R24: =VLOOKUP($C$3,#REF!,10,FALSE) ->  | S24: =+R24/#REF! ->  | T24: =VLOOKUP($C$3,#REF!,10,FALSE) ->  | U24: =+T24/#REF! ->  | V24: =VLOOKUP($C$3,#REF!,10,FALSE) ->  | W24: =+V24/#REF! ->  | X24: =VLOOKUP($C$3,#REF!,10,FALSE) ->  | Y24: =+X24/#REF! ->  | Z24: =VLOOKUP($C$3,#REF!,10,FALSE) ->  | AA24: =+Z24/#REF! ->  | AE24: Camas
A25: 25 | B25: Concentration | C25: > 6,500 5-17 population or poverty > 15% | D25: =VLOOKUP($C$4,'11-12 Pop F'!$D$9:$R$305,12,FALSE) -> 0 | E25: =F25/'11-12 Pop F'!O8 -> 0 | F25: =VLOOKUP($C$4,'11-12 Pop P'!$D$9:$R$305,12,FALSE) -> 0 | G25: =VLOOKUP($C$4,'10-11 Pop F'!$A$8:$O$320,12,FALSE) -> 0 | H25: =+$G25/'10-11 Pop F'!$L8 -> 0 | K25: =VLOOKUP($C$4,'09-10 Pop F'!$A$8:$O$320,12,FALSE) -> 0 | M25: =+$K25/'09-10 Pop F'!$L8 -> 0 | N25: =VLOOKUP($C$4,#REF!,12,FALSE) ->  | O25: =+$N25/#REF! ->  | P25: =VLOOKUP($C$4,#REF!,12,FALSE) ->  | Q25: =+P25/#REF! ->  | R25: =VLOOKUP($C$3,#REF!,11,FALSE) ->  | S25: =+R25/#REF! ->  | T25: =VLOOKUP($C$3,#REF!,11,FALSE) ->  | U25: =+T25/#REF! ->  | V25: =VLOOKUP($C$3,#REF!,11,FALSE) ->  | W25: =+V25/#REF! ->  | X25: =VLOOKUP($C$3,#REF!,11,FALSE) ->  | Y25: =+X25/#REF! ->  | Z25: =VLOOKUP($C$3,#REF!,11,FALSE) ->  | AA25: =+Z25/#REF! ->  | AE25: Cape Flattery
A26: 26 | B26: Targeted | C26: >=10 5-17 population and poverty % is >= 5% | D26: =VLOOKUP($C$4,'11-12 Pop F'!$D$9:$R$305,14,FALSE) -> 1652.5 | E26: =F26/'11-12 Pop F'!Q8 -> 0.007172462412 | F26: =VLOOKUP($C$4,'11-12 Pop P'!$D$9:$R$305,14,FALSE) -> 1709.5 | G26: =VLOOKUP($C$4,'10-11 Pop F'!$A$8:$O$320,14,FALSE) -> 1415.5 | H26: =+$G26/+'10-11 Pop F'!$N8 -> 0.007429943105 | K26: =VLOOKUP($C$4,'09-10 Pop F'!$A$8:$O$320,14,FALSE) -> 1775.5 | M26: =+$K26/+'09-10 Pop F'!$N8 -> 0.008588279822 | N26: =VLOOKUP($C$4,#REF!,14,FALSE) ->  | O26: =+$N26/+#REF! ->  | P26: =VLOOKUP($C$4,#REF!,14,FALSE) ->  | Q26: =+P26/+#REF! ->  | R26: =VLOOKUP($C$3,#REF!,13,FALSE) ->  | S26: =+R26/#REF! ->  | T26: =VLOOKUP($C$3,#REF!,13,FALSE) ->  | U26: =+T26/#REF! ->  | V26: =VLOOKUP($C$3,#REF!,13,FALSE) ->  | W26: =+V26/#REF! ->  | X26: =VLOOKUP($C$3,#REF!,13,FALSE) ->  | Y26: =+X26/#REF! ->  | Z26: =VLOOKUP($C$3,#REF!,13,FALSE) ->  | AA26: =+Z26/#REF! ->  | AE26: Carbonado
A27: 27 | B27: EFIG | C27: >=10 5-17 population and poverty % is >= 5% | D27: =VLOOKUP($C$4,'11-12 Pop F'!$D$9:$R$305,15,FALSE) -> 1652.5 | E27: =F27/'11-12 Pop F'!R8 -> 0.007172462412 | F27: =VLOOKUP($C$4,'11-12 Pop P'!$D$9:$R$305,15,FALSE) -> 1709.5 | G27: =VLOOKUP($C$4,'10-11 Pop F'!$A$8:$O$320,15,FALSE) -> 1415.5 | H27: =+$G27/'10-11 Pop F'!$O8 -> 0.007429943105 | K27: =VLOOKUP($C$4,'09-10 Pop F'!$A$8:$O$320,15,FALSE) -> 1775.5 | M27: =+$K27/'09-10 Pop F'!$O8 -> 0.008588279822 | N27: =VLOOKUP($C$4,#REF!,15,FALSE) ->  | O27: =+$N27/#REF! ->  | P27: =VLOOKUP($C$4,#REF!,15,FALSE) ->  | Q27: =+P27/#REF! ->  | R27: =VLOOKUP($C$3,#REF!,14,FALSE) ->  | S27: =+R27/#REF! ->  | T27: =VLOOKUP($C$3,#REF!,14,FALSE) ->  | U27: =+T27/#REF! ->  | V27: =VLOOKUP($C$3,#REF!,14,FALSE) ->  | W27: =+V27/#REF! ->  | X27: =VLOOKUP($C$3,#REF!,14,FALSE) ->  | Y27: =+X27/#REF! ->  | Z27: =VLOOKUP($C$3,#REF!,14,FALSE) ->  | AA27: =+Z27/#REF! ->  | AE27: Cascade
A28: 28 | AE28: Cashmere
A29: 29 | B29: CENSUS | E29: Inc (Dec) | F29: 2009 | G29: 2008 | H29: Inc (Dec) | K29: 2007 | M29: Inc (Dec) | N29: 2005 | O29: Inc (Dec) | P29: 2004 | Q29: Inc (Dec) | R29: 2003 | S29: Inc (Dec) | T29: 2002 | U29: Inc (Dec) | V29: 2001 | W29: Inc (Dec) | X29: 2000 | Y29: Inc (Dec) | Z29: 1990 | AE29: Castle Rock
A30: 30 | B30: 5-17 Poverty | C30: Does not include additional populations | D30: =VLOOKUP($C$4,'11-12 Pop F'!$D$9:$L$305,3,FALSE) -> 1313 | E30: =D30-G30 -> 196 | F30: =VLOOKUP($C$4,'11-12 Pop P'!$D$9:$L$305,3,FALSE) -> 1313 | G30: =VLOOKUP($C$4,'10-11 Pop F'!$A$8:$S$306,3,FALSE) -> 1117 | H30: =+G30-K30 -> -268 | K30: =VLOOKUP($C$4,'09-10 Pop F'!$A$8:$S$306,3,FALSE) -> 1385 | M30: =K30-N30 ->  | N30: =VLOOKUP($C$4,#REF!,3,FALSE) ->  | O30: =N30-P30 ->  | P30: =VLOOKUP($C$4,#REF!,3,FALSE) ->  | Q30: =P30-R30 ->  | R30: =VLOOKUP($C$3,#REF!,2,FALSE) ->  | S30: =R30-T30 ->  | T30: =VLOOKUP($C$3,#REF!,2,FALSE) ->  | U30: =T30-V30 ->  | V30: =VLOOKUP($C$3,#REF!,2,FALSE) ->  | W30: =V30-X30 ->  | X30: =VLOOKUP($C$3,#REF!,2,FALSE) ->  | Y30: =X30-Z30 ->  | Z30: =VLOOKUP($C$3,#REF!,2,FALSE) ->  | AE30: Centerville
A31: 31 | B31: 5-17 Population | D31: =VLOOKUP($C$4,'11-12 Pop F'!$D$9:$L$305,9,FALSE) -> 17571 | E31: =D31-G31 -> -13 | F31: =VLOOKUP($C$4,'11-12 Pop P'!$D$9:$L$305,9,FALSE) -> 17571 | G31: =VLOOKUP($C$4,'10-11 Pop F'!$A$8:$S$306,9,FALSE) -> 17584 | H31: -3 | K31: =VLOOKUP($C$4,'09-10 Pop F'!$A$8:$S$306,9,FALSE) -> 17587 | N31: =VLOOKUP($C$4,#REF!,9,FALSE) ->  | P31: =VLOOKUP($C$4,#REF!,9,FALSE) ->  | R31: =VLOOKUP($C$3,#REF!,8,FALSE) ->  | T31: =VLOOKUP($C$3,#REF!,8,FALSE) ->  | V31: =VLOOKUP($C$3,#REF!,8,FALSE) ->  | X31: =VLOOKUP($C$3,#REF!,8,FALSE) ->  | Z31: =VLOOKUP($C$3,#REF!,8,FALSE) ->  | AE31: Central Kitsap
A32: 32 | B32: Total Formula Units | C32: Includes 5-17 Poverty, Delinquent, Neglected, Foster, and TANF | D32: =VLOOKUP($C$4,'11-12 Pop F'!$D$9:$L$305,8,FALSE) -> 1332 | E32: =D32-G32 -> 158 | F32: =VLOOKUP($C$4,'11-12 Pop P'!$D$9:$L$305,8,FALSE) -> 1370 | G32: =VLOOKUP($C$4,'10-11 Pop F'!$A$8:$S$306,8,FALSE) -> 1174 | H32: -240 | K32: =VLOOKUP($C$4,'09-10 Pop F'!$A$8:$S$306,8,FALSE) -> 1414 | N32: =VLOOKUP($C$4,#REF!,8,FALSE) ->  | P32: =VLOOKUP($C$4,#REF!,8,FALSE) ->  | R32: =VLOOKUP($C$3,#REF!,7,FALSE) ->  | T32: =VLOOKUP($C$3,#REF!,7,FALSE) ->  | V32: =VLOOKUP($C$3,#REF!,7,FALSE) ->  | X32: =VLOOKUP($C$3,#REF!,7,FALSE) ->  | Z32: =VLOOKUP($C$3,#REF!,7,FALSE) ->  | AE32: Central Valley
A33: 33 | B33: Percent of Poverty | C33: Line 32 / line 31 | D33: =D32/D31 -> 0.07580672699 | E33: =D33-G33 -> 0.009041485865 | F33: =F32/F31 -> 0.07796938137 | G33: =+G32/G31 -> 0.06676524113 | H33: -0.01363505454 | K33: =+K32/K31 -> 0.08040029567 | N33: =+N32/N31 ->  | P33: =+P32/P31 ->  | R33: =+R32/R31 ->  | T33: =+T32/T31 ->  | V33: =+V32/V31 ->  | X33: =+X32/X31 ->  | Z33: =+Z32/Z31 ->  | AE33: Centralia
A34: 34 | B34: Total Population | C34: All ages resident population per census | D34: =VLOOKUP($C$4,'USDOE Alloc 1112F'!$D$9:$T$305,17,FALSE) -> 126032 | E34: =D34-G34 -> 2347 | F34: =VLOOKUP($C$4,'USDOE Alloc 1112P'!$D$9:$T$305,17,FALSE) -> 126032 | G34: =VLOOKUP($C$3,'USDOE Alloc 1011F'!$E$9:$T$305,16,FALSE) -> 123685 | H34: 1071 | K34: =VLOOKUP($C$3,'09-10 Pop F'!$B$9:$Q$305,16,FALSE) -> 122614 | N34: =VLOOKUP($C$3,#REF!,17,FALSE) ->  | P34: =VLOOKUP($C$3,'2007-08'!$E$13:$V$312,17,FALSE) -> 118282 | R34: =VLOOKUP($C$3,#REF!,17,FALSE) ->  | T34: =VLOOKUP($C$3,#REF!,17,FALSE) ->  | V34: =VLOOKUP($C$3,#REF!,17,FALSE) ->  | X34: =VLOOKUP($C$3,#REF!,16,FALSE) ->  | Z34: =VLOOKUP($C$3,#REF!,13,FALSE) ->  | AE34: Chehalis
A35: 35 | B35: 5% threshold for Targeted and EFIG | D35: =0.05*D31 -> 878.55 | E35: =ROUNDUP(IF(F30<F35,F35-F30,0),0) & " / " & ROUNDUP(IF(F35>F32,F35-F32,0),0) -> 0 / 0 | F35: =0.05*F31 -> 878.55 | G35: =0.05*G31 -> 879.2 | H35: -0.8 | K35: =ROUNDUP(0.05*K31,0) -> 880 | N35: =0.05*N31 ->  | P35: =0.05*P31 ->  | R35: =+R31*0.05 ->  | T35: =+T31*0.05 ->  | V35: =+V31*0.05 ->  | X35: =+X31*0.05 ->  | Z35: =+Z31*0.05 ->  | AE35: Cheney
A36: 36 | D36: =ROUNDUP(IF(D30<D35,D35-D30,0),0) & " / " & ROUNDUP(IF(D35>D32,D35-D32,0),0) -> 0 / 0 | G36: =ROUNDUP(IF(G30<G35,G35-G30,0),0) & " / " & ROUNDUP(IF(G35>G32,G35-G32,0),0) -> 0 / 0 | K36: =ROUNDUP(IF(K30<K35,K35-K30,0),0) & " / " & ROUNDUP(IF(K35>K32,K35-K32,0),0) -> 0 / 0 | AE36: Chewelah
A37: 37 | B37: Note 1 School Improvement Reallocation: | AE37: Chimacum
A38: 38 | B38: Current year allocation with school imp factored out | D38: =VLOOKUP($C$3,'2011-12 Final'!$E$13:$AV$310,20,FALSE) -> 1346385.943 | F38: =VLOOKUP($C$3,'2011-12 Prelim'!$E$13:$AV$310,20,FALSE) -> 1388176.507 | G38: =VLOOKUP($C$3,'2010-11 Final w Rev Boundaries'!$E$13:$AV$310,20,FALSE) -> 1343355.495 | H38: =+G38-K38 -> -242127.6444 | J38: =K38+L38 -> 2701424.967 | K38: =VLOOKUP($C$4,'Stimulus - Regular Breakdown F'!$B$15:$Z$310,15,FALSE)-VLOOKUP($C$4,'Stimulus - Regular Breakdown F'!$B$15:$Z$310,18,FALSE) -> 1585483.139 | L38: =VLOOKUP($C$4,'Stimulus - Regular Breakdown F'!$B$15:$Z$310,16,FALSE)-VLOOKUP($C$4,'Stimulus - Regular Breakdown F'!$B$15:$Z$310,19,FALSE) -> 1115941.828 | M38: =K38-N38 ->  | N38: =VLOOKUP($C$3,#REF!,20,FALSE) ->  | O38: =N38-P38 ->  | P38: =VLOOKUP($C$3,'2007-08'!$E$13:$AV$310,20,FALSE) -> 1263687.535 | Q38: =P38-R38 ->  | R38: =VLOOKUP($C$3,#REF!,20,FALSE) ->  | S38: =R38-T38 ->  | T38: =VLOOKUP($C$3,#REF!,20,FALSE) ->  | U38: =T38-V38 ->  | V38: =VLOOKUP($C$3,#REF!,20,FALSE) ->  | W38: =V38-X38 ->  | X38: =VLOOKUP($C$3,#REF!,18,FALSE) ->  | Y38: =X38-Z38 ->  | AE38: Clarkston
A39: 39 | B39: Prior year net allocation | D39: =VLOOKUP($C$3,'2011-12 Final'!$E$13:$AV$310,23,FALSE) -> 1385582 | F39: =VLOOKUP($C$3,'2011-12 Prelim'!$E$13:$AV$310,23,FALSE) -> 1385582 | G39: =VLOOKUP($C$3,'2010-11 Final w Rev Boundaries'!$E$13:$AV$310,23,FALSE) -> 1566675 | H39: =+G39-K39 -> 222284 | J39: =N20 ->  | K39: =VLOOKUP($C$3,'2009-10 Final'!$E$13:$AV$310,23,FALSE) -> 1344391 | L39: =VLOOKUP($C$3,'2009-10 Final'!$E$13:$AV$310,23,FALSE) -> 1344391 | M39: =K39-N39 ->  | N39: =VLOOKUP($C$3,#REF!,23,FALSE) ->  | O39: =N39-P39 ->  | P39: =VLOOKUP($C$3,'2007-08'!$E$13:$AV$310,23,FALSE) -> 1140781 | Q39: =P39-R39 ->  | R39: =VLOOKUP($C$3,#REF!,23,FALSE) ->  | S39: =R39-T39 ->  | T39: =VLOOKUP($C$3,#REF!,23,FALSE) ->  | U39: =T39-V39 ->  | V39: =VLOOKUP($C$3,#REF!,23,FALSE) ->  | W39: =V39-X39 ->  | X39: =VLOOKUP($C$3,#REF!,21,FALSE) ->  | Y39: =X39-Z39 ->  | AE39: Cle Elum-Roslyn
A40: 40 | B40: Current Year Gross amount | D40: =D13 -> 1447726.825 | F40: =F13 -> 1492662.913 | G40: =G13 -> 1399328.633 | H40: =+G40-K40 -> -252216.3039 | J40: =J13 -> 2813984.341 | K40: =K13 -> 1651544.937 | L40: =L13 -> 1162439.404 | M40: =K40-N40 ->  | N40: =N13 ->  | O40: =N40-P40 ->  | P40: =P13 -> 1316341.176 | Q40: =P40-R40 ->  | R40: =R13 ->  | S40: =R40-T40 ->  | T40: =T13 ->  | U40: =T40-V40 ->  | V40: =V13 ->  | W40: =V40-X40 ->  | X40: =X13 ->  | Y40: =X40-Z40 ->  | AE40: Clover Park
A41: 41 | B41: Maximum amount possible for school improvement pool | D41: =IF(D38<D39,0,IF(D38>=D39,D40-D39,MAX(D38-D39,0))) -> 0 | F41: =IF(F38<F39,0,IF(F38>=F39,F40-F39,MAX(F38-F39,0))) -> 107080.9125 | G41: =IF(G38<G39,0,IF(G38>=G39,G40-G39,MAX(G38-G39,0))) -> 0 | H41: =+G41-K41 -> -307153.9368 | J41: =IF(J38<J39,0,IF(J38>=J39,J40-J39,MAX(J38-J39,0))) ->  | K41: =IF(K38<K39,0,IF(K38>=K39,K40-K39,MAX(K38-K39,0))) -> 307153.9368 | L41: =IF(L38<L39,0,IF(L38>=L39,L40-L39,MAX(L38-L39,0))) -> 0 | M41: =K41-N41 ->  | N41: =IF(N38<N39,0,IF(N38>=N39,N40-N39,MAX(N38-N39,0))) ->  | O41: =N41-P41 ->  | P41: =IF(P38<P39,0,IF(P38>=P39,P40-P39,MAX(P38-P39,0))) -> 175560.1755 | Q41: =P41-R41 ->  | R41: =IF(R38<R39,0,IF(R38>=R39,R40-R39,MAX(R38-R39,0))) ->  | S41: =R41-T41 ->  | T41: =IF(T38<T39,0,IF(T38>=T39,T40-T39,MAX(T38-T39,0))) ->  | U41: =T41-V41 ->  | V41: =IF(V38<V39,0,IF(V38>=V39,V40-V39,MAX(V38-V39,0))) ->  | W41: =V41-X41 ->  | X41: =IF(X38<X39,0,IF(X38>=X39,X40-X39,MAX(X38-X39,0))) ->  | Y41: =X41-Z41 ->  | AE41: Colfax
A42: 42 | B42: (If line 38 < line 39, zero; otherwise, line 40 - line 39) | AE42: College Place
A43: 43 | B43: Actual amount to school improvement pool Negative amount = district took from pool Positive amount = district gave to pool | D43: =(D15+D16)*-1 -> 18713.01579 | F43: =(F15+F16)*-1 -> 62301.02333 | G43: =(G15+G16)*-1 -> 0.007351761567 | J43: =J16*-1 -> 219.2177224 | K43: =K16*-1 -> 218.4472567 | L43: =L16*-1 -> 0.770465654 | M43: =K43-O43 ->  | N43: =N16*-1 ->  | O43: =N43-P43 ->  | P43: =P16*-1 -> 19514.22621 | Q43: =P43-R43 ->  | R43: =R16*-1 ->  | S43: =R43-T43 ->  | T43: =T16*-1 ->  | U43: =T43-V43 ->  | V43: =V16*-1 ->  | W43: =V43-X43 ->  | X43: =X16*-1 ->  | Y43: =X43-Z43 ->  | AE43: Colton
A44: 44 | B44: ="Explanation (if available): "&VLOOKUP(C3,'2011-12 Prelim'!BE14:BH310,4,FALSE) &" "&VLOOKUP(C3,'2011-12 Prelim'!BE14:BI310,5,FALSE) -> Explanation (if available): 0 | AE44: Columbia (Stev)
AE45: Columbia (Walla)
AE46: Colville
AE47: Concrete
AE48: Conway
AE49: Cosmopolis
AE50: Coulee-Hartline
AE51: Coupeville
AE52: Crescent
AE53: Creston
AE54: Curlew
AE55: Cusick
AE56: Damman
AE57: Darrington
AE58: Davenport
A59: 17 | B59: Allocation before State Admin + Awards, after School Improvement | D59: =VLOOKUP($C$3,'2011-12 Final'!$E$13:$AV$310,38,FALSE) -> 1385582 | F59: =VLOOKUP($C$3,'2011-12 Prelim'!$E$13:$AV$310,38,FALSE) -> 1385582 | G59: =VLOOKUP($C$3,'2010-11 Final w Rev Boundaries'!$E$13:$AV$310,38,FALSE) -> 1399328.633 | K59: =K13-VLOOKUP($C$4,'Stimulus - Regular Breakdown F'!$B$15:$R$312,16,FALSE) -> 489105.5326 | N59: =VLOOKUP($C$3,#REF!,38,FALSE) ->  | P59: =VLOOKUP($C$3,'2007-08'!$E$13:$AV$310,38,FALSE) -> 1244173.309 | R59: =VLOOKUP($C$3,#REF!,38,FALSE) ->  | T59: =VLOOKUP($C$3,#REF!,38,FALSE) ->  | V59: =VLOOKUP($C$3,#REF!,38,FALSE) ->  | X59: =VLOOKUP($C$3,#REF!,36,FALSE) ->  | AE59: Dayton
AE60: Deer Park
AE61: Dieringer
AE62: Dixie
... 77 more rows

Sheet 2011-12 Final (hidden)
E1: 1 | F1: 2 | G1: 3 | H1: 4 | I1: 5 | J1: 6 | K1: 7 | L1: 8 | M1: 9 | N1: 10 | O1: 11 | P1: 12 | Q1: 13 | R1: 14 | S1: 15 | T1: 16 | U1: 17 | V1: 18 | W1: 19 | X1: 20 | Y1: 21 | Z1: 22 | AA1: 23 | AB1: 24 | AC1: 25 | AD1: 26 | AE1: 27 | AF1: 28 | AG1: 29 | AH1: 30 | AI1: 31 | AJ1: 32 | AK1: 33 | AL1: 34 | AM1: 35 | AN1: 36 | AO1: 37 | AP1: 38 | AQ1: 39 | AR1: 40 | AS1: 41 | AT1: 42 | AU1: 43 | AV1: 44 | AW1: 45 | AX1: 46 | AY1: 47 | AZ1: 48 | BB1: =MIN(BB14:BB308) -> -0.4747410359 | BC1: ="Loser is "&VLOOKUP(BB1,$BB$14:$BE$309,4,FALSE) -> Loser is PALOUSE
A2: NUMBERS IN YELLOW DRIVE THE MODEL | X2: =Assumption!E14 -> 196392366 | Y2: Driver - From Assumptions Page | AK2: Driver - From Assumptions Page | AR2: =-Assumption!E16 -> 1894501 | AS2: - Drivers - | AT2: =-Assumption!E20 -> 700000 | AU2: Driver - From Assumptions Page | AW2: =#REF! ->  | BB2: =MAX(BB14:BB308) -> 0.525409584 | BC2: ="Winner is "&VLOOKUP(BB2,$BB$14:$BE$309,4,FALSE) -> Winner is DIERINGER
E3: WASHINGTON | N3: PRIOR YEAR | S3: 2 | X3: 3 | AA3: 1 | AP3: =Assumption!#REF!*-1 ->  | AZ3: =MIN(AZ14:AZ309) -> -237790 | BA3: ="Loser is "&VLOOKUP(AZ3,$AZ$14:$BE$309,6,FALSE) -> Loser is SEATTLE
D4: Prior Year | E4: 2010-11 | F4: 2 | G4: 3 | H4: 4 | I4: 5 | J4: 6 | K4: 7 | L4: 8 | M4: 9 | N4: 10 | O4: 11 | P4: 12 | Q4: 13 | R4: 14 | S4: 15 | T4: 16 | U4: 17 | V4: 18 | W4: 19 | X4: 20 | Y4: 21 | Z4: 22 | AA4: 23 | AB4: 24 | AC4: 25 | AD4: 26 | AE4: 27 | AF4: 28 | AG4: 29 | AH4: Check Sum | AI4: 31 | AJ4: 32 | AK4: 33 | AL4: Check Sum | AM4: 35 | AN4: 36 | AO4: 37 | AP4: Check Sum | AQ4: =SUM(AQ14:AQ309) -> 0 | AR4: 40 | AS4: 41 | AT4: 42 | AU4: 43 | AV4: 44 | AY4: Prior Year | AZ4: =MAX(AZ14:AZ309) -> 1716409 | BA4: ="Winner is "&VLOOKUP(AZ4,$AZ$14:$BE$309,6,FALSE) -> Winner is EVERGREEN (CLARK) | BE4: Used for BA Dist names. | BG4: Prior Year
D5: Curr Year | E5: 2011-12 | F5: Source: DOE FINAL district allocation model | X5: Total | AB5: Hold Harmless Calculations for School Improvement Deduction | AH5: =+$X$2 -> 196392366 | AL5: =+$X$2 -> 196392366 | AP5: =+$X$2 -> 196392366 | AR5: Sec. 1004 | AV5: =Assumption!E24 -> 193797865 | AY5: Final Alloc | BA5: =MIN(BA14:BA308) -> -1 | BB5: ="Loser is "&VLOOKUP(BA5,$BA$14:$BE$309,5,FALSE) -> Loser is CARBONADO | BG5: Curr Year
X6: Title I, Part A | AA6: (Prior Year) | AH6: =+AH5-AH13 -> 0 | AL6: =+AL5-AL13 -> 0 | AP6: =+AP5-AP13 -> 0 | AQ6: Total Hold | AV6: =IF(AV5=AV13,"Rounding OK","Rounding Error") -> Rounding Error | AW6: =MIN(AW14:AW309) -> -188859 | AX6: ="Loser is "&VLOOKUP(AW6,$AW$14:$BE$309,9,FALSE) -> Loser is YAKIMA | BA6: =MAX(BA14:BA308) -> 1 | BB6: ="Winner is "&VLOOKUP(BA6,$BA$14:$BE$309,5,FALSE) -> Winner is LAMONT
N7: INTIAL | S7: INTIAL | T7: PERCENT | X7: Allocations | AA7: =prioryear -> 2010-11 | AB7: 1st Iteration | AF7: 2nd Iteration | AJ7: 3rd Iteration | AN7: 4th Iteration | AQ7: Harmless | AS7: =+AP13-X13 -> 0 | AT7: Sec 1117 | AV7: =+AV13-AV309 -> 190453875 | AW7: =MAX(AW14:AW309) -> 51592 | AX7: ="Winner is "&VLOOKUP(AW7,$AW$14:$BE$309,9,FALSE) -> Winner is AUBURN | BN7: Maximum Required
J8: Prior Years (Excluding ARRA) | N8: TOTAL | O8: Current Years | S8: TOTAL | T8: OF TOTAL | X8: with School | AA8: Total State | AB8: Section 1003(c) State Reser. Hold Harmless | AF8: Section 1003(c) State Reser. Hold Harmless | AJ8: Section 1003(c) State Reser. Hold Harmless | AN8: Section 1003(c) State Reser. Hold Harmless | AV8: =E5 -> 2011-12 | AX8: =E5 -> 2011-12 | AY8: =prioryear -> 2010-11 | AZ8: CHANGE | BA8: CHANGE | BB8: CHANGE | BN8: Expenditures For
F9: TOTAL | J9: =prioryear -> 2010-11 | K9: =$J$9 -> 2010-11 | L9: =$J$9 -> 2010-11 | M9: =$J$9 -> 2010-11 | N9: =$J$9 -> 2010-11 | O9: =E5 -> 2011-12 | P9: =$O$9 -> 2011-12 | Q9: =$O$9 -> 2011-12 | R9: =$O$9 -> 2011-12 | S9: =$O$9 -> 2011-12 | T9: Prior Year | V9: Condition Flags | X9: Improvement | AA9: Determined | AT9: Holdback for | AV9: Final | AW9: Change from | AX9: Preliminary | AY9: Net Allocations | AZ9: FROM | BA9: FROM | BB9: FROM | BN9: Choice-Related | BO9: Maximum Per-Child
E10: LOCAL EDUCATION AGENCY | F10: FORMULA | G10: 5-17 | H10: PERCENT | J10: BASIC | K10: CONC. | L10: TARGETED | M10: EFIG | N10: TITLE I | O10: BASIC | P10: CONC. | Q10: TARGETED | R10: EFIG | S10: TITLE I | T10: TITLE I | U10: RESIDENT | W10: Is Initial LT | X10: Factored Out | AA10: Title I, Part A | AB10: Hold Harmless | AD10: Revised | AF10: Hold Harmless | AH10: Revised | AJ10: Hold Harmless | AL10: Revised | AN10: Hold Harmless | AP10: Revised | AR10: State | AS10: Net | AT10: Awards and | AV10: To | AW10: Preliminary to | AX10: To | AY10: To | AZ10: =prioryear -> 2010-11 | BA10: Last year | BB10: Prelim | BI10: 10 | BK10: =COUNTIF(BK14:BK309,"<0") -> 99 | BN10: Transportation | BO10: Expenditure For
D11: LEAID | E11: (LEA) | F11: COUNT | G11: POP. | H11: FORMULA | J11: ALLOCATION | K11: ALLOCATION | L11: ALLOCATION | M11: ALLOCATION | N11: ALLOCATION | O11: ALLOCATION | P11: ALLOCATION | Q11: ALLOCATION | R11: ALLOCATION | S11: ALLOCATION | T11: ALLOCATION | U11: POP. | W11: Last Year? | X11: =E5 -> 2011-12 | AA11: Allocation | AB11: Test | AC11: Pool | AD11: Allocation | AF11: Test | AG11: Pool | AH11: Allocation | AJ11: Test | AK11: Pool | AL11: Allocation | AN11: Test | AO11: Pool | AP11: Allocation | AR11: Admin | AS11: After admin | AT11: recognition | AU11: MOE | AV11: Districts | AW11: Final | AX11: Districts | AY11: Districts | BG11: LEAID | BK11: =SUMIF(BK14:BK309,">0") -> 3122922.55 | BN11: And Supplemental | BO11: Supplemental
F12: (2009) | G12: (2009) | W12: 1 = Yes | X12: =+S13-X13 -> 14782221.83 | AA12: (Net to districts) | AB12: =COUNTIF(AB14:AB309,">0") -> 99 | AD12: =IF(AD13=$X$2,"Okay","ERROR") -> Okay | AF12: =COUNTIF(AF14:AF309,">0") -> 13 | AH12: =IF(AH13=$X$2,"Okay","ERROR") -> Okay | AJ12: =COUNTIF(AJ14:AJ309,">0") -> 1 | AL12: =IF(AL13=$X$2,"Okay","ERROR") -> Okay | AN12: =COUNTIF(AN14:AN309,">0") -> 0 | AP12: =IF(AP13=$X$2,"Okay","ERROR") -> Okay | AV12: =AV13-AV309 -> 190453875 | AX12: =AX13-AX309 -> 191686768 | AY12: =AY13-AY309 -> 177782091 | BH12: Explanaton | BI12: Concentration note | BJ12: Max to contribute | BK12: Amount contributed | BL12: Test | BN12: Educational Services | BO12: Educational Services
E13: TOTAL | F13: =SUM(F14:F309) -> 168671 | G13: =SUM(G14:G309) -> 1118975 | H13: =+F13/G13 -> 0.1507370585 | J13: =SUM(J14:J309) -> 93739242.67 | K13: =SUM(K14:K309) -> 14825294.44 | L13: =SUM(L14:L309) -> 36378687.8 | M13: =SUM(M14:M309) -> 45794536.55 | N13: =SUM(N14:N309) -> 190737761.5 | O13: 103562854.6 | P13: 16409721.43 | Q13: 40332747.24 | R13: 50869264.57 | S13: 211174587.8 | T13: 316.307435 | U13: 6664195 | W13: =SUM(W14:W309) -> 73 | X13: =SUM(X14:X309) -> 196392366 | AA13: =SUM(AA14:AA309) -> 181309387 | AB13: =SUM(AB14:AB309) -> 3122922.55 | AC13: =SUM(AC14:AC309) -> 129270063.7 | AD13: =ROUND(SUM(AD14:AD309),0) -> 196392366 | AF13: =SUM(AF14:AF309) -> 93081.06609 | AG13: 117561024.2 | AH13: =ROUND(SUM(AH14:AH309),0) -> 196392366 | AI13: 0 | AJ13: 81.79822477 | AK13: 117342678 | AL13: =ROUND(SUM(AL14:AL309),0) -> 196392366 | AN13: =SUM(AN14:AN309) -> 0 | AO13: =SUM(AO14:AO309) -> 117342596.2 | AP13: =ROUND(SUM(AP14:AP309),0) -> 196392366 | AR13: =SUM(AR14:AR309) -> 1894501 | AS13: =SUM(AS14:AS309) -> 194497865 | AT13: =SUM(AT14:AT309) -> 700006 | AV13: =SUM(AV14:AV309) -> 193797848 | AW13: =SUM(AW14:AW309) -> -1240778 | AX13: =SUM(AX14:AX309) -> 195038626 | AY13: =SUM(AY14:AY309) -> 181309387 | AZ13: =+AV13-AY13 -> 12488461 | BJ13: =SUM(BJ14:BJ309) -> 18825829.7 | BK13: =SUM(BK14:BK309) -> 3.492459655e-10 | BL13: =SUM(BL14:BL309) -> 60
A14: =VLOOKUP(D14,CCDDD!$A$3:$B$312,2,FALSE) -> 14005 | B14: 53 | C14: WA | D14: 5300030 | E14: ABERDEEN | F14: =VLOOKUP(D14,'11-12 Pop F'!D9:K305,8,FALSE) -> 827 | G14: =VLOOKUP(D14,'11-12 Pop F'!$D$9:$L$305,9,FALSE) -> 3346 | H14: =VLOOKUP(D14,'11-12 Pop F'!$D$9:$M$305,10,FALSE) -> 0.247160789 | J14: =VLOOKUP($D14,'USDOE Alloc 1112F'!$D$9:$Q$305,6,FALSE) -> 428730.1575 | K14: =VLOOKUP($D14,'USDOE Alloc 1112F'!$D$9:$Q$305,7,FALSE) -> 109263.4153 | L14: =VLOOKUP($D14,'USDOE Alloc 1112F'!$D$9:$Q$305,8,FALSE) -> 153355.0606 | M14: =VLOOKUP($D14,'USDOE Alloc 1112F'!$D$9:$Q$305,9,FALSE) -> 194749.3325 | N14: =SUM(J14:M14) -> 886097.9659 | O14: =VLOOKUP($D14,'USDOE Alloc 1112F'!$D$9:$Q$305,11,FALSE) -> 507697.7714 | P14: =VLOOKUP($D14,'USDOE Alloc 1112F'!$D$9:$Q$305,12,FALSE) -> 124128.4973 | Q14: =VLOOKUP($D14,'USDOE Alloc 1112F'!$D$9:$Q$305,13,FALSE) -> 189130.1746 | R14: =VLOOKUP($D14,'USDOE Alloc 1112F'!$D$9:$Q$305,14,FALSE) -> 238501.1579 | S14: =VLOOKUP($D14,'USDOE Alloc 1112F'!$D$9:$R$305,15,FALSE) -> 1059457.601 | T14: =IF(N14>0,S14/N14,0) -> 1.19564387 | U14: =VLOOKUP(D14,'USDOE Alloc 1112F'!$D$9:$T$305,17,FALSE) -> 21451 | W14: =IF(S14<N14,1,0) -> 0 | X14: =$X$2/$S$13*S14 -> 985295.5657 | AA14: =VLOOKUP(D14,'2010-11 Final w Rev Boundaries'!$D$14:$AV$309,45,FALSE) -> 877393 | AB14: =IF(X14<AA14,MIN(+AA14,S14)-X14,0) -> 0 | AC14: =IF(AB14=0,$X14,0) -> 985295.5657 | AD14: =AC14-(AC14/AC$13*AB$13)+IF(AB14>0,X14+AB14) -> 961492.6708 | AF14: =IF(AB14=0,IF(AD14<$AA14,MIN($S14,$AA14)-AD14,0),0) -> 0 | AG14: =IF(AF14+AB14=0,$AD14,0) -> 961492.6708 | AH14: =IF($AB14>0,+AD14,IF(AF14>0,AF14+AD14,AG14-(AG14/AG$13*AF$13))) -> 960731.3916 | AJ14: =IF(AF14=0,IF(AH14<$AA14,+MIN($S14,$AA14)-AH14,0),0) -> 0 | AK14: =IF($AJ14+$AF14+$AB14=0,AH14,0) -> 960731.3916 | AL14: =IF($AF14+$AB14+AJ14>0,+MIN($S14,$AA14),AK14-(AK14/AK$13*AJ$13)) -> 960730.7219 | AN14: =IF(AJ14=0,IF(AL14<$AA14,+MIN($S14,$AA14)-AL14,0),0) -> 0 | AO14: =IF($AN14+$AJ14+$AF14+$AB14=0,AL14,0) -> 960730.7219 | AP14: =IF($AF14+$AB14+AJ14+AN14>0,+MIN($S14,$AA14),AO14-(AO14/AO$13*AN$13)) -> 960730.7219 | AR14: =+AP14/$AP$13*$AR$2 -> 9267.698895 | AS14: =+AP14-AR14 -> 951463.023 | AT14: =ROUND(+AS14/$AS$13*$AT$2,0) -> 3424 | AV14: =ROUND(+AS14-AT14,0) -> 948039 | AW14: =+AV14-AX14 -> 1459 | AX14: =VLOOKUP(D14,'2011-12 Prelim'!$D$14:$AV$309,45,FALSE) -> 946580 | AY14: =AA14 -> 877393 | AZ14: =+AV14-AY14 -> 70646 | BA14: =IF(AY14>0,AZ14/AY14,IF(AV14>0,1,0)) -> 0.08051808027 | BB14: =IF(AX14>0,AW14/AX14,0) -> 0.001541338292 | BC14: =RANK(AV14,$AV$14:$AV$309,0) -> 51 | BE14: =E14 -> ABERDEEN | BG14: 5300030 | BI14: =VLOOKUP(BG14,'Ck Conc'!$A$8:$K$306,9,FALSE) ->  | BJ14: =IF(X14<AA14,0,IF(X14>=AA14,X14-AA14,MAX(X14-AA14,0))) -> 107902.5657 | BK14: =(AP14-X14)*-1 -> 24564.84382 | BL14: =IF(S14=AP14,1,0) -> 0 | BN14: =ROUND(AV14*0.2,2) -> 189607.8 | BO14: =AV14/VLOOKUP(D14,'11-12 Pop P'!$D$9:$K$305,8,FALSE) -> 1153.332117
A15: =VLOOKUP(D15,CCDDD!$A$3:$B$312,2,FALSE) -> 21226 | B15: 53 | C15: WA | D15: 5300060 | E15: ADNA | F15: =VLOOKUP(D15,'11-12 Pop F'!D10:K306,8,FALSE) -> 64 | G15: =VLOOKUP(D15,'11-12 Pop F'!$D$9:$L$305,9,FALSE) -> 562 | H15: =VLOOKUP(D15,'11-12 Pop F'!$D$9:$M$305,10,FALSE) -> 0.1138790036 | J15: =VLOOKUP($D15,'USDOE Alloc 1112F'!$D$9:$Q$305,6,FALSE) -> 30056.35201 | K15: =VLOOKUP($D15,'USDOE Alloc 1112F'!$D$9:$Q$305,7,FALSE) -> 216.9257249 | L15: =VLOOKUP($D15,'USDOE Alloc 1112F'!$D$9:$Q$305,8,FALSE) -> 8528.181656 | M15: =VLOOKUP($D15,'USDOE Alloc 1112F'!$D$9:$Q$305,9,FALSE) -> 10681.72968 | N15: =SUM(J15:M15) -> 49483.18907 | O15: =VLOOKUP($D15,'USDOE Alloc 1112F'!$D$9:$Q$305,11,FALSE) -> 39289.79125 | P15: =VLOOKUP($D15,'USDOE Alloc 1112F'!$D$9:$Q$305,12,FALSE) -> 0 | Q15: =VLOOKUP($D15,'USDOE Alloc 1112F'!$D$9:$Q$305,13,FALSE) -> 10791.35317 | R15: =VLOOKUP($D15,'USDOE Alloc 1112F'!$D$9:$Q$305,14,FALSE) -> 13608.35325 | S15: =VLOOKUP($D15,'USDOE Alloc 1112F'!$D$9:$R$305,15,FALSE) -> 63689.49768 | T15: 1.287093635 | U15: =VLOOKUP(D15,'USDOE Alloc 1112F'!$D$9:$T$305,17,FALSE) -> 3085 | W15: 0 | X15: =$X$2/$S$13*S15 -> 59231.23263 | AA15: =VLOOKUP(D15,'2010-11 Final w Rev Boundaries'!$D$14:$AV$309,45,FALSE) -> 48997 | AB15: =IF(X15<AA15,MIN(+AA15,S15)-X15,0) -> 0 | AC15: =IF(AB15=0,X15,0) -> 59231.23263 | AD15: 57800.31702 | AF15: =IF(AB15=0,IF(AD15<$AA15,MIN($S15,$AA15)-AD15,0),0) -> 0 | AG15: 57800.31702 | AH15: =IF($AB15>0,+AD15,IF(AF15>0,AF15+AD15,AG15-(AG15/AG$13*AF$13))) -> 57754.55258 | AJ15: =IF(AF15=0,IF(AH15<$AA15,+MIN($S15,$AA15)-AH15,0),0) -> 0 | AK15: =IF(AJ15+AF15+AB15=0,$AH15,0) -> 57754.55258 | AL15: =IF($AF15+$AB15+AJ15>0,+MIN($S15,$AA15),AK15-(AK15/AK$13*AJ$13)) -> 57754.51232 | AN15: =IF(AJ15=0,IF(AL15<$AA15,+MIN($S15,$AA15)-AL15,0),0) -> 0 | AO15: =IF($AN15+$AJ15+$AF15+$AB15=0,AL15,0) -> 57754.51232 | AP15: =IF($AF15+$AB15+AJ15+AN15>0,+MIN($S15,$AA15),AO15-(AO15/AO$13*AN$13)) -> 57754.51232 | AR15: =+AP15/$AP$13*$AR$2 -> 557.1295034 | AS15: =+AP15-AR15 -> 57197.38281 | AT15: =ROUND(+AS15/$AS$13*$AT$2,0) -> 206 | AV15: 56991 | AW15: =+AV15-AX15 -> 3205 | AX15: =VLOOKUP(D15,'2011-12 Prelim'!$D$14:$AV$309,45,FALSE) -> 53786 | AY15: =AA15 -> 48997 | AZ15: =+AV15-AY15 -> 7994 | BA15: =IF(AY15>0,AZ15/AY15,IF(AV15>0,1,0)) -> 0.1631528461 | BB15: =IF(AX15>0,AW15/AX15,0) -> 0.05958799688 | BC15: =RANK(AV15,$AV$14:$AV$309,0) -> 229 | BE15: =E15 -> ADNA | BG15: 5300060 | BH15: Poverty/Formula Count >> Prior Year | BI15: =VLOOKUP(BG15,'Ck Conc'!$A$8:$K$306,9,FALSE) -> 183 | BJ15: =IF(X15<AA15,0,IF(X15>=AA15,X15-AA15,MAX(X15-AA15,0))) -> 10234.23263 | BK15: =(AP15-X15)*-1 -> 1476.720316 | BL15: =IF(S15=AP15,1,0) -> 0 | BN15: =ROUND(AV15*0.2,2) -> 11398.2 | BO15: =AV15/VLOOKUP(D15,'11-12 Pop P'!$D$9:$K$305,8,FALSE) -> 949.85
A16: =VLOOKUP(D16,CCDDD!$A$3:$B$312,2,FALSE) -> 22017 | B16: 53 | C16: WA | D16: 5300090 | E16: ALMIRA | F16: =VLOOKUP(D16,'11-12 Pop F'!D11:K307,8,FALSE) -> 30 | G16: =VLOOKUP(D16,'11-12 Pop F'!$D$9:$L$305,9,FALSE) -> 110 | H16: =VLOOKUP(D16,'11-12 Pop F'!$D$9:$M$305,10,FALSE) -> 0.2727272727 | J16: =VLOOKUP($D16,'USDOE Alloc 1112F'!$D$9:$Q$305,6,FALSE) -> 15660.83685 | K16: =VLOOKUP($D16,'USDOE Alloc 1112F'!$D$9:$Q$305,7,FALSE) -> 3976.521438 | L16: =VLOOKUP($D16,'USDOE Alloc 1112F'!$D$9:$Q$305,8,FALSE) -> 5949.988668 | M16: =VLOOKUP($D16,'USDOE Alloc 1112F'!$D$9:$Q$305,9,FALSE) -> 7451.597495 | N16: 33038.94445 | O16: =VLOOKUP($D16,'USDOE Alloc 1112F'!$D$9:$Q$305,11,FALSE) -> 18417.08965 | P16: =VLOOKUP($D16,'USDOE Alloc 1112F'!$D$9:$Q$305,12,FALSE) -> 4502.847544 | Q16: =VLOOKUP($D16,'USDOE Alloc 1112F'!$D$9:$Q$305,13,FALSE) -> 7403.163351 | R16: =VLOOKUP($D16,'USDOE Alloc 1112F'!$D$9:$Q$305,14,FALSE) -> 9335.702434 | S16: =VLOOKUP($D16,'USDOE Alloc 1112F'!$D$9:$R$305,15,FALSE) -> 39658.80298 | T16: 1.200365315 | U16: =VLOOKUP(D16,'USDOE Alloc 1112F'!$D$9:$T$305,17,FALSE) -> 528 | W16: 0 | X16: 36882.68664 | AA16: =VLOOKUP(D16,'2010-11 Final w Rev Boundaries'!$D$14:$AV$309,45,FALSE) -> 28392 | AB16: 0 | AC16: 36882.68664 | AD16: 35991.67003 | AF16: 0 | AG16: 35991.67003 | AH16: 35963.17298 | AJ16: 0 | AK16: 35963.17298 | AL16: 35963.14791 | AN16: 0 | AO16: 35963.14791 | AP16: 35963.14791 | AR16: 346.9188801 | AS16: 35616.22903 | AT16: 128 | AV16: 35488 | AW16: -239 | AX16: =VLOOKUP(D16,'2011-12 Prelim'!$D$14:$AV$309,45,FALSE) -> 35727 | AY16: 28392 | AZ16: 7096 | BA16: 0.2499295576 | BB16: -0.006689618496 | BC16: 252 | BE16: ALMIRA | BG16: 5300090 | BH16: Poverty/Formula Count >> Prior Year | BI16: =VLOOKUP(BG16,'Ck Conc'!$A$8:$K$306,9,FALSE) -> 16 | BJ16: 8490.686644 | BK16: 919.5387341 | BL16: 0 | BN16: 7097.6 | BO16: =AV16/VLOOKUP(D16,'11-12 Pop P'!$D$9:$K$305,8,FALSE) -> 1182.933333
A17: =VLOOKUP(D17,CCDDD!$A$3:$B$312,2,FALSE) -> 29103 | B17: 53 | C17: WA | D17: 5300150 | E17: ANACORTES | F17: =VLOOKUP(D17,'11-12 Pop F'!D12:K308,8,FALSE) -> 305 | G17: =VLOOKUP(D17,'11-12 Pop F'!$D$9:$L$305,9,FALSE) -> 3293 | H17: =VLOOKUP(D17,'11-12 Pop F'!$D$9:$M$305,10,FALSE) -> 0.0926207106 | J17: =VLOOKUP($D17,'USDOE Alloc 1112F'!$D$9:$Q$305,6,FALSE) -> 190301.0909 | K17: =VLOOKUP($D17,'USDOE Alloc 1112F'!$D$9:$Q$305,7,FALSE) -> 59.77943436 | L17: =VLOOKUP($D17,'USDOE Alloc 1112F'!$D$9:$Q$305,8,FALSE) -> 55546.02745 | M17: =VLOOKUP($D17,'USDOE Alloc 1112F'!$D$9:$Q$305,9,FALSE) -> 70539.2553 | N17: 316446.153 | O17: =VLOOKUP($D17,'USDOE Alloc 1112F'!$D$9:$Q$305,11,FALSE) -> 187240.4114 | P17: =VLOOKUP($D17,'USDOE Alloc 1112F'!$D$9:$Q$305,12,FALSE) -> 0 | Q17: =VLOOKUP($D17,'USDOE Alloc 1112F'!$D$9:$Q$305,13,FALSE) -> 51427.54246 | R17: =VLOOKUP($D17,'USDOE Alloc 1112F'!$D$9:$Q$305,14,FALSE) -> 64852.30846 | S17: =VLOOKUP($D17,'USDOE Alloc 1112F'!$D$9:$R$305,15,FALSE) -> 303520.2624 | T17: 0.9591529537 | U17: =VLOOKUP(D17,'USDOE Alloc 1112F'!$D$9:$T$305,17,FALSE) -> 21624 | W17: 1 | X17: 282273.843 | AA17: =VLOOKUP(D17,'2010-11 Final w Rev Boundaries'!$D$14:$AV$309,45,FALSE) -> 313337 | AB17: 21246.41934 | AC17: 0 | AD17: 303520.2624 | AF17: 0 | AG17: 0 | AH17: 303520.2624 | AJ17: 0 | AK17: 0 | AL17: 303520.2624 | AN17: 0 | AO17: 0 | AP17: 303520.2624 | AR17: 2927.911366 | AS17: 300592.351 | AT17: 1082 | AV17: 299510 | AW17: 3192 | AX17: =VLOOKUP(D17,'2011-12 Prelim'!$D$14:$AV$309,45,FALSE) -> 296318 | AY17: 313337 | AZ17: -13827 | BA17: -0.04412820701 | BB17: 0.01077221094 | BC17: 120 | BE17: ANACORTES | BG17: 5300150 | BI17: =VLOOKUP(BG17,'Ck Conc'!$A$8:$K$306,9,FALSE) -> 0 | BJ17: 0 | BK17: -21246.41934 | BL17: 1 | BN17: 59902 | BO17: =AV17/VLOOKUP(D17,'11-12 Pop P'!$D$9:$K$305,8,FALSE) -> 995.0498339
A18: =VLOOKUP(D18,CCDDD!$A$3:$B$312,2,FALSE) -> 31016 | B18: 53 | C18: WA | D18: 5300240 | E18: ARLINGTON | F18: =VLOOKUP(D18,'11-12 Pop F'!D13:K309,8,FALSE) -> 520 | G18: =VLOOKUP(D18,'11-12 Pop F'!$D$9:$L$305,9,FALSE) -> 5292 | H18: =VLOOKUP(D18,'11-12 Pop F'!$D$9:$M$305,10,FALSE) -> 0.09826152683 | J18: =VLOOKUP($D18,'USDOE Alloc 1112F'!$D$9:$Q$305,6,FALSE) -> 246531.6034 | K18: =VLOOKUP($D18,'USDOE Alloc 1112F'!$D$9:$Q$305,7,FALSE) -> 0 | L18: =VLOOKUP($D18,'USDOE Alloc 1112F'!$D$9:$Q$305,8,FALSE) -> 69817.27347 | M18: =VLOOKUP($D18,'USDOE Alloc 1112F'!$D$9:$Q$305,9,FALSE) -> 87440.97182 | N18: 403789.8487 | O18: =VLOOKUP($D18,'USDOE Alloc 1112F'!$D$9:$Q$305,11,FALSE) -> 319229.5539 | P18: =VLOOKUP($D18,'USDOE Alloc 1112F'!$D$9:$Q$305,12,FALSE) -> 0 | Q18: =VLOOKUP($D18,'USDOE Alloc 1112F'!$D$9:$Q$305,13,FALSE) -> 87679.74451 | R18: =VLOOKUP($D18,'USDOE Alloc 1112F'!$D$9:$Q$305,14,FALSE) -> 110567.8702 | S18: =VLOOKUP($D18,'USDOE Alloc 1112F'!$D$9:$R$305,15,FALSE) -> 517477.1686 | T18: 1.281550713 | U18: =VLOOKUP(D18,'USDOE Alloc 1112F'!$D$9:$T$305,17,FALSE) -> 27128 | W18: 0 | X18: 481253.7652 | AA18: =VLOOKUP(D18,'2010-11 Final w Rev Boundaries'!$D$14:$AV$309,45,FALSE) -> 399823 | AB18: 0 | AC18: 481253.7652 | AD18: 469627.5758 | AF18: 0 | AG18: 469627.5758 | AH18: 469255.7397 | AJ18: 0 | AK18: 469255.7397 | AL18: 469255.4126 | AN18: 0 | AO18: 469255.4126 | AP18: 469255.4126 | AR18: 4526.677215 | AS18: 464728.7354 | AT18: 1673 | AV18: 463056 | AW18: -17429 | AX18: =VLOOKUP(D18,'2011-12 Prelim'!$D$14:$AV$309,45,FALSE) -> 480485 | AY18: 399823 | AZ18: 63233 | BA18: 0.1581524825 | BB18: -0.03627376505 | BC18: 90 | BE18: ARLINGTON | BG18: 5300240 | BH18: Poverty/Formula Count >> Prior Year | BI18: =VLOOKUP(BG18,'Ck Conc'!$A$8:$K$306,9,FALSE) -> 0 | BJ18: 81430.76515 | BK18: 11998.35257 | BL18: 0 | BN18: 92611.2 | BO18: =AV18/VLOOKUP(D18,'11-12 Pop P'!$D$9:$K$305,8,FALSE) -> 863.9104478
A19: =VLOOKUP(D19,CCDDD!$A$3:$B$312,2,FALSE) -> 02420 | B19: 53 | C19: WA | D19: 5300280 | E19: ASOTIN-ANATONE | F19: =VLOOKUP(D19,'11-12 Pop F'!D14:K310,8,FALSE) -> 115 | G19: =VLOOKUP(D19,'11-12 Pop F'!$D$9:$L$305,9,FALSE) -> 539 | H19: =VLOOKUP(D19,'11-12 Pop F'!$D$9:$M$305,10,FALSE) -> 0.2133580705 | J19: =VLOOKUP($D19,'USDOE Alloc 1112F'!$D$9:$Q$305,6,FALSE) -> 75043.71923 | K19: =VLOOKUP($D19,'USDOE Alloc 1112F'!$D$9:$Q$305,7,FALSE) -> 19054.7262 | L19: =VLOOKUP($D19,'USDOE Alloc 1112F'!$D$9:$Q$305,8,FALSE) -> 25443.13646 | M19: =VLOOKUP($D19,'USDOE Alloc 1112F'!$D$9:$Q$305,9,FALSE) -> 31864.26437 | N19: 151405.8463 | O19: =VLOOKUP($D19,'USDOE Alloc 1112F'!$D$9:$Q$305,11,FALSE) -> 70598.84366 | P19: =VLOOKUP($D19,'USDOE Alloc 1112F'!$D$9:$Q$305,12,FALSE) -> 17260.91559 | Q19: =VLOOKUP($D19,'USDOE Alloc 1112F'!$D$9:$Q$305,13,FALSE) -> 23314.01877 | R19: =VLOOKUP($D19,'USDOE Alloc 1112F'!$D$9:$Q$305,14,FALSE) -> 29399.96478 | S19: =VLOOKUP($D19,'USDOE Alloc 1112F'!$D$9:$R$305,15,FALSE) -> 140573.7428 | T19: 0.9284565047 | U19: =VLOOKUP(D19,'USDOE Alloc 1112F'!$D$9:$T$305,17,FALSE) -> 2934 | W19: 1 | X19: 130733.5804 | AA19: =VLOOKUP(D19,'2010-11 Final w Rev Boundaries'!$D$14:$AV$309,45,FALSE) -> 134361 | AB19: 3627.419645 | AC19: 0 | AD19: 134361 | AF19: 0 | AG19: 0 | AH19: 134361 | AJ19: 0 | AK19: 0 | AL19: 134361 | AN19: 0 | AO19: 0 | AP19: 134361 | AR19: 1296.114783 | AS19: 133064.8852 | AT19: 479 | AV19: 132586 | AW19: -347 | AX19: =VLOOKUP(D19,'2011-12 Prelim'!$D$14:$AV$309,45,FALSE) -> 132933 | AY19: 134361 | AZ19: -1775 | BA19: -0.01321067869 | BB19: -0.002610337538 | BC19: 175 | BE19: ASOTIN-ANATONE | BG19: 5300280 | BI19: =VLOOKUP(BG19,'Ck Conc'!$A$8:$K$306,9,FALSE) -> 91 | BJ19: 0 | BK19: -3627.419645 | BL19: 0 | BN19: 26517.2 | BO19: =AV19/VLOOKUP(D19,'11-12 Pop P'!$D$9:$K$305,8,FALSE) -> 1183.803571
A20: =VLOOKUP(D20,CCDDD!$A$3:$B$312,2,FALSE) -> 17408 | B20: 53 | C20: WA | D20: 5300300 | E20: AUBURN | F20: =VLOOKUP(D20,'11-12 Pop F'!D15:K311,8,FALSE) -> 2015 | G20: =VLOOKUP(D20,'11-12 Pop F'!$D$9:$L$305,9,FALSE) -> 14207 | H20: =VLOOKUP(D20,'11-12 Pop F'!$D$9:$M$305,10,FALSE) -> 0.1418314915 | J20: =VLOOKUP($D20,'USDOE Alloc 1112F'!$D$9:$Q$305,6,FALSE) -> 1026146.835 | K20: =VLOOKUP($D20,'USDOE Alloc 1112F'!$D$9:$Q$305,7,FALSE) -> 20.6410302 | L20: =VLOOKUP($D20,'USDOE Alloc 1112F'!$D$9:$Q$305,8,FALSE) -> 394224.6896 | M20: =VLOOKUP($D20,'USDOE Alloc 1112F'!$D$9:$Q$305,9,FALSE) -> 500635.1612 | N20: 1921027.327 | O20: =VLOOKUP($D20,'USDOE Alloc 1112F'!$D$9:$Q$305,11,FALSE) -> 1237014.522 | P20: =VLOOKUP($D20,'USDOE Alloc 1112F'!$D$9:$Q$305,12,FALSE) -> 0 | Q20: =VLOOKUP($D20,'USDOE Alloc 1112F'!$D$9:$Q$305,13,FALSE) -> 451382.0694 | R20: =VLOOKUP($D20,'USDOE Alloc 1112F'!$D$9:$Q$305,14,FALSE) -> 569211.9008 | S20: =VLOOKUP($D20,'USDOE Alloc 1112F'!$D$9:$R$305,15,FALSE) -> 2257608.492 | T20: 1.175208942 | U20: =VLOOKUP(D20,'USDOE Alloc 1112F'!$D$9:$T$305,17,FALSE) -> 75557 | W20: 0 | X20: 2099575.89 | AA20: =VLOOKUP(D20,'2010-11 Final w Rev Boundaries'!$D$14:$AV$309,45,FALSE) -> 1902155 | AB20: 0 | AC20: 2099575.89 | AD20: 2048854.07 | AF20: 0 | AG20: 2048854.07 | AH20: 2047231.853 | AJ20: 0 | AK20: 2047231.853 | AL20: 2047230.426 | AN20: 0 | AO20: 2047230.426 | AP20: 2047230.426 | AR20: 19748.62958 | AS20: 2027481.796 | AT20: 7297 | AV20: 2020185 | AW20: 51592 | AX20: =VLOOKUP(D20,'2011-12 Prelim'!$D$14:$AV$309,45,FALSE) -> 1968593 | AY20: 1902155 | AZ20: 118030 | BA20: 0.0620506741 | BB20: 0.02620755027 | BC20: 21 | BE20: AUBURN | BG20: 5300300 | BH20: Poverty/Formula Count >> Prior Year, Increase in Share of State Poverty Total | BI20: =VLOOKUP(BG20,'Ck Conc'!$A$8:$K$306,9,FALSE) -> 3784 | BJ20: 197420.89 | BK20: 52345.46428 | BL20: 0 | BN20: 404037 | BO20: =AV20/VLOOKUP(D20,'11-12 Pop P'!$D$9:$K$305,8,FALSE) -> 1033.871546
A21: =VLOOKUP(D21,CCDDD!$A$3:$B$312,2,FALSE) -> 18303 | B21: 53 | C21: WA | D21: 5300330 | E21: BAINBRIDGE ISLAND | F21: =VLOOKUP(D21,'11-12 Pop F'!D16:K312,8,FALSE) -> 187 | G21: =VLOOKUP(D21,'11-12 Pop F'!$D$9:$L$305,9,FALSE) -> 3757 | H21: =VLOOKUP(D21,'11-12 Pop F'!$D$9:$M$305,10,FALSE) -> 0.04977375566 | J21: =VLOOKUP($D21,'USDOE Alloc 1112F'!$D$9:$Q$305,6,FALSE) -> 99268.89034 | K21: =VLOOKUP($D21,'USDOE Alloc 1112F'!$D$9:$Q$305,7,FALSE) -> 0 | L21: =VLOOKUP($D21,'USDOE Alloc 1112F'!$D$9:$Q$305,8,FALSE) -> 0 | M21: =VLOOKUP($D21,'USDOE Alloc 1112F'!$D$9:$Q$305,9,FALSE) -> 0 | N21: 99268.89034 | O21: =VLOOKUP($D21,'USDOE Alloc 1112F'!$D$9:$Q$305,11,FALSE) -> 114799.8588 | P21: =VLOOKUP($D21,'USDOE Alloc 1112F'!$D$9:$Q$305,12,FALSE) -> 0 | Q21: =VLOOKUP($D21,'USDOE Alloc 1112F'!$D$9:$Q$305,13,FALSE) -> 0 | R21: =VLOOKUP($D21,'USDOE Alloc 1112F'!$D$9:$Q$305,14,FALSE) -> 0 | S21: =VLOOKUP($D21,'USDOE Alloc 1112F'!$D$9:$R$305,15,FALSE) -> 114799.8588 | T21: 1.156453532 | U21: =VLOOKUP(D21,'USDOE Alloc 1112F'!$D$9:$T$305,17,FALSE) -> 21087 | W21: 0 | X21: 106763.8683 | AA21: =VLOOKUP(D21,'2010-11 Final w Rev Boundaries'!$D$14:$AV$309,45,FALSE) -> 95201 | AB21: 0 | AC21: 106763.8683 | AD21: 104184.6533 | AF21: 0 | AG21: 104184.6533 | AH21: 104102.1632 | AJ21: 0 | AK21: 104102.1632 | AL21: 104102.0906 | AN21: 0 | AO21: 104102.0906 | AP21: 104102.0906 | AR21: 1004.2219 | AS21: 103097.8687 | AT21: 371 | AV21: 102727 | AW21: -66697 | AX21: =VLOOKUP(D21,'2011-12 Prelim'!$D$14:$AV$309,45,FALSE) -> 169424 | AY21: 95201 | AZ21: 7526 | BA21: 0.07905379145 | BB21: -0.3936691378 | BC21: 194 | BE21: BAINBRIDGE ISLAND | BG21: 5300330 | BI21: =VLOOKUP(BG21,'Ck Conc'!$A$8:$K$306,9,FALSE) -> 0 | BJ21: 11562.86833 | BK21: 2661.777687 | BL21: 0 | BN21: 20545.4 | BO21: =AV21/VLOOKUP(D21,'11-12 Pop P'!$D$9:$K$305,8,FALSE) -> 543.5291005
A22: =VLOOKUP(D22,CCDDD!$A$3:$B$312,2,FALSE) -> 06119 | B22: 53 | C22: WA | D22: 5300380 | E22: BATTLE GROUND | F22: =VLOOKUP(D22,'11-12 Pop F'!D17:K313,8,FALSE) -> 1697 | G22: =VLOOKUP(D22,'11-12 Pop F'!$D$9:$L$305,9,FALSE) -> 12987 | H22: =VLOOKUP(D22,'11-12 Pop F'!$D$9:$M$305,10,FALSE) -> 0.1306691307 | J22: =VLOOKUP($D22,'USDOE Alloc 1112F'!$D$9:$Q$305,6,FALSE) -> 799639.7656 | K22: =VLOOKUP($D22,'USDOE Alloc 1112F'!$D$9:$Q$305,7,FALSE) -> 768.8391169 | L22: =VLOOKUP($D22,'USDOE Alloc 1112F'!$D$9:$Q$305,8,FALSE) -> 276824.7799 | M22: =VLOOKUP($D22,'USDOE Alloc 1112F'!$D$9:$Q$305,9,FALSE) -> 346687.5236 | N22: 1423920.908 | O22: =VLOOKUP($D22,'USDOE Alloc 1112F'!$D$9:$Q$305,11,FALSE) -> 1041793.371 | P22: =VLOOKUP($D22,'USDOE Alloc 1112F'!$D$9:$Q$305,12,FALSE) -> 0 | Q22: =VLOOKUP($D22,'USDOE Alloc 1112F'!$D$9:$Q$305,13,FALSE) -> 370952.7653 | R22: =VLOOKUP($D22,'USDOE Alloc 1112F'!$D$9:$Q$305,14,FALSE) -> 467787.143 | S22: =VLOOKUP($D22,'USDOE Alloc 1112F'!$D$9:$R$305,15,FALSE) -> 1880533.279 | T22: 1.320672566 | U22: =VLOOKUP(D22,'USDOE Alloc 1112F'!$D$9:$T$305,17,FALSE) -> 58954 | W22: 0 | X22: 1748895.944 | AA22: =VLOOKUP(D22,'2010-11 Final w Rev Boundaries'!$D$14:$AV$309,45,FALSE) -> 1223632 | AB22: 0 | AC22: 1748895.944 | AD22: 1706645.894 | AF22: 0 | AG22: 1706645.894 | AH22: 1705294.627 | AJ22: 0 | AK22: 1705294.627 | AL22: 1705293.438 | AN22: 0 | AO22: 1705293.438 | AP22: 1705293.438 | AR22: 16450.13087 | AS22: 1688843.307 | AT22: 6078 | AV22: 1682765 | AW22: 4727 | AX22: =VLOOKUP(D22,'2011-12 Prelim'!$D$14:$AV$309,45,FALSE) -> 1678038 | AY22: 1223632 | AZ22: 459133 | BA22: 0.3752214718 | BB22: 0.002816980307 | BC22: 28 | BE22: BATTLE GROUND | BG22: 5300380 | BH22: Poverty/Formula Count >> Prior Year, Increase in Share of State Poverty Total | BI22: =VLOOKUP(BG22,'Ck Conc'!$A$8:$K$306,9,FALSE) -> 0 | BJ22: 525263.9439 | BK22: 43602.50591 | BL22: 0 | BN22: 336553 | BO22: =AV22/VLOOKUP(D22,'11-12 Pop P'!$D$9:$K$305,8,FALSE) -> 1000.454816
A23: =VLOOKUP(D23,CCDDD!$A$3:$B$312,2,FALSE) -> 17405 | B23: 53 | C23: WA | D23: 5300390 | E23: BELLEVUE | F23: =VLOOKUP(D23,'11-12 Pop F'!D18:K314,8,FALSE) -> 1332 | G23: =VLOOKUP(D23,'11-12 Pop F'!$D$9:$L$305,9,FALSE) -> 17571 | H23: =VLOOKUP(D23,'11-12 Pop F'!$D$9:$M$305,10,FALSE) -> 0.07580672699 | J23: =VLOOKUP($D23,'USDOE Alloc 1112F'!$D$9:$Q$305,6,FALSE) -> 765011.3299 | K23: =VLOOKUP($D23,'USDOE Alloc 1112F'!$D$9:$Q$305,7,FALSE) -> 0 | L23: =VLOOKUP($D23,'USDOE Alloc 1112F'!$D$9:$Q$305,8,FALSE) -> 279444.2425 | M23: =VLOOKUP($D23,'USDOE Alloc 1112F'!$D$9:$Q$305,9,FALSE) -> 354873.0606 | N23: 1399328.633 | O23: =VLOOKUP($D23,'USDOE Alloc 1112F'!$D$9:$Q$305,11,FALSE) -> 817718.7805 | P23: =VLOOKUP($D23,'USDOE Alloc 1112F'!$D$9:$Q$305,12,FALSE) -> 0 | Q23: =VLOOKUP($D23,'USDOE Alloc 1112F'!$D$9:$Q$305,13,FALSE) -> 278636.1112 | R23: =VLOOKUP($D23,'USDOE Alloc 1112F'!$D$9:$Q$305,14,FALSE) -> 351371.9336 | S23: =VLOOKUP($D23,'USDOE Alloc 1112F'!$D$9:$R$305,15,FALSE) -> 1447726.825 | T23: 1.034586723 | U23: =VLOOKUP(D23,'USDOE Alloc 1112F'!$D$9:$T$305,17,FALSE) -> 126032 | W23: 0 | X23: 1346385.943 | AA23: =VLOOKUP(D23,'2010-11 Final w Rev Boundaries'!$D$14:$AV$309,45,FALSE) -> 1385582 | AB23: 39196.05722 | AC23: 0 | AD23: 1385582 | AF23: 0 | AG23: 0 | AH23: 1385582 | AJ23: 0 | AK23: 0 | AL23: 1385582 | AN23: 0 | AO23: 0 | AP23: 1385582 | AR23: 13366.03117 | AS23: 1372215.969 | AT23: 4939 | AV23: 1367277 | AW23: -3575 | AX23: =VLOOKUP(D23,'2011-12 Prelim'!$D$14:$AV$309,45,FALSE) -> 1370852 | AY23: 1385582 | AZ23: -18305 | BA23: -0.01321105499 | BB23: -0.002607867224 | BC23: 35 | BE23: BELLEVUE | BG23: 5300390 | BI23: =VLOOKUP(BG23,'Ck Conc'!$A$8:$K$306,9,FALSE) -> 0 | BJ23: 0 | BK23: -39196.05722 | BL23: 0 | BN23: 273455.4 | BO23: =AV23/VLOOKUP(D23,'11-12 Pop P'!$D$9:$K$305,8,FALSE) -> 998.0124088
A24: =VLOOKUP(D24,CCDDD!$A$3:$B$312,2,FALSE) -> 37501 | B24: 53 | C24: WA | D24: 5300420 | E24: BELLINGHAM | F24: =VLOOKUP(D24,'11-12 Pop F'!D19:K315,8,FALSE) -> 1711 | G24: =VLOOKUP(D24,'11-12 Pop F'!$D$9:$L$305,9,FALSE) -> 11771 | H24: =VLOOKUP(D24,'11-12 Pop F'!$D$9:$M$305,10,FALSE) -> 0.1453572339 | J24: =VLOOKUP($D24,'USDOE Alloc 1112F'!$D$9:$Q$305,6,FALSE) -> 1054102.536 | K24: =VLOOKUP($D24,'USDOE Alloc 1112F'!$D$9:$Q$305,7,FALSE) -> 446.2106527 | L24: =VLOOKUP($D24,'USDOE Alloc 1112F'!$D$9:$Q$305,8,FALSE) -> 384008.4951 | M24: =VLOOKUP($D24,'USDOE Alloc 1112F'!$D$9:$Q$305,9,FALSE) -> 480929.2838 | N24: 1919486.526 | O24: =VLOOKUP($D24,'USDOE Alloc 1112F'!$D$9:$Q$305,11,FALSE) -> 1050388.013 | P24: =VLOOKUP($D24,'USDOE Alloc 1112F'!$D$9:$Q$305,12,FALSE) -> 0 | Q24: =VLOOKUP($D24,'USDOE Alloc 1112F'!$D$9:$Q$305,13,FALSE) -> 374493.678 | R24: =VLOOKUP($D24,'USDOE Alloc 1112F'!$D$9:$Q$305,14,FALSE) -> 472252.3839 | S24: =VLOOKUP($D24,'USDOE Alloc 1112F'!$D$9:$R$305,15,FALSE) -> 1897134.075 | T24: 0.9883549842 | U24: =VLOOKUP(D24,'USDOE Alloc 1112F'!$D$9:$T$305,17,FALSE) -> 103224 | W24: 1 | X24: 1764334.684 | AA24: =VLOOKUP(D24,'2010-11 Final w Rev Boundaries'!$D$14:$AV$309,45,FALSE) -> 1867390 | AB24: 103055.3164 | AC24: 0 | AD24: 1867390 | AF24: 0 | AG24: 0 | AH24: 1867390 | AJ24: 0 | AK24: 0 | AL24: 1867390 | AN24: 0 | AO24: 0 | AP24: 1867390 | AR24: 18013.79705 | AS24: 1849376.203 | AT24: 6656 | AV24: 1842720 | AW24: -4818 | AX24: =VLOOKUP(D24,'2011-12 Prelim'!$D$14:$AV$309,45,FALSE) -> 1847538 | AY24: 1867390 | AZ24: -24670 | BA24: -0.01321095218 | BB24: -0.002607794806 | BC24: 25 | BE24: BELLINGHAM | BG24: 5300420 | BH24: Decrease in Share of State Poverty Total | BI24: =VLOOKUP(BG24,'Ck Conc'!$A$8:$K$306,9,FALSE) -> 1963 | BJ24: 0 | BK24: -103055.3164 | BL24: 0 | BN24: 368544 | BO24: =AV24/VLOOKUP(D24,'11-12 Pop P'!$D$9:$K$305,8,FALSE) -> 1072.596042
A25: =VLOOKUP(D25,CCDDD!$A$3:$B$312,2,FALSE) -> 01122 | B25: 53 | C25: WA | D25: 5300450 | E25: BENGE | F25: =VLOOKUP(D25,'11-12 Pop F'!D20:K316,8,FALSE) -> 3 | G25: =VLOOKUP(D25,'11-12 Pop F'!$D$9:$L$305,9,FALSE) -> 13 | H25: =VLOOKUP(D25,'11-12 Pop F'!$D$9:$M$305,10,FALSE) -> 0.2307692308 | J25: =VLOOKUP($D25,'USDOE Alloc 1112F'!$D$9:$Q$305,6,FALSE) -> 0 | K25: =VLOOKUP($D25,'USDOE Alloc 1112F'!$D$9:$Q$305,7,FALSE) -> 0 | L25: =VLOOKUP($D25,'USDOE Alloc 1112F'!$D$9:$Q$305,8,FALSE) -> 0 | M25: =VLOOKUP($D25,'USDOE Alloc 1112F'!$D$9:$Q$305,9,FALSE) -> 0 | N25: 0 | O25: =VLOOKUP($D25,'USDOE Alloc 1112F'!$D$9:$Q$305,11,FALSE) -> 0 | P25: =VLOOKUP($D25,'USDOE Alloc 1112F'!$D$9:$Q$305,12,FALSE) -> 0 | Q25: =VLOOKUP($D25,'USDOE Alloc 1112F'!$D$9:$Q$305,13,FALSE) -> 0 | R25: =VLOOKUP($D25,'USDOE Alloc 1112F'!$D$9:$Q$305,14,FALSE) -> 0 | S25: =VLOOKUP($D25,'USDOE Alloc 1112F'!$D$9:$R$305,15,FALSE) -> 0 | T25: 0 | U25: =VLOOKUP(D25,'USDOE Alloc 1112F'!$D$9:$T$305,17,FALSE) -> 92 | W25: 0 | X25: 0 | AA25: =VLOOKUP(D25,'2010-11 Final w Rev Boundaries'!$D$14:$AV$309,45,FALSE) -> 0 | AB25: 0 | AC25: 0 | AD25: 0 | AF25: 0 | AG25: 0 | AH25: 0 | AJ25: 0 | AK25: 0 | AL25: 0 | AN25: 0 | AO25: 0 | AP25: 0 | AR25: 0 | AS25: 0 | AT25: 0 | AV25: 0 | AW25: 0 | AX25: =VLOOKUP(D25,'2011-12 Prelim'!$D$14:$AV$309,45,FALSE) -> 0 | AY25: 0 | AZ25: 0 | BA25: 0 | BB25: 0 | BC25: 286 | BE25: BENGE | BG25: 5300450 | BH25: Below funding minimums | BI25: =VLOOKUP(BG25,'Ck Conc'!$A$8:$K$306,9,FALSE) -> 0 | BJ25: 0 | BK25: 0 | BL25: 1 | BN25: 0 | BO25: =AV25/VLOOKUP(D25,'11-12 Pop P'!$D$9:$K$305,8,FALSE) -> 0
A26: =VLOOKUP(D26,CCDDD!$A$3:$B$312,2,FALSE) -> 27403 | B26: 53 | C26: WA | D26: 5300480 | E26: BETHEL | F26: =VLOOKUP(D26,'11-12 Pop F'!D21:K317,8,FALSE) -> 2216 | G26: =VLOOKUP(D26,'11-12 Pop F'!$D$9:$L$305,9,FALSE) -> 18197 | H26: =VLOOKUP(D26,'11-12 Pop F'!$D$9:$M$305,10,FALSE) -> 0.1217783151 | J26: =VLOOKUP($D26,'USDOE Alloc 1112F'!$D$9:$Q$305,6,FALSE) -> 1270193.627 | K26: =VLOOKUP($D26,'USDOE Alloc 1112F'!$D$9:$Q$305,7,FALSE) -> 4298.515702 | L26: =VLOOKUP($D26,'USDOE Alloc 1112F'!$D$9:$Q$305,8,FALSE) -> 474204.1585 | M26: =VLOOKUP($D26,'USDOE Alloc 1112F'!$D$9:$Q$305,9,FALSE) -> 593879.8739 | N26: 2342576.175 | O26: =VLOOKUP($D26,'USDOE Alloc 1112F'!$D$9:$Q$305,11,FALSE) -> 1360409.022 | P26: =VLOOKUP($D26,'USDOE Alloc 1112F'!$D$9:$Q$305,12,FALSE) -> 0 | Q26: =VLOOKUP($D26,'USDOE Alloc 1112F'!$D$9:$Q$305,13,FALSE) -> 502219.4597 | R26: =VLOOKUP($D26,'USDOE Alloc 1112F'!$D$9:$Q$305,14,FALSE) -> 633320.0025 | S26: =VLOOKUP($D26,'USDOE Alloc 1112F'!$D$9:$R$305,15,FALSE) -> 2495948.484 | T26: 1.065471642 | U26: =VLOOKUP(D26,'USDOE Alloc 1112F'!$D$9:$T$305,17,FALSE) -> 91991 | W26: 0 | X26: 2321232.082 | AA26: =VLOOKUP(D26,'2010-11 Final w Rev Boundaries'!$D$14:$AV$309,45,FALSE) -> 2319563 | AB26: 0 | AC26: 2321232.082 | AD26: 2265155.464 | AF26: 54407.53585 | AG26: 0 | AH26: 2319563 | AJ26: 0 | AK26: 0 | AL26: 2319563 | AN26: 0 | AO26: 0 | AP26: 2319563 | AR26: 22375.68859 | AS26: 2297187.311 | AT26: 8268 | AV26: 2288919 | AW26: -5985 | AX26: =VLOOKUP(D26,'2011-12 Prelim'!$D$14:$AV$309,45,FALSE) -> 2294904 | AY26: 2319563 | AZ26: -30644 | BA26: -0.01321110916 | BB26: -0.002607952228 | BC26: 17 | BE26: BETHEL | BG26: 5300480 | BH26: Decrease in Share of State Poverty Total | BI26: =VLOOKUP(BG26,'Ck Conc'!$A$8:$K$306,9,FALSE) -> 3028 | BJ26: 1669.082406 | BK26: 1669.082406 | BL26: 0 | BN26: 457783.8 | BO26: =AV26/VLOOKUP(D26,'11-12 Pop P'!$D$9:$K$305,8,FALSE) -> 1062.143387
A27: =VLOOKUP(D27,CCDDD!$A$3:$B$312,2,FALSE) -> 20203 | B27: 53 | C27: WA | D27: 5300510 | E27: BICKLETON | F27: =VLOOKUP(D27,'11-12 Pop F'!D22:K318,8,FALSE) -> 13 | G27: =VLOOKUP(D27,'11-12 Pop F'!$D$9:$L$305,9,FALSE) -> 74 | H27: =VLOOKUP(D27,'11-12 Pop F'!$D$9:$M$305,10,FALSE) -> 0.1756756757 | J27: =VLOOKUP($D27,'USDOE Alloc 1112F'!$D$9:$Q$305,6,FALSE) -> 9727.858183 | K27: =VLOOKUP($D27,'USDOE Alloc 1112F'!$D$9:$Q$305,7,FALSE) -> 2475.444628 | L27: =VLOOKUP($D27,'USDOE Alloc 1112F'!$D$9:$Q$305,8,FALSE) -> 3628.138391 | M27: =VLOOKUP($D27,'USDOE Alloc 1112F'!$D$9:$Q$305,9,FALSE) -> 4572.894029 | N27: 20404.33523 | O27: =VLOOKUP($D27,'USDOE Alloc 1112F'!$D$9:$Q$305,11,FALSE) -> 8755.072365 | P27: =VLOOKUP($D27,'USDOE Alloc 1112F'!$D$9:$Q$305,12,FALSE) -> 2227.900165 | Q27: =VLOOKUP($D27,'USDOE Alloc 1112F'!$D$9:$Q$305,13,FALSE) -> 3265.324552 | R27: =VLOOKUP($D27,'USDOE Alloc 1112F'!$D$9:$Q$305,14,FALSE) -> 4115.604626 | S27: =VLOOKUP($D27,'USDOE Alloc 1112F'!$D$9:$R$305,15,FALSE) -> 18363.90171 | T27: 0.9 | U27: =VLOOKUP(D27,'USDOE Alloc 1112F'!$D$9:$T$305,17,FALSE) -> 428 | W27: 1 | X27: 17078.42853 | AA27: =VLOOKUP(D27,'2010-11 Final w Rev Boundaries'!$D$14:$AV$309,45,FALSE) -> 17534 | AB27: 455.5714704 | AC27: 0 | AD27: 17534 | AF27: 0 | AG27: 0 | AH27: 17534 | AJ27: 0 | AK27: 0 | AL27: 17534 | AN27: 0 | AO27: 0 | AP27: 17534 | AR27: 169.1419133 | AS27: 17364.85809 | AT27: 62 | AV27: 17303 | AW27: -45 | AX27: =VLOOKUP(D27,'2011-12 Prelim'!$D$14:$AV$309,45,FALSE) -> 17348 | AY27: 17534 | AZ27: -231 | BA27: -0.01317440402 | BB27: -0.002593958958 | BC27: 276 | BE27: BICKLETON | BG27: 5300510 | BH27: Poverty/Formula Count >> Prior Year | BI27: =VLOOKUP(BG27,'Ck Conc'!$A$8:$K$306,9,FALSE) -> 17 | BJ27: 0 | BK27: -455.5714704 | BL27: 0 | BN27: 3460.6 | BO27: =AV27/VLOOKUP(D27,'11-12 Pop P'!$D$9:$K$305,8,FALSE) -> 1331
A28: =VLOOKUP(D28,CCDDD!$A$3:$B$312,2,FALSE) -> 37503 | B28: 53 | C28: WA | D28: 5300570 | E28: BLAINE | F28: =VLOOKUP(D28,'11-12 Pop F'!D23:K319,8,FALSE) -> 281 | G28: =VLOOKUP(D28,'11-12 Pop F'!$D$9:$L$305,9,FALSE) -> 2058 | H28: =VLOOKUP(D28,'11-12 Pop F'!$D$9:$M$305,10,FALSE) -> 0.1365403304 | J28: =VLOOKUP($D28,'USDOE Alloc 1112F'!$D$9:$Q$305,6,FALSE) -> 176021.1762 | K28: =VLOOKUP($D28,'USDOE Alloc 1112F'!$D$9:$Q$305,7,FALSE) -> 594.8303709 | L28: =VLOOKUP($D28,'USDOE Alloc 1112F'!$D$9:$Q$305,8,FALSE) -> 49903.69467 | M28: =VLOOKUP($D28,'USDOE Alloc 1112F'!$D$9:$Q$305,9,FALSE) -> 62510.966 | N28: 289030.6672 | O28: =VLOOKUP($D28,'USDOE Alloc 1112F'!$D$9:$Q$305,11,FALSE) -> 172506.7397 | P28: =VLOOKUP($D28,'USDOE Alloc 1112F'!$D$9:$Q$305,12,FALSE) -> 0 | Q28: =VLOOKUP($D28,'USDOE Alloc 1112F'!$D$9:$Q$305,13,FALSE) -> 47380.78502 | R28: =VLOOKUP($D28,'USDOE Alloc 1112F'!$D$9:$Q$305,14,FALSE) -> 59749.17599 | S28: =VLOOKUP($D28,'USDOE Alloc 1112F'!$D$9:$R$305,15,FALSE) -> 279636.7007 | T28: 0.9674983745 | U28: =VLOOKUP(D28,'USDOE Alloc 1112F'!$D$9:$T$305,17,FALSE) -> 13705 | W28: 1 | X28: 260062.1308 | AA28: =VLOOKUP(D28,'2010-11 Final w Rev Boundaries'!$D$14:$AV$309,45,FALSE) -> 285751 | AB28: 19574.56995 | AC28: 0 | AD28: 279636.7007 | AF28: 0 | AG28: 0 | AH28: 279636.7007 | AJ28: 0 | AK28: 0 | AL28: 279636.7007 | AN28: 0 | AO28: 0 | AP28: 279636.7007 | AR28: 2697.51834 | AS28: 276939.1824 | AT28: 997 | AV28: 275942 | AW28: 4235 | AX28: =VLOOKUP(D28,'2011-12 Prelim'!$D$14:$AV$309,45,FALSE) -> 271707 | AY28: 285751 | AZ28: -9809 | BA28: -0.03432708897 | BB28: 0.01558664296 | BC28: 132 | BE28: BLAINE | BG28: 5300570 | BI28: =VLOOKUP(BG28,'Ck Conc'!$A$8:$K$306,9,FALSE) -> 431 | BJ28: 0 | BK28: -19574.56995 | BL28: 1 | BN28: 55188.4 | BO28: =AV28/VLOOKUP(D28,'11-12 Pop P'!$D$9:$K$305,8,FALSE) -> 999.7898551
A29: =VLOOKUP(D29,CCDDD!$A$3:$B$312,2,FALSE) -> 21234 | B29: 53 | C29: WA | D29: 5300630 | E29: BOISTFORT | F29: =VLOOKUP(D29,'11-12 Pop F'!D24:K320,8,FALSE) -> 48 | G29: =VLOOKUP(D29,'11-12 Pop F'!$D$9:$L$305,9,FALSE) -> 197 | H29: =VLOOKUP(D29,'11-12 Pop F'!$D$9:$M$305,10,FALSE) -> 0.2436548223 | J29: =VLOOKUP($D29,'USDOE Alloc 1112F'!$D$9:$Q$305,6,FALSE) -> 28116.86768 | K29: =VLOOKUP($D29,'USDOE Alloc 1112F'!$D$9:$Q$305,7,FALSE) -> 7056.96739 | L29: =VLOOKUP($D29,'USDOE Alloc 1112F'!$D$9:$Q$305,8,FALSE) -> 10017.66656 | M29: =VLOOKUP($D29,'USDOE Alloc 1112F'!$D$9:$Q$305,9,FALSE) -> 12549.0462 | N29: 57740.54783 | O29: =VLOOKUP($D29,'USDOE Alloc 1112F'!$D$9:$Q$305,11,FALSE) -> 29467.34344 | P29: =VLOOKUP($D29,'USDOE Alloc 1112F'!$D$9:$Q$305,12,FALSE) -> 7204.556071 | Q29: =VLOOKUP($D29,'USDOE Alloc 1112F'!$D$9:$Q$305,13,FALSE) -> 10844.13385 | R29: =VLOOKUP($D29,'USDOE Alloc 1112F'!$D$9:$Q$305,14,FALSE) -> 13674.91192 | S29: =VLOOKUP($D29,'USDOE Alloc 1112F'!$D$9:$R$305,15,FALSE) -> 61190.94528 | T29: 1.059756923 | U29: =VLOOKUP(D29,'USDOE Alloc 1112F'!$D$9:$T$305,17,FALSE) -> 980 | W29: 0 | X29: 56907.57891 | AA29: =VLOOKUP(D29,'2010-11 Final w Rev Boundaries'!$D$14:$AV$309,45,FALSE) -> 50420 | AB29: 0 | AC29: 56907.57891 | AD29: 55532.79842 | AF29: 0 | AG29: 55532.79842 | AH29: 55488.82933 | AJ29: 0 | AK29: 55488.82933 | AL29: 55488.79065 | AN29: 0 | AO29: 55488.79065 | AP29: 55488.79065 | AR29: 535.2731957 | AS29: 54953.51745 | AT29: 198 | AV29: 54756 | AW29: -367 | AX29: =VLOOKUP(D29,'2011-12 Prelim'!$D$14:$AV$309,45,FALSE) -> 55123 | AY29: 50420 | AZ29: 4336 | BA29: 0.08599761999 | BB29: -0.006657837926 | BC29: 231 | BE29: BOISTFORT | BG29: 5300630 | BI29: =VLOOKUP(BG29,'Ck Conc'!$A$8:$K$306,9,FALSE) -> 31 | BJ29: 6487.578913 | BK29: 1418.788267 | BL29: 0 | BN29: 10951.2 | BO29: =AV29/VLOOKUP(D29,'11-12 Pop P'!$D$9:$K$305,8,FALSE) -> 1140.75
A30: =VLOOKUP(D30,CCDDD!$A$3:$B$312,2,FALSE) -> 18100 | B30: 53 | C30: WA | D30: 5300660 | E30: BREMERTON | F30: =VLOOKUP(D30,'11-12 Pop F'!D25:K321,8,FALSE) -> 1299 | G30: =VLOOKUP(D30,'11-12 Pop F'!$D$9:$L$305,9,FALSE) -> 5865 | H30: =VLOOKUP(D30,'11-12 Pop F'!$D$9:$M$305,10,FALSE) -> 0.221483376 | J30: =VLOOKUP($D30,'USDOE Alloc 1112F'!$D$9:$Q$305,6,FALSE) -> 801721.3215 | K30: =VLOOKUP($D30,'USDOE Alloc 1112F'!$D$9:$Q$305,7,FALSE) -> 202574.0855 | L30: =VLOOKUP($D30,'USDOE Alloc 1112F'!$D$9:$Q$305,8,FALSE) -> 279440.8253 | M30: =VLOOKUP($D30,'USDOE Alloc 1112F'!$D$9:$Q$305,9,FALSE) -> 349963.7848 | N30: 1633700.017 | O30: =VLOOKUP($D30,'USDOE Alloc 1112F'!$D$9:$Q$305,11,FALSE) -> 797459.9819 | P30: =VLOOKUP($D30,'USDOE Alloc 1112F'!$D$9:$Q$305,12,FALSE) -> 194973.2987 | Q30: =VLOOKUP($D30,'USDOE Alloc 1112F'!$D$9:$Q$305,13,FALSE) -> 270289.674 | R30: =VLOOKUP($D30,'USDOE Alloc 1112F'!$D$9:$Q$305,14,FALSE) -> 340846.7228 | S30: =VLOOKUP($D30,'USDOE Alloc 1112F'!$D$9:$R$305,15,FALSE) -> 1603569.677 | T30: 0.9815569937 | U30: =VLOOKUP(D30,'USDOE Alloc 1112F'!$D$9:$T$305,17,FALSE) -> 45191 | W30: 1 | X30: 1491319.795 | AA30: =VLOOKUP(D30,'2010-11 Final w Rev Boundaries'!$D$14:$AV$309,45,FALSE) -> 1617650 | AB30: 112249.8826 | AC30: 0 | AD30: 1603569.677 | AF30: 0 | AG30: 0 | AH30: 1603569.677 | AJ30: 0 | AK30: 0 | AL30: 1603569.677 | AN30: 0 | AO30: 0 | AP30: 1603569.677 | AR30: 15468.85156 | AS30: 1588100.826 | AT30: 5716 | AV30: 1582385 | AW30: 21101 | AX30: =VLOOKUP(D30,'2011-12 Prelim'!$D$14:$AV$309,45,FALSE) -> 1561284 | AY30: 1617650 | AZ30: -35265 | BA30: -0.02180014218 | BB30: 0.01351515804 | BC30: 31 | BE30: BREMERTON | BG30: 5300660 | BH30: Decrease in Share of State Poverty Total | BI30: =VLOOKUP(BG30,'Ck Conc'!$A$8:$K$306,9,FALSE) -> 1157 | BJ30: 0 | BK30: -112249.8826 | BL30: 1 | BN30: 316477 | BO30: =AV30/VLOOKUP(D30,'11-12 Pop P'!$D$9:$K$305,8,FALSE) -> 1236.238281
A31: =VLOOKUP(D31,CCDDD!$A$3:$B$312,2,FALSE) -> 24111 | B31: 53 | C31: WA | D31: 5300690 | E31: BREWSTER | F31: =VLOOKUP(D31,'11-12 Pop F'!D26:K322,8,FALSE) -> 359 | G31: =VLOOKUP(D31,'11-12 Pop F'!$D$9:$L$305,9,FALSE) -> 926 | H31: =VLOOKUP(D31,'11-12 Pop F'!$D$9:$M$305,10,FALSE) -> 0.3876889849 | J31: =VLOOKUP($D31,'USDOE Alloc 1112F'!$D$9:$Q$305,6,FALSE) -> 231935.0378 | K31: =VLOOKUP($D31,'USDOE Alloc 1112F'!$D$9:$Q$305,7,FALSE) -> 59115.20562 | L31: =VLOOKUP($D31,'USDOE Alloc 1112F'!$D$9:$Q$305,8,FALSE) -> 143127.5628 | M31: =VLOOKUP($D31,'USDOE Alloc 1112F'!$D$9:$Q$305,9,FALSE) -> 181761.1836 | N31: 615938.9899 | O31: =VLOOKUP($D31,'USDOE Alloc 1112F'!$D$9:$Q$305,11,FALSE) -> 220391.1728 | P31: =VLOOKUP($D31,'USDOE Alloc 1112F'!$D$9:$Q$305,12,FALSE) -> 56159.44534 | Q31: =VLOOKUP($D31,'USDOE Alloc 1112F'!$D$9:$Q$305,13,FALSE) -> 135971.1847 | R31: =VLOOKUP($D31,'USDOE Alloc 1112F'!$D$9:$Q$305,14,FALSE) -> 172673.1245 | S31: =VLOOKUP($D31,'USDOE Alloc 1112F'!$D$9:$R$305,15,FALSE) -> 585194.9273 | T31: 0.9500858639 | U31: =VLOOKUP(D31,'USDOE Alloc 1112F'!$D$9:$T$305,17,FALSE) -> 4733 | W31: 1 | X31: 544231.2805 | AA31: =VLOOKUP(D31,'2010-11 Final w Rev Boundaries'!$D$14:$AV$309,45,FALSE) -> 609888 | AB31: 40963.64679 | AC31: 0 | AD31: 585194.9273 | AF31: 0 | AG31: 0 | AH31: 585194.9273 | AJ31: 0 | AK31: 0 | AL31: 585194.9273 | AN31: 0 | AO31: 0 | AP31: 585194.9273 | AR31: 5645.088949 | AS31: 579549.8384 | AT31: 2086 | AV31: 577464 | AW31: -2026 | AX31: =VLOOKUP(D31,'2011-12 Prelim'!$D$14:$AV$309,45,FALSE) -> 579490 | AY31: 609888 | AZ31: -32424 | BA31: -0.05316385959 | BB31: -0.003496177673 | BC31: 75 | BE31: BREWSTER | BG31: 5300690 | BI31: =VLOOKUP(BG31,'Ck Conc'!$A$8:$K$306,9,FALSE) -> 304 | BJ31: 0 | BK31: -40963.64679 | BL31: 1 | BN31: 115492.8 | BO31: =AV31/VLOOKUP(D31,'11-12 Pop P'!$D$9:$K$305,8,FALSE) -> 1604.066667
A32: =VLOOKUP(D32,CCDDD!$A$3:$B$312,2,FALSE) -> 09075 | B32: 53 | C32: WA | D32: 5300720 | E32: BRIDGEPORT | F32: =VLOOKUP(D32,'11-12 Pop F'!D27:K323,8,FALSE) -> 266 | G32: =VLOOKUP(D32,'11-12 Pop F'!$D$9:$L$305,9,FALSE) -> 743 | H32: =VLOOKUP(D32,'11-12 Pop F'!$D$9:$M$305,10,FALSE) -> 0.3580080754 | J32: =VLOOKUP($D32,'USDOE Alloc 1112F'!$D$9:$Q$305,6,FALSE) -> 139385.1603 | K32: =VLOOKUP($D32,'USDOE Alloc 1112F'!$D$9:$Q$305,7,FALSE) -> 35526.25118 | L32: =VLOOKUP($D32,'USDOE Alloc 1112F'!$D$9:$Q$305,8,FALSE) -> 72854.58073 | M32: =VLOOKUP($D32,'USDOE Alloc 1112F'!$D$9:$Q$305,9,FALSE) -> 92519.80936 | N32: 340285.8015 | O32: =VLOOKUP($D32,'USDOE Alloc 1112F'!$D$9:$Q$305,11,FALSE) -> 163298.1949 | P32: =VLOOKUP($D32,'USDOE Alloc 1112F'!$D$9:$Q$305,12,FALSE) -> 39925.24823 | Q32: =VLOOKUP($D32,'USDOE Alloc 1112F'!$D$9:$Q$305,13,FALSE) -> 82015.27471 | R32: =VLOOKUP($D32,'USDOE Alloc 1112F'!$D$9:$Q$305,14,FALSE) -> 103424.7339 | S32: =VLOOKUP($D32,'USDOE Alloc 1112F'!$D$9:$R$305,15,FALSE) -> 388663.4518 | T32: 1.142167701 | U32: =VLOOKUP(D32,'USDOE Alloc 1112F'!$D$9:$T$305,17,FALSE) -> 3255 | W32: 0 | X32: 361457.0089 | AA32: =VLOOKUP(D32,'2010-11 Final w Rev Boundaries'!$D$14:$AV$309,45,FALSE) -> 336943 | AB32: 0 | AC32: 361457.0089 | AD32: 352724.8847 | AF32: 0 | AG32: 352724.8847 | AH32: 352445.6084 | AJ32: 0 | AK32: 352445.6084 | AL32: 352445.3627 | AN32: 0 | AO32: 352445.3627 | AP32: 352445.3627 | AR32: 3399.867855 | AS32: 349045.4949 | AT32: 1256 | AV32: 347789 | AW32: -9575 | AX32: =VLOOKUP(D32,'2011-12 Prelim'!$D$14:$AV$309,45,FALSE) -> 357364 | AY32: 336943 | AZ32: 10846 | BA32: 0.03218942076 | BB32: -0.02679340952 | BC32: 111 | BE32: BRIDGEPORT | BG32: 5300720 | BH32: Poverty/Formula Count >> Prior Year | BI32: =VLOOKUP(BG32,'Ck Conc'!$A$8:$K$306,9,FALSE) -> 247 | BJ32: 24514.00888 | BK32: 9011.646131 | BL32: 0 | BN32: 69557.8 | BO32: =AV32/VLOOKUP(D32,'11-12 Pop P'!$D$9:$K$305,8,FALSE) -> 1288.107407
A33: =VLOOKUP(D33,CCDDD!$A$3:$B$312,2,FALSE) -> 16046 | B33: 53 | C33: WA | D33: 5300750 | E33: BRINNON | F33: =VLOOKUP(D33,'11-12 Pop F'!D28:K324,8,FALSE) -> 29 | G33: =VLOOKUP(D33,'11-12 Pop F'!$D$9:$L$305,9,FALSE) -> 133 | H33: =VLOOKUP(D33,'11-12 Pop F'!$D$9:$M$305,10,FALSE) -> 0.2180451128 | J33: =VLOOKUP($D33,'USDOE Alloc 1112F'!$D$9:$Q$305,6,FALSE) -> 24808.78125 | K33: =VLOOKUP($D33,'USDOE Alloc 1112F'!$D$9:$Q$305,7,FALSE) -> 7012.311507 | L33: =VLOOKUP($D33,'USDOE Alloc 1112F'!$D$9:$Q$305,8,FALSE) -> 5073.608032 | M33: =VLOOKUP($D33,'USDOE Alloc 1112F'!$D$9:$Q$305,9,FALSE) -> 6354.043177 | N33: 43248.74397 | O33: =VLOOKUP($D33,'USDOE Alloc 1112F'!$D$9:$Q$305,11,FALSE) -> 22327.90313 | P33: =VLOOKUP($D33,'USDOE Alloc 1112F'!$D$9:$Q$305,12,FALSE) -> 6311.080356 | Q33: =VLOOKUP($D33,'USDOE Alloc 1112F'!$D$9:$Q$305,13,FALSE) -> 5936.753347 | R33: =VLOOKUP($D33,'USDOE Alloc 1112F'!$D$9:$Q$305,14,FALSE) -> 7486.497331 | S33: =VLOOKUP($D33,'USDOE Alloc 1112F'!$D$9:$R$305,15,FALSE) -> 42062.23416 | T33: 0.9725654505 | U33: =VLOOKUP(D33,'USDOE Alloc 1112F'!$D$9:$T$305,17,FALSE) -> 1351 | W33: 1 | X33: 39117.87763 | AA33: =VLOOKUP(D33,'2010-11 Final w Rev Boundaries'!$D$14:$AV$309,45,FALSE) -> 42824 | AB33: 2944.356526 | AC33: 0 | AD33: 42062.23416 | AF33: 0 | AG33: 0 | AH33: 42062.23416 | AJ33: 0 | AK33: 0 | AL33: 42062.23416 | AN33: 0 | AO33: 0 | AP33: 42062.23416 | AR33: 405.753779 | AS33: 41656.48038 | AT33: 150 | AV33: 41506 | AW33: -114 | AX33: =VLOOKUP(D33,'2011-12 Prelim'!$D$14:$AV$309,45,FALSE) -> 41620 | AY33: 42824 | AZ33: -1318 | BA33: -0.03077713432 | BB33: -0.002739067756 | BC33: 248 | BE33: BRINNON | BG33: 5300750 | BI33: =VLOOKUP(BG33,'Ck Conc'!$A$8:$K$306,9,FALSE) -> 16 | BJ33: 0 | BK33: -2944.356526 | BL33: 1 | BN33: 8301.2 | BO33: =AV33/VLOOKUP(D33,'11-12 Pop P'!$D$9:$K$305,8,FALSE) -> 1431.241379
A34: =VLOOKUP(D34,CCDDD!$A$3:$B$312,2,FALSE) -> 29100 | B34: 53 | C34: WA | D34: 5300780 | E34: BURLINGTON-EDISON | F34: =VLOOKUP(D34,'11-12 Pop F'!D29:K325,8,FALSE) -> 532 | G34: =VLOOKUP(D34,'11-12 Pop F'!$D$9:$L$305,9,FALSE) -> 3609 | H34: =VLOOKUP(D34,'11-12 Pop F'!$D$9:$M$305,10,FALSE) -> 0.1474092546 | J34: =VLOOKUP($D34,'USDOE Alloc 1112F'!$D$9:$Q$305,6,FALSE) -> 283573.6834 | K34: =VLOOKUP($D34,'USDOE Alloc 1112F'!$D$9:$Q$305,7,FALSE) -> 103.1845832 | L34: =VLOOKUP($D34,'USDOE Alloc 1112F'!$D$9:$Q$305,8,FALSE) -> 82746.86216 | M34: =VLOOKUP($D34,'USDOE Alloc 1112F'!$D$9:$Q$305,9,FALSE) -> 105082.2589 | N34: 471505.989 | O34: =VLOOKUP($D34,'USDOE Alloc 1112F'!$D$9:$Q$305,11,FALSE) -> 326596.3898 | P34: =VLOOKUP($D34,'USDOE Alloc 1112F'!$D$9:$Q$305,12,FALSE) -> 0 | Q34: =VLOOKUP($D34,'USDOE Alloc 1112F'!$D$9:$Q$305,13,FALSE) -> 89703.12323 | R34: =VLOOKUP($D34,'USDOE Alloc 1112F'!$D$9:$Q$305,14,FALSE) -> 113119.4364 | S34: =VLOOKUP($D34,'USDOE Alloc 1112F'!$D$9:$R$305,15,FALSE) -> 529418.9494 | T34: 1.122825503 | U34: =VLOOKUP(D34,'USDOE Alloc 1112F'!$D$9:$T$305,17,FALSE) -> 20963 | W34: 0 | X34: 492359.6213 | AA34: =VLOOKUP(D34,'2010-11 Final w Rev Boundaries'!$D$14:$AV$309,45,FALSE) -> 466874 | AB34: 0 | AC34: 492359.6213 | AD34: 480465.1353 | AF34: 0 | AG34: 480465.1353 | AH34: 480084.7183 | AJ34: 0 | AK34: 480084.7183 | AL34: 480084.3836 | AN34: 0 | AO34: 480084.3836 | AP34: 480084.3836 | AR34: 4631.138997 | AS34: 475453.2446 | AT34: 1711 | AV34: 473742 | AW34: -108546 | AX34: =VLOOKUP(D34,'2011-12 Prelim'!$D$14:$AV$309,45,FALSE) -> 582288 | AY34: 466874 | AZ34: 6868 | BA34: 0.01471060714 | BB34: -0.1864129091 | BC34: 87 | BE34: BURLINGTON-EDISON | BG34: 5300780 | BH34: Poverty/Formula Count >> Prior Year | BI34: =VLOOKUP(BG34,'Ck Conc'!$A$8:$K$306,9,FALSE) -> 709 | BJ34: 25485.62127 | BK34: 12275.23763 | BL34: 0 | BN34: 94748.4 | BO34: =AV34/VLOOKUP(D34,'11-12 Pop P'!$D$9:$K$305,8,FALSE) -> 839.9680851
A35: =VLOOKUP(D35,CCDDD!$A$3:$B$312,2,FALSE) -> 06117 | B35: 53 | C35: WA | D35: 5300810 | E35: CAMAS | F35: =VLOOKUP(D35,'11-12 Pop F'!D30:K326,8,FALSE) -> 392 | G35: =VLOOKUP(D35,'11-12 Pop F'!$D$9:$L$305,9,FALSE) -> 4682 | H35: =VLOOKUP(D35,'11-12 Pop F'!$D$9:$M$305,10,FALSE) -> 0.08372490389 | J35: =VLOOKUP($D35,'USDOE Alloc 1112F'!$D$9:$Q$305,6,FALSE) -> 192525.1222 | K35: =VLOOKUP($D35,'USDOE Alloc 1112F'!$D$9:$Q$305,7,FALSE) -> 0 | L35: =VLOOKUP($D35,'USDOE Alloc 1112F'!$D$9:$Q$305,8,FALSE) -> 54511.33444 | M35: =VLOOKUP($D35,'USDOE Alloc 1112F'!$D$9:$Q$305,9,FALSE) -> 68268.45324 | N35: 315304.9099 | O35: =VLOOKUP($D35,'USDOE Alloc 1112F'!$D$9:$Q$305,11,FALSE) -> 240649.9714 | P35: =VLOOKUP($D35,'USDOE Alloc 1112F'!$D$9:$Q$305,12,FALSE) -> 0 | Q35: =VLOOKUP($D35,'USDOE Alloc 1112F'!$D$9:$Q$305,13,FALSE) -> 66097.03817 | R35: =VLOOKUP($D35,'USDOE Alloc 1112F'!$D$9:$Q$305,14,FALSE) -> 83351.16366 | S35: =VLOOKUP($D35,'USDOE Alloc 1112F'!$D$9:$R$305,15,FALSE) -> 390098.1733 | T35: 1.23720932 | U35: =VLOOKUP(D35,'USDOE Alloc 1112F'!$D$9:$T$305,17,FALSE) -> 22720 | W35: 0 | X35: 362791.2999 | AA35: =VLOOKUP(D35,'2010-11 Final w Rev Boundaries'!$D$14:$AV$309,45,FALSE) -> 270954 | AB35: 0 | AC35: 362791.2999 | AD35: 354026.9418 | AF35: 0 | AG35: 354026.9418 | AH35: 353746.6345 | AJ35: 0 | AK35: 353746.6345 | AL35: 353746.3879 | AN35: 0 | AO35: 353746.3879 | AP35: 353746.3879 | AR35: 3412.418208 | AS35: 350333.9697 | AT35: 1261 | AV35: 349073 | AW35: 2155 | AX35: =VLOOKUP(D35,'2011-12 Prelim'!$D$14:$AV$309,45,FALSE) -> 346918 | AY35: 270954 | AZ35: 78119 | BA35: 0.288310931 | BB35: 0.006211842568 | BC35: 110 | BE35: CAMAS | BG35: 5300810 | BH35: Poverty/Formula Count >> Prior Year | BI35: =VLOOKUP(BG35,'Ck Conc'!$A$8:$K$306,9,FALSE) -> 0 | BJ35: 91837.29988 | BK35: 9044.911936 | BL35: 0 | BN35: 69814.6 | BO35: =AV35/VLOOKUP(D35,'11-12 Pop P'!$D$9:$K$305,8,FALSE) -> 901.997416
A36: =VLOOKUP(D36,CCDDD!$A$3:$B$312,2,FALSE) -> 05401 | B36: 53 | C36: WA | D36: 5300840 | E36: CAPE FLATTERY | F36: =VLOOKUP(D36,'11-12 Pop F'!D31:K327,8,FALSE) -> 225 | G36: =VLOOKUP(D36,'11-12 Pop F'!$D$9:$L$305,9,FALSE) -> 603 | H36: =VLOOKUP(D36,'11-12 Pop F'!$D$9:$M$305,10,FALSE) -> 0.3731343284 | J36: =VLOOKUP($D36,'USDOE Alloc 1112F'!$D$9:$Q$305,6,FALSE) -> 117435.7461 | K36: =VLOOKUP($D36,'USDOE Alloc 1112F'!$D$9:$Q$305,7,FALSE) -> 29818.69784 | L36: =VLOOKUP($D36,'USDOE Alloc 1112F'!$D$9:$Q$305,8,FALSE) -> 51541.73211 | M36: =VLOOKUP($D36,'USDOE Alloc 1112F'!$D$9:$Q$305,9,FALSE) -> 64549.40728 | N36: 263345.5833 | O36: =VLOOKUP($D36,'USDOE Alloc 1112F'!$D$9:$Q$305,11,FALSE) -> 138128.1724 | P36: =VLOOKUP($D36,'USDOE Alloc 1112F'!$D$9:$Q$305,12,FALSE) -> 33771.35658 | Q36: =VLOOKUP($D36,'USDOE Alloc 1112F'!$D$9:$Q$305,13,FALSE) -> 71559.88672 | R36: =VLOOKUP($D36,'USDOE Alloc 1112F'!$D$9:$Q$305,14,FALSE) -> 90240.04697 | S36: =VLOOKUP($D36,'USDOE Alloc 1112F'!$D$9:$R$305,15,FALSE) -> 333699.4626 | T36: 1.267154203 | U36: =VLOOKUP(D36,'USDOE Alloc 1112F'!$D$9:$T$305,17,FALSE) -> 3772 | W36: 0 | X36: 310340.4992 | AA36: =VLOOKUP(D36,'2010-11 Final w Rev Boundaries'!$D$14:$AV$309,45,FALSE) -> 249938 | AB36: 0 | AC36: 310340.4992 | AD36: 302843.2542 | AF36: 0 | AG36: 302843.2542 | AH36: 302603.4725 | AJ36: 0 | AK36: 302603.4725 | AL36: 302603.2616 | AN36: 0 | AO36: 302603.2616 | AP36: 302603.2616 | AR36: 2919.065508 | AS36: 299684.1961 | AT36: 1079 | AV36: 298605 | AW36: 8803 | AX36: =VLOOKUP(D36,'2011-12 Prelim'!$D$14:$AV$309,45,FALSE) -> 289802 | AY36: 249938 | AZ36: 48667 | BA36: 0.1947162896 | BB36: 0.03037591183 | BC36: 121 | BE36: CAPE FLATTERY | BG36: 5300840 | BI36: =VLOOKUP(BG36,'Ck Conc'!$A$8:$K$306,9,FALSE) -> 129 | BJ36: 60402.49919 | BK36: 7737.237597 | BL36: 0 | BN36: 59721 | BO36: =AV36/VLOOKUP(D36,'11-12 Pop P'!$D$9:$K$305,8,FALSE) -> 1363.493151
A37: =VLOOKUP(D37,CCDDD!$A$3:$B$312,2,FALSE) -> 27019 | B37: 53 | C37: WA | D37: 5300870 | E37: CARBONADO | F37: =VLOOKUP(D37,'11-12 Pop F'!D32:K328,8,FALSE) -> 2 | G37: =VLOOKUP(D37,'11-12 Pop F'!$D$9:$L$305,9,FALSE) -> 209 | H37: =VLOOKUP(D37,'11-12 Pop F'!$D$9:$M$305,10,FALSE) -> 0.00956937799 | J37: =VLOOKUP($D37,'USDOE Alloc 1112F'!$D$9:$Q$305,6,FALSE) -> 272.1455502 | K37: =VLOOKUP($D37,'USDOE Alloc 1112F'!$D$9:$Q$305,7,FALSE) -> 0 | L37: =VLOOKUP($D37,'USDOE Alloc 1112F'!$D$9:$Q$305,8,FALSE) -> 77.03690794 | M37: =VLOOKUP($D37,'USDOE Alloc 1112F'!$D$9:$Q$305,9,FALSE) -> 96.47884429 | N37: 445.6613024 | O37: =VLOOKUP($D37,'USDOE Alloc 1112F'!$D$9:$Q$305,11,FALSE) -> 0 | P37: =VLOOKUP($D37,'USDOE Alloc 1112F'!$D$9:$Q$305,12,FALSE) -> 0 | Q37: =VLOOKUP($D37,'USDOE Alloc 1112F'!$D$9:$Q$305,13,FALSE) -> 0 | R37: =VLOOKUP($D37,'USDOE Alloc 1112F'!$D$9:$Q$305,14,FALSE) -> 0 | S37: =VLOOKUP($D37,'USDOE Alloc 1112F'!$D$9:$R$305,15,FALSE) -> 0 | T37: 0 | U37: =VLOOKUP(D37,'USDOE Alloc 1112F'!$D$9:$T$305,17,FALSE) -> 887 | W37: 1 | X37: 0 | AA37: =VLOOKUP(D37,'2010-11 Final w Rev Boundaries'!$D$14:$AV$309,45,FALSE) -> 383 | AB37: 0 | AC37: 0 | AD37: 0 | AF37: 0 | AG37: 0 | AH37: 0 | AJ37: 0 | AK37: 0 | AL37: 0 | AN37: 0 | AO37: 0 | AP37: 0 | AR37: 0 | AS37: 0 | AT37: 0 | AV37: 0 | AW37: 0 | AX37: =VLOOKUP(D37,'2011-12 Prelim'!$D$14:$AV$309,45,FALSE) -> 0 | AY37: 383 | AZ37: -383 | BA37: -1 | BB37: 0 | BC37: 286 | BE37: CARBONADO | BG37: 5300870 | BI37: =VLOOKUP(BG37,'Ck Conc'!$A$8:$K$306,9,FALSE) -> 32 | BJ37: 0 | BK37: 0 | BL37: 1 | BN37: 0 | BO37: =AV37/VLOOKUP(D37,'11-12 Pop P'!$D$9:$K$305,8,FALSE) -> 0
A38: =VLOOKUP(D38,CCDDD!$A$3:$B$312,2,FALSE) -> 04228 | B38: 53 | C38: WA | D38: 5300950 | E38: CASCADE | F38: =VLOOKUP(D38,'11-12 Pop F'!D33:K329,8,FALSE) -> 121 | G38: =VLOOKUP(D38,'11-12 Pop F'!$D$9:$L$305,9,FALSE) -> 1731 | H38: =VLOOKUP(D38,'11-12 Pop F'!$D$9:$M$305,10,FALSE) -> 0.06990179087 | J38: =VLOOKUP($D38,'USDOE Alloc 1112F'!$D$9:$Q$305,6,FALSE) -> 61316.69385 | K38: =VLOOKUP($D38,'USDOE Alloc 1112F'!$D$9:$Q$305,7,FALSE) -> 0 | L38: =VLOOKUP($D38,'USDOE Alloc 1112F'!$D$9:$Q$305,8,FALSE) -> 17357.06682 | M38: =VLOOKUP($D38,'USDOE Alloc 1112F'!$D$9:$Q$305,9,FALSE) -> 21738.50557 | N38: 100412.2662 | O38: =VLOOKUP($D38,'USDOE Alloc 1112F'!$D$9:$Q$305,11,FALSE) -> 74282.26159 | P38: =VLOOKUP($D38,'USDOE Alloc 1112F'!$D$9:$Q$305,12,FALSE) -> 0 | Q38: =VLOOKUP($D38,'USDOE Alloc 1112F'!$D$9:$Q$305,13,FALSE) -> 20402.40209 | R38: =VLOOKUP($D38,'USDOE Alloc 1112F'!$D$9:$Q$305,14,FALSE) -> 25728.29287 | S38: =VLOOKUP($D38,'USDOE Alloc 1112F'!$D$9:$R$305,15,FALSE) -> 120412.9565 | T38: 1.199185728 | U38: =VLOOKUP(D38,'USDOE Alloc 1112F'!$D$9:$T$305,17,FALSE) -> 10190 | W38: 0 | X38: 111984.0492 | AA38: =VLOOKUP(D38,'2010-11 Final w Rev Boundaries'!$D$14:$AV$309,45,FALSE) -> 99426 | AB38: 0 | AC38: 111984.0492 | AD38: 109278.7244 | AF38: 0 | AG38: 109278.7244 | AH38: 109192.201 | AJ38: 0 | AK38: 109192.201 | AL38: 109192.1249 | AN38: 0 | AO38: 109192.1249 | AP38: 109192.1249 | AR38: 1053.322967 | AS38: 108138.8019 | AT38: 389 | AV38: 107750 | AW38: 178 | AX38: =VLOOKUP(D38,'2011-12 Prelim'!$D$14:$AV$309,45,FALSE) -> 107572 | AY38: 99426 | AZ38: 8324 | BA38: 0.08372055599 | BB38: 0.001654705685 | BC38: 188 | BE38: CASCADE | BG38: 5300950 | BH38: Poverty/Formula Count >> Prior Year | BI38: =VLOOKUP(BG38,'Ck Conc'!$A$8:$K$306,9,FALSE) -> 340 | BJ38: 12558.0492 | BK38: 2791.924348 | BL38: 0 | BN38: 21550 | BO38: =AV38/VLOOKUP(D38,'11-12 Pop P'!$D$9:$K$305,8,FALSE) -> 897.9166667
A39: =VLOOKUP(D39,CCDDD!$A$3:$B$312,2,FALSE) -> 04222 | B39: 53 | C39: WA | D39: 5300960 | E39: CASHMERE | F39: =VLOOKUP(D39,'11-12 Pop F'!D34:K330,8,FALSE) -> 177 | G39: =VLOOKUP(D39,'11-12 Pop F'!$D$9:$L$305,9,FALSE) -> 1561 | H39: =VLOOKUP(D39,'11-12 Pop F'!$D$9:$M$305,10,FALSE) -> 0.1133888533 | J39: =VLOOKUP($D39,'USDOE Alloc 1112F'!$D$9:$Q$305,6,FALSE) -> 89848.92621 | K39: =VLOOKUP($D39,'USDOE Alloc 1112F'!$D$9:$Q$305,7,FALSE) -> 25.13334264 | L39: =VLOOKUP($D39,'USDOE Alloc 1112F'!$D$9:$Q$305,8,FALSE) -> 25439.603 | M39: =VLOOKUP($D39,'USDOE Alloc 1112F'!$D$9:$Q$305,9,FALSE) -> 32012.03083 | N39: 147325.6934 | O39: =VLOOKUP($D39,'USDOE Alloc 1112F'!$D$9:$Q$305,11,FALSE) -> 108660.8289 | P39: =VLOOKUP($D39,'USDOE Alloc 1112F'!$D$9:$Q$305,12,FALSE) -> 0 | Q39: =VLOOKUP($D39,'USDOE Alloc 1112F'!$D$9:$Q$305,13,FALSE) -> 29844.83611 | R39: =VLOOKUP($D39,'USDOE Alloc 1112F'!$D$9:$Q$305,14,FALSE) -> 37635.60196 | S39: =VLOOKUP($D39,'USDOE Alloc 1112F'!$D$9:$R$305,15,FALSE) -> 176141.267 | T39: 1.195590959 | U39: =VLOOKUP(D39,'USDOE Alloc 1112F'!$D$9:$T$305,17,FALSE) -> 7832 | W39: 0 | X39: 163811.3778 | AA39: =VLOOKUP(D39,'2010-11 Final w Rev Boundaries'!$D$14:$AV$309,45,FALSE) -> 145878 | AB39: 0 | AC39: 163811.3778 | AD39: 159854.0018 | AF39: 0 | AG39: 159854.0018 | AH39: 159727.4345 | AJ39: 0 | AK39: 159727.4345 | AL39: 159727.3231 | AN39: 0 | AO39: 159727.3231 | AP39: 159727.3231 | AR39: 1540.811283 | AS39: 158186.5118 | AT39: 569 | AV39: 157618 | AW39: 7915 | AX39: =VLOOKUP(D39,'2011-12 Prelim'!$D$14:$AV$309,45,FALSE) -> 149703 | AY39: 145878 | AZ39: 11740 | BA39: 0.08047820782 | BB39: 0.05287135194 | BC39: 165 | BE39: CASHMERE | BG39: 5300960 | BH39: Poverty/Formula Count >> Prior Year | BI39: =VLOOKUP(BG39,'Ck Conc'!$A$8:$K$306,9,FALSE) -> 320 | BJ39: 17933.37775 | BK39: 4084.054624 | BL39: 0 | BN39: 31523.6 | BO39: =AV39/VLOOKUP(D39,'11-12 Pop P'!$D$9:$K$305,8,FALSE) -> 943.8203593
A40: =VLOOKUP(D40,CCDDD!$A$3:$B$312,2,FALSE) -> 08401 | B40: 53 | C40: WA | D40: 5300990 | E40: CASTLE ROCK | F40: =VLOOKUP(D40,'11-12 Pop F'!D35:K331,8,FALSE) -> 244 | G40: =VLOOKUP(D40,'11-12 Pop F'!$D$9:$L$305,9,FALSE) -> 1760 | H40: =VLOOKUP(D40,'11-12 Pop F'!$D$9:$M$305,10,FALSE) -> 0.1386363636 | J40: =VLOOKUP($D40,'USDOE Alloc 1112F'!$D$9:$Q$305,6,FALSE) -> 146361.066 | K40: =VLOOKUP($D40,'USDOE Alloc 1112F'!$D$9:$Q$305,7,FALSE) -> 260.9069539 | L40: =VLOOKUP($D40,'USDOE Alloc 1112F'!$D$9:$Q$305,8,FALSE) -> 41454.99541 | M40: =VLOOKUP($D40,'USDOE Alloc 1112F'!$D$9:$Q$305,9,FALSE) -> 51917.06357 | N40: 239994.032 | O40: =VLOOKUP($D40,'USDOE Alloc 1112F'!$D$9:$Q$305,11,FALSE) -> 149792.3292 | P40: =VLOOKUP($D40,'USDOE Alloc 1112F'!$D$9:$Q$305,12,FALSE) -> 0 | Q40: =VLOOKUP($D40,'USDOE Alloc 1112F'!$D$9:$Q$305,13,FALSE) -> 41142.03396 | R40: =VLOOKUP($D40,'USDOE Alloc 1112F'!$D$9:$Q$305,14,FALSE) -> 51881.84677 | S40: =VLOOKUP($D40,'USDOE Alloc 1112F'!$D$9:$R$305,15,FALSE) -> 242816.2099 | T40: 1.011759367 | U40: =VLOOKUP(D40,'USDOE Alloc 1112F'!$D$9:$T$305,17,FALSE) -> 10124 | W40: 0 | X40: 225819.0744 | AA40: =VLOOKUP(D40,'2010-11 Final w Rev Boundaries'!$D$14:$AV$309,45,FALSE) -> 214072 | AB40: 0 | AC40: 225819.0744 | AD40: 220363.7087 | AF40: 0 | AG40: 220363.7087 | AH40: 220189.2317 | AJ40: 0 | AK40: 220189.2317 | AL40: 220189.0782 | AN40: 0 | AO40: 220189.0782 | AP40: 220189.0782 | AR40: 2124.056232 | AS40: 218065.022 | AT40: 785 | AV40: 217280 | AW40: -14894 | AX40: =VLOOKUP(D40,'2011-12 Prelim'!$D$14:$AV$309,45,FALSE) -> 232174 | AY40: 214072 | AZ40: 3208 | BA40: 0.01498561232 | BB40: -0.06415016324 | BC40: 149 | BE40: CASTLE ROCK | BG40: 5300990 | BI40: =VLOOKUP(BG40,'Ck Conc'!$A$8:$K$306,9,FALSE) -> 253 | BJ40: 11747.07442 | BK40: 5629.996205 | BL40: 0 | BN40: 43456 | BO40: =AV40/VLOOKUP(D40,'11-12 Pop P'!$D$9:$K$305,8,FALSE) -> 838.9189189
A41: =VLOOKUP(D41,CCDDD!$A$3:$B$312,2,FALSE) -> 20215 | B41: 53 | C41: WA | D41: 5301050 | E41: CENTERVILLE | F41: =VLOOKUP(D41,'11-12 Pop F'!D36:K332,8,FALSE) -> 32 | G41: =VLOOKUP(D41,'11-12 Pop F'!$D$9:$L$305,9,FALSE) -> 105 | H41: =VLOOKUP(D41,'11-12 Pop F'!$D$9:$M$305,10,FALSE) -> 0.3047619048 | J41: =VLOOKUP($D41,'USDOE Alloc 1112F'!$D$9:$Q$305,6,FALSE) -> 17301.38507 | K41: =VLOOKUP($D41,'USDOE Alloc 1112F'!$D$9:$Q$305,7,FALSE) -> 4393.081245 | L41: =VLOOKUP($D41,'USDOE Alloc 1112F'!$D$9:$Q$305,8,FALSE) -> 6873.731636 | M41: =VLOOKUP($D41,'USDOE Alloc 1112F'!$D$9:$Q$305,9,FALSE) -> 8608.467057 | N41: 37176.66501 | O41: =VLOOKUP($D41,'USDOE Alloc 1112F'!$D$9:$Q$305,11,FALSE) -> 19644.89563 | P41: =VLOOKUP($D41,'USDOE Alloc 1112F'!$D$9:$Q$305,12,FALSE) -> 4803.037381 | Q41: =VLOOKUP($D41,'USDOE Alloc 1112F'!$D$9:$Q$305,13,FALSE) -> 8526.539001 | R41: =VLOOKUP($D41,'USDOE Alloc 1112F'!$D$9:$Q$305,14,FALSE) -> 10752.32669 | S41: =VLOOKUP($D41,'USDOE Alloc 1112F'!$D$9:$R$305,15,FALSE) -> 43726.7987 | T41: 1.176189383 | U41: =VLOOKUP(D41,'USDOE Alloc 1112F'!$D$9:$T$305,17,FALSE) -> 596 | W41: 0 | X41: 40665.92265 | AA41: =VLOOKUP(D41,'2010-11 Final w Rev Boundaries'!$D$14:$AV$309,45,FALSE) -> 32261 | AB41: 0 | AC41: 40665.92265 | AD41: 39683.51015 | AF41: 0 | AG41: 39683.51015 | AH41: 39652.09001 | AJ41: 0 | AK41: 39652.09001 | AL41: 39652.06237 | AN41: 0 | AO41: 39652.06237 | AP41: 39652.06237 | AR41: 382.5040318 | AS41: 39269.55834 | AT41: 141 | AV41: 39129 | AW41: 1369 | AX41: =VLOOKUP(D41,'2011-12 Prelim'!$D$14:$AV$309,45,FALSE) -> 37760 | AY41: 32261 | AZ41: 6868 | BA41: 0.2128886271 | BB41: 0.03625529661 | BC41: 250 | BE41: CENTERVILLE | BG41: 5301050 | BI41: =VLOOKUP(BG41,'Ck Conc'!$A$8:$K$306,9,FALSE) -> 13 | BJ41: 8404.922651 | BK41: 1013.860281 | BL41: 0 | BN41: 7825.8 | BO41: =AV41/VLOOKUP(D41,'11-12 Pop P'!$D$9:$K$305,8,FALSE) -> 1262.225806
A42: =VLOOKUP(D42,CCDDD!$A$3:$B$312,2,FALSE) -> 18401 | B42: 53 | C42: WA | D42: 5301080 | E42: CENTRAL KITSAP | F42: =VLOOKUP(D42,'11-12 Pop F'!D37:K333,8,FALSE) -> 1062 | G42: =VLOOKUP(D42,'11-12 Pop F'!$D$9:$L$305,9,FALSE) -> 12221 | H42: =VLOOKUP(D42,'11-12 Pop F'!$D$9:$M$305,10,FALSE) -> 0.08689959905 | J42: =VLOOKUP($D42,'USDOE Alloc 1112F'!$D$9:$Q$305,6,FALSE) -> 658730.3889 | K42: =VLOOKUP($D42,'USDOE Alloc 1112F'!$D$9:$Q$305,7,FALSE) -> 9197.01926 | L42: =VLOOKUP($D42,'USDOE Alloc 1112F'!$D$9:$Q$305,8,FALSE) -> 213649.3421 | M42: =VLOOKUP($D42,'USDOE Alloc 1112F'!$D$9:$Q$305,9,FALSE) -> 267568.3923 | N42: 1149145.143 | O42: =VLOOKUP($D42,'USDOE Alloc 1112F'!$D$9:$Q$305,11,FALSE) -> 651964.9736 | P42: =VLOOKUP($D42,'USDOE Alloc 1112F'!$D$9:$Q$305,12,FALSE) -> 0 | Q42: =VLOOKUP($D42,'USDOE Alloc 1112F'!$D$9:$Q$305,13,FALSE) -> 210347.0794 | R42: =VLOOKUP($D42,'USDOE Alloc 1112F'!$D$9:$Q$305,14,FALSE) -> 265256.5731 | S42: =VLOOKUP($D42,'USDOE Alloc 1112F'!$D$9:$R$305,15,FALSE) -> 1127568.626 | T42: 0.9812238545 | U42: =VLOOKUP(D42,'USDOE Alloc 1112F'!$D$9:$T$305,17,FALSE) -> 70000 | W42: 1 | X42: 1048638.819 | AA42: =VLOOKUP(D42,'2010-11 Final w Rev Boundaries'!$D$14:$AV$309,45,FALSE) -> 1110437 | AB42: 61798.18131 | AC42: 0 | AD42: 1110437 | AF42: 0 | AG42: 0 | AH42: 1110437 | AJ42: 0 | AK42: 0 | AL42: 1110437 | AN42: 0 | AO42: 0 | AP42: 1110437 | AR42: 10711.84206 | AS42: 1099725.158 | AT42: 3958 | AV42: 1095767 | AW42: -2865 | AX42: =VLOOKUP(D42,'2011-12 Prelim'!$D$14:$AV$309,45,FALSE) -> 1098632 | AY42: 1110437 | AZ42: -14670 | BA42: -0.01321101512 | BB42: -0.002607788595 | BC42: 44 | BE42: CENTRAL KITSAP | BG42: 5301080 | BI42: =VLOOKUP(BG42,'Ck Conc'!$A$8:$K$306,9,FALSE) -> 0 | BJ42: 0 | BK42: -61798.18131 | BL42: 0 | BN42: 219153.4 | BO42: =AV42/VLOOKUP(D42,'11-12 Pop P'!$D$9:$K$305,8,FALSE) -> 1039.627135
A43: =VLOOKUP(D43,CCDDD!$A$3:$B$312,2,FALSE) -> 32356 | B43: 53 | C43: WA | D43: 5301110 | E43: CENTRAL VALLEY | F43: =VLOOKUP(D43,'11-12 Pop F'!D38:K334,8,FALSE) -> 1652 | G43: =VLOOKUP(D43,'11-12 Pop F'!$D$9:$L$305,9,FALSE) -> 12539 | H43: =VLOOKUP(D43,'11-12 Pop F'!$D$9:$M$305,10,FALSE) -> 0.1317489433 | J43: =VLOOKUP($D43,'USDOE Alloc 1112F'!$D$9:$Q$305,6,FALSE) -> 965776.058 | K43: =VLOOKUP($D43,'USDOE Alloc 1112F'!$D$9:$Q$305,7,FALSE) -> 112.6076712 | L43: =VLOOKUP($D43,'USDOE Alloc 1112F'!$D$9:$Q$305,8,FALSE) -> 346983.2545 | M43: =VLOOKUP($D43,'USDOE Alloc 1112F'!$D$9:$Q$305,9,FALSE) -> 434552.0125 | N43: 1747423.933 | O43: =VLOOKUP($D43,'USDOE Alloc 1112F'!$D$9:$Q$305,11,FALSE) -> 1014167.737 | P43: =VLOOKUP($D43,'USDOE Alloc 1112F'!$D$9:$Q$305,12,FALSE) -> 0 | Q43: =VLOOKUP($D43,'USDOE Alloc 1112F'!$D$9:$Q$305,13,FALSE) -> 359571.26 | R43: =VLOOKUP($D43,'USDOE Alloc 1112F'!$D$9:$Q$305,14,FALSE) -> 453434.5829 | S43: =VLOOKUP($D43,'USDOE Alloc 1112F'!$D$9:$R$305,15,FALSE) -> 1827173.58 | T43: 1.045638408 | U43: =VLOOKUP(D43,'USDOE Alloc 1112F'!$D$9:$T$305,17,FALSE) -> 70465 | W43: 0 | X43: 1699271.423 | AA43: =VLOOKUP(D43,'2010-11 Final w Rev Boundaries'!$D$14:$AV$309,45,FALSE) -> 1501631 | AB43: 0 | AC43: 1699271.423 | AD43: 1658220.209 | AF43: 0 | AG43: 1658220.209 | AH43: 1656907.283 | AJ43: 0 | AK43: 1656907.283 | AL43: 1656906.128 | AN43: 0 | AO43: 1656906.128 | AP43: 1656906.128 | AR43: 15983.36219 | AS43: 1640922.766 | AT43: 5906 | AV43: 1635017 | AW43: -38748 | AX43: =VLOOKUP(D43,'2011-12 Prelim'!$D$14:$AV$309,45,FALSE) -> 1673765 | AY43: 1501631 | AZ43: 133386 | BA43: 0.08882741499 | BB43: -0.02315020328 | BC43: 29 | BE43: CENTRAL VALLEY | BG43: 5301110 | BH43: Decrease in Share of State Poverty Total | BI43: =VLOOKUP(BG43,'Ck Conc'!$A$8:$K$306,9,FALSE) -> 2169 | BJ43: 197640.4232 | BK43: 42365.29482 | BL43: 0 | BN43: 327003.4 | BO43: =AV43/VLOOKUP(D43,'11-12 Pop P'!$D$9:$K$305,8,FALSE) -> 974.3843862
A44: =VLOOKUP(D44,CCDDD!$A$3:$B$312,2,FALSE) -> 21401 | B44: 53 | C44: WA | D44: 5301140 | E44: CENTRALIA | F44: =VLOOKUP(D44,'11-12 Pop F'!D39:K335,8,FALSE) -> 846 | G44: =VLOOKUP(D44,'11-12 Pop F'!$D$9:$L$305,9,FALSE) -> 3561 | H44: =VLOOKUP(D44,'11-12 Pop F'!$D$9:$M$305,10,FALSE) -> 0.2375737152 | J44: =VLOOKUP($D44,'USDOE Alloc 1112F'!$D$9:$Q$305,6,FALSE) -> 475799.6277 | K44: =VLOOKUP($D44,'USDOE Alloc 1112F'!$D$9:$Q$305,7,FALSE) -> 120565.2851 | L44: =VLOOKUP($D44,'USDOE Alloc 1112F'!$D$9:$Q$305,8,FALSE) -> 161469.5145 | M44: =VLOOKUP($D44,'USDOE Alloc 1112F'!$D$9:$Q$305,9,FALSE) -> 202220.8095 | N44: 960055.2367 | O44: =VLOOKUP($D44,'USDOE Alloc 1112F'!$D$9:$Q$305,11,FALSE) -> 519361.9281 | P44: =VLOOKUP($D44,'USDOE Alloc 1112F'!$D$9:$Q$305,12,FALSE) -> 126980.3008 | Q44: =VLOOKUP($D44,'USDOE Alloc 1112F'!$D$9:$Q$305,13,FALSE) -> 186891.7908 | R44: =VLOOKUP($D44,'USDOE Alloc 1112F'!$D$9:$Q$305,14,FALSE) -> 235678.4612 | S44: =VLOOKUP($D44,'USDOE Alloc 1112F'!$D$9:$R$305,15,FALSE) -> 1068912.481 | T44: 1.113386439 | U44: =VLOOKUP(D44,'USDOE Alloc 1112F'!$D$9:$T$305,17,FALSE) -> 23033 | W44: 0 | X44: 994088.6038 | AA44: =VLOOKUP(D44,'2010-11 Final w Rev Boundaries'!$D$14:$AV$309,45,FALSE) -> 934590 | AB44: 0 | AC44: 994088.6038 | AD44: 970073.2856 | AF44: 0 | AG44: 970073.2856 | AH44: 969305.2125 | AJ44: 0 | AK44: 969305.2125 | AL44: 969304.5368 | AN44: 0 | AO44: 969304.5368 | AP44: 969304.5368 | AR44: 9350.40629 | AS44: 959954.1305 | AT44: 3455 | AV44: 956499 | AW44: 5951 | AX44: =VLOOKUP(D44,'2011-12 Prelim'!$D$14:$AV$309,45,FALSE) -> 950548 | AY44: 934590 | AZ44: 21909 | BA44: 0.0234423651 | BB44: 0.006260599149 | BC44: 50 | BE44: CENTRALIA | BG44: 5301140 | BI44: =VLOOKUP(BG44,'Ck Conc'!$A$8:$K$306,9,FALSE) -> 1104 | BJ44: 59498.60382 | BK44: 24784.06698 | BL44: 0 | BN44: 191299.8 | BO44: =AV44/VLOOKUP(D44,'11-12 Pop P'!$D$9:$K$305,8,FALSE) -> 1141.406921
A45: =VLOOKUP(D45,CCDDD!$A$3:$B$312,2,FALSE) -> 21302 | B45: 53 | C45: WA | D45: 5301170 | E45: CHEHALIS | F45: =VLOOKUP(D45,'11-12 Pop F'!D40:K336,8,FALSE) -> 411 | G45: =VLOOKUP(D45,'11-12 Pop F'!$D$9:$L$305,9,FALSE) -> 2507 | H45: =VLOOKUP(D45,'11-12 Pop F'!$D$9:$M$305,10,FALSE) -> 0.1639409653 | J45: =VLOOKUP($D45,'USDOE Alloc 1112F'!$D$9:$Q$305,6,FALSE) -> 209180.0625 | K45: =VLOOKUP($D45,'USDOE Alloc 1112F'!$D$9:$Q$305,7,FALSE) -> 50142.3587 | L45: =VLOOKUP($D45,'USDOE Alloc 1112F'!$D$9:$Q$305,8,FALSE) -> 59377.2771 | M45: =VLOOKUP($D45,'USDOE Alloc 1112F'!$D$9:$Q$305,9,FALSE) -> 74791.33898 | N45: 393491.0373 | O45: =VLOOKUP($D45,'USDOE Alloc 1112F'!$D$9:$Q$305,11,FALSE) -> 252314.1282 | P45: =VLOOKUP($D45,'USDOE Alloc 1112F'!$D$9:$Q$305,12,FALSE) -> 61689.01136 | Q45: =VLOOKUP($D45,'USDOE Alloc 1112F'!$D$9:$Q$305,13,FALSE) -> 71881.71775 | R45: =VLOOKUP($D45,'USDOE Alloc 1112F'!$D$9:$Q$305,14,FALSE) -> 90645.88953 | S45: =VLOOKUP($D45,'USDOE Alloc 1112F'!$D$9:$R$305,15,FALSE) -> 476530.7468 | T45: 1.211033293 | U45: =VLOOKUP(D45,'USDOE Alloc 1112F'!$D$9:$T$305,17,FALSE) -> 14391 | W45: 0 | X45: 443173.593 | AA45: =VLOOKUP(D45,'2010-11 Final w Rev Boundaries'!$D$14:$AV$309,45,FALSE) -> 389625 | AB45: 0 | AC45: 443173.593 | AD45: 432467.3493 | AF45: 0 | AG45: 432467.3493 | AH45: 432124.9355 | AJ45: 0 | AK45: 432124.9355 | AL45: 432124.6342 | AN45: 0 | AO45: 432124.6342 | AP45: 432124.6342 | AR45: 4168.494776 | AS45: 427956.1395 | AT45: 1540 | AV45: 426416 | AW45: 8917 | AX45: =VLOOKUP(D45,'2011-12 Prelim'!$D$14:$AV$309,45,FALSE) -> 417499 | AY45: 389625 | AZ45: 36791 | BA45: 0.09442669233 | BB45: 0.02135813499 | BC45: 98 | BE45: CHEHALIS | BG45: 5301170 | BH45: Crossed 15% threshold for Concentration Grant, Poverty/Formula Count >> Prior Year | BI45: =VLOOKUP(BG45,'Ck Conc'!$A$8:$K$306,9,FALSE) -> 505 | BJ45: 53548.59303 | BK45: 11048.95879 | BL45: 0 | BN45: 85283.2 | BO45: =AV45/VLOOKUP(D45,'11-12 Pop P'!$D$9:$K$305,8,FALSE) -> 1060.736318
A46: =VLOOKUP(D46,CCDDD!$A$3:$B$312,2,FALSE) -> 32360 | B46: 53 | C46: WA | D46: 5301230 | E46: CHENEY | F46: =VLOOKUP(D46,'11-12 Pop F'!D41:K337,8,FALSE) -> 703 | G46: =VLOOKUP(D46,'11-12 Pop F'!$D$9:$L$305,9,FALSE) -> 3948 | H46: =VLOOKUP(D46,'11-12 Pop F'!$D$9:$M$305,10,FALSE) -> 0.178064843 | J46: =VLOOKUP($D46,'USDOE Alloc 1112F'!$D$9:$Q$305,6,FALSE) -> 416047.2209 | K46: =VLOOKUP($D46,'USDOE Alloc 1112F'!$D$9:$Q$305,7,FALSE) -> 104853.8186 | L46: =VLOOKUP($D46,'USDOE Alloc 1112F'!$D$9:$Q$305,8,FALSE) -> 122367.433 | M46: =VLOOKUP($D46,'USDOE Alloc 1112F'!$D$9:$Q$305,9,FALSE) -> 153249.5116 | N46: 796517.9842 | O46: =VLOOKUP($D46,'USDOE Alloc 1112F'!$D$9:$Q$305,11,FALSE) -> 431573.8008 | P46: =VLOOKUP($D46,'USDOE Alloc 1112F'!$D$9:$Q$305,12,FALSE) -> 105516.7275 | Q46: =VLOOKUP($D46,'USDOE Alloc 1112F'!$D$9:$Q$305,13,FALSE) -> 129652.4092 | R46: =VLOOKUP($D46,'USDOE Alloc 1112F'!$D$9:$Q$305,14,FALSE) -> 163497.1774 | S46: =VLOOKUP($D46,'USDOE Alloc 1112F'!$D$9:$R$305,15,FALSE) -> 830240.1148 | T46: 1.042336936 | U46: =VLOOKUP(D46,'USDOE Alloc 1112F'!$D$9:$T$305,17,FALSE) -> 28242 | W46: 0 | X46: 772123.3041 | AA46: =VLOOKUP(D46,'2010-11 Final w Rev Boundaries'!$D$14:$AV$309,45,FALSE) -> 690169 | AB46: 0 | AC46: 772123.3041 | AD46: 753470.2517 | AF46: 0 | AG46: 753470.2517 | AH46: 752873.678 | AJ46: 0 | AK46: 752873.678 | AL46: 752873.1532 | AN46: 0 | AO46: 752873.1532 | AP46: 752873.1532 | AR46: 7262.598698 | AS46: 745610.5545 | AT46: 2683 | AV46: 742928 | AW46: 1479 | AX46: =VLOOKUP(D46,'2011-12 Prelim'!$D$14:$AV$309,45,FALSE) -> 741449 | AY46: 690169 | AZ46: 52759 | BA46: 0.0764435957 | BB46: 0.001994742727 | BC46: 58 | BE46: CHENEY | BG46: 5301230 | BI46: =VLOOKUP(BG46,'Ck Conc'!$A$8:$K$306,9,FALSE) -> 917 | BJ46: 81954.30412 | BK46: 19250.15096 | BL46: 0 | BN46: 148585.6 | BO46: =AV46/VLOOKUP(D46,'11-12 Pop P'!$D$9:$K$305,8,FALSE) -> 1064.366762
A47: =VLOOKUP(D47,CCDDD!$A$3:$B$312,2,FALSE) -> 33036 | B47: 53 | C47: WA | D47: 5301260 | E47: CHEWELAH | F47: =VLOOKUP(D47,'11-12 Pop F'!D42:K338,8,FALSE) -> 226 | G47: =VLOOKUP(D47,'11-12 Pop F'!$D$9:$L$305,9,FALSE) -> 1034 | H47: =VLOOKUP(D47,'11-12 Pop F'!$D$9:$M$305,10,FALSE) -> 0.2185686654 | J47: =VLOOKUP($D47,'USDOE Alloc 1112F'!$D$9:$Q$305,6,FALSE) -> 130732.7395 | K47: =VLOOKUP($D47,'USDOE Alloc 1112F'!$D$9:$Q$305,7,FALSE) -> 33149.00109 | L47: =VLOOKUP($D47,'USDOE Alloc 1112F'!$D$9:$Q$305,8,FALSE) -> 49804.12415 | M47: =VLOOKUP($D47,'USDOE Alloc 1112F'!$D$9:$Q$305,9,FALSE) -> 63235.20067 | N47: 276921.0654 | O47: =VLOOKUP($D47,'USDOE Alloc 1112F'!$D$9:$Q$305,11,FALSE) -> 138742.0754 | P47: =VLOOKUP($D47,'USDOE Alloc 1112F'!$D$9:$Q$305,12,FALSE) -> 33921.4515 | Q47: =VLOOKUP($D47,'USDOE Alloc 1112F'!$D$9:$Q$305,13,FALSE) -> 46314.64991 | R47: =VLOOKUP($D47,'USDOE Alloc 1112F'!$D$9:$Q$305,14,FALSE) -> 58404.73448 | S47: =VLOOKUP($D47,'USDOE Alloc 1112F'!$D$9:$R$305,15,FALSE) -> 277382.9113 | T47: 1.001667789 | U47: =VLOOKUP(D47,'USDOE Alloc 1112F'!$D$9:$T$305,17,FALSE) -> 5643 | W47: 0 | X47: 257966.1066 | AA47: =VLOOKUP(D47,'2010-11 Final w Rev Boundaries'!$D$14:$AV$309,45,FALSE) -> 274201 | AB47: 16234.89342 | AC47: 0 | AD47: 274201 | AF47: 0 | AG47: 0 | AH47: 274201 | AJ47: 0 | AK47: 0 | AL47: 274201 | AN47: 0 | AO47: 0 | AP47: 274201 | AR47: 2645.082797 | AS47: 271555.9172 | AT47: 977 | AV47: 270579 | AW47: 2935 | AX47: =VLOOKUP(D47,'2011-12 Prelim'!$D$14:$AV$309,45,FALSE) -> 267644 | AY47: 274201 | AZ47: -3622 | BA47: -0.01320928808 | BB47: 0.01096605939 | BC47: 134 | BE47: CHEWELAH | BG47: 5301260 | BI47: =VLOOKUP(BG47,'Ck Conc'!$A$8:$K$306,9,FALSE) -> 313 | BJ47: 0 | BK47: -16234.89342 | BL47: 0 | BN47: 54115.8 | BO47: =AV47/VLOOKUP(D47,'11-12 Pop P'!$D$9:$K$305,8,FALSE) -> 1224.339367
A48: =VLOOKUP(D48,CCDDD!$A$3:$B$312,2,FALSE) -> 16049 | B48: 53 | C48: WA | D48: 5301290 | E48: CHIMACUM | F48: =VLOOKUP(D48,'11-12 Pop F'!D43:K339,8,FALSE) -> 224 | G48: =VLOOKUP(D48,'11-12 Pop F'!$D$9:$L$305,9,FALSE) -> 1289 | H48: =VLOOKUP(D48,'11-12 Pop F'!$D$9:$M$305,10,FALSE) -> 0.1737781226 | J48: =VLOOKUP($D48,'USDOE Alloc 1112F'!$D$9:$Q$305,6,FALSE) -> 125412.5697 | K48: =VLOOKUP($D48,'USDOE Alloc 1112F'!$D$9:$Q$305,7,FALSE) -> 237.5146253 | L48: =VLOOKUP($D48,'USDOE Alloc 1112F'!$D$9:$Q$305,8,FALSE) -> 35509.62238 | M48: =VLOOKUP($D48,'USDOE Alloc 1112F'!$D$9:$Q$305,9,FALSE) -> 44471.24657 | N48: 205630.9533 | O48: =VLOOKUP($D48,'USDOE Alloc 1112F'!$D$9:$Q$305,11,FALSE) -> 137514.2694 | P48: =VLOOKUP($D48,'USDOE Alloc 1112F'!$D$9:$Q$305,12,FALSE) -> 33621.26166 | Q48: =VLOOKUP($D48,'USDOE Alloc 1112F'!$D$9:$Q$305,13,FALSE) -> 40700.32196 | R48: =VLOOKUP($D48,'USDOE Alloc 1112F'!$D$9:$Q$305,14,FALSE) -> 51324.82923 | S48: =VLOOKUP($D48,'USDOE Alloc 1112F'!$D$9:$R$305,15,FALSE) -> 263160.6822 | T48: 1.279771737 | U48: =VLOOKUP(D48,'USDOE Alloc 1112F'!$D$9:$T$305,17,FALSE) -> 10794 | W48: 0 | X48: 244739.4336 | AA48: =VLOOKUP(D48,'2010-11 Final w Rev Boundaries'!$D$14:$AV$309,45,FALSE) -> 186196 | AB48: 0 | AC48: 244739.4336 | AD48: 238826.9874 | AF48: 0 | AG48: 238826.9874 | AH48: 238637.8919 | AJ48: 0 | AK48: 238637.8919 | AL48: 238637.7255 | AN48: 0 | AO48: 238637.7255 | AP48: 238637.7255 | AR48: 2302.0213 | AS48: 236335.7042 | AT48: 851 | AV48: 235485 | AW48: -285 | AX48: =VLOOKUP(D48,'2011-12 Prelim'!$D$14:$AV$309,45,FALSE) -> 235770 | AY48: 186196 | AZ48: 49289 | BA48: 0.264715676 | BB48: -0.001208805192 | BC48: 141 | BE48: CHIMACUM | BG48: 5301290 | BH48: Crossed 15% threshold for Concentration Grant | BI48: =VLOOKUP(BG48,'Ck Conc'!$A$8:$K$306,9,FALSE) -> 0 | BJ48: 58543.43364 | BK48: 6101.708131 | BL48: 0 | BN48: 47097 | BO48: =AV48/VLOOKUP(D48,'11-12 Pop P'!$D$9:$K$305,8,FALSE) -> 1055.986547
A49: =VLOOKUP(D49,CCDDD!$A$3:$B$312,2,FALSE) -> 02250 | B49: 53 | C49: WA | D49: 5301320 | E49: CLARKSTON | F49: =VLOOKUP(D49,'11-12 Pop F'!D44:K340,8,FALSE) -> 614 | G49: =VLOOKUP(D49,'11-12 Pop F'!$D$9:$L$305,9,FALSE) -> 2930 | H49: =VLOOKUP(D49,'11-12 Pop F'!$D$9:$M$305,10,FALSE) -> 0.209556314 | J49: =VLOOKUP($D49,'USDOE Alloc 1112F'!$D$9:$Q$305,6,FALSE) -> 369395.4303 | K49: =VLOOKUP($D49,'USDOE Alloc 1112F'!$D$9:$Q$305,7,FALSE) -> 93795.04185 | L49: =VLOOKUP($D49,'USDOE Alloc 1112F'!$D$9:$Q$305,8,FALSE) -> 119136.3905 | M49: =VLOOKUP($D49,'USDOE Alloc 1112F'!$D$9:$Q$305,9,FALSE) -> 149203.0454 | N49: 731529.9081 | O49: =VLOOKUP($D49,'USDOE Alloc 1112F'!$D$9:$Q$305,11,FALSE) -> 376936.4348 | P49: =VLOOKUP($D49,'USDOE Alloc 1112F'!$D$9:$Q$305,12,FALSE) -> 92158.27974 | Q49: =VLOOKUP($D49,'USDOE Alloc 1112F'!$D$9:$Q$305,13,FALSE) -> 123447.9375 | R49: =VLOOKUP($D49,'USDOE Alloc 1112F'!$D$9:$Q$305,14,FALSE) -> 155673.076 | S49: =VLOOKUP($D49,'USDOE Alloc 1112F'!$D$9:$R$305,15,FALSE) -> 748215.7281 | T49: 1.022809484 | U49: =VLOOKUP(D49,'USDOE Alloc 1112F'!$D$9:$T$305,17,FALSE) -> 18555 | W49: 0 | X49: 695840.6247 | AA49: =VLOOKUP(D49,'2010-11 Final w Rev Boundaries'!$D$14:$AV$309,45,FALSE) -> 724343 | AB49: 28502.3753 | AC49: 0 | AD49: 724343 | AF49: 0 | AG49: 0 | AH49: 724343 | AJ49: 0 | AK49: 0 | AL49: 724343 | AN49: 0 | AO49: 0 | AP49: 724343 | AR49: 6987.382279 | AS49: 717355.6177 | AT49: 2582 | AV49: 714774 | AW49: -1868 | AX49: =VLOOKUP(D49,'2011-12 Prelim'!$D$14:$AV$309,45,FALSE) -> 716642 | AY49: 724343 | AZ49: -9569 | BA49: -0.01321059222 | BB49: -0.002606601343 | BC49: 61 | BE49: CLARKSTON | BG49: 5301320 | BI49: =VLOOKUP(BG49,'Ck Conc'!$A$8:$K$306,9,FALSE) -> 713 | BJ49: 0 | BK49: -28502.3753 | BL49: 0 | BN49: 142954.8 | BO49: =AV49/VLOOKUP(D49,'11-12 Pop P'!$D$9:$K$305,8,FALSE) -> 1167.931373
A50: =VLOOKUP(D50,CCDDD!$A$3:$B$312,2,FALSE) -> 19404 | B50: 53 | C50: WA | D50: 5301350 | E50: CLE ELUM-ROSLYN | F50: =VLOOKUP(D50,'11-12 Pop F'!D45:K341,8,FALSE) -> 119 | G50: =VLOOKUP(D50,'11-12 Pop F'!$D$9:$L$305,9,FALSE) -> 1109 | H50: =VLOOKUP(D50,'11-12 Pop F'!$D$9:$M$305,10,FALSE) -> 0.1073038774 | J50: =VLOOKUP($D50,'USDOE Alloc 1112F'!$D$9:$Q$305,6,FALSE) -> 66726.97928 | K50: =VLOOKUP($D50,'USDOE Alloc 1112F'!$D$9:$Q$305,7,FALSE) -> 0 | L50: =VLOOKUP($D50,'USDOE Alloc 1112F'!$D$9:$Q$305,8,FALSE) -> 18890.85138 | M50: =VLOOKUP($D50,'USDOE Alloc 1112F'!$D$9:$Q$305,9,FALSE) -> 23659.70696 | N50: 109277.5376 | O50: =VLOOKUP($D50,'USDOE Alloc 1112F'!$D$9:$Q$305,11,FALSE) -> 73054.45561 | P50: =VLOOKUP($D50,'USDOE Alloc 1112F'!$D$9:$Q$305,12,FALSE) -> 0 | Q50: =VLOOKUP($D50,'USDOE Alloc 1112F'!$D$9:$Q$305,13,FALSE) -> 20065.1723 | R50: =VLOOKUP($D50,'USDOE Alloc 1112F'!$D$9:$Q$305,14,FALSE) -> 25303.03183 | S50: =VLOOKUP($D50,'USDOE Alloc 1112F'!$D$9:$R$305,15,FALSE) -> 118422.6597 | T50: 1.083687117 | U50: =VLOOKUP(D50,'USDOE Alloc 1112F'!$D$9:$T$305,17,FALSE) -> 7451 | W50: 0 | X50: 110133.0732 | AA50: =VLOOKUP(D50,'2010-11 Final w Rev Boundaries'!$D$14:$AV$309,45,FALSE) -> 108204 | AB50: 0 | AC50: 110133.0732 | AD50: 107472.4645 | AF50: 731.5355335 | AG50: 0 | AH50: 108204 | AJ50: 0 | AK50: 0 | AL50: 108204 | AN50: 0 | AO50: 0 | AP50: 108204 | AR50: 1043.791011 | AS50: 107160.209 | AT50: 386 | AV50: 106774 | AW50: -280 | AX50: =VLOOKUP(D50,'2011-12 Prelim'!$D$14:$AV$309,45,FALSE) -> 107054 | AY50: 108204 | AZ50: -1430 | BA50: -0.01321577761 | BB50: -0.002615502457 | BC50: 191 | BE50: CLE ELUM-ROSLYN | BG50: 5301350 | BI50: =VLOOKUP(BG50,'Ck Conc'!$A$8:$K$306,9,FALSE) -> 272 | BJ50: 1929.073179 | BK50: 1929.073179 | BL50: 0 | BN50: 21354.8 | BO50: =AV50/VLOOKUP(D50,'11-12 Pop P'!$D$9:$K$305,8,FALSE) -> 897.2605042
A51: =VLOOKUP(D51,CCDDD!$A$3:$B$312,2,FALSE) -> 27400 | B51: 53 | C51: WA | D51: 5301410 | E51: CLOVER PARK | F51: =VLOOKUP(D51,'11-12 Pop F'!D46:K342,8,FALSE) -> 3397 | G51: =VLOOKUP(D51,'11-12 Pop F'!$D$9:$L$305,9,FALSE) -> 14893 | H51: =VLOOKUP(D51,'11-12 Pop F'!$D$9:$M$305,10,FALSE) -> 0.2280937353 | J51: =VLOOKUP($D51,'USDOE Alloc 1112F'!$D$9:$Q$305,6,FALSE) -> 2040049.749 | K51: =VLOOKUP($D51,'USDOE Alloc 1112F'!$D$9:$Q$305,7,FALSE) -> 514861.7023 | L51: =VLOOKUP($D51,'USDOE Alloc 1112F'!$D$9:$Q$305,8,FALSE) -> 880920.8327 | M51: =VLOOKUP($D51,'USDOE Alloc 1112F'!$D$9:$Q$305,9,FALSE) -> 1103240.331 | N51: 4539072.616 | O51: =VLOOKUP($D51,'USDOE Alloc 1112F'!$D$9:$Q$305,11,FALSE) -> 2085428.451 | P51: =VLOOKUP($D51,'USDOE Alloc 1112F'!$D$9:$Q$305,12,FALSE) -> 509872.4369 | Q51: =VLOOKUP($D51,'USDOE Alloc 1112F'!$D$9:$Q$305,13,FALSE) -> 896609.6951 | R51: =VLOOKUP($D51,'USDOE Alloc 1112F'!$D$9:$Q$305,14,FALSE) -> 1130662.788 | S51: =VLOOKUP($D51,'USDOE Alloc 1112F'!$D$9:$R$305,15,FALSE) -> 4622573.371 | T51: 1.018395995 | U51: =VLOOKUP(D51,'USDOE Alloc 1112F'!$D$9:$T$305,17,FALSE) -> 93440 | W51: 0 | X51: 4298993.22 | AA51: =VLOOKUP(D51,'2010-11 Final w Rev Boundaries'!$D$14:$AV$309,45,FALSE) -> 4100561 | AB51: 0 | AC51: 4298993.22 | AD51: 4195137.598 | AF51: 0 | AG51: 4195137.598 | AH51: 4191816.022 | AJ51: 0 | AK51: 4191816.022 | AL51: 4191813.1 | AN51: 0 | AO51: 4191813.1 | AP51: 4191813.1 | AR51: 40436.36864 | AS51: 4151376.732 | AT51: 14941 | AV51: 4136436 | AW51: -48538 | AX51: =VLOOKUP(D51,'2011-12 Prelim'!$D$14:$AV$309,45,FALSE) -> 4184974 | AY51: 4100561 | AZ51: 35875 | BA51: 0.008748802908 | BB51: -0.01159816047 | BC51: 9 | BE51: CLOVER PARK | BG51: 5301410 | BH51: Decrease in Share of State Poverty Total | BI51: =VLOOKUP(BG51,'Ck Conc'!$A$8:$K$306,9,FALSE) -> 4339 | BJ51: 198432.2203 | BK51: 107180.1201 | BL51: 0 | BN51: 827287.2 | BO51: =AV51/VLOOKUP(D51,'11-12 Pop P'!$D$9:$K$305,8,FALSE) -> 1212.320047
A52: =VLOOKUP(D52,CCDDD!$A$3:$B$312,2,FALSE) -> 38300 | B52: 53 | C52: WA | D52: 5301440 | E52: COLFAX | F52: =VLOOKUP(D52,'11-12 Pop F'!D47:K343,8,FALSE) -> 92 | G52: =VLOOKUP(D52,'11-12 Pop F'!$D$9:$L$305,9,FALSE) -> 659 | H52: =VLOOKUP(D52,'11-12 Pop F'!$D$9:$M$305,10,FALSE) -> 0.1396054628 | J52: =VLOOKUP($D52,'USDOE Alloc 1112F'!$D$9:$Q$305,6,FALSE) -> 36392.84348 | K52: =VLOOKUP($D52,'USDOE Alloc 1112F'!$D$9:$Q$305,7,FALSE) -> 30.30915242 | L52: =VLOOKUP($D52,'USDOE Alloc 1112F'!$D$9:$Q$305,8,FALSE) -> 10301.81141 | M52: =VLOOKUP($D52,'USDOE Alloc 1112F'!$D$9:$Q$305,9,FALSE) -> 12901.69719 | N52: 59626.66123 | O52: =VLOOKUP($D52,'USDOE Alloc 1112F'!$D$9:$Q$305,11,FALSE) -> 56479.07493 | P52: =VLOOKUP($D52,'USDOE Alloc 1112F'!$D$9:$Q$305,12,FALSE) -> 0 | Q52: =VLOOKUP($D52,'USDOE Alloc 1112F'!$D$9:$Q$305,13,FALSE) -> 15512.57018 | R52: =VLOOKUP($D52,'USDOE Alloc 1112F'!$D$9:$Q$305,14,FALSE) -> 19562.0078 | S52: =VLOOKUP($D52,'USDOE Alloc 1112F'!$D$9:$R$305,15,FALSE) -> 91553.65291 | T52: 1.535448254 | U52: =VLOOKUP(D52,'USDOE Alloc 1112F'!$D$9:$T$305,17,FALSE) -> 4318 | W52: 0 | X52: 85144.89691 | AA52: =VLOOKUP(D52,'2010-11 Final w Rev Boundaries'!$D$14:$AV$309,45,FALSE) -> 56872 | AB52: 0 | AC52: 85144.89691 | AD52: 83087.95572 | AF52: 0 | AG52: 83087.95572 | AH52: 83022.16933 | AJ52: 0 | AK52: 83022.16933 | AL52: 83022.11146 | AN52: 0 | AO52: 83022.11146 | AP52: 83022.11146 | AR52: 800.8736611 | AS52: 82221.2378 | AT52: 296 | AV52: 81925 | AW52: 350 | AX52: =VLOOKUP(D52,'2011-12 Prelim'!$D$14:$AV$309,45,FALSE) -> 81575 | AY52: 56872 | AZ52: 25053 | BA52: 0.4405155437 | BB52: 0.004290530187 | BC52: 209 | BE52: COLFAX | BG52: 5301440 | BH52: Poverty/Formula Count >> Prior Year | BI52: =VLOOKUP(BG52,'Ck Conc'!$A$8:$K$306,9,FALSE) -> 0 | BJ52: 28272.89691 | BK52: 2122.785454 | BL52: 0 | BN52: 16385 | BO52: =AV52/VLOOKUP(D52,'11-12 Pop P'!$D$9:$K$305,8,FALSE) -> 900.2747253
A53: =VLOOKUP(D53,CCDDD!$A$3:$B$312,2,FALSE) -> 36250 | B53: 53 | C53: WA | D53: 5301470 | E53: COLLEGE PLACE | F53: =VLOOKUP(D53,'11-12 Pop F'!D48:K344,8,FALSE) -> 364 | G53: =VLOOKUP(D53,'11-12 Pop F'!$D$9:$L$305,9,FALSE) -> 1766 | H53: =VLOOKUP(D53,'11-12 Pop F'!$D$9:$M$305,10,FALSE) -> 0.2061155153 | J53: =VLOOKUP($D53,'USDOE Alloc 1112F'!$D$9:$Q$305,6,FALSE) -> 198097.5704 | K53: =VLOOKUP($D53,'USDOE Alloc 1112F'!$D$9:$Q$305,7,FALSE) -> 50299.94521 | L53: =VLOOKUP($D53,'USDOE Alloc 1112F'!$D$9:$Q$305,8,FALSE) -> 61475.82161 | M53: =VLOOKUP($D53,'USDOE Alloc 1112F'!$D$9:$Q$305,9,FALSE) -> 76998.47429 | N53: 386871.8115 | O53: =VLOOKUP($D53,'USDOE Alloc 1112F'!$D$9:$Q$305,11,FALSE) -> 223460.6878 | P53: =VLOOKUP($D53,'USDOE Alloc 1112F'!$D$9:$Q$305,12,FALSE) -> 54634.5502 | Q53: =VLOOKUP($D53,'USDOE Alloc 1112F'!$D$9:$Q$305,13,FALSE) -> 72612.80663 | R53: =VLOOKUP($D53,'USDOE Alloc 1112F'!$D$9:$Q$305,14,FALSE) -> 91567.82357 | S53: =VLOOKUP($D53,'USDOE Alloc 1112F'!$D$9:$R$305,15,FALSE) -> 442275.8682 | T53: 1.143210373 | U53: =VLOOKUP(D53,'USDOE Alloc 1112F'!$D$9:$T$305,17,FALSE) -> 11862 | W53: 0 | X53: 411316.556 | AA53: =VLOOKUP(D53,'2010-11 Final w Rev Boundaries'!$D$14:$AV$309,45,FALSE) -> 367273 | AB53: 0 | AC53: 411316.556 | AD53: 401379.9186 | AF53: 0 | AG53: 401379.9186 | AH53: 401062.1188 | AJ53: 0 | AK53: 401062.1188 | AL53: 401061.8392 | AN53: 0 | AO53: 401061.8392 | AP53: 401061.8392 | AR53: 3868.847201 | AS53: 397192.992 | AT53: 1430 | AV53: 395763 | AW53: 10241 | AX53: =VLOOKUP(D53,'2011-12 Prelim'!$D$14:$AV$309,45,FALSE) -> 385522 | AY53: 367273 | AZ53: 28490 | BA53: 0.07757172458 | BB53: 0.02656398338 | BC53: 100 | BE53: COLLEGE PLACE | BG53: 5301470 | BI53: =VLOOKUP(BG53,'Ck Conc'!$A$8:$K$306,9,FALSE) -> 457 | BJ53: 44043.55597 | BK53: 10254.71677 | BL53: 0 | BN53: 79152.6 | BO53: =AV53/VLOOKUP(D53,'11-12 Pop P'!$D$9:$K$305,8,FALSE) -> 1117.974576
A54: =VLOOKUP(D54,CCDDD!$A$3:$B$312,2,FALSE) -> 38306 | B54: 53 | C54: WA | D54: 5301500 | E54: COLTON | F54: =VLOOKUP(D54,'11-12 Pop F'!D49:K345,8,FALSE) -> 11 | G54: =VLOOKUP(D54,'11-12 Pop F'!$D$9:$L$305,9,FALSE) -> 212 | H54: =VLOOKUP(D54,'11-12 Pop F'!$D$9:$M$305,10,FALSE) -> 0.05188679245 | J54: =VLOOKUP($D54,'USDOE Alloc 1112F'!$D$9:$Q$305,6,FALSE) -> 7136.979044 | K54: =VLOOKUP($D54,'USDOE Alloc 1112F'!$D$9:$Q$305,7,FALSE) -> 0 | L54: =VLOOKUP($D54,'USDOE Alloc 1112F'!$D$9:$Q$305,8,FALSE) -> 2020.282151 | M54: =VLOOKUP($D54,'USDOE Alloc 1112F'!$D$9:$Q$305,9,FALSE) -> 2530.144217 | N54: 11687.40541 | O54: =VLOOKUP($D54,'USDOE Alloc 1112F'!$D$9:$Q$305,11,FALSE) -> 6752.932872 | P54: =VLOOKUP($D54,'USDOE Alloc 1112F'!$D$9:$Q$305,12,FALSE) -> 0 | Q54: =VLOOKUP($D54,'USDOE Alloc 1112F'!$D$9:$Q$305,13,FALSE) -> 1854.763826 | R54: =VLOOKUP($D54,'USDOE Alloc 1112F'!$D$9:$Q$305,14,FALSE) -> 2338.935715 | S54: =VLOOKUP($D54,'USDOE Alloc 1112F'!$D$9:$R$305,15,FALSE) -> 10946.63241 | T54: 0.9366178401 | U54: =VLOOKUP(D54,'USDOE Alloc 1112F'!$D$9:$T$305,17,FALSE) -> 1215 | W54: 1 | X54: 10180.36811 | AA54: =VLOOKUP(D54,'2010-11 Final w Rev Boundaries'!$D$14:$AV$309,45,FALSE) -> 10952 | AB54: 766.2643041 | AC54: 0 | AD54: 10946.63241 | AF54: 0 | AG54: 0 | AH54: 10946.63241 | AJ54: 0 | AK54: 0 | AL54: 10946.63241 | AN54: 0 | AO54: 0 | AP54: 10946.63241 | AR54: 105.5968034 | AS54: 10841.03561 | AT54: 39 | AV54: 10802 | AW54: -27 | AX54: =VLOOKUP(D54,'2011-12 Prelim'!$D$14:$AV$309,45,FALSE) -> 10829 | AY54: 10952 | AZ54: -150 | BA54: -0.01369612856 | BB54: -0.002493305014 | BC54: 283 | BE54: COLTON | BG54: 5301500 | BH54: Watch List 2012-13 | BI54: =VLOOKUP(BG54,'Ck Conc'!$A$8:$K$306,9,FALSE) -> 0 | BJ54: 0 | BK54: -766.2643041 | BL54: 1 | BN54: 2160.4 | BO54: =AV54/VLOOKUP(D54,'11-12 Pop P'!$D$9:$K$305,8,FALSE) -> 982
A55: =VLOOKUP(D55,CCDDD!$A$3:$B$312,2,FALSE) -> 33206 | B55: 53 | C55: WA | D55: 5301560 | E55: COLUMBIA (STEV) | F55: =VLOOKUP(D55,'11-12 Pop F'!D50:K346,8,FALSE) -> 65 | G55: =VLOOKUP(D55,'11-12 Pop F'!$D$9:$L$305,9,FALSE) -> 212 | H55: =VLOOKUP(D55,'11-12 Pop F'!$D$9:$M$305,10,FALSE) -> 0.3066037736 | J55: =VLOOKUP($D55,'USDOE Alloc 1112F'!$D$9:$Q$305,6,FALSE) -> 36833.40468 | K55: =VLOOKUP($D55,'USDOE Alloc 1112F'!$D$9:$Q$305,7,FALSE) -> 9352.554064 | L55: =VLOOKUP($D55,'USDOE Alloc 1112F'!$D$9:$Q$305,8,FALSE) -> 17253.99117 | M55: =VLOOKUP($D55,'USDOE Alloc 1112F'!$D$9:$Q$305,9,FALSE) -> 21911.2643 | N55: 85351.21421 | O55: =VLOOKUP($D55,'USDOE Alloc 1112F'!$D$9:$Q$305,11,FALSE) -> 39903.69424 | P55: =VLOOKUP($D55,'USDOE Alloc 1112F'!$D$9:$Q$305,12,FALSE) -> 9756.169679 | Q55: =VLOOKUP($D55,'USDOE Alloc 1112F'!$D$9:$Q$305,13,FALSE) -> 17429.4686 | R55: =VLOOKUP($D55,'USDOE Alloc 1112F'!$D$9:$Q$305,14,FALSE) -> 21979.29786 | S55: =VLOOKUP($D55,'USDOE Alloc 1112F'!$D$9:$R$305,15,FALSE) -> 89068.63038 | T55: 1.043554344 | U55: =VLOOKUP(D55,'USDOE Alloc 1112F'!$D$9:$T$305,17,FALSE) -> 1144 | W55: 0 | X55: 82833.82597 | AA55: =VLOOKUP(D55,'2010-11 Final w Rev Boundaries'!$D$14:$AV$309,45,FALSE) -> 84513 | AB55: 1679.174033 | AC55: 0 | AD55: 84513 | AF55: 0 | AG55: 0 | AH55: 84513 | AJ55: 0 | AK55: 0 | AL55: 84513 | AN55: 0 | AO55: 0 | AP55: 84513 | AR55: 815.255533 | AS55: 83697.74447 | AT55: 301 | AV55: 83397 | AW55: -218 | AX55: =VLOOKUP(D55,'2011-12 Prelim'!$D$14:$AV$309,45,FALSE) -> 83615 | AY55: 84513 | AZ55: -1116 | BA55: -0.01320506904 | BB55: -0.002607187706 | BC55: 208 | BE55: COLUMBIA (STEV) | BG55: 5301560 | BI55: =VLOOKUP(BG55,'Ck Conc'!$A$8:$K$306,9,FALSE) -> 50 | BJ55: 0 | BK55: -1679.174033 | BL55: 0 | BN55: 16679.4 | BO55: =AV55/VLOOKUP(D55,'11-12 Pop P'!$D$9:$K$305,8,FALSE) -> 1283.030769
A56: =VLOOKUP(D56,CCDDD!$A$3:$B$312,2,FALSE) -> 36400 | B56: 53 | C56: WA | D56: 5301590 | E56: COLUMBIA (WALLA) | F56: =VLOOKUP(D56,'11-12 Pop F'!D51:K347,8,FALSE) -> 121 | G56: =VLOOKUP(D56,'11-12 Pop F'!$D$9:$L$305,9,FALSE) -> 913 | H56: =VLOOKUP(D56,'11-12 Pop F'!$D$9:$M$305,10,FALSE) -> 0.1325301205 | J56: =VLOOKUP($D56,'USDOE Alloc 1112F'!$D$9:$Q$305,6,FALSE) -> 74613.87182 | K56: =VLOOKUP($D56,'USDOE Alloc 1112F'!$D$9:$Q$305,7,FALSE) -> 0 | L56: =VLOOKUP($D56,'USDOE Alloc 1112F'!$D$9:$Q$305,8,FALSE) -> 21121.13158 | M56: =VLOOKUP($D56,'USDOE Alloc 1112F'!$D$9:$Q$305,9,FALSE) -> 26451.50772 | N56: 122186.5111 | O56: =VLOOKUP($D56,'USDOE Alloc 1112F'!$D$9:$Q$305,11,FALSE) -> 74282.26159 | P56: =VLOOKUP($D56,'USDOE Alloc 1112F'!$D$9:$Q$305,12,FALSE) -> 0 | Q56: =VLOOKUP($D56,'USDOE Alloc 1112F'!$D$9:$Q$305,13,FALSE) -> 20402.40209 | R56: =VLOOKUP($D56,'USDOE Alloc 1112F'!$D$9:$Q$305,14,FALSE) -> 25728.29287 | S56: =VLOOKUP($D56,'USDOE Alloc 1112F'!$D$9:$R$305,15,FALSE) -> 120412.9565 | T56: 0.9854848578 | U56: =VLOOKUP(D56,'USDOE Alloc 1112F'!$D$9:$T$305,17,FALSE) -> 4135 | W56: 1 | X56: 111984.0492 | AA56: =VLOOKUP(D56,'2010-11 Final w Rev Boundaries'!$D$14:$AV$309,45,FALSE) -> 120986 | AB56: 8428.907345 | AC56: 0 | AD56: 120412.9565 | AF56: 0 | AG56: 0 | AH56: 120412.9565 | AJ56: 0 | AK56: 0 | AL56: 120412.9565 | AN56: 0 | AO56: 0 | AP56: 120412.9565 | AR56: 1161.564837 | AS56: 119251.3917 | AT56: 429 | AV56: 118822 | AW56: 688 | AX56: =VLOOKUP(D56,'2011-12 Prelim'!$D$14:$AV$309,45,FALSE) -> 118134 | AY56: 120986 | AZ56: -2164 | BA56: -0.01788636702 | BB56: 0.005823894899 | BC56: 185 | BE56: COLUMBIA (WALLA) | BG56: 5301590 | BI56: =VLOOKUP(BG56,'Ck Conc'!$A$8:$K$306,9,FALSE) -> 0 | BJ56: 0 | BK56: -8428.907345 | BL56: 1 | BN56: 23764.4 | BO56: =AV56/VLOOKUP(D56,'11-12 Pop P'!$D$9:$K$305,8,FALSE) -> 990.1833333
A57: =VLOOKUP(D57,CCDDD!$A$3:$B$312,2,FALSE) -> 33115 | B57: 53 | C57: WA | D57: 5301630 | E57: COLVILLE | F57: =VLOOKUP(D57,'11-12 Pop F'!D52:K348,8,FALSE) -> 435 | G57: =VLOOKUP(D57,'11-12 Pop F'!$D$9:$L$305,9,FALSE) -> 2130 | H57: =VLOOKUP(D57,'11-12 Pop F'!$D$9:$M$305,10,FALSE) -> 0.2042253521 | J57: =VLOOKUP($D57,'USDOE Alloc 1112F'!$D$9:$Q$305,6,FALSE) -> 225045.3968 | K57: =VLOOKUP($D57,'USDOE Alloc 1112F'!$D$9:$Q$305,7,FALSE) -> 57358.7224 | L57: =VLOOKUP($D57,'USDOE Alloc 1112F'!$D$9:$Q$305,8,FALSE) -> 76084.84197 | M57: =VLOOKUP($D57,'USDOE Alloc 1112F'!$D$9:$Q$305,9,FALSE) -> 96621.99691 | N57: 455110.9581 | O57: =VLOOKUP($D57,'USDOE Alloc 1112F'!$D$9:$Q$305,11,FALSE) -> 267047.7999 | P57: =VLOOKUP($D57,'USDOE Alloc 1112F'!$D$9:$Q$305,12,FALSE) -> 65291.28939 | Q57: =VLOOKUP($D57,'USDOE Alloc 1112F'!$D$9:$Q$305,13,FALSE) -> 86391.44242 | R57: =VLOOKUP($D57,'USDOE Alloc 1112F'!$D$9:$Q$305,14,FALSE) -> 108943.2667 | S57: =VLOOKUP($D57,'USDOE Alloc 1112F'!$D$9:$R$305,15,FALSE) -> 527673.7984 | T57: 1.159439888 | U57: =VLOOKUP(D57,'USDOE Alloc 1112F'!$D$9:$T$305,17,FALSE) -> 12390 | W57: 0 | X57: 490736.6308 | AA57: =VLOOKUP(D57,'2010-11 Final w Rev Boundaries'!$D$14:$AV$309,45,FALSE) -> 450640 | AB57: 0 | AC57: 490736.6308 | AD57: 478881.3532 | AF57: 0 | AG57: 478881.3532 | AH57: 478502.1903 | AJ57: 0 | AK57: 478502.1903 | AL57: 478501.8567 | AN57: 0 | AO57: 478501.8567 | AP57: 478501.8567 | AR57: 4615.873135 | AS57: 473885.9836 | AT57: 1706 | AV57: 472180 | AW57: -3164 | AX57: =VLOOKUP(D57,'2011-12 Prelim'!$D$14:$AV$309,45,FALSE) -> 475344 | AY57: 450640 | AZ57: 21540 | BA57: 0.04779868631 | BB57: -0.006656232118 | BC57: 88 | BE57: COLVILLE | BG57: 5301630 | BH57: Poverty/Formula Count >> Prior Year | BI57: =VLOOKUP(BG57,'Ck Conc'!$A$8:$K$306,9,FALSE) -> 597 | BJ57: 40096.63084 | BK57: 12234.77413 | BL57: 0 | BN57: 94436 | BO57: =AV57/VLOOKUP(D57,'11-12 Pop P'!$D$9:$K$305,8,FALSE) -> 1085.471264
A58: =VLOOKUP(D58,CCDDD!$A$3:$B$312,2,FALSE) -> 29011 | B58: 53 | C58: WA | D58: 5301660 | E58: CONCRETE | F58: =VLOOKUP(D58,'11-12 Pop F'!D53:K349,8,FALSE) -> 289 | G58: =VLOOKUP(D58,'11-12 Pop F'!$D$9:$L$305,9,FALSE) -> 1026 | H58: =VLOOKUP(D58,'11-12 Pop F'!$D$9:$M$305,10,FALSE) -> 0.2816764133 | J58: =VLOOKUP($D58,'USDOE Alloc 1112F'!$D$9:$Q$305,6,FALSE) -> 165638.3008 | K58: =VLOOKUP($D58,'USDOE Alloc 1112F'!$D$9:$Q$305,7,FALSE) -> 71286.67496 | L58: =VLOOKUP($D58,'USDOE Alloc 1112F'!$D$9:$Q$305,8,FALSE) -> 72375.86445 | M58: =VLOOKUP($D58,'USDOE Alloc 1112F'!$D$9:$Q$305,9,FALSE) -> 91911.87588 | N58: 401212.7161 | O58: =VLOOKUP($D58,'USDOE Alloc 1112F'!$D$9:$Q$305,11,FALSE) -> 177417.9636 | P58: =VLOOKUP($D58,'USDOE Alloc 1112F'!$D$9:$Q$305,12,FALSE) -> 64158.00746 | Q58: =VLOOKUP($D58,'USDOE Alloc 1112F'!$D$9:$Q$305,13,FALSE) -> 72921.80185 | R58: =VLOOKUP($D58,'USDOE Alloc 1112F'!$D$9:$Q$305,14,FALSE) -> 91957.47963 | S58: =VLOOKUP($D58,'USDOE Alloc 1112F'!$D$9:$R$305,15,FALSE) -> 406455.2526 | T58: 1.013066726 | U58: =VLOOKUP(D58,'USDOE Alloc 1112F'!$D$9:$T$305,17,FALSE) -> 5418 | W58: 0 | X58: 378003.3836 | AA58: =VLOOKUP(D58,'2010-11 Final w Rev Boundaries'!$D$14:$AV$309,45,FALSE) -> 397271 | AB58: 19267.61641 | AC58: 0 | AD58: 397271 | AF58: 0 | AG58: 0 | AH58: 397271 | AJ58: 0 | AK58: 0 | AL58: 397271 | AN58: 0 | AO58: 0 | AP58: 397271 | AR58: 3832.278831 | AS58: 393438.7212 | AT58: 1416 | AV58: 392023 | AW58: -1025 | AX58: =VLOOKUP(D58,'2011-12 Prelim'!$D$14:$AV$309,45,FALSE) -> 393048 | AY58: 397271 | AZ58: -5248 | BA58: -0.01321012609 | BB58: -0.002607823981 | BC58: 101 | BE58: CONCRETE | BG58: 5301660 | BH58: Poverty/Formula Count >> Prior Year | BI58: =VLOOKUP(BG58,'Ck Conc'!$A$8:$K$306,9,FALSE) -> 173 | BJ58: 0 | BK58: -19267.61641 | BL58: 0 | BN58: 78404.6 | BO58: =AV58/VLOOKUP(D58,'11-12 Pop P'!$D$9:$K$305,8,FALSE) -> 1351.803448
A59: =VLOOKUP(D59,CCDDD!$A$3:$B$312,2,FALSE) -> 29317 | B59: 53 | C59: WA | D59: 5301680 | E59: CONWAY | F59: =VLOOKUP(D59,'11-12 Pop F'!D54:K350,8,FALSE) -> 66 | G59: =VLOOKUP(D59,'11-12 Pop F'!$D$9:$L$305,9,FALSE) -> 667 | H59: =VLOOKUP(D59,'11-12 Pop F'!$D$9:$M$305,10,FALSE) -> 0.09895052474 | J59: =VLOOKUP($D59,'USDOE Alloc 1112F'!$D$9:$Q$305,6,FALSE) -> 36732.16543 | K59: =VLOOKUP($D59,'USDOE Alloc 1112F'!$D$9:$Q$305,7,FALSE) -> 196.5357336 | L59: =VLOOKUP($D59,'USDOE Alloc 1112F'!$D$9:$Q$305,8,FALSE) -> 10453.05364 | M59: =VLOOKUP($D59,'USDOE Alloc 1112F'!$D$9:$Q$305,9,FALSE) -> 13095.95182 | N59: 60477.70663 | O59: =VLOOKUP($D59,'USDOE Alloc 1112F'!$D$9:$Q$305,11,FALSE) -> 40517.59723 | P59: =VLOOKUP($D59,'USDOE Alloc 1112F'!$D$9:$Q$305,12,FALSE) -> 0 | Q59: =VLOOKUP($D59,'USDOE Alloc 1112F'!$D$9:$Q$305,13,FALSE) -> 11128.58296 | R59: =VLOOKUP($D59,'USDOE Alloc 1112F'!$D$9:$Q$305,14,FALSE) -> 14033.61429 | S59: =VLOOKUP($D59,'USDOE Alloc 1112F'!$D$9:$R$305,15,FALSE) -> 65679.79448 | T59: 1.086016619 | U59: =VLOOKUP(D59,'USDOE Alloc 1112F'!$D$9:$T$305,17,FALSE) -> 3339 | W59: 0 | X59: 61082.20865 | AA59: =VLOOKUP(D59,'2010-11 Final w Rev Boundaries'!$D$14:$AV$309,45,FALSE) -> 59884 | AB59: 0 | AC59: 61082.20865 | AD59: 59606.57693 | AF59: 277.423069 | AG59: 0 | AH59: 59884 | AJ59: 0 | AK59: 0 | AL59: 59884 | AN59: 0 | AO59: 0 | AP59: 59884 | AR59: 577.6716285 | AS59: 59306.32837 | AT59: 213 | AV59: 59093 | AW59: -967 | AX59: =VLOOKUP(D59,'2011-12 Prelim'!$D$14:$AV$309,45,FALSE) -> 60060 | AY59: 59884 | AZ59: -791 | BA59: -0.01320887048 | BB59: -0.0161005661 | BC59: 228 | BE59: CONWAY | BG59: 5301680 | BI59: =VLOOKUP(BG59,'Ck Conc'!$A$8:$K$306,9,FALSE) -> 0 | BJ59: 1198.208654 | BK59: 1198.208654 | BL59: 0 | BN59: 11818.6 | BO59: =AV59/VLOOKUP(D59,'11-12 Pop P'!$D$9:$K$305,8,FALSE) -> 881.9850746
A60: =VLOOKUP(D60,CCDDD!$A$3:$B$312,2,FALSE) -> 14099 | B60: 53 | C60: WA | D60: 5301710 | E60: COSMOPOLIS | F60: =VLOOKUP(D60,'11-12 Pop F'!D55:K351,8,FALSE) -> 59 | G60: =VLOOKUP(D60,'11-12 Pop F'!$D$9:$L$305,9,FALSE) -> 324 | H60: =VLOOKUP(D60,'11-12 Pop F'!$D$9:$M$305,10,FALSE) -> 0.1820987654 | J60: =VLOOKUP($D60,'USDOE Alloc 1112F'!$D$9:$Q$305,6,FALSE) -> 32685.58169 | K60: =VLOOKUP($D60,'USDOE Alloc 1112F'!$D$9:$Q$305,7,FALSE) -> 8282.182793 | L60: =VLOOKUP($D60,'USDOE Alloc 1112F'!$D$9:$Q$305,8,FALSE) -> 9620.537447 | M60: =VLOOKUP($D60,'USDOE Alloc 1112F'!$D$9:$Q$305,9,FALSE) -> 12217.01096 | N60: 62805.31289 | O60: =VLOOKUP($D60,'USDOE Alloc 1112F'!$D$9:$Q$305,11,FALSE) -> 36220.27631 | P60: =VLOOKUP($D60,'USDOE Alloc 1112F'!$D$9:$Q$305,12,FALSE) -> 8855.600171 | Q60: =VLOOKUP($D60,'USDOE Alloc 1112F'!$D$9:$Q$305,13,FALSE) -> 11025.82904 | R60: =VLOOKUP($D60,'USDOE Alloc 1112F'!$D$9:$Q$305,14,FALSE) -> 13904.03725 | S60: =VLOOKUP($D60,'USDOE Alloc 1112F'!$D$9:$R$305,15,FALSE) -> 70005.74278 | T60: 1.114646828 | U60: =VLOOKUP(D60,'USDOE Alloc 1112F'!$D$9:$T$305,17,FALSE) -> 2011 | W60: 0 | X60: 65105.34056 | AA60: =VLOOKUP(D60,'2010-11 Final w Rev Boundaries'!$D$14:$AV$309,45,FALSE) -> 62188 | AB60: 0 | AC60: 65105.34056 | AD60: 63532.5175 | AF60: 0 | AG60: 63532.5175 | AH60: 63482.21449 | AJ60: 0 | AK60: 63482.21449 | AL60: 63482.17023 | AN60: 0 | AO60: 63482.17023 | AP60: 63482.17023 | AR60: 612.381415 | AS60: 62869.78882 | AT60: 226 | AV60: 62644 | AW60: -1708 | AX60: =VLOOKUP(D60,'2011-12 Prelim'!$D$14:$AV$309,45,FALSE) -> 64352 | AY60: 62188 | AZ60: 456 | BA60: 0.007332604361 | BB60: -0.02654152163 | BC60: 223 | BE60: COSMOPOLIS | BG60: 5301710 | BI60: =VLOOKUP(BG60,'Ck Conc'!$A$8:$K$306,9,FALSE) -> 67 | BJ60: 2917.340557 | BK60: 1623.170324 | BL60: 0 | BN60: 12528.8 | BO60: =AV60/VLOOKUP(D60,'11-12 Pop P'!$D$9:$K$305,8,FALSE) -> 1044.066667
A61: =VLOOKUP(D61,CCDDD!$A$3:$B$312,2,FALSE) -> 13151 | B61: 53 | C61: WA | D61: 5303440 | E61: COULEE-HARTLINE | F61: =VLOOKUP(D61,'11-12 Pop F'!D56:K352,8,FALSE) -> 58 | G61: =VLOOKUP(D61,'11-12 Pop F'!$D$9:$L$305,9,FALSE) -> 292 | H61: =VLOOKUP(D61,'11-12 Pop F'!$D$9:$M$305,10,FALSE) -> 0.198630137 | J61: =VLOOKUP($D61,'USDOE Alloc 1112F'!$D$9:$Q$305,6,FALSE) -> 32247.53011 | K61: =VLOOKUP($D61,'USDOE Alloc 1112F'!$D$9:$Q$305,7,FALSE) -> 8188.131708 | L61: =VLOOKUP($D61,'USDOE Alloc 1112F'!$D$9:$Q$305,8,FALSE) -> 10855.68982 | M61: =VLOOKUP($D61,'USDOE Alloc 1112F'!$D$9:$Q$305,9,FALSE) -> 13785.90533 | N61: 65077.25697 | O61: =VLOOKUP($D61,'USDOE Alloc 1112F'!$D$9:$Q$305,11,FALSE) -> 35606.37332 | P61: =VLOOKUP($D61,'USDOE Alloc 1112F'!$D$9:$Q$305,12,FALSE) -> 8705.505252 | Q61: =VLOOKUP($D61,'USDOE Alloc 1112F'!$D$9:$Q$305,13,FALSE) -> 11361.23779 | R61: =VLOOKUP($D61,'USDOE Alloc 1112F'!$D$9:$Q$305,14,FALSE) -> 14327.00188 | S61: =VLOOKUP($D61,'USDOE Alloc 1112F'!$D$9:$R$305,15,FALSE) -> 70000.11824 | T61: 1.075646416 | U61: =VLOOKUP(D61,'USDOE Alloc 1112F'!$D$9:$T$305,17,FALSE) -> 1630 | W61: 0 | X61: 65100.10974 | AA61: =VLOOKUP(D61,'2010-11 Final w Rev Boundaries'!$D$14:$AV$309,45,FALSE) -> 64438 | AB61: 0 | AC61: 65100.10974 | AD61: 63527.41306 | AF61: 910.586943 | AG61: 0 | AH61: 64438 | AJ61: 0 | AK61: 0 | AL61: 64438 | AN61: 0 | AO61: 0 | AP61: 64438 | AR61: 621.6018368 | AS61: 63816.39816 | AT61: 230 | AV61: 63586 | AW61: -167 | AX61: =VLOOKUP(D61,'2011-12 Prelim'!$D$14:$AV$309,45,FALSE) -> 63753 | AY61: 64438 | AZ61: -852 | BA61: -0.01322201186 | BB61: -0.002619484573 | BC61: 221 | BE61: COULEE-HARTLINE | BG61: 5303440 | BI61: =VLOOKUP(BG61,'Ck Conc'!$A$8:$K$306,9,FALSE) -> 40 | BJ61: 662.1097427 | BK61: 662.1097427 | BL61: 0 | BN61: 12717.2 | BO61: =AV61/VLOOKUP(D61,'11-12 Pop P'!$D$9:$K$305,8,FALSE) -> 1096.310345
A62: =VLOOKUP(D62,CCDDD!$A$3:$B$312,2,FALSE) -> 15204 | B62: 53 | C62: WA | D62: 5301800 | E62: COUPEVILLE | F62: =VLOOKUP(D62,'11-12 Pop F'!D57:K353,8,FALSE) -> 129 | G62: =VLOOKUP(D62,'11-12 Pop F'!$D$9:$L$305,9,FALSE) -> 1059 | H62: =VLOOKUP(D62,'11-12 Pop F'!$D$9:$M$305,10,FALSE) -> 0.1218130312 | J62: =VLOOKUP($D62,'USDOE Alloc 1112F'!$D$9:$Q$305,6,FALSE) -> 76834.47527 | K62: =VLOOKUP($D62,'USDOE Alloc 1112F'!$D$9:$Q$305,7,FALSE) -> 0 | L62: =VLOOKUP($D62,'USDOE Alloc 1112F'!$D$9:$Q$305,8,FALSE) -> 21760.45116 | M62: =VLOOKUP($D62,'USDOE Alloc 1112F'!$D$9:$Q$305,9,FALSE) -> 27252.17348 | N62: 125847.0999 | O62: =VLOOKUP($D62,'USDOE Alloc 1112F'!$D$9:$Q$305,11,FALSE) -> 79193.4855 | P62: =VLOOKUP($D62,'USDOE Alloc 1112F'!$D$9:$Q$305,12,FALSE) -> 0 | Q62: =VLOOKUP($D62,'USDOE Alloc 1112F'!$D$9:$Q$305,13,FALSE) -> 21751.32124 | R62: =VLOOKUP($D62,'USDOE Alloc 1112F'!$D$9:$Q$305,14,FALSE) -> 27429.33702 | S62: =VLOOKUP($D62,'USDOE Alloc 1112F'!$D$9:$R$305,15,FALSE) -> 128374.1438 | T62: 1.020080271 | U62: =VLOOKUP(D62,'USDOE Alloc 1112F'!$D$9:$T$305,17,FALSE) -> 9537 | W62: 0 | X62: 119387.9533 | AA62: =VLOOKUP(D62,'2010-11 Final w Rev Boundaries'!$D$14:$AV$309,45,FALSE) -> 124611 | AB62: 5223.046722 | AC62: 0 | AD62: 124611 | AF62: 0 | AG62: 0 | AH62: 124611 | AJ62: 0 | AK62: 0 | AL62: 124611 | AN62: 0 | AO62: 0 | AP62: 124611 | AR62: 1202.061307 | AS62: 123408.9387 | AT62: 444 | AV62: 122965 | AW62: 17133 | AX62: =VLOOKUP(D62,'2011-12 Prelim'!$D$14:$AV$309,45,FALSE) -> 105832 | AY62: 124611 | AZ62: -1646 | BA62: -0.01320910674 | BB62: 0.1618886537 | BC62: 183 | BE62: COUPEVILLE | BG62: 5301800 | BI62: =VLOOKUP(BG62,'Ck Conc'!$A$8:$K$306,9,FALSE) -> 215 | BJ62: 0 | BK62: -5223.046722 | BL62: 0 | BN62: 24593 | BO62: =AV62/VLOOKUP(D62,'11-12 Pop P'!$D$9:$K$305,8,FALSE) -> 1182.355769
... 77 more rows

Sheet District
A1: 1 | B1: 1 | C1: TITLE I DISTRICT REPORT
A2: 2 | B2: Type district name or select from drop-down list in cell C3
A3: 3 | B3: Enter Name | C3: ABERDEEN | F3: CURRENT YEAR | G3: HISTORICAL DATA
A4: 4 | B4: Names are in column AE | C4: =VLOOKUP(C3,CCDDD!D:E,2,FALSE) -> 5300030 | D4: Final | E4: % Inc (Dec) | F4: Final | G4: Prelim | H4: Rev. Final | I4: % Inc (Dec) | J4: Prelim | K4: Final | L4: % Inc (Dec) | M4: Prelim | N4: Final | O4: % Inc (Dec) | P4: Prelim | Q4: Final | R4: % Inc (Dec) | S4: Prelim | T4: Revised Final | U4: % Inc (Dec) | V4: Prelim | W4: Final | X4: % Inc (Dec) | Y4: Final | Z4: % Inc (Dec) | AA4: Final | AB4: % Inc (Dec) | AC4: Final
A5: 5 | D5: 2020-21 | E5: of Prior Year | F5: 2021-22 | G5: 2021-22 | H5: 2020-21 | I5: of Prior Year | J5: 2020-21 | K5: 2019-20 | L5: of Prior Year | M5: 2019-20 | N5: 2018-19 | O5: of Prior Year | P5: 2018-19 | Q5: 2017-18 | R5: of Prior Year | S5: 2017-18 | T5: 2016-17 | U5: of Prior Year | V5: 2016-17 | W5: 2015-16 | X5: of Prior Year | Y5: 2014-15 | Z5: of Prior Year | AA5: 2013-14 | AB5: of Prior Year | AC5: 2012-13
A6: 6 | B6: ALLOCATION
A7: 7 | B7: Basic | D7: =VLOOKUP($C$4,'USDOE Alloc 1920F'!$D$9:$Q$342,8,FALSE) -> 711322.925 | E7: =IF(AND(D7>0,Q7=0),1,IFERROR(D7/Q7,0)) -> 1.330655009 | F7: =VLOOKUP($C$4,'USDOE Alloc 2122F'!$D$9:$Q$339,8,FALSE) -> 643812.8695 | G7: =VLOOKUP($C$4,'USDOE Alloc 2022P'!$D$9:$Q$350,8,FALSE) -> 650679.0879 | H7: =VLOOKUP($C$4,'USDOE Alloc 2021Rev.F'!$D$9:$Q$350,8,FALSE) -> 670431.2612 | I7: =IF(AND(H7>0,K7=0),1,IFERROR(H7/K7,0))-1 -> -0.05748677896 | J7: =VLOOKUP($C$4,'USDOE Alloc 2021P'!$D$9:$Q$350,8,FALSE) -> 670573.702 | K7: =IFERROR(VLOOKUP($C$4,'USDOE Alloc 1920F'!$D$9:$Q$342,8,FALSE),0) -> 711322.925 | L7: =IF(AND(K7>0,N7=0),1,IFERROR(K7/N7,0))-1 -> 0.2485796323 | M7: =IFERROR(VLOOKUP($C$4,'USDOE Alloc 1920P'!$D$9:$Q$350,8,FALSE),0) -> 717819.7307 | N7: =IFERROR(VLOOKUP($C$4,'USDOE Alloc 1819F'!$D$9:$Q$351,8,FALSE),0) -> 569705.6933 | O7: =IF(AND(N7>0,Q7=0),1,IFERROR(N7/Q7,0))-1 -> 0.06573499594 | P7: =IFERROR(VLOOKUP($C$4,'USDOE Alloc 1819P'!$D$9:$Q$351,8,FALSE),0) -> 574480.4317 | Q7: =IFERROR(VLOOKUP($C$4,'USDOE Alloc 1718F'!$D$9:$Q$320,8,FALSE),0) -> 534565.9995 | R7: =IF(AND(Q7>0,T7=0),1,IFERROR(Q7/T7,0))-1 -> 0.02888397396 | S7: =IFERROR(VLOOKUP($C$4,'USDOE Alloc 1718P'!$D$9:$Q$320,8,FALSE),0) -> 533844.348 | T7: =IFERROR(VLOOKUP($C$4,'USDOE Alloc 1617F'!$D$9:$Q$319,8,FALSE),0) -> 519559.0688 | U7: =IF(AND(T7>0,W7=0),1,IFERROR(T7/W7,0)) -> 0.9973272647 | V7: =IFERROR(VLOOKUP($C$4,'USDOE Alloc 1617P'!$D$9:$Q$320,8,FALSE),0) -> 524440.3009 | W7: =IFERROR(VLOOKUP($C$4,'USDOE Alloc 1516F'!$D$9:$Q$306,8,FALSE),0) -> 520951.4341 | X7: =IF(AND(Y7=0,W7=0),0,IF(Y7=0,1,W7/Y7)) -> 0.9835374056 | Y7: =IFERROR(VLOOKUP($C$4,'USDOE Alloc 1415F'!$D$9:$Q$306,8,FALSE),0) -> 529671.1962 | Z7: =IF(AND(AA7=0,Y7=0),0,IF(AA7=0,1,Y7/AA7)) -> 1.121794186 | AA7: =IFERROR(VLOOKUP($C$4,'USDOE Alloc 1314F'!$D$9:$Q$306,11,FALSE),0) -> 472164.3264 | AB7: =IF(AND(AC7=0,AA7=0),0,IF(AC7=0,1,AA7/AC7)) -> 0.8999279062 | AC7: =IFERROR(VLOOKUP($C$3,'USDOE Alloc 1213F'!$E$9:$Q$305,10,FALSE),0) -> 524669.0575
A8: 8 | B8: Concentration | D8: =VLOOKUP($C$4,'USDOE Alloc 1920F'!$D$9:$Q$342,9,FALSE) -> 174113.5966 | E8: =IF(AND(D8>0,Q8=0),1,IFERROR(D8/Q8,0)) -> 1.363538241 | F8: =VLOOKUP($C$4,'USDOE Alloc 2122F'!$D$9:$Q$339,9,FALSE) -> 163517.1354 | G8: =VLOOKUP($C$4,'USDOE Alloc 2022P'!$D$9:$Q$350,9,FALSE) -> 165109.7439 | H8: =VLOOKUP($C$4,'USDOE Alloc 2021Rev.F'!$D$9:$Q$350,9,FALSE) -> 165729.6632 | I8: =IF(AND(H8>0,K8=0),1,IFERROR(H8/K8,0))-1 -> -0.04815208888 | J8: =VLOOKUP($C$4,'USDOE Alloc 2021P'!$D$9:$Q$350,9,FALSE) -> 165800.9693 | K8: =IFERROR(VLOOKUP($C$4,'USDOE Alloc 1920F'!$D$9:$Q$342,9,FALSE),0) -> 174113.5966 | L8: =IF(AND(K8>0,N8=0),1,IFERROR(K8/N8,0))-1 -> 0.2674718537 | M8: =IFERROR(VLOOKUP($C$4,'USDOE Alloc 1920P'!$D$9:$Q$350,9,FALSE),0) -> 175707.2522 | N8: =IFERROR(VLOOKUP($C$4,'USDOE Alloc 1819F'!$D$9:$Q$351,9,FALSE),0) -> 137370.7796 | O8: =IF(AND(N8>0,Q8=0),1,IFERROR(N8/Q8,0))-1 -> 0.07579370502 | P8: =IFERROR(VLOOKUP($C$4,'USDOE Alloc 1819P'!$D$9:$Q$351,9,FALSE),0) -> 138533.9532 | Q8: =IFERROR(VLOOKUP($C$4,'USDOE Alloc 1718F'!$D$9:$Q$320,9,FALSE),0) -> 127692.4925 | R8: =IF(AND(Q8>0,T8=0),1,IFERROR(Q8/T8,0))-1 -> 0.0363481456 | S8: =IFERROR(VLOOKUP($C$4,'USDOE Alloc 1718P'!$D$9:$Q$320,9,FALSE),0) -> 127526.7239 | T8: =IFERROR(VLOOKUP($C$4,'USDOE Alloc 1617F'!$D$9:$Q$319,9,FALSE),0) -> 123213.8958 | U8: =IF(AND(T8>0,W8=0),1,IFERROR(T8/W8,0)) -> 0.999602368 | V8: =IFERROR(VLOOKUP($C$4,'USDOE Alloc 1617P'!$D$9:$Q$320,9,FALSE),0) -> 124975.2216 | W8: =IFERROR(VLOOKUP($C$4,'USDOE Alloc 1516F'!$D$9:$Q$306,9,FALSE),0) -> 123262.9091 | X8: =IF(AND(Y8=0,W8=0),0,IF(Y8=0,1,W8/Y8)) -> 0.9828031736 | Y8: =IFERROR(VLOOKUP($C$4,'USDOE Alloc 1415F'!$D$9:$Q$306,9,FALSE),0) -> 125419.7304 | Z8: =IF(AND(AA8=0,Y8=0),0,IF(AA8=0,1,Y8/AA8)) -> 1.15016751 | AA8: =IFERROR(VLOOKUP($C$4,'USDOE Alloc 1314F'!$D$9:$Q$306,12,FALSE),0) -> 109044.7516 | AB8: =IF(AND(AC8=0,AA8=0),0,IF(AC8=0,1,AA8/AC8)) -> 0.8999956403 | AC8: =IFERROR(VLOOKUP($C$3,'USDOE Alloc 1213F'!$E$9:$Q$305,11,FALSE),0) -> 121161.422
A9: 9 | B9: Targeted | D9: =VLOOKUP($C$4,'USDOE Alloc 1920F'!$D$9:$Q$342,10,FALSE) -> 410470.943 | E9: =IF(AND(D9>0,Q9=0),1,IFERROR(D9/Q9,0)) -> 1.55844673 | F9: =VLOOKUP($C$4,'USDOE Alloc 2122F'!$D$9:$Q$339,10,FALSE) -> 332491.8556 | G9: =VLOOKUP($C$4,'USDOE Alloc 2022P'!$D$9:$Q$350,10,FALSE) -> 332481.4639 | H9: =VLOOKUP($C$4,'USDOE Alloc 2021Rev.F'!$D$9:$Q$350,10,FALSE) -> 369423.8487 | I9: =IF(AND(H9>0,K9=0),1,IFERROR(H9/K9,0))-1 -> -0.1 | J9: =VLOOKUP($C$4,'USDOE Alloc 2021P'!$D$9:$Q$350,10,FALSE) -> 369423.8487 | K9: =IFERROR(VLOOKUP($C$4,'USDOE Alloc 1920F'!$D$9:$Q$342,10,FALSE),0) -> 410470.943 | L9: =IF(AND(K9>0,N9=0),1,IFERROR(K9/N9,0))-1 -> 0.4370384785 | M9: =IFERROR(VLOOKUP($C$4,'USDOE Alloc 1920P'!$D$9:$Q$350,10,FALSE),0) -> 417566.7798 | N9: =IFERROR(VLOOKUP($C$4,'USDOE Alloc 1819F'!$D$9:$Q$351,10,FALSE),0) -> 285636.7099 | O9: =IF(AND(N9>0,Q9=0),1,IFERROR(N9/Q9,0))-1 -> 0.08448503866 | P9: =IFERROR(VLOOKUP($C$4,'USDOE Alloc 1819P'!$D$9:$Q$351,10,FALSE),0) -> 290619.8662 | Q9: =IFERROR(VLOOKUP($C$4,'USDOE Alloc 1718F'!$D$9:$Q$320,10,FALSE),0) -> 263384.6478 | R9: =IF(AND(Q9>0,T9=0),1,IFERROR(Q9/T9,0))-1 -> 0.1097146079 | S9: =IFERROR(VLOOKUP($C$4,'USDOE Alloc 1718P'!$D$9:$Q$320,10,FALSE),0) -> 263031.4955 | T9: =IFERROR(VLOOKUP($C$4,'USDOE Alloc 1617F'!$D$9:$Q$319,10,FALSE),0) -> 237344.4901 | U9: =IF(AND(T9>0,W9=0),1,IFERROR(T9/W9,0)) -> 1.053668051 | V9: =IFERROR(VLOOKUP($C$4,'USDOE Alloc 1617P'!$D$9:$Q$320,10,FALSE),0) -> 241649.4275 | W9: =IFERROR(VLOOKUP($C$4,'USDOE Alloc 1516F'!$D$9:$Q$306,10,FALSE),0) -> 225255.4682 | X9: =IF(AND(Y9=0,W9=0),0,IF(Y9=0,1,W9/Y9)) -> 0.9566374452 | Y9: =IFERROR(VLOOKUP($C$4,'USDOE Alloc 1415F'!$D$9:$Q$306,10,FALSE),0) -> 235465.8699 | Z9: =IF(AND(AA9=0,Y9=0),0,IF(AA9=0,1,Y9/AA9)) -> 1.183989117 | AA9: =IFERROR(VLOOKUP($C$4,'USDOE Alloc 1314F'!$D$9:$Q$306,13,FALSE),0) -> 198875.029 | AB9: =IF(AND(AC9=0,AA9=0),0,IF(AC9=0,1,AA9/AC9)) -> 0.8999912052 | AC9: =IFERROR(VLOOKUP($C$3,'USDOE Alloc 1213F'!$E$9:$Q$305,12,FALSE),0) -> 220974.4138
A10: 10 | B10: EFIG | D10: =VLOOKUP($C$4,'USDOE Alloc 1920F'!$D$9:$Q$342,11,FALSE) -> 518010.9538 | E10: =IF(AND(D10>0,Q10=0),1,IFERROR(D10/Q10,0)) -> 1.54395479 | F10: =VLOOKUP($C$4,'USDOE Alloc 2122F'!$D$9:$Q$339,11,FALSE) -> 441433.6488 | G10: =VLOOKUP($C$4,'USDOE Alloc 2022P'!$D$9:$Q$350,11,FALSE) -> 441222.7741 | H10: =VLOOKUP($C$4,'USDOE Alloc 2021Rev.F'!$D$9:$Q$350,11,FALSE) -> 490247.5267 | I10: =IF(AND(H10>0,K10=0),1,IFERROR(H10/K10,0))-1 -> -0.05359621625 | J10: =VLOOKUP($C$4,'USDOE Alloc 2021P'!$D$9:$Q$350,11,FALSE) -> 486272.778 | K10: =IFERROR(VLOOKUP($C$4,'USDOE Alloc 1920F'!$D$9:$Q$342,11,FALSE),0) -> 518010.9538 | L10: =IF(AND(K10>0,N10=0),1,IFERROR(K10/N10,0))-1 -> 0.4088698126 | M10: =IFERROR(VLOOKUP($C$4,'USDOE Alloc 1920P'!$D$9:$Q$350,11,FALSE),0) -> 525028.6043 | N10: =IFERROR(VLOOKUP($C$4,'USDOE Alloc 1819F'!$D$9:$Q$351,11,FALSE),0) -> 367678.3683 | O10: =IF(AND(N10>0,Q10=0),1,IFERROR(N10/Q10,0))-1 -> 0.09588180241 | P10: =IFERROR(VLOOKUP($C$4,'USDOE Alloc 1819P'!$D$9:$Q$351,11,FALSE),0) -> 375419.1397 | Q10: =IFERROR(VLOOKUP($C$4,'USDOE Alloc 1718F'!$D$9:$Q$320,11,FALSE),0) -> 335509.1466 | R10: =IF(AND(Q10>0,T10=0),1,IFERROR(Q10/T10,0))-1 -> 0.1448515023 | S10: =IFERROR(VLOOKUP($C$4,'USDOE Alloc 1718P'!$D$9:$Q$320,11,FALSE),0) -> 335284.3214 | T10: =IFERROR(VLOOKUP($C$4,'USDOE Alloc 1617F'!$D$9:$Q$319,11,FALSE),0) -> 293059.0963 | U10: =IF(AND(T10>0,W10=0),1,IFERROR(T10/W10,0)) -> 1.075840991 | V10: =IFERROR(VLOOKUP($C$4,'USDOE Alloc 1617P'!$D$9:$Q$320,11,FALSE),0) -> 297588.2502 | W10: =IFERROR(VLOOKUP($C$4,'USDOE Alloc 1516F'!$D$9:$Q$306,11,FALSE),0) -> 272400.0096 | X10: =IF(AND(Y10=0,W10=0),0,IF(Y10=0,1,W10/Y10)) -> 0.9516202347 | Y10: =IFERROR(VLOOKUP($C$4,'USDOE Alloc 1415F'!$D$9:$Q$306,11,FALSE),0) -> 286248.6522 | Z10: =IF(AND(AA10=0,Y10=0),0,IF(AA10=0,1,Y10/AA10)) -> 1.220607206 | AA10: =IFERROR(VLOOKUP($C$4,'USDOE Alloc 1314F'!$D$9:$Q$306,14,FALSE),0) -> 234513.3233 | AB10: =IF(AND(AC10=0,AA10=0),0,IF(AC10=0,1,AA10/AC10)) -> 0.9003282054 | AC10: =IFERROR(VLOOKUP($C$3,'USDOE Alloc 1213F'!$E$9:$Q$305,13,FALSE),0) -> 260475.3709
A11: 11 | B11: Total per Department of Education | D11: =SUM(D7:D10) -> 1813918.418 | E11: =IF(Q11=0,0,D11/Q11) -> 1.438302446 | F11: =SUM(F7:F10) -> 1581255.509 | G11: =SUM(G7:G10) -> 1589493.07 | H11: =SUM(H7:H10) -> 1695832.3 | I11: =IF(K11=0,0,H11/K11)-1 -> -0.06510001627 | J11: =SUM(J7:J10) -> 1692071.298 | K11: =SUM(K7:K10) -> 1813918.418 | L11: =IF(N11=0,0,K11/N11)-1 -> 0.3333796561 | M11: =SUM(M7:M10) -> 1836122.367 | N11: =SUM(N7:N10) -> 1360391.551 | O11: =IF(Q11=0,0,N11/Q11)-1 -> 0.0786893588 | P11: =SUM(P7:P10) -> 1379053.391 | Q11: =SUM(Q7:Q10)-IF(C3="Seattle",4,0) -> 1261152.286 | R11: =IF(T11=0,0,Q11/T11)-1 -> 0.07498934 | S11: =SUM(S7:S10)-IF(C3="Seattle",4,0) -> 1259686.889 | T11: =SUM(T7:T10) -> 1173176.551 | U11: =IF(W11=0,0,T11/W11) -> 1.027417075 | V11: =SUM(V7:V10) -> 1188653.2 | W11: =SUM(W7:W10) -> 1141869.821 | X11: =IF(AND(Y11=0,W11=0),0,IF(Y11=0,1,W11/Y11)) -> 0.9703131662 | Y11: =SUM(Y7:Y10) -> 1176805.449 | Z11: =IF(AND(AA11=0,Y11=0),0,IF(AA11=0,1,Y11/AA11)) -> 1.159874265 | AA11: =SUM(AA7:AA10) -> 1014597.43 | AB11: =IF(AND(AC11=0,AA11=0),0,IF(AC11=0,1,AA11/AC11)) -> 0.9000400898 | AC11: =SUM(AC7:AC10) -> 1127280.264
A12: 12 | B12: Prior Year Adjustment - | C12: US Dept of Ed adjustment for prior year allocation | D12: =IFERROR(VLOOKUP($C$3,'2019-20 Final'!$E$9:$CB$351,16,FALSE),0)-IFERROR(VLOOKUP($C$3,'2019-20 Final'!$E$9:$CB$351,11,FALSE),0) -> -711321.5916 | K12: =IFERROR(VLOOKUP($C$3,'2019-20 Final'!$E$9:$CB$351,16,FALSE),0)-IFERROR(VLOOKUP($C$3,'2019-20 Final'!$E$9:$CB$351,11,FALSE),0) -> -711321.5916 | N12: =IFERROR(VLOOKUP($C$3,'2018-19 Final'!$E$9:$CB$351,16,FALSE),0)-IFERROR(VLOOKUP($C$3,'2018-19 Final'!$E$9:$CB$351,11,FALSE),0) -> -569704.6146 | T12: =IFERROR(VLOOKUP($C$3,'2016-17 Final'!$E$9:$CB$319,76,FALSE),0) -> 21 | V12: =IFERROR(VLOOKUP($C$3,'2016-17 Final'!$E$9:$CB$319,76,FALSE),0) -> 21 | W12: =IF(C3="Mary Walker",247424,0) -> 0 | Y12: =IFERROR(VLOOKUP(C4,'USDOE Alloc 1415F'!$D$9:$M$313,7,FALSE),0)-IFERROR(VLOOKUP(C4,'USDOE Alloc 1314F'!$D$9:$R$313,15,FALSE),0) -> 0 | AA12: =IFERROR(VLOOKUP(C4,'USDOE Alloc 1314F'!$D$9:$M$306,10,FALSE),0)-IFERROR(VLOOKUP(C4,'USDOE Alloc 1213F'!$D$9:$R$305,15,FALSE),0) -> 50.21377838
A13: 13 | B13: Gross Allocation | D13: =D12+D11 -> 1102596.827 | E13: =IF(Q13=0,0,D13/Q13) -> 0.8742773088 | F13: =F12+F11 -> 1581255.509 | G13: =G12+G11 -> 1589493.07 | H13: =H12+H11 -> 1695832.3 | I13: =IF(K13=0,0,H13/K13)-1 -> 0.5380348089 | J13: =J12+J11 -> 1692071.298 | K13: =K12+K11 -> 1102596.827 | L13: =IF(N13=0,0,K13/N13)-1 -> 0.3944796303 | M13: =M12+M11 -> 1836122.367 | N13: =N12+N11 -> 790686.9365 | O13: =IF(Q13=0,0,N13/Q13)-1 -> -0.3730440447 | P13: =P12+P11 -> 1379053.391 | Q13: =Q12+Q11 -> 1261152.286 | R13: =IF(T13=0,0,Q13/T13)-1 -> 0.07497009791 | S13: =S12+S11 -> 1259686.889 | T13: =T12+T11 -> 1173197.551 | U13: =IF(W13=0,0,T13/W13) -> 1.027435465 | V13: =V12+V11 -> 1188674.2 | W13: =IFERROR(VLOOKUP($C$3,'2015-16 Final'!$E$13:$AZ$311,15,FALSE),0) -> 1141869.821 | X13: =IF(AND(Y13=0,W13=0),0,IF(Y13=0,1,W13/Y13)) -> 0.9703131662 | Y13: =IFERROR(VLOOKUP($C$3,'2014-15 Final'!$E$13:$AZ$311,15,FALSE),0) -> 1176805.449 | Z13: =Y13-AA13 -> 162157.8048 | AA13: =IFERROR(VLOOKUP($C$3,'2013-14 Final'!$E$13:$AW$311,15,FALSE),0) -> 1014647.644 | AB13: =AA13-AC13 -> -112632.6202 | AC13: =+AC11 -> 1127280.264
A14: 14 | B14: Adjustments:
A15: 15 | B15: Less School Improvement | D15: =ROUND(D11*'2019-20 Final'!$X$3*-1,0) -> -126974 | E15: =+D15-Q15 -> -36547 | F15: =ROUND(F11*'2021-22 FInal'!$BA$3*-1,0) -> -110688 | G15: =ROUND(G11*'2021-22 Prelim'!$BA$3*-1,0) -> -111265 | H15: =ROUND(H11*'2020-21 Rev. Final'!$X$3*-1,0) -> -118708 | I15: =H15-K15 -> 8266 | J15: =ROUND(J11*'2020-21 Prelim'!$X$3*-1,0) -> -118445 | K15: =ROUND(K11*'2019-20 Final'!$X$3*-1,0) -> -126974 | L15: =K15-N15 -> -29203 | M15: =ROUND(M11*'2019-20 Prelim'!$X$3*-1,0) -> -128529 | N15: =ROUND(N11*'2018-19 Final'!$X$3*-1,0) -> -97771 | O15: =+N15-Q15 -> -7344 | P15: =ROUND(P11*'2018-19 Prelim'!$X$3*-1,0) -> -99111 | Q15: =ROUND(Q11*'2017-18 Final'!$X$3*-1,0) -> -90427 | R15: =Q15-T15 -> -43500 | S15: =ROUND(S11*'2017-18 Prelim'!$X$3*-1,0) -> -90404 | T15: =ROUND(T11*0.04*-1,0) -> -46927 | U15: =+T15-W15 -> -1252 | V15: =ROUND(V11*0.04*-1,0) -> -47546 | W15: =ROUND(W11*0.04*-1,0) -> -45675 | X15: =+W15-Y15 -> 1397 | Y15: =ROUND(Y11*0.04*-1,0) -> -47072 | Z15: =+Y15-AA15 -> 0 | AA15: =ROUND(Y13*0.04*-1,0) -> -47072 | AB15: =+AA15-AC15 -> -1980.789432 | AC15: =AC13*0.04*-1 -> -45091.21057
A16: 16 | B16: Plus (Minus) School Imp from Pool Note 1 below | D16: =D60-D39 -> 0 | E16: =+D16-ISERR(0) -> 0 | F16: =F60-F39 -> 118893.4071 | G16: =G60-G39 -> 110639.6964 | H16: =H60-H39 -> 67614.96017 | I16: =H16-K16 -> 67614.96017 | J16: =J60-J39 -> 67877.92357 | K16: =K60-K39 -> 0 | L16: =K16-N16 -> 91894.4047 | M16: =M60-M39 -> -27463.98116 | N16: =N60-N39 -> -91894.4047 | P16: =Q60-P39 -> -193204.1222 | Q16: NA | S16: NA | T16: =Q60-T39 -> -39511 | U16: =+T16-W16 -> -42702 | V16: =S60-V39 -> -51331.58564 | W16: =T60-W39 -> 3191 | X16: =+W16-Y16 -> 20457.68637 | Y16: =V60-Y39 -> -17266.68637 | Z16: =+Y16-AA16 -> -40302.68637 | AA16: =X60-AA39 -> 23036 | AB16: =+AA16-AC16 -> 97898.4685 | AC16: =Z60-AC39 -> -74862.4685
A17: 17 | B17: Less proportionate share of State Admin | D17: =VLOOKUP($C$3,'2019-20 Final'!$E$14:$AR$351,40,FALSE)*-1 -> -15737.3378 | E17: =+D17-Q17 -> -4546.788496 | F17: =VLOOKUP($C$4,'2021-22 FInal'!$D$14:$CC$351,70,FALSE)*-1 -> -12908.28626 | G17: =VLOOKUP($C$4,'2021-22 Prelim'!$D$14:$CC$351,70,FALSE)*-1 -> -12932.24228 | H17: =IFERROR(VLOOKUP($C$4,'2020-21 Rev. Final'!$D$14:$AR$351,41,FALSE)*-1,0) -> -14947.75072 | I17: 789.5870784 | J17: =VLOOKUP($C$4,'2020-21 Prelim'!$D$14:$AR$351,41,FALSE)*-1 -> -14940.86893 | K17: =IFERROR(VLOOKUP($C$3,'2019-20 Final'!$E$14:$AR$351,40,FALSE)*-1,0) -> -15737.3378 | L17: -4788.155464 | M17: =IFERROR(VLOOKUP($C$4,'2019-20 Prelim'!$D$14:$AR$351,41,FALSE)*-1,0) -> -15901.34802 | N17: =IFERROR(VLOOKUP($C$4,'2018-19 Final'!$D$14:$AR$351,41,FALSE)*-1,0) -> -10949.18233 | O17: =+N17-Q17 -> 241.3669679 | P17: =IFERROR(VLOOKUP($C$3,'2018-19 Prelim'!$E$14:$AR$351,40,FALSE)*-1,0) -> -11110.40945 | Q17: =IFERROR(VLOOKUP($C$4,'2017-18 Final'!$D$14:$AR$321,41,FALSE)*-1,0) -> -11190.5493 | R17: =Q17-T17 -> -811.6424159 | S17: =IFERROR(VLOOKUP($C$4,'2017-18 Prelim'!$D$14:$AR$320,41,FALSE)*-1,0) -> -11184.67288 | T17: =IFERROR(VLOOKUP($C$3,'2016-17 Final'!$E$14:$AR$319,40,FALSE)*-1,0) -> -10378.90688 | U17: =+T17-W17 -> 252.112302 | V17: =IFERROR(VLOOKUP($C$3,'2016-17 Prelim'!$E$14:$AR$320,40,FALSE)*-1,0) -> -10376.05872 | W17: =IFERROR(VLOOKUP($C$3,'2015-16 Final'!$E$14:$AR$310,40,FALSE)*-1,0) -> -10631.01919 | X17: =+W17-Y17 -> 266.2116901 | Y17: =IFERROR(VLOOKUP($C$3,'2014-15 Final'!$E$14:$AR$310,40,FALSE)*-1,0) -> -10897.23088 | Z17: =+Y17-AA17 -> -690.6137377 | AA17: =IFERROR(VLOOKUP($C$3,'2013-14 Final'!$E$14:$AR$309,40,FALSE)*-1,0) -> -10206.61714 | AB17: =+AA17-AC17 -> -537.015494 | AC17: =IFERROR(VLOOKUP($C$3,'2012-13 Final'!$E$14:$AR$309,40,FALSE)*-1,0) -> -9669.601645
A18: 18 | B18: Less proportionate share of Awards | D18: =VLOOKUP($C$3,'2019-20 Final'!$E$14:$AT$351,42,FALSE)*-1 -> 0 | E18: =+D18-Q18 -> 0 | F18: =VLOOKUP($C$4,'2021-22 FInal'!$D$14:$CC$351,72,FALSE)*-1 -> 0 | G18: =VLOOKUP($C$4,'2021-22 Prelim'!$D$14:$CC$351,72,FALSE)*-1 -> 0 | H18: =IFERROR(VLOOKUP($C$4,'2020-21 Rev. Final'!$D$14:$AT$351,43,FALSE)*-1,0) -> 0 | I18: 0 | J18: =VLOOKUP($C$4,'2020-21 Final'!$D$14:$AT$351,43,FALSE)*-1 -> 0 | K18: =IFERROR(VLOOKUP($C$3,'2019-20 Final'!$E$14:$AT$351,42,FALSE)*-1,0) -> 0 | L18: 0 | M18: =IFERROR(VLOOKUP($C$4,'2019-20 Prelim'!$D$14:$AT$351,43,FALSE)*-1,0) -> 0 | N18: =IFERROR(VLOOKUP($C$4,'2018-19 Final'!$D$14:$AT$351,43,FALSE)*-1,0) -> 0 | O18: 0 | P18: =IFERROR(VLOOKUP($C$3,'2018-19 Prelim'!$E$14:$AT$351,42,FALSE)*-1,0) -> 0 | Q18: =IFERROR(VLOOKUP($C$4,'2017-18 Final'!$D$14:$AR$321,43,FALSE)*-1,0) -> 0 | R18: 0 | S18: =IFERROR(VLOOKUP($C$4,'2017-18 Prelim'!$D$14:$AR$320,43,FALSE)*-1,0) -> 0 | T18: =IFERROR(VLOOKUP($C$3,'2016-17 Final'!$E$14:$AT$319,42,FALSE)*-1,0) -> 0 | U18: =+T18-W18 -> 2017 | V18: =IFERROR(VLOOKUP($C$3,'2016-17 Prelim'!$E$14:$AT$320,42,FALSE)*-1,0) -> 0 | W18: =IFERROR(VLOOKUP($C$3,'2015-16 Final'!$E$14:$AT$310,42,FALSE)*-1,0) -> -2017 | X18: =+W18-Y18 -> 166 | Y18: =IFERROR(VLOOKUP($C$3,'2014-15 Final'!$E$14:$AT$310,42,FALSE)*-1,0) -> -2183 | Z18: =+Y18-AA18 -> -2183 | AA18: =IFERROR(VLOOKUP($C$3,'2013-14 Final'!$E$14:$AT$309,42,FALSE)*-1,0) -> 0 | AB18: =+AA18-AC18 -> 112 | AC18: =IFERROR(VLOOKUP($C$3,'2012-13 Final'!$E$14:$AT$309,42,FALSE)*-1,0) -> -112
A19: 19 | B19: =IF(ISBLANK(VLOOKUP($C$4,'2014-15 Final'!$D$14:$AV$309,45,FALSE)),"","MOE Reduction") ->  | F19: =VLOOKUP($C$4,'2021-22 FInal'!$D$14:$CC$351,75,FALSE) -> 0 | G19: =VLOOKUP($C$4,'2021-22 Prelim'!$D$14:$CC$351,75,FALSE) -> 0
A20: 20
A21: 21 | B21: Net Allocation to District | D21: =VLOOKUP($C$4,'2019-20 Final'!$D$14:$AZ$351,49,FALSE)+J12 -> 1644739 | E21: =IF(Q21=0,0,D21/Q21) -> 1.41844705 | F21: =VLOOKUP($C$4,'2021-22 FInal'!$D$14:$CC$351,78,FALSE)+F12 -> 1558784 | G21: =VLOOKUP($C$4,'2021-22 Prelim'!$D$14:$CC$351,78,FALSE)+G12 -> 1567635 | H21: =IFERROR(VLOOKUP($C$4,'2020-21 Rev. Final'!$D$14:$AZ$351,49,FALSE),0)+H12 -> 1629791 | I21: =IF(Q21=0,0,H21/K21)-1 -> -0.009088372076 | J21: =VLOOKUP($C$4,'2020-21 Prelim'!$D$14:$AZ$351,49,FALSE)+J12 -> 1629798 | K21: =IFERROR(VLOOKUP($C$4,'2019-20 Final'!$D$14:$AZ$351,49,FALSE),0)+M12 -> 1644739 | L21: =IF(T21=0,0,K21/N21)-1 -> 0.3987053332 | M21: =IFERROR(VLOOKUP($C$4,'2019-20 Prelim'!$D$14:$AZ$351,49,FALSE),0)+M12 -> 1664228 | N21: =IFERROR(VLOOKUP($C$4,'2018-19 Final'!$D$14:$AZ$351,49,FALSE),0)+O12 -> 1175901 | O21: =IF(Q21=0,0,N21/Q21)-1 -> 0.01411427857 | P21: =IFERROR(VLOOKUP($C$4,'2018-19 Prelim'!$D$14:$AZ$351,49,FALSE),0)+P12 -> 1192489 | Q21: =IFERROR(VLOOKUP($C$4,'2017-18 Final'!$D$14:$AZ$321,49,FALSE),0)+Q12 -> 1159535 | R21: =IF(T21=0,0,Q21/T21)-1 -> 0.07725431539 | S21: =IFERROR(VLOOKUP($C$4,'2017-18 Prelim'!$D$14:$AZ$320,49,FALSE),0)+S12 -> 1158098 | T21: =IFERROR(VLOOKUP($C$4,'2016-17 Final'!$D$14:$AZ$319,49,FALSE)+T12,0) -> 1076380 | U21: =IF(W21=0,0,T21/W21) -> 0.9904687238 | V21: =IFERROR(VLOOKUP($C$4,'2016-17 Prelim'!$D$14:$AZ$320,49,FALSE)+V12,0) -> 1079420 | W21: =IFERROR(VLOOKUP($C$3,'2015-16 Final'!$E$14:$AZ$310,48,FALSE),0)+W12 -> 1086738 | X21: =IF(AND(Y21=0,W21=0),0,IF(Y21=0,1,W21/Y21)) -> 0.9884953965 | Y21: =IFERROR(VLOOKUP($C$3,'2014-15 Final'!$E$14:$AZ$310,48,FALSE),0)+Y12 -> 1099386 | Z21: =IF(AND(AA21=0,Y21=0),0,IF(AA21=0,1,Y21/AA21)) -> 1.113932608 | AA21: =IFERROR(VLOOKUP($C$3,'2013-14 Final'!$E$14:$AW$310,45,FALSE),0)+AA12 -> 986941.2138 | AB21: =IF(AND(AC21=0,AA21=0),0,IF(AC21=0,1,AA21/AC21)) -> 0.9893701174 | AC21: =IFERROR(VLOOKUP($C$3,'2012-13 Final'!$E$14:$AV$309,44,FALSE),0) -> 997545
A22: 22 | B22: Percent of Total State Distributions | D22: =+D21/'2019-20 Final'!$AS$13 -> 0.006953746111 | F22: =+F21/'2021-22 FInal'!$CC$13 -> 0.006180058454 | G22: =+G21/'2021-22 Prelim'!$CC$13 -> 0.006158607264 | H22: =+H21/'2020-21 Rev. Final'!$AS$13 -> 0.007064527252 | J22: =+J21/'2020-21 Final'!$AS$13 -> 0.007065795726 | K22: =+K21/'2019-20 Final'!$AS$13 -> 0.006953746111 | M22: =+M21/'2019-20 Prelim'!$AS$13 -> 0.00703519892 | N22: =+N21/'2018-19 Final'!$AS$13 -> 0.005607905837 | P22: =+P21/'2017-18 Prelim'!$AS$13 -> 0.005742817466 | Q22: =+Q21/'2017-18 Final'!$AS$13 -> 0.005517743724 | S22: =+S21/'2017-18 Prelim'!$AS$13 -> 0.005577196453 | T22: =+T21/'2016-17 Final'!$AS$13 -> 0.004988508407 | V22: =+V21/'2016-17 Prelim'!$AS$13 -> 0.004992110333 | W22: =+W21/'2015-16 Final'!$AS$13 -> 0.005034016042 | Y22: =+Y21/'2014-15 Final'!$AS$13 -> 0.005446878175 | AA22: =+AA21/'2013-14 Final'!$AS$13 -> 0.005095136347 | AC22: =+AC21/'2012-13 Prelim'!$AS$13 -> 0.00491399062
A23: 23
A24: 24 | B24: ELIGIBLES | C24: Eligibility Criteria
A25: 25 | B25: Basic | C25: >= 10 5-17 population and poverty > 2% | D25: =VLOOKUP($C$4,'19-20 Pop F'!$D$9:$R$342,11,FALSE) -> 1030 | E25: =+$Q25/+'16-17 Pop F'!$N8 -> 0.004906538273 | F25: =VLOOKUP($C$4,'21-22 Pop F'!$D$9:$R$339,11,FALSE) -> 760 | G25: =VLOOKUP($C$4,'21-22 Pop P'!$D$9:$R$350,11,FALSE) -> 770 | H25: =VLOOKUP($C$4,'20-21 Pop Rev. F'!$D$9:$R$350,11,FALSE) -> 905 | I25: =IFERROR(H25/K25,0)-1 -> -0.1213592233 | J25: =VLOOKUP($C$4,'20-21 Pop F'!$D$9:$R$505,11,FALSE) -> 905 | K25: =IFERROR(VLOOKUP($C$4,'19-20 Pop F'!$D$9:$R$342,11,FALSE),0) -> 1030 | L25: =IFERROR(K25/N25,0)-1 -> 0.1731207289 | M25: =IFERROR(VLOOKUP($C$4,'19-20 Pop P'!$D$9:$R$505,11,FALSE),0) -> 1039 | N25: =IFERROR(VLOOKUP($C$4,'18-19 Pop F'!$D$9:$R$351,11,FALSE),0) -> 878 | O25: =IFERROR(N25/Q25,0)-1 -> -0.03410341034 | P25: =IFERROR(VLOOKUP($C$4,'18-19 Pop P'!$D$9:$R$314,11,FALSE),0) -> 885 | Q25: =IFERROR(VLOOKUP($C$4,'17-18 Pop F'!$D$9:$R$337,11,FALSE),0) -> 909 | R25: =IFERROR(Q25/T25,0)-1 -> -0.02572347267 | S25: =IFERROR(VLOOKUP($C$4,'17-18 Pop P'!$D$9:$R$314,11,FALSE),0) -> 909 | T25: =IFERROR(VLOOKUP($C$4,'16-17 Pop F'!$D$9:$R$314,11,FALSE),0) -> 933 | U25: =+$T25/+'15-16 Pop F'!$N8 -> 0.004619017679 | V25: =IFERROR(VLOOKUP($C$4,'16-17 Pop P'!$D$9:$R$313,11,FALSE),0) -> 941 | W25: =IFERROR(VLOOKUP($C$4,'15-16 Pop F'!$D$9:$R$314,11,FALSE),0) -> 991 | X25: =+$W25/+'13-14 Pop F'!$N8 -> 0.005109300887 | Y25: =IFERROR(VLOOKUP($C$4,'14-15 Pop F'!$D$9:$R$314,11,FALSE),0) -> 0 | Z25: =+$W25/+'13-14 Pop F'!$N8 -> 0.005109300887 | AA25: =IFERROR(VLOOKUP($C$4,'13-14 Pop F'!$D$9:$R$306,11,FALSE),0) -> 952 | AB25: =+$Y25/+'12-13 Pop P'!$N8 -> 0 | AC25: =IFERROR(VLOOKUP($C$4,'12-13 Pop F'!$D$9:$R$306,11,FALSE),0) -> 997
A26: 26 | B26: Concentration | C26: > 6,500 5-17 population or poverty > 15% | D26: =VLOOKUP($C$4,'19-20 Pop F'!$D$9:$R$342,12,FALSE) -> 1030 | E26: =+$Q26/+'16-17 Pop F'!$O8 -> 0.006877298107 | F26: =VLOOKUP($C$4,'21-22 Pop F'!$D$9:$R$339,12,FALSE) -> 760 | G26: =VLOOKUP($C$4,'21-22 Pop P'!$D$9:$R$350,12,FALSE) -> 770 | H26: =VLOOKUP($C$4,'20-21 Pop Rev. F'!$D$9:$R$350,12,FALSE) -> 905 | I26: =IFERROR(H26/K26,0)-1 -> -0.1213592233 | J26: =VLOOKUP($C$4,'20-21 Pop F'!$D$9:$R$350,12,FALSE) -> 905 | K26: =IFERROR(VLOOKUP($C$4,'19-20 Pop F'!$D$9:$R$342,12,FALSE),0) -> 1030 | L26: =IFERROR(K26/N26,0)-1 -> 0.1731207289 | M26: =IFERROR(VLOOKUP($C$4,'19-20 Pop P'!$D$9:$R$350,12,FALSE),0) -> 1039 | N26: =IFERROR(VLOOKUP($C$4,'18-19 Pop F'!$D$9:$R$351,12,FALSE),0) -> 878 | O26: =IFERROR(N26/Q26,0)-1 -> -0.03410341034 | P26: =IFERROR(VLOOKUP($C$4,'18-19 Pop P'!$D$9:$R$314,12,FALSE),0) -> 885 | Q26: =IFERROR(VLOOKUP($C$4,'17-18 Pop F'!$D$9:$R$337,12,FALSE),0) -> 909 | R26: =IFERROR(Q26/T26,0)-1 -> -0.02572347267 | S26: =IFERROR(VLOOKUP($C$4,'17-18 Pop P'!$D$9:$R$314,12,FALSE),0) -> 909 | T26: =IFERROR(VLOOKUP($C$4,'16-17 Pop F'!$D$9:$R$314,12,FALSE),0) -> 933 | U26: =+$T26/+'15-16 Pop F'!$O8 -> 0.005921215468 | V26: =IFERROR(VLOOKUP($C$4,'16-17 Pop P'!$D$9:$R$313,12,FALSE),0) -> 941 | W26: =IFERROR(VLOOKUP($C$4,'15-16 Pop F'!$D$9:$R$314,12,FALSE),0) -> 991 | X26: =+$W26/+'13-14 Pop F'!$O8 -> 0.006587606525 | Y26: =IFERROR(VLOOKUP($C$4,'14-15 Pop F'!$D$9:$R$314,12,FALSE),0) -> 0 | Z26: =+$W26/+'13-14 Pop F'!$O8 -> 0.006587606525 | AA26: =IFERROR(VLOOKUP($C$4,'13-14 Pop F'!$D$9:$R$306,12,FALSE),0) -> 952 | AB26: =+$Y26/'12-13 Pop P'!$O8 -> 0 | AC26: =IFERROR(VLOOKUP($C$4,'12-13 Pop F'!$D$9:$R$306,12,FALSE),0) -> 997
A27: 27 | B27: Targeted | C27: >=10 5-17 population and poverty % is >= 5% | D27: =VLOOKUP($C$4,'19-20 Pop F'!$D$9:$R$342,14,FALSE) -> 1683.987625 | E27: =+$Q27/+'16-17 Pop F'!$Q8 -> 0.005083532319 | F27: =VLOOKUP($C$4,'21-22 Pop F'!$D$9:$R$339,14,FALSE) -> 938.33965 | G27: =VLOOKUP($C$4,'21-22 Pop P'!$D$9:$R$350,14,FALSE) -> 968.4278 | H27: =VLOOKUP($C$4,'20-21 Pop Rev. F'!$D$9:$R$350,14,FALSE) -> 1317.517475 | I27: =IFERROR(H27/K27,0)-1 -> -0.2176204531 | J27: =VLOOKUP($C$4,'20-21 Pop F'!$D$9:$R$350,14,FALSE) -> 1317.517475 | K27: =IFERROR(VLOOKUP($C$4,'19-20 Pop F'!$D$9:$R$342,14,FALSE),0) -> 1683.987625 | L27: =IFERROR(K27/N27,0)-1 -> 0.3214715934 | M27: =IFERROR(VLOOKUP($C$4,'19-20 Pop P'!$D$9:$R$350,14,FALSE),0) -> 1713.237625 | N27: =IFERROR(VLOOKUP($C$4,'18-19 Pop F'!$D$9:$R$351,14,FALSE),0) -> 1274.327525 | O27: =IFERROR(N27/Q27,0)-1 -> -0.06281697065 | P27: =IFERROR(VLOOKUP($C$4,'18-19 Pop P'!$D$9:$R$314,14,FALSE),0) -> 1295.784975 | Q27: =IFERROR(VLOOKUP($C$4,'17-18 Pop F'!$D$9:$R$337,14,FALSE),0) -> 1359.742425 | R27: =IFERROR(Q27/T27,0)-1 -> -0.04054190791 | S27: =IFERROR(VLOOKUP($C$4,'17-18 Pop P'!$D$9:$R$314,14,FALSE),0) -> 1359.742425 | T27: =IFERROR(VLOOKUP($C$4,'16-17 Pop F'!$D$9:$R$314,14,FALSE),0) -> 1417.19835 | U27: =+$T27/+'15-16 Pop F'!$Q8 -> 0.004712219572 | V27: =IFERROR(VLOOKUP($C$4,'16-17 Pop P'!$D$9:$R$313,14,FALSE),0) -> 1436.915675 | W27: =IFERROR(VLOOKUP($C$4,'15-16 Pop F'!$D$9:$R$314,14,FALSE),0) -> 1563.344125 | X27: =+$W27/+'13-14 Pop F'!$Q8 -> 0.00548193171 | Y27: =IFERROR(VLOOKUP($C$4,'14-15 Pop F'!$D$9:$R$314,14,FALSE),0) -> 0 | Z27: =+$W27/+'13-14 Pop F'!$Q8 -> 0.00548193171 | AA27: =IFERROR(VLOOKUP($C$4,'13-14 Pop F'!$D$9:$R$306,14,FALSE),0) -> 1443.21505 | AB27: =+$Y27/+'12-13 Pop P'!$Q8 -> 0 | AC27: =IFERROR(VLOOKUP($C$4,'12-13 Pop F'!$D$9:$R$306,14,FALSE),0) -> 1539.3199
A28: 28 | B28: EFIG | C28: >=10 5-17 population and poverty % is >= 5% | D28: =VLOOKUP($C$4,'19-20 Pop F'!$D$9:$R$342,15,FALSE) -> 1683.987625 | E28: =+$Q28/+'16-17 Pop F'!$R8 -> 0.005083532319 | F28: =VLOOKUP($C$4,'21-22 Pop F'!$D$9:$R$339,15,FALSE) -> 938.33965 | G28: =VLOOKUP($C$4,'21-22 Pop P'!$D$9:$R$350,15,FALSE) -> 968.4278 | H28: =VLOOKUP($C$4,'20-21 Pop Rev. F'!$D$9:$R$350,15,FALSE) -> 1317.517475 | I28: =IFERROR(H28/K28,0)-1 -> -0.2176204531 | J28: =VLOOKUP($C$4,'20-21 Pop F'!$D$9:$R$350,15,FALSE) -> 1317.517475 | K28: =IFERROR(VLOOKUP($C$4,'19-20 Pop F'!$D$9:$R$342,15,FALSE),0) -> 1683.987625 | L28: =IFERROR(K28/N28,0)-1 -> 0.3214715934 | M28: =IFERROR(VLOOKUP($C$4,'19-20 Pop P'!$D$9:$R$350,15,FALSE),0) -> 1713.237625 | N28: =IFERROR(VLOOKUP($C$4,'18-19 Pop F'!$D$9:$R$351,15,FALSE),0) -> 1274.327525 | O28: =IFERROR(N28/Q28,0)-1 -> -0.06281697065 | P28: =IFERROR(VLOOKUP($C$4,'18-19 Pop P'!$D$9:$R$314,15,FALSE),0) -> 1295.784975 | Q28: =IFERROR(VLOOKUP($C$4,'17-18 Pop F'!$D$9:$R$337,15,FALSE),0) -> 1359.742425 | R28: =IFERROR(Q28/T28,0)-1 -> -0.04054190791 | S28: =IFERROR(VLOOKUP($C$4,'17-18 Pop P'!$D$9:$R$314,15,FALSE),0) -> 1359.742425 | T28: =IFERROR(VLOOKUP($C$4,'16-17 Pop F'!$D$9:$R$314,15,FALSE),0) -> 1417.19835 | U28: =+$T28/+'15-16 Pop F'!$R8 -> 0.004712219572 | V28: =IFERROR(VLOOKUP($C$4,'16-17 Pop P'!$D$9:$R$313,15,FALSE),0) -> 1436.915675 | W28: =IFERROR(VLOOKUP($C$4,'15-16 Pop F'!$D$9:$R$314,15,FALSE),0) -> 1563.344125 | X28: =+$W28/+'13-14 Pop F'!$R8 -> 0.00548193171 | Y28: =IFERROR(VLOOKUP($C$4,'14-15 Pop F'!$D$9:$R$314,15,FALSE),0) -> 0 | Z28: =+$W28/+'13-14 Pop F'!$R8 -> 0.00548193171 | AA28: =IFERROR(VLOOKUP($C$4,'13-14 Pop F'!$D$9:$R$306,15,FALSE),0) -> 1443.21505 | AB28: =+$Y28/'12-13 Pop P'!$R8 -> 0 | AC28: =IFERROR(VLOOKUP($C$4,'12-13 Pop F'!$D$9:$R$306,15,FALSE),0) -> 1539.3199
A29: 29
A30: 30 | B30: CENSUS | D30: 2016 | F30: 2019 | G30: 2019 | H30: 2018 | J30: 2018 | K30: 2017 | M30: 2017 | N30: 2016 | P30: 2016 | Q30: 2015 | S30: 2015 | T30: 2014 | V30: 2014 | W30: 2013 | Y30: 2012 | AA30: 2011 | AC30: 2010
A31: 31 | B31: 5-17 Poverty | C31: Does not include additional populations | D31: =VLOOKUP($C$4,'19-20 Pop F'!$D$9:$L$342,3,FALSE) -> 996 | E31: =+D31-Q31 -> 137 | F31: =VLOOKUP($C$4,'21-22 Pop F'!$D$9:$L$339,3,FALSE) -> 736 | G31: =VLOOKUP($C$4,'21-22 Pop P'!$D$9:$L$350,3,FALSE) -> 736 | H31: =VLOOKUP($C$4,'20-21 Pop Rev. F'!$D$9:$L$350,3,FALSE) -> 871 | I31: =H31-K31 -> -125 | J31: =VLOOKUP($C$4,'20-21 Pop F'!$D$9:$L$350,3,FALSE) -> 871 | K31: =IFERROR(VLOOKUP($C$4,'19-20 Pop F'!$D$9:$L$342,3,FALSE),0) -> 996 | L31: =K31-N31 -> 161 | M31: =IFERROR(VLOOKUP($C$4,'19-20 Pop P'!$D$9:$L$350,3,FALSE),0) -> 996 | N31: =IFERROR(VLOOKUP($C$4,'18-19 Pop F'!$D$9:$L$351,3,FALSE),0) -> 835 | O31: =N31-Q31 -> -24 | P31: =IFERROR(VLOOKUP($C$4,'18-19 Pop P'!$D$9:$L$351,3,FALSE),0) -> 835 | Q31: =IFERROR(VLOOKUP($C$4,'17-18 Pop F'!$D$9:$L$344,3,FALSE),0) -> 859 | R31: =Q31-T31 -> -55 | S31: =IFERROR(VLOOKUP($C$4,'17-18 Pop P'!$D$9:$L$321,3,FALSE),0) -> 859 | T31: =IFERROR(VLOOKUP($C$4,'16-17 Pop F'!$D$9:$L$321,3,FALSE),0) -> 914 | U31: =+T31-W31 -> -50 | V31: =IFERROR(VLOOKUP($C$4,'16-17 Pop P'!$D$9:$L$320,3,FALSE),0) -> 914 | W31: =IFERROR(VLOOKUP($C$4,'15-16 Pop F'!$D$9:$L$314,3,FALSE),0) -> 964 | X31: =+W31-Y31 -> 964 | Y31: =IFERROR(VLOOKUP($C$4,'14-15 Pop F'!$D$9:$L$314,3,FALSE),0) -> 0 | Z31: =Y31-AA31 -> -929 | AA31: =IFERROR(VLOOKUP($C$4,'13-14 Pop F'!$D$9:$L$306,3,FALSE),0) -> 929 | AB31: =AA31-AC31 -> -40 | AC31: =IFERROR(VLOOKUP($C$4,'12-13 Pop F'!$D$9:$L$306,3,FALSE),0) -> 969
A32: 32 | B32: 5-17 Population | D32: =VLOOKUP($C$4,'19-20 Pop F'!$D$9:$L$342,9,FALSE) -> 3269 | E32: =+D32-Q32 -> 40 | F32: =VLOOKUP($C$4,'21-22 Pop F'!$D$9:$L$339,9,FALSE) -> 3402 | G32: =VLOOKUP($C$4,'21-22 Pop P'!$D$9:$L$350,9,FALSE) -> 3384 | H32: =VLOOKUP($C$4,'20-21 Pop Rev. F'!$D$9:$L$350,9,FALSE) -> 3343 | I32: =H32-K32 -> 74 | J32: =VLOOKUP($C$4,'20-21 Pop F'!$D$9:$L$350,9,FALSE) -> 3343 | K32: =IFERROR(VLOOKUP($C$4,'19-20 Pop F'!$D$9:$L$342,9,FALSE),0) -> 3269 | L32: =K32-N32 -> 12 | M32: =IFERROR(VLOOKUP($C$4,'19-20 Pop P'!$D$9:$L$350,9,FALSE),0) -> 3269 | N32: =IFERROR(VLOOKUP($C$4,'18-19 Pop F'!$D$9:$L$351,9,FALSE),0) -> 3257 | O32: =N32-Q32 -> 28 | P32: =IFERROR(VLOOKUP($C$4,'18-19 Pop P'!$D$9:$L$351,9,FALSE),0) -> 3243 | Q32: =IFERROR(VLOOKUP($C$4,'17-18 Pop F'!$D$9:$L$339,9,FALSE),0) -> 3229 | R32: =Q32-T32 -> -9 | S32: =IFERROR(VLOOKUP($C$4,'17-18 Pop P'!$D$9:$L$316,9,FALSE),0) -> 3229 | T32: =IFERROR(VLOOKUP($C$4,'16-17 Pop F'!$D$9:$L$316,9,FALSE),0) -> 3238 | U32: =+T32-W32 -> -19 | V32: =IFERROR(VLOOKUP($C$4,'16-17 Pop P'!$D$9:$L$315,9,FALSE),0) -> 3239 | W32: =IFERROR(VLOOKUP($C$4,'15-16 Pop F'!$D$9:$L$314,9,FALSE),0) -> 3257 | X32: =+W32-Y32 -> 3257 | Y32: =IFERROR(VLOOKUP($C$4,'14-15 Pop F'!$D$9:$L$314,9,FALSE),0) -> 0 | Z32: =Y32-AA32 -> -3314 | AA32: =IFERROR(VLOOKUP($C$4,'13-14 Pop F'!$D$9:$L$306,9,FALSE),0) -> 3314 | AB32: =AA32-AC32 -> -58 | AC32: =IFERROR(VLOOKUP($C$4,'12-13 Pop F'!$D$9:$L$306,9,FALSE),0) -> 3372
A33: 33 | B33: Total Formula Units | C33: Includes 5-17 Poverty, Delinquent, Neglected, Foster, and TANF | D33: =VLOOKUP($C$4,'19-20 Pop F'!$D$9:$L$330,8,FALSE) -> 1030 | E33: =+D33-Q33 -> 121 | F33: =VLOOKUP($C$4,'21-22 Pop F'!$D$9:$L$339,8,FALSE) -> 760 | G33: =VLOOKUP($C$4,'21-22 Pop P'!$D$9:$L$350,8,FALSE) -> 770 | H33: =VLOOKUP($C$4,'20-21 Pop Rev. F'!$D$9:$L$350,8,FALSE) -> 905 | I33: -125 | J33: =VLOOKUP($C$4,'20-21 Pop F'!$D$9:$L$350,8,FALSE) -> 905 | K33: =IFERROR(VLOOKUP($C$4,'19-20 Pop F'!$D$9:$L$330,8,FALSE),0) -> 1030 | L33: 152 | M33: =IFERROR(VLOOKUP($C$4,'19-20 Pop P'!$D$9:$L$350,8,FALSE),0) -> 1039 | N33: =IFERROR(VLOOKUP($C$4,'18-19 Pop F'!$D$9:$L$339,8,FALSE),0) -> 878 | O33: -31 | P33: =IFERROR(VLOOKUP($C$4,'18-19 Pop P'!$D$9:$L$351,8,FALSE),0) -> 885 | Q33: =IFERROR(VLOOKUP($C$4,'17-18 Pop F'!$D$9:$L$339,8,FALSE),0) -> 909 | R33: -24 | S33: =IFERROR(VLOOKUP($C$4,'17-18 Pop P'!$D$9:$L$316,8,FALSE),0) -> 909 | T33: =IFERROR(VLOOKUP($C$4,'16-17 Pop F'!$D$9:$L$316,8,FALSE),0) -> 933 | U33: =+T33-W33 -> -58 | V33: =IFERROR(VLOOKUP($C$4,'16-17 Pop P'!$D$9:$L$315,8,FALSE),0) -> 941 | W33: =IFERROR(VLOOKUP($C$4,'15-16 Pop F'!$D$9:$L$314,8,FALSE),0) -> 991 | X33: =+W33-Y33 -> 991 | Y33: =IFERROR(VLOOKUP($C$4,'14-15 Pop F'!$D$9:$L$314,8,FALSE),0) -> 0 | Z33: =Y33-AA33 -> -952 | AA33: =IFERROR(VLOOKUP($C$4,'13-14 Pop F'!$D$9:$L$306,8,FALSE),0) -> 952 | AB33: =AA33-AC33 -> -45 | AC33: =IFERROR(VLOOKUP($C$4,'12-13 Pop F'!$D$9:$L$306,8,FALSE),0) -> 997
A34: 34 | B34: Percent of Poverty | C34: Line 32 / line 31 | D34: =IFERROR(D33/D32,0) -> 0.3150810645 | F34: =IFERROR(F33/F32,0) -> 0.2233980012 | G34: =IFERROR(G33/G32,0) -> 0.2275413712 | H34: =IFERROR(H33/H32,0) -> 0.2707149267 | J34: =IFERROR(J33/J32,0) -> 0.2707149267 | K34: =IFERROR(K33/K32,0) -> 0.3150810645 | M34: =IFERROR(M33/M32,0) -> 0.3178342001 | N34: =IFERROR(N33/N32,0) -> 0.2695732269 | P34: =IFERROR(P33/P32,0) -> 0.2728954672 | Q34: =IFERROR(Q33/Q32,0) -> 0.2815113038 | S34: =IFERROR(S33/S32,0) -> 0.2815113038 | T34: =IFERROR(T33/T32,0) -> 0.2881408277 | V34: =IFERROR(V33/V32,0) -> 0.290521766 | W34: =IFERROR(W33/W32,0) -> 0.304267731 | X34: =IFERROR(+W34-Y34,0) -> 0.304267731 | Y34: =IFERROR(Y33/Y32,0) -> 0 | Z34: =IFERROR(Y34-AA34,0) -> -0.2872661436 | AA34: =IFERROR(AA33/AA32,0) -> 0.2872661436 | AB34: =IFERROR(AA34-AC34,0) -> -0.008404081752 | AC34: =IFERROR(+AC33/AC32,0) -> 0.2956702254
A35: 35 | B35: Total Population | C35: All ages resident population per census | D35: =VLOOKUP($C$4,'USDOE Alloc 1920F'!$D$9:$T$342,14,FALSE) -> 20329 | F35: =VLOOKUP($C$4,'USDOE Alloc 2122F'!$D$9:$T$339,14,FALSE) -> 20992 | G35: =VLOOKUP($C$4,'USDOE Alloc 2022P'!$D$9:$T$350,14,FALSE) -> 20992 | H35: =VLOOKUP($C$4,'USDOE Alloc 2021Rev.F'!$D$9:$T$350,14,FALSE) -> 20668 | J35: =VLOOKUP($C$4,'USDOE Alloc 2021F'!$D$9:$T$350,14,FALSE) -> 20668 | K35: =IFERROR(VLOOKUP($C$4,'USDOE Alloc 1920F'!$D$9:$T$342,14,FALSE),0) -> 20329 | M35: =IFERROR(VLOOKUP($C$4,'USDOE Alloc 1920P'!$D$9:$T$350,14,FALSE),0) -> 20329 | N35: =IFERROR(VLOOKUP($C$4,'USDOE Alloc 1819F'!$D$9:$T$351,14,FALSE),0) -> 20034 | P35: =IFERROR(VLOOKUP($C$4,'USDOE Alloc 1819P'!$D$9:$T$316,14,FALSE),0) -> 20034 | Q35: =IFERROR(VLOOKUP($C$4,'USDOE Alloc 1718F'!$D$9:$T$317,14,FALSE),0) -> 19892 | S35: =IFERROR(VLOOKUP($C$4,'USDOE Alloc 1718P'!$D$9:$T$316,14,FALSE),0) -> 19892 | T35: =IFERROR(VLOOKUP($C$4,'USDOE Alloc 1617F'!$D$9:$T$316,14,FALSE),0) -> 19813 | V35: =IFERROR(VLOOKUP($C$4,'USDOE Alloc 1617P'!$D$9:$T$317,14,FALSE),0) -> 19813 | W35: =IFERROR(VLOOKUP($C$4,'USDOE Alloc 1516F'!$D$9:$W$306,14,FALSE),0) -> 19885 | Y35: =IFERROR(VLOOKUP($C$4,'USDOE Alloc 1415F'!$D$9:$W$306,14,FALSE),0) -> 20057 | AA35: =IFERROR(VLOOKUP($C$4,'USDOE Alloc 1314F'!$D$9:$T$305,17,FALSE),0) -> 20293 | AC35: =IFERROR(VLOOKUP($C$4,'USDOE Alloc 1213F'!$D$9:$T$305,17,FALSE),0) -> 20392
A36: 36 | B36: 5% threshold for Targeted and EFIG | D36: =0.05*D32 -> 163.45 | F36: =0.05*F32 -> 170.1 | G36: =0.05*G32 -> 169.2 | H36: =0.05*H32 -> 167.15 | J36: =0.05*J32 -> 167.15 | K36: =0.05*K32 -> 163.45 | M36: =0.05*M32 -> 163.45 | N36: =0.05*N32 -> 162.85 | P36: =0.05*P32 -> 162.15 | Q36: =0.05*Q32 -> 161.45 | S36: =0.05*S32 -> 161.45 | T36: =0.05*T32 -> 161.9 | V36: =0.05*V32 -> 161.95 | W36: =0.05*W32 -> 162.85 | Y36: =0.05*Y32 -> 0 | AA36: =0.05*AA32 -> 165.7 | AC36: =0.05*AC32 -> 168.6
A37: 37 | D37: =ROUNDUP(IF(D31<D36,D36-D31,0),0) & " / " & ROUNDUP(IF(D36>D33,D36-D33,0),0) -> 0 / 0 | F37: =ROUNDUP(IF(F31<F36,F36-F31,0),0) & " / " & ROUNDUP(IF(F36>F33,F36-F33,0),0) -> 0 / 0 | G37: =ROUNDUP(IF(G31<G36,G36-G31,0),0) & " / " & ROUNDUP(IF(G36>G33,G36-G33,0),0) -> 0 / 0 | H37: =ROUNDUP(IF(H31<H36,H36-H31,0),0) & " / " & ROUNDUP(IF(H36>H33,H36-H33,0),0) -> 0 / 0 | J37: =ROUNDUP(IF(J31<J36,J36-J31,0),0) & " / " & ROUNDUP(IF(J36>J33,J36-J33,0),0) -> 0 / 0 | K37: =ROUNDUP(IF(K31<K36,K36-K31,0),0) & " / " & ROUNDUP(IF(K36>K33,K36-K33,0),0) -> 0 / 0 | M37: =ROUNDUP(IF(M31<M36,M36-M31,0),0) & " / " & ROUNDUP(IF(M36>M33,M36-M33,0),0) -> 0 / 0 | N37: =ROUNDUP(IF(N31<N36,N36-N31,0),0) & " / " & ROUNDUP(IF(N36>N33,N36-N33,0),0) -> 0 / 0 | P37: =ROUNDUP(IF(P31<P36,P36-P31,0),0) & " / " & ROUNDUP(IF(P36>P33,P36-P33,0),0) -> 0 / 0 | Q37: =ROUNDUP(IF(Q31<Q36,Q36-Q31,0),0) & " / " & ROUNDUP(IF(Q36>Q33,Q36-Q33,0),0) -> 0 / 0 | S37: =ROUNDUP(IF(S31<S36,S36-S31,0),0) & " / " & ROUNDUP(IF(S36>S33,S36-S33,0),0) -> 0 / 0 | T37: =ROUNDUP(IF(T31<T36,T36-T31,0),0) & " / " & ROUNDUP(IF(T36>T33,T36-T33,0),0) -> 0 / 0 | V37: =ROUNDUP(IF(V31<V36,V36-V31,0),0) & " / " & ROUNDUP(IF(V36>V33,V36-V33,0),0) -> 0 / 0 | W37: =ROUNDUP(IF(W31<W36,W36-W31,0),0) & " / " & ROUNDUP(IF(W36>W33,W36-W33,0),0) -> 0 / 0 | Y37: =ROUNDUP(IF(Y31<Y36,Y36-Y31,0),0) & " / " & ROUNDUP(IF(Y36>Y33,Y36-Y33,0),0) -> 0 / 0 | AA37: =ROUNDUP(IF(AA31<AA36,AA36-AA31,0),0) & " / " & ROUNDUP(IF(AA36>AA33,AA36-AA33,0),0) -> 0 / 0 | AC37: =ROUNDUP(IF(AC31<AC36,AC36-AC31,0),0) & " / " & ROUNDUP(IF(AC36>AC33,AC36-AC33,0),0) -> 0 / 0
A38: 38 | B38: Note 1 School Improvement Reallocation:
A39: 39 | B39: Current year allocation with school imp factored out | D39: =IFERROR(VLOOKUP($C$3,'2019-20 Final'!$E$13:$AZ$351,20,FALSE),0) -> 1686944.127 | E39: =+D39-ISERR(Q39) -> 1686944.127 | F39: =IFERROR(VLOOKUP($C$4,'2021-22 FInal'!$D$13:$CC$351,50,FALSE),0) -> 1461673.646 | G39: =IFERROR(VLOOKUP($C$4,'2021-22 Prelim'!$D$13:$CC$351,50,FALSE),0) -> 1469927.357 | H39: =IFERROR(VLOOKUP($C$3,'2020-21 Rev. Final'!$E$13:$AZ$351,20,FALSE),0) -> 1577124.04 | I39: =H39-K39 -> -109820.0874 | J39: =IFERROR(VLOOKUP($C$4,'2020-21 Final'!$D$13:$AZ$351,21,FALSE),0) -> 1576861.076 | K39: =IFERROR(VLOOKUP($C$3,'2019-20 Final'!$E$13:$AZ$351,20,FALSE),0) -> 1686944.127 | L39: =K39-N39 -> 424323.9484 | M39: =IFERROR(VLOOKUP($C$3,'2019-20 Prelim'!$E$13:$AZ$351,20,FALSE),0) -> 1707593.798 | N39: =IFERROR(VLOOKUP($C$4,'2018-19 Final'!$D$13:$AZ$351,21,FALSE),0) -> 1262620.179 | P39: =IFERROR(VLOOKUP($C$4,'2018-19 Prelim'!$D$13:$AZ$351,21,FALSE),0) -> 1279942.122 | Q39: NA | S39: NA | T39: =IFERROR(VLOOKUP($C$3,'2016-17 Final'!$E$13:$AZ$319,20,FALSE),0) -> 1126249 | U39: =+T39-W39 -> 30054 | V39: =IFERROR(VLOOKUP($C$3,'2016-17 Prelim'!$E$13:$AZ$320,20,FALSE),0) -> 1141107 | W39: =IFERROR(VLOOKUP($C$3,'2015-16 Final'!$E$13:$AZ$311,20,FALSE),0) -> 1096195 | X39: =+W39-Y39 -> -33538 | Y39: =IFERROR(VLOOKUP($C$3,'2014-15 Final'!$E$13:$AZ$311,20,FALSE),0) -> 1129733 | Z39: =+Y39-AA39 -> 155671 | AA39: =IFERROR(VLOOKUP($C$3,'2013-14 Final'!$E$13:$AV$310,20,FALSE),0) -> 974062 | AB39: =+AA39-AC39 -> -108127 | AC39: =IFERROR(VLOOKUP($C$3,'2012-13 Final'!$E$13:$AV$310,20,FALSE),0) -> 1082189
A40: 40 | B40: Prior year net allocation | D40: =IFERROR(VLOOKUP($C$3,'2019-20 Final'!$E$13:$AZ$351,23,FALSE),0) -> 1175901 | E40: =+D40-ISERR(Q40) -> 1175901 | F40: =IFERROR(VLOOKUP($C$4,'2021-22 FInal'!$E$13:$CC$351,80,FALSE),0) -> 0 | G40: =IFERROR(VLOOKUP($C$4,'2021-22 Prelim'!$E$13:$CC$351,80,FALSE),0) -> 0 | H40: =IFERROR(VLOOKUP($C$4,'2020-21 Rev. Final'!$D$13:$AZ$351,24,FALSE),0) -> 1644739 | I40: =H40-K40 -> 468838 | J40: =IFERROR(VLOOKUP($C$4,'2020-21 Final'!$D$13:$AZ$351,24,FALSE),0) -> 1644739 | K40: =IFERROR(VLOOKUP($C$3,'2019-20 Final'!$E$13:$AZ$351,23,FALSE),0) -> 1175901 | L40: =K40-N40 -> 16366 | M40: =IFERROR(VLOOKUP($C$3,'2019-20 Prelim'!$E$13:$AZ$351,23,FALSE),0) -> 1175901 | N40: =IFERROR(VLOOKUP($C$4,'2018-19 Final'!$D$13:$AZ$351,24,FALSE),0) -> 1159535 | P40: =IFERROR(VLOOKUP($C$4,'2018-19 Prelim'!$D$13:$AZ$351,24,FALSE),0) -> 1159535 | Q40: NA | S40: NA | T40: =IFERROR(VLOOKUP($C$3,'2016-17 Final'!$E$13:$AZ$319,23,FALSE),0) -> 1086738 | U40: =+T40-W40 -> -12648 | V40: =IFERROR(VLOOKUP($C$3,'2016-17 Prelim'!$E$13:$AZ$320,23,FALSE),0) -> 1086738 | W40: =IFERROR(VLOOKUP($C$3,'2015-16 Final'!$E$13:$AZ$311,23,FALSE),0) -> 1099386 | X40: =+W40-Y40 -> 112495 | Y40: =IFERROR(VLOOKUP($C$3,'2014-15 Final'!$E$13:$AZ$311,23,FALSE),0) -> 986891 | Z40: =+Y40-AA40 -> -10207 | AA40: =IFERROR(VLOOKUP($C$3,'2013-14 Final'!$E$13:$AV$310,23,FALSE),0) -> 997098 | AB40: =+AA40-AC40 -> 5327 | AC40: =IFERROR(VLOOKUP($C$3,'2012-13 Final'!$E$13:$AV$310,23,FALSE),0) -> 991771
A41: 41 | B41: Current Year Gross amount | D41: =D13 -> 1102596.827 | E41: =+D41-ISERR(Q41) -> 1102596.827 | F41: =F13 -> 1581255.509 | G41: =G13 -> 1589493.07 | H41: =H13 -> 1695832.3 | I41: 593235.4731 | J41: =J13 -> 1692071.298 | K41: =K13 -> 1102596.827 | L41: 311909.8904 | M41: =M13 -> 1836122.367 | N41: =N13 -> 790686.9365 | P41: =P13 -> 1379053.391 | Q41: NA | S41: NA | T41: =T13 -> 1173197.551 | U41: =+T41-W41 -> 31327.72998 | V41: =V13 -> 1188674.2 | W41: =W13 -> 1141869.821 | X41: =+W41-Y41 -> -34935.62773 | Y41: =Y13 -> 1176805.449 | Z41: =+Y41-AA41 -> 162157.8048 | AA41: =AA13 -> 1014647.644 | AB41: =+AA41-AC41 -> -112632.6202 | AC41: =AC13 -> 1127280.264
A42: 42 | B42: Maximum amount possible for school improvement pool | D42: =IF(D39<D40,0,IF(D39>=D40,D41-D40,MAX(D39-D40,0))) -> -73304.17312 | E42: =+D42-ISERR(Q42) -> -73304.17312 | F42: =IF(F39<F40,0,IF(F39>=F40,F41-F40,MAX(F39-F40,0))) -> 1581255.509 | G42: =IF(G39<G40,0,IF(G39>=G40,G41-G40,MAX(G39-G40,0))) -> 1589493.07 | H42: =IF(H39<H40,0,IF(H39>=H40,H41-H40,MAX(H39-H40,0))) -> 0 | I42: 73304.17312 | J42: =IF(J39<J40,0,IF(J39>=J40,J41-J40,MAX(J39-J40,0))) -> 0 | K42: =IF(K39<K40,0,IF(K39>=K40,K41-K40,MAX(K39-K40,0))) -> -73304.17312 | L42: 295543.8904 | M42: =IF(M39<M40,0,IF(M39>=M40,M41-M40,MAX(M39-M40,0))) -> 660221.367 | N42: =IF(N39<N40,0,IF(N39>=N40,N41-N40,MAX(N39-N40,0))) -> -368848.0635 | P42: =IF(P39<P40,0,IF(P39>=P40,P41-P40,MAX(P39-P40,0))) -> 219518.3908 | Q42: NA | S42: NA | T42: =IF(T39<T40,0,IF(T39>=T40,T41-T40,MAX(T39-T40,0))) -> 86459.55103 | U42: =+T42-W42 -> 86459.55103 | V42: =IF(V39<V40,0,IF(V39>=V40,V41-V40,MAX(V39-V40,0))) -> 101936.2003 | W42: =IF(W39<W40,0,IF(W39>=W40,W41-W40,MAX(W39-W40,0))) -> 0 | X42: =+W42-Y42 -> -189914.4488 | Y42: =IF(Y39<Y40,0,IF(Y39>=Y40,Y41-Y40,MAX(Y39-Y40,0))) -> 189914.4488 | Z42: =+Y42-AA42 -> 189914.4488 | AA42: =IF(AA39<AA40,0,IF(AA39>=AA40,AA41-AA40,MAX(AA39-AA40,0))) -> 0 | AB42: =+AA42-AC42 -> -135509.2642 | AC42: =IF(AC39<AC40,0,IF(AC39>=AC40,AC41-AC40,MAX(AC39-AC40,0))) -> 135509.2642
A43: 43 | B43: (If line 38 < line 39, zero; otherwise, line 40 - line 39)
A44: 44 | B44: Actual amount to school improvement pool Negative amount = district took from pool Positive amount = district gave to pool | D44: =(D15+D16)*-1 -> 126974 | F44: =(F15+F16)*-1 -> -8205.40714 | G44: =(G15+G16)*-1 -> 625.3035814 | H44: =(H15+H16)*-1 -> 51093.03983 | J44: =(J15+J16)*-1 -> 50567.07643 | K44: =(K15+K16)*-1 -> 126974 | M44: =(M15+M16)*-1 -> 155992.9812 | N44: =(N15+N16)*-1 -> 189665.4047 | P44: =(P15+P16)*-1 -> 292315.1222 | Q44: NA | S44: NA | T44: =(T15+T16)*-1 -> 86438 | V44: =(V15+V16)*-1 -> 98877.58564 | W44: =(W15+W16)*-1 -> 42484 | X44: =+W44-Y44 -> -21854.68637 | Y44: =(Y15+Y16)*-1 -> 64338.68637 | AA44: =(AA15+AA16)*-1 -> 24036 | AC44: =(AC15+AC16)*-1 -> 119953.6791
A45: 45 | Q45: **No School Improvement Pool for SY 2017-18; Hold Harmless ESSA Reset**
A60: 17 | B60: Allocation before State Admin + Awards, after School Improvement | D60: =VLOOKUP($C$3,'2019-20 Final'!$E$13:$AZ$351,20,FALSE) -> 1686944.127 | F60: =IFERROR(VLOOKUP($C$4,'2021-22 Prelim'!$D:$BS,68,FALSE),0) -> 1580567.053 | G60: =IFERROR(VLOOKUP($C$4,'2021-22 Prelim'!$D:$BS,68,FALSE),0) -> 1580567.053 | H60: =IFERROR(VLOOKUP($C$4,'2020-21 Rev. Final'!$D:$AW,39,FALSE),0) -> 1644739 | J60: =IFERROR(VLOOKUP($C$4,'2020-21 Prelim'!$D:$AW,39,FALSE),0) -> 1644739 | K60: =IFERROR(VLOOKUP($C$3,'2019-20 Final'!$E$13:$AZ$351,20,FALSE),0) -> 1686944.127 | M60: =IFERROR(VLOOKUP($C$3,'2019-20 Prelim'!$E:$AW,38,FALSE),0) -> 1680129.817 | N60: =IFERROR(VLOOKUP($C$3,'2017-18 Final'!$E$13:$AZ$321,20,FALSE),0) -> 1170725.774 | P60: =IFERROR(VLOOKUP($C$3,'2017-18 Final'!$E$13:$AZ$321,20,FALSE),0) -> 1170725.774 | Q60: =IFERROR(VLOOKUP($C$4,'2016-17 Final'!$D$13:$AW$319,39,FALSE),0) -> 1086738 | S60: =IFERROR(VLOOKUP($C$4,'2016-17 Prelim'!$D$13:$AW$320,39,FALSE),0) -> 1089775.414 | T60: =IFERROR(VLOOKUP($C$3,'2015-16 Final'!$E$13:$AZ$311,38,FALSE),0) -> 1099386 | V60: =IFERROR(VLOOKUP($C$3,'2014-15 Final'!$E$13:$AZ$311,38,FALSE),0) -> 1112466.314 | X60: =IFERROR(VLOOKUP($C$3,'2013-14 Final'!$E$13:$AW$311,38,FALSE),0) -> 997098 | Z60: =IFERROR(VLOOKUP($C$3,'2012-13 Final'!$E$13:$AV$310,38,FALSE),0) -> 1007326.531
B64: Allocation Base | D64: =D13 -> 1102596.827 | F64: =F13 -> 1581255.509 | G64: =G13 -> 1589493.07 | H64: =H13 -> 1695832.3 | J64: =J13 -> 1692071.298 | K64: =K13 -> 1102596.827 | M64: =M13 -> 1836122.367 | N64: =N13 -> 790686.9365 | P64: =S13 -> 1259686.889 | Q64: =T13 -> 1173197.551 | S64: =V13 -> 1188674.2 | T64: =W13 -> 1141869.821 | V64: =Y13 -> 1176805.449 | X64: =AA13 -> 1014647.644 | Z64: =AC13 -> 1127280.264
B65: Less: School Improvement | D65: =D15+D16 -> -126974 | F65: =IFERROR(F15+F16,0) -> 8205.40714 | G65: =IFERROR(G15+G16,0) -> -625.3035814 | H65: =IFERROR(H15+H16,0) -> -51093.03983 | J65: =IFERROR(J15+J16,0) -> -50567.07643 | K65: =K15+K16 -> -126974 | M65: =IFERROR(M15+M16,0) -> -155992.9812 | N65: =N15+N16 -> -189665.4047 | P65: =IFERROR(S15+S16,0) -> 0 | Q65: =T15+T16 -> -86438 | S65: =V15+V16 -> -98877.58564 | T65: =W15+W16 -> -42484 | V65: =Y15+Y16 -> -64338.68637 | X65: =AA15+AA16 -> -24036 | Z65: =AC15+AC16 -> -119953.6791
B66: Sub-total | D66: =D64+D65 -> 975622.8269 | F66: =F64+F65 -> 1589460.916 | G66: =G64+G65 -> 1588867.766 | H66: =H64+H65 -> 1644739.26 | J66: =J64+J65 -> 1641504.222 | K66: =K64+K65 -> 975622.8269 | M66: =M64+M65 -> 1680129.386 | N66: =N64+N65 -> 601021.5318 | P66: =P64+P65 -> 1259686.889 | Q66: =Q64+Q65 -> 1086759.551 | S66: =S64+S65 -> 1089796.615 | T66: =T64+T65 -> 1099385.821 | V66: =V64+V65 -> 1112466.762 | X66: =X64+X65 -> 990611.644 | Z66: =Z64+Z65 -> 1007326.585
B67: Less: State Admin | D67: =D17 -> -15737.3378 | F67: =F17 -> -12908.28626 | G67: =G17 -> -12932.24228 | H67: =H17 -> -14947.75072 | J67: =J17 -> -14940.86893 | K67: =K17 -> -15737.3378 | M67: =M17 -> -15901.34802 | N67: =N17 -> -10949.18233 | P67: =S17 -> -11184.67288 | Q67: =T17 -> -10378.90688 | S67: =V17 -> -10376.05872 | T67: =W17 -> -10631.01919 | V67: =Y17 -> -10897.23088 | X67: =AA17 -> -10206.61714 | Z67: =AC17 -> -9669.601645
B68: Sub-total | D68: =D66+D67 -> 959885.4891 | F68: =F66+F67 -> 1576552.63 | G68: =G66+G67 -> 1575935.524 | H68: =H66+H67 -> 1629791.509 | J68: =J66+J67 -> 1626563.353 | K68: =K66+K67 -> 959885.4891 | M68: =M66+M67 -> 1664228.038 | N68: =N66+N67 -> 590072.3495 | P68: =P66+P67 -> 1248502.216 | Q68: =Q66+Q67 -> 1076380.644 | S68: =S66+S67 -> 1079420.556 | T68: =T66+T67 -> 1088754.802 | V68: =V66+V67 -> 1101569.532 | X68: =X66+X67 -> 980405.0268 | Z68: =Z66+Z67 -> 997656.9835
B69: Less: Awards | D69: =D18 -> 0 | F69: =F18 -> 0 | G69: =G18 -> 0 | H69: =H18 -> 0 | J69: =J18 -> 0 | K69: =K18 -> 0 | M69: =M18 -> 0 | N69: =N18 -> 0 | P69: =S18 -> 0 | Q69: =T18 -> 0 | S69: =V18 -> 0 | T69: =W18 -> -2017 | V69: =Y18 -> -2183 | X69: =AA18 -> 0 | Z69: =AC18 -> -112
B70: Net Award | D70: =D68+D69 -> 959885.4891 | F70: =F68+F69 -> 1576552.63 | G70: =G68+G69 -> 1575935.524 | H70: =H68+H69 -> 1629791.509 | J70: =J68+J69 -> 1626563.353 | K70: =K68+K69 -> 959885.4891 | M70: =M68+M69 -> 1664228.038 | N70: =N68+N69 -> 590072.3495 | P70: =P68+P69 -> 1248502.216 | Q70: =Q68+Q69 -> 1076380.644 | S70: =S68+S69 -> 1079420.556 | T70: =T68+T69 -> 1086737.802 | V70: =V68+V69 -> 1099386.532 | X70: =X68+X69 -> 980405.0268 | Z70: =Z68+Z69 -> 997544.9835

Sheet iGrants (hidden)
A1: Final Title I Allocations SY 2021-22 | C1: ='2021-22 FInal'!CC13 -> 252228035 | D1: Total
C2: ='2021-22 FInal'!CC329 -> 2136882 | D2: Part D
C3: =+C1-C2 -> 250091153 | D3: Net Below
C6: =SUM(C8:C349) -> 250091153 | D6: =SUM(D8:D349) -> 228452652 | E6: =SUM(E8:E349) -> 228412229 | F6: =SUM(F8:F349) -> 40423 | G6: =SUM(G8:G349) -> 250131576
A7: CoDistID | B7: District | C7: SY 2021-22 Final | D7: SY 2020-21 Rev. Final | E7: SY 2020-21 Final | F7: Variance | G7: SY 21-22 Final to iGrants
A8: 14005 | B8: ABERDEEN | C8: =IFERROR(ROUNDDOWN(VLOOKUP(A8,'2021-22 FInal'!$A$14:$CC$351,81,FALSE),0),0) -> 1558784 | D8: =IFERROR(ROUNDDOWN(VLOOKUP(A8,'2020-21 Rev. Final'!$A$14:$AZ$351,52,FALSE),0),0) -> 1629791 | E8: 1629790 | F8: =D8-E8 -> 1 | G8: =C8+F8 -> 1558785
A9: 21226 | B9: ADNA | C9: =IFERROR(ROUNDDOWN(VLOOKUP(A9,'2021-22 FInal'!$A$14:$CC$351,81,FALSE),0),0) -> 102742 | D9: =IFERROR(ROUNDDOWN(VLOOKUP(A9,'2020-21 Rev. Final'!$A$14:$AZ$351,52,FALSE),0),0) -> 120760 | E9: 120760 | F9: =D9-E9 -> 0 | G9: =C9+F9 -> 102742
A10: 22017 | B10: ALMIRA | C10: =IFERROR(ROUNDDOWN(VLOOKUP(A10,'2021-22 FInal'!$A$14:$CC$351,81,FALSE),0),0) -> 1233 | D10: =IFERROR(ROUNDDOWN(VLOOKUP(A10,'2020-21 Rev. Final'!$A$14:$AZ$351,52,FALSE),0),0) -> 1449 | E10: 1449 | F10: 0 | G10: 1233
A11: 29103 | B11: ANACORTES | C11: =IFERROR(ROUNDDOWN(VLOOKUP(A11,'2021-22 FInal'!$A$14:$CC$351,81,FALSE),0),0) -> 451785 | D11: =IFERROR(ROUNDDOWN(VLOOKUP(A11,'2020-21 Rev. Final'!$A$14:$AZ$351,52,FALSE),0),0) -> 300176 | E11: 300176 | F11: 0 | G11: 451785
A12: 31016 | B12: ARLINGTON | C12: =IFERROR(ROUNDDOWN(VLOOKUP(A12,'2021-22 FInal'!$A$14:$CC$351,81,FALSE),0),0) -> 560387 | D12: =IFERROR(ROUNDDOWN(VLOOKUP(A12,'2020-21 Rev. Final'!$A$14:$AZ$351,52,FALSE),0),0) -> 509548 | E12: 509547 | F12: 1 | G12: 560388
A13: 02420 | B13: ASOTIN-ANATONE | C13: =IFERROR(ROUNDDOWN(VLOOKUP(A13,'2021-22 FInal'!$A$14:$CC$351,81,FALSE),0),0) -> 96192 | D13: =IFERROR(ROUNDDOWN(VLOOKUP(A13,'2020-21 Rev. Final'!$A$14:$AZ$351,52,FALSE),0),0) -> 102372 | E13: 102363 | F13: 9 | G13: 96201
A14: 17408 | B14: AUBURN | C14: =IFERROR(ROUNDDOWN(VLOOKUP(A14,'2021-22 FInal'!$A$14:$CC$351,81,FALSE),0),0) -> 4114172 | D14: =IFERROR(ROUNDDOWN(VLOOKUP(A14,'2020-21 Rev. Final'!$A$14:$AZ$351,52,FALSE),0),0) -> 4565116 | E14: 4565111 | F14: 5 | G14: 4114177
A15: 18303 | B15: BAINBRIDGE ISLAND | C15: =IFERROR(ROUNDDOWN(VLOOKUP(A15,'2021-22 FInal'!$A$14:$CC$351,81,FALSE),0),0) -> 96687 | D15: =IFERROR(ROUNDDOWN(VLOOKUP(A15,'2020-21 Rev. Final'!$A$14:$AZ$351,52,FALSE),0),0) -> 94898 | E15: 94898 | F15: 0 | G15: 96687
A16: 06119 | B16: BATTLE GROUND | C16: =IFERROR(ROUNDDOWN(VLOOKUP(A16,'2021-22 FInal'!$A$14:$CC$351,81,FALSE),0),0) -> 1799078 | D16: =IFERROR(ROUNDDOWN(VLOOKUP(A16,'2020-21 Rev. Final'!$A$14:$AZ$351,52,FALSE),0),0) -> 1686785 | E16: 1686674 | F16: 111 | G16: 1799189
A17: 17405 | B17: BELLEVUE | C17: =IFERROR(ROUNDDOWN(VLOOKUP(A17,'2021-22 FInal'!$A$14:$CC$351,81,FALSE),0),0) -> 1852877 | D17: =IFERROR(ROUNDDOWN(VLOOKUP(A17,'2020-21 Rev. Final'!$A$14:$AZ$351,52,FALSE),0),0) -> 1949226 | E17: 1949223 | F17: 3 | G17: 1852880
A18: 37501 | B18: BELLINGHAM | C18: =IFERROR(ROUNDDOWN(VLOOKUP(A18,'2021-22 FInal'!$A$14:$CC$351,81,FALSE),0),0) -> 2136271 | D18: =IFERROR(ROUNDDOWN(VLOOKUP(A18,'2020-21 Rev. Final'!$A$14:$AZ$351,52,FALSE),0),0) -> 2122288 | E18: 2114195 | F18: 8093 | G18: 2144364
A19: 01122 | B19: BENGE | C19: =IFERROR(ROUNDDOWN(VLOOKUP(A19,'2021-22 FInal'!$A$14:$CC$351,81,FALSE),0),0) -> 0 | D19: =IFERROR(ROUNDDOWN(VLOOKUP(A19,'2020-21 Rev. Final'!$A$14:$AZ$351,52,FALSE),0),0) -> 0 | E19: 0 | F19: 0 | G19: 0
A20: 27403 | B20: BETHEL | C20: =IFERROR(ROUNDDOWN(VLOOKUP(A20,'2021-22 FInal'!$A$14:$CC$351,81,FALSE),0),0) -> 4112802 | D20: =IFERROR(ROUNDDOWN(VLOOKUP(A20,'2020-21 Rev. Final'!$A$14:$AZ$351,52,FALSE),0),0) -> 3502064 | E20: 3501315 | F20: 749 | G20: 4113551
A21: 20203 | B21: BICKLETON | C21: =IFERROR(ROUNDDOWN(VLOOKUP(A21,'2021-22 FInal'!$A$14:$CC$351,81,FALSE),0),0) -> 1250 | D21: =IFERROR(ROUNDDOWN(VLOOKUP(A21,'2020-21 Rev. Final'!$A$14:$AZ$351,52,FALSE),0),0) -> 1470 | E21: 1470 | F21: 0 | G21: 1250
A22: 37503 | B22: BLAINE | C22: =IFERROR(ROUNDDOWN(VLOOKUP(A22,'2021-22 FInal'!$A$14:$CC$351,81,FALSE),0),0) -> 634634 | D22: =IFERROR(ROUNDDOWN(VLOOKUP(A22,'2020-21 Rev. Final'!$A$14:$AZ$351,52,FALSE),0),0) -> 547561 | E22: 547560 | F22: 1 | G22: 634635
A23: 21234 | B23: BOISTFORT | C23: =IFERROR(ROUNDDOWN(VLOOKUP(A23,'2021-22 FInal'!$A$14:$CC$351,81,FALSE),0),0) -> 50400 | D23: =IFERROR(ROUNDDOWN(VLOOKUP(A23,'2020-21 Rev. Final'!$A$14:$AZ$351,52,FALSE),0),0) -> 33261 | E23: 33134 | F23: 127 | G23: 50527
A24: 18100 | B24: BREMERTON | C24: =IFERROR(ROUNDDOWN(VLOOKUP(A24,'2021-22 FInal'!$A$14:$CC$351,81,FALSE),0),0) -> 1359975 | D24: =IFERROR(ROUNDDOWN(VLOOKUP(A24,'2020-21 Rev. Final'!$A$14:$AZ$351,52,FALSE),0),0) -> 1298885 | E24: 1293919 | F24: 4966 | G24: 1364941
A25: 24111 | B25: BREWSTER | C25: =IFERROR(ROUNDDOWN(VLOOKUP(A25,'2021-22 FInal'!$A$14:$CC$351,81,FALSE),0),0) -> 282937 | D25: =IFERROR(ROUNDDOWN(VLOOKUP(A25,'2020-21 Rev. Final'!$A$14:$AZ$351,52,FALSE),0),0) -> 301117 | E25: 301082 | F25: 35 | G25: 282972
A26: 09075 | B26: BRIDGEPORT | C26: =IFERROR(ROUNDDOWN(VLOOKUP(A26,'2021-22 FInal'!$A$14:$CC$351,81,FALSE),0),0) -> 374579 | D26: =IFERROR(ROUNDDOWN(VLOOKUP(A26,'2020-21 Rev. Final'!$A$14:$AZ$351,52,FALSE),0),0) -> 306417 | E26: 306417 | F26: 0 | G26: 374579
A27: 16046 | B27: BRINNON | C27: =IFERROR(ROUNDDOWN(VLOOKUP(A27,'2021-22 FInal'!$A$14:$CC$351,81,FALSE),0),0) -> 56043 | D27: =IFERROR(ROUNDDOWN(VLOOKUP(A27,'2020-21 Rev. Final'!$A$14:$AZ$351,52,FALSE),0),0) -> 45043 | E27: 44871 | F27: 172 | G27: 56215
A28: 29100 | B28: BURLINGTON-EDISON | C28: =IFERROR(ROUNDDOWN(VLOOKUP(A28,'2021-22 FInal'!$A$14:$CC$351,81,FALSE),0),0) -> 1281606 | D28: =IFERROR(ROUNDDOWN(VLOOKUP(A28,'2020-21 Rev. Final'!$A$14:$AZ$351,52,FALSE),0),0) -> 842790 | E28: 842789 | F28: 1 | G28: 1281607
A29: 06117 | B29: CAMAS | C29: =IFERROR(ROUNDDOWN(VLOOKUP(A29,'2021-22 FInal'!$A$14:$CC$351,81,FALSE),0),0) -> 225856 | D29: =IFERROR(ROUNDDOWN(VLOOKUP(A29,'2020-21 Rev. Final'!$A$14:$AZ$351,52,FALSE),0),0) -> 206811 | E29: 206811 | F29: 0 | G29: 225856
A30: 05401 | B30: CAPE FLATTERY | C30: =IFERROR(ROUNDDOWN(VLOOKUP(A30,'2021-22 FInal'!$A$14:$CC$351,81,FALSE),0),0) -> 111519 | D30: =IFERROR(ROUNDDOWN(VLOOKUP(A30,'2020-21 Rev. Final'!$A$14:$AZ$351,52,FALSE),0),0) -> 120622 | E30: 120622 | F30: 0 | G30: 111519
A31: 27019 | B31: CARBONADO | C31: =IFERROR(ROUNDDOWN(VLOOKUP(A31,'2021-22 FInal'!$A$14:$CC$351,81,FALSE),0),0) -> 20272 | D31: =IFERROR(ROUNDDOWN(VLOOKUP(A31,'2020-21 Rev. Final'!$A$14:$AZ$351,52,FALSE),0),0) -> 18829 | E31: 18829 | F31: 0 | G31: 20272
A32: 04228 | B32: CASCADE | C32: =IFERROR(ROUNDDOWN(VLOOKUP(A32,'2021-22 FInal'!$A$14:$CC$351,81,FALSE),0),0) -> 432551 | D32: =IFERROR(ROUNDDOWN(VLOOKUP(A32,'2020-21 Rev. Final'!$A$14:$AZ$351,52,FALSE),0),0) -> 508408 | E32: 508408 | F32: 0 | G32: 432551
A33: 04222 | B33: CASHMERE | C33: =IFERROR(ROUNDDOWN(VLOOKUP(A33,'2021-22 FInal'!$A$14:$CC$351,81,FALSE),0),0) -> 397757 | D33: =IFERROR(ROUNDDOWN(VLOOKUP(A33,'2020-21 Rev. Final'!$A$14:$AZ$351,52,FALSE),0),0) -> 386397 | E33: 386397 | F33: 0 | G33: 397757
A34: 08401 | B34: CASTLE ROCK | C34: =IFERROR(ROUNDDOWN(VLOOKUP(A34,'2021-22 FInal'!$A$14:$CC$351,81,FALSE),0),0) -> 240373 | D34: =IFERROR(ROUNDDOWN(VLOOKUP(A34,'2020-21 Rev. Final'!$A$14:$AZ$351,52,FALSE),0),0) -> 233785 | E34: 233785 | F34: 0 | G34: 240373
A35: 18901 | B35: CATALYST BREMERTON CHARTER | C35: =IFERROR(ROUNDDOWN(VLOOKUP(A35,'2021-22 FInal'!$A$14:$CC$351,81,FALSE),0),0) -> 32460 | D35: =IFERROR(ROUNDDOWN(VLOOKUP(A35,'2020-21 Rev. Final'!$A$14:$AZ$351,52,FALSE),0),0) -> 57924 | E35: 57702 | F35: 222 | G35: 32682
A36: 20215 | B36: CENTERVILLE | C36: =IFERROR(ROUNDDOWN(VLOOKUP(A36,'2021-22 FInal'!$A$14:$CC$351,81,FALSE),0),0) -> 24587 | D36: =IFERROR(ROUNDDOWN(VLOOKUP(A36,'2020-21 Rev. Final'!$A$14:$AZ$351,52,FALSE),0),0) -> 27289 | E36: 27286 | F36: 3 | G36: 24590
A37: 18401 | B37: CENTRAL KITSAP | C37: =IFERROR(ROUNDDOWN(VLOOKUP(A37,'2021-22 FInal'!$A$14:$CC$351,81,FALSE),0),0) -> 1250821 | D37: =IFERROR(ROUNDDOWN(VLOOKUP(A37,'2020-21 Rev. Final'!$A$14:$AZ$351,52,FALSE),0),0) -> 1261179 | E37: 1256356 | F37: 4823 | G37: 1255644
A38: 32356 | B38: CENTRAL VALLEY | C38: =IFERROR(ROUNDDOWN(VLOOKUP(A38,'2021-22 FInal'!$A$14:$CC$351,81,FALSE),0),0) -> 2799144 | D38: =IFERROR(ROUNDDOWN(VLOOKUP(A38,'2020-21 Rev. Final'!$A$14:$AZ$351,52,FALSE),0),0) -> 2922294 | E38: 2922291 | F38: 3 | G38: 2799147
A39: 21401 | B39: CENTRALIA | C39: =IFERROR(ROUNDDOWN(VLOOKUP(A39,'2021-22 FInal'!$A$14:$CC$351,81,FALSE),0),0) -> 1200733 | D39: =IFERROR(ROUNDDOWN(VLOOKUP(A39,'2020-21 Rev. Final'!$A$14:$AZ$351,52,FALSE),0),0) -> 1298394 | E39: 1298392 | F39: 2 | G39: 1200735
A40: 21302 | B40: CHEHALIS | C40: =IFERROR(ROUNDDOWN(VLOOKUP(A40,'2021-22 FInal'!$A$14:$CC$351,81,FALSE),0),0) -> 457834 | D40: =IFERROR(ROUNDDOWN(VLOOKUP(A40,'2020-21 Rev. Final'!$A$14:$AZ$351,52,FALSE),0),0) -> 537851 | E40: 537750 | F40: 101 | G40: 457935
A41: 32360 | B41: CHENEY | C41: =IFERROR(ROUNDDOWN(VLOOKUP(A41,'2021-22 FInal'!$A$14:$CC$351,81,FALSE),0),0) -> 911514 | D41: =IFERROR(ROUNDDOWN(VLOOKUP(A41,'2020-21 Rev. Final'!$A$14:$AZ$351,52,FALSE),0),0) -> 819101 | E41: 819100 | F41: 1 | G41: 911515
A42: 33036 | B42: CHEWELAH | C42: =IFERROR(ROUNDDOWN(VLOOKUP(A42,'2021-22 FInal'!$A$14:$CC$351,81,FALSE),0),0) -> 486914 | D42: =IFERROR(ROUNDDOWN(VLOOKUP(A42,'2020-21 Rev. Final'!$A$14:$AZ$351,52,FALSE),0),0) -> 349835 | E42: 349835 | F42: 0 | G42: 486914
A43: 16049 | B43: CHIMACUM | C43: =IFERROR(ROUNDDOWN(VLOOKUP(A43,'2021-22 FInal'!$A$14:$CC$351,81,FALSE),0),0) -> 234581 | D43: =IFERROR(ROUNDDOWN(VLOOKUP(A43,'2020-21 Rev. Final'!$A$14:$AZ$351,52,FALSE),0),0) -> 164294 | E43: 164294 | F43: 0 | G43: 234581
A44: 02250 | B44: CLARKSTON | C44: =IFERROR(ROUNDDOWN(VLOOKUP(A44,'2021-22 FInal'!$A$14:$CC$351,81,FALSE),0),0) -> 866803 | D44: =IFERROR(ROUNDDOWN(VLOOKUP(A44,'2020-21 Rev. Final'!$A$14:$AZ$351,52,FALSE),0),0) -> 748375 | E44: 748374 | F44: 1 | G44: 866804
A45: 19404 | B45: CLE ELUM-ROSLYN | C45: =IFERROR(ROUNDDOWN(VLOOKUP(A45,'2021-22 FInal'!$A$14:$CC$351,81,FALSE),0),0) -> 286979 | D45: =IFERROR(ROUNDDOWN(VLOOKUP(A45,'2020-21 Rev. Final'!$A$14:$AZ$351,52,FALSE),0),0) -> 198575 | E45: 197819 | F45: 756 | G45: 287735
A46: 27400 | B46: CLOVER PARK | C46: =IFERROR(ROUNDDOWN(VLOOKUP(A46,'2021-22 FInal'!$A$14:$CC$351,81,FALSE),0),0) -> 4626700 | D46: =IFERROR(ROUNDDOWN(VLOOKUP(A46,'2020-21 Rev. Final'!$A$14:$AZ$351,52,FALSE),0),0) -> 3936589 | E46: 3936252 | F46: 337 | G46: 4627037
A47: 38300 | B47: COLFAX | C47: =IFERROR(ROUNDDOWN(VLOOKUP(A47,'2021-22 FInal'!$A$14:$CC$351,81,FALSE),0),0) -> 112899 | D47: =IFERROR(ROUNDDOWN(VLOOKUP(A47,'2020-21 Rev. Final'!$A$14:$AZ$351,52,FALSE),0),0) -> 95322 | E47: 95317 | F47: 5 | G47: 112904
A48: 36250 | B48: COLLEGE PLACE | C48: =IFERROR(ROUNDDOWN(VLOOKUP(A48,'2021-22 FInal'!$A$14:$CC$351,81,FALSE),0),0) -> 377073 | D48: =IFERROR(ROUNDDOWN(VLOOKUP(A48,'2020-21 Rev. Final'!$A$14:$AZ$351,52,FALSE),0),0) -> 380196 | E48: 380161 | F48: 35 | G48: 377108
A49: 38306 | B49: COLTON | C49: =IFERROR(ROUNDDOWN(VLOOKUP(A49,'2021-22 FInal'!$A$14:$CC$351,81,FALSE),0),0) -> 33900 | D49: =IFERROR(ROUNDDOWN(VLOOKUP(A49,'2020-21 Rev. Final'!$A$14:$AZ$351,52,FALSE),0),0) -> 39744 | E49: 39744 | F49: 0 | G49: 33900
A50: 33206 | B50: COLUMBIA (STEV) | C50: =IFERROR(ROUNDDOWN(VLOOKUP(A50,'2021-22 FInal'!$A$14:$CC$351,81,FALSE),0),0) -> 82760 | D50: =IFERROR(ROUNDDOWN(VLOOKUP(A50,'2020-21 Rev. Final'!$A$14:$AZ$351,52,FALSE),0),0) -> 68639 | E50: 68631 | F50: 8 | G50: 82768
A51: 36400 | B51: COLUMBIA (WALLA) | C51: =IFERROR(ROUNDDOWN(VLOOKUP(A51,'2021-22 FInal'!$A$14:$CC$351,81,FALSE),0),0) -> 283502 | D51: =IFERROR(ROUNDDOWN(VLOOKUP(A51,'2020-21 Rev. Final'!$A$14:$AZ$351,52,FALSE),0),0) -> 233862 | E51: 233861 | F51: 1 | G51: 283503
A52: 33115 | B52: COLVILLE | C52: =IFERROR(ROUNDDOWN(VLOOKUP(A52,'2021-22 FInal'!$A$14:$CC$351,81,FALSE),0),0) -> 692610 | D52: =IFERROR(ROUNDDOWN(VLOOKUP(A52,'2020-21 Rev. Final'!$A$14:$AZ$351,52,FALSE),0),0) -> 616438 | E52: 616437 | F52: 1 | G52: 692611
A53: 29011 | B53: CONCRETE | C53: =IFERROR(ROUNDDOWN(VLOOKUP(A53,'2021-22 FInal'!$A$14:$CC$351,81,FALSE),0),0) -> 196748 | D53: =IFERROR(ROUNDDOWN(VLOOKUP(A53,'2020-21 Rev. Final'!$A$14:$AZ$351,52,FALSE),0),0) -> 137293 | E53: 137293 | F53: 0 | G53: 196748
A54: 29317 | B54: CONWAY | C54: =IFERROR(ROUNDDOWN(VLOOKUP(A54,'2021-22 FInal'!$A$14:$CC$351,81,FALSE),0),0) -> 62265 | D54: =IFERROR(ROUNDDOWN(VLOOKUP(A54,'2020-21 Rev. Final'!$A$14:$AZ$351,52,FALSE),0),0) -> 41447 | E54: 41447 | F54: 0 | G54: 62265
A55: 14099 | B55: COSMOPOLIS | C55: =IFERROR(ROUNDDOWN(VLOOKUP(A55,'2021-22 FInal'!$A$14:$CC$351,81,FALSE),0),0) -> 41980 | D55: =IFERROR(ROUNDDOWN(VLOOKUP(A55,'2020-21 Rev. Final'!$A$14:$AZ$351,52,FALSE),0),0) -> 49478 | E55: 49474 | F55: 4 | G55: 41984
A56: 13151 | B56: COULEE-HARTLINE | C56: =IFERROR(ROUNDDOWN(VLOOKUP(A56,'2021-22 FInal'!$A$14:$CC$351,81,FALSE),0),0) -> 65298 | D56: =IFERROR(ROUNDDOWN(VLOOKUP(A56,'2020-21 Rev. Final'!$A$14:$AZ$351,52,FALSE),0),0) -> 76750 | E56: 76750 | F56: 0 | G56: 65298
A57: 15204 | B57: COUPEVILLE | C57: =IFERROR(ROUNDDOWN(VLOOKUP(A57,'2021-22 FInal'!$A$14:$CC$351,81,FALSE),0),0) -> 223375 | D57: =IFERROR(ROUNDDOWN(VLOOKUP(A57,'2020-21 Rev. Final'!$A$14:$AZ$351,52,FALSE),0),0) -> 225225 | E57: 225224 | F57: 1 | G57: 223376
A58: 05313 | B58: CRESCENT | C58: =IFERROR(ROUNDDOWN(VLOOKUP(A58,'2021-22 FInal'!$A$14:$CC$351,81,FALSE),0),0) -> 85152 | D58: =IFERROR(ROUNDDOWN(VLOOKUP(A58,'2020-21 Rev. Final'!$A$14:$AZ$351,52,FALSE),0),0) -> 98690 | E58: 98689 | F58: 1 | G58: 85153
A59: 22073 | B59: CRESTON | C59: =IFERROR(ROUNDDOWN(VLOOKUP(A59,'2021-22 FInal'!$A$14:$CC$351,81,FALSE),0),0) -> 24702 | D59: =IFERROR(ROUNDDOWN(VLOOKUP(A59,'2020-21 Rev. Final'!$A$14:$AZ$351,52,FALSE),0),0) -> 14024 | E59: 14023 | F59: 1 | G59: 24703
A60: 10050 | B60: CURLEW | C60: =IFERROR(ROUNDDOWN(VLOOKUP(A60,'2021-22 FInal'!$A$14:$CC$351,81,FALSE),0),0) -> 154395 | D60: =IFERROR(ROUNDDOWN(VLOOKUP(A60,'2020-21 Rev. Final'!$A$14:$AZ$351,52,FALSE),0),0) -> 64722 | E60: 64722 | F60: 0 | G60: 154395
A61: 26059 | B61: CUSICK | C61: =IFERROR(ROUNDDOWN(VLOOKUP(A61,'2021-22 FInal'!$A$14:$CC$351,81,FALSE),0),0) -> 273228 | D61: =IFERROR(ROUNDDOWN(VLOOKUP(A61,'2020-21 Rev. Final'!$A$14:$AZ$351,52,FALSE),0),0) -> 135226 | E61: 135226 | F61: 0 | G61: 273228
A62: 19007 | B62: DAMMAN | C62: =IFERROR(ROUNDDOWN(VLOOKUP(A62,'2021-22 FInal'!$A$14:$CC$351,81,FALSE),0),0) -> 0 | D62: =IFERROR(ROUNDDOWN(VLOOKUP(A62,'2020-21 Rev. Final'!$A$14:$AZ$351,52,FALSE),0),0) -> 0 | E62: 0 | F62: 0 | G62: 0
... 77 more rows

Sheet SA_Correction (hidden)
F2: Current | G2: Correction | H2: Difference
D3: LEAID | E3: (LEA) | F3: Districts | G3: Districts
E5: TOTAL | F5: =SUM(F6:F323) -> 230399655 | G5: =SUM(G6:G323) -> 230700646 | H5: =SUM(H6:H323) -> 300991
A6: 14005 | B6: 53 | C6: WA | D6: 5300030 | E6: ABERDEEN | F6: 1627665 | G6: =VLOOKUP(A6,'2020-21 Rev. Final'!$A$14:$AZ$325,52,0) -> 1629791 | H6: =G6-F6 -> 2126
A7: 21226 | B7: 53 | C7: WA | D7: 5300060 | E7: ADNA | F7: 120602 | G7: =VLOOKUP(A7,'2020-21 Rev. Final'!$A$14:$AZ$325,52,0) -> 120760 | H7: 158
A8: 22017 | B8: 53 | C8: WA | D8: 5300090 | E8: ALMIRA | F8: 1448 | G8: =VLOOKUP(A8,'2020-21 Rev. Final'!$A$14:$AZ$325,52,0) -> 1449 | H8: 1
A9: 29103 | B9: 53 | C9: WA | D9: 5300150 | E9: ANACORTES | F9: 299784 | G9: =VLOOKUP(A9,'2020-21 Rev. Final'!$A$14:$AZ$325,52,0) -> 300176 | H9: 392
A10: 31016 | B10: 53 | C10: WA | D10: 5300240 | E10: ARLINGTON | F10: 508883 | G10: =VLOOKUP(A10,'2020-21 Rev. Final'!$A$14:$AZ$325,52,0) -> 509548 | H10: 665
A11: 02420 | B11: 53 | C11: WA | D11: 5300280 | E11: ASOTIN-ANATONE | F11: 102239 | G11: =VLOOKUP(A11,'2020-21 Rev. Final'!$A$14:$AZ$325,52,0) -> 102372 | H11: 133
A12: 17408 | B12: 53 | C12: WA | D12: 5300300 | E12: AUBURN | F12: 4559160 | G12: =VLOOKUP(A12,'2020-21 Rev. Final'!$A$14:$AZ$325,52,0) -> 4565116 | H12: 5956
A13: 18303 | B13: 53 | C13: WA | D13: 5300330 | E13: BAINBRIDGE ISLAND | F13: 94774 | G13: =VLOOKUP(A13,'2020-21 Rev. Final'!$A$14:$AZ$325,52,0) -> 94898 | H13: 124
A14: 06119 | B14: 53 | C14: WA | D14: 5300380 | E14: BATTLE GROUND | F14: 1684585 | G14: =VLOOKUP(A14,'2020-21 Rev. Final'!$A$14:$AZ$325,52,0) -> 1686785 | H14: 2200
A15: 17405 | B15: 53 | C15: WA | D15: 5300390 | E15: BELLEVUE | F15: 1946682 | G15: =VLOOKUP(A15,'2020-21 Rev. Final'!$A$14:$AZ$325,52,0) -> 1949226 | H15: 2544
A16: 37501 | B16: 53 | C16: WA | D16: 5300420 | E16: BELLINGHAM | F16: 2119519 | G16: =VLOOKUP(A16,'2020-21 Rev. Final'!$A$14:$AZ$325,52,0) -> 2122288 | H16: 2769
A17: 01122 | B17: 53 | C17: WA | D17: 5300450 | E17: BENGE | F17: 0 | G17: =VLOOKUP(A17,'2020-21 Rev. Final'!$A$14:$AZ$325,52,0) -> 0 | H17: 0
A18: 27403 | B18: 53 | C18: WA | D18: 5300480 | E18: BETHEL | F18: 3497495 | G18: =VLOOKUP(A18,'2020-21 Rev. Final'!$A$14:$AZ$325,52,0) -> 3502064 | H18: 4569
A19: 20203 | B19: 53 | C19: WA | D19: 5300510 | E19: BICKLETON | F19: 1468 | G19: =VLOOKUP(A19,'2020-21 Rev. Final'!$A$14:$AZ$325,52,0) -> 1470 | H19: 2
A20: 37503 | B20: 53 | C20: WA | D20: 5300570 | E20: BLAINE | F20: 546847 | G20: =VLOOKUP(A20,'2020-21 Rev. Final'!$A$14:$AZ$325,52,0) -> 547561 | H20: 714
A21: 21234 | B21: 53 | C21: WA | D21: 5300630 | E21: BOISTFORT | F21: 33218 | G21: =VLOOKUP(A21,'2020-21 Rev. Final'!$A$14:$AZ$325,52,0) -> 33261 | H21: 43
A22: 18100 | B22: 53 | C22: WA | D22: 5300660 | E22: BREMERTON | F22: 1297190 | G22: =VLOOKUP(A22,'2020-21 Rev. Final'!$A$14:$AZ$325,52,0) -> 1298885 | H22: 1695
A23: 24111 | B23: 53 | C23: WA | D23: 5300690 | E23: BREWSTER | F23: 300724 | G23: =VLOOKUP(A23,'2020-21 Rev. Final'!$A$14:$AZ$325,52,0) -> 301117 | H23: 393
A24: 09075 | B24: 53 | C24: WA | D24: 5300720 | E24: BRIDGEPORT | F24: 306017 | G24: =VLOOKUP(A24,'2020-21 Rev. Final'!$A$14:$AZ$325,52,0) -> 306417 | H24: 400
A25: 16046 | B25: 53 | C25: WA | D25: 5300750 | E25: BRINNON | F25: 44985 | G25: =VLOOKUP(A25,'2020-21 Rev. Final'!$A$14:$AZ$325,52,0) -> 45043 | H25: 58
A26: 29100 | B26: 53 | C26: WA | D26: 5300780 | E26: BURLINGTON-EDISON | F26: 841690 | G26: =VLOOKUP(A26,'2020-21 Rev. Final'!$A$14:$AZ$325,52,0) -> 842790 | H26: 1100
A27: 06117 | B27: 53 | C27: WA | D27: 5300810 | E27: CAMAS | F27: 206541 | G27: =VLOOKUP(A27,'2020-21 Rev. Final'!$A$14:$AZ$325,52,0) -> 206811 | H27: 270
A28: 05401 | B28: 53 | C28: WA | D28: 5300840 | E28: CAPE FLATTERY | F28: 120465 | G28: =VLOOKUP(A28,'2020-21 Rev. Final'!$A$14:$AZ$325,52,0) -> 120622 | H28: 157
A29: 27019 | B29: 53 | C29: WA | D29: 5300870 | E29: CARBONADO | F29: 18805 | G29: =VLOOKUP(A29,'2020-21 Rev. Final'!$A$14:$AZ$325,52,0) -> 18829 | H29: 24
A30: 04228 | B30: 53 | C30: WA | D30: 5300950 | E30: CASCADE | F30: 507745 | G30: =VLOOKUP(A30,'2020-21 Rev. Final'!$A$14:$AZ$325,52,0) -> 508408 | H30: 663
A31: 17917 | B31: 53 | C31: WA | D31: 5300955 | E31: CASCADE MIDWAY CHARTER | F31: 0 | G31: =VLOOKUP(A31,'2020-21 Rev. Final'!$A$14:$AZ$325,52,0) -> 0 | H31: 0
A32: 04222 | B32: 53 | C32: WA | D32: 5300960 | E32: CASHMERE | F32: 385893 | G32: =VLOOKUP(A32,'2020-21 Rev. Final'!$A$14:$AZ$325,52,0) -> 386397 | H32: 504
A33: 08401 | B33: 53 | C33: WA | D33: 5300990 | E33: CASTLE ROCK | F33: 233480 | G33: =VLOOKUP(A33,'2020-21 Rev. Final'!$A$14:$AZ$325,52,0) -> 233785 | H33: 305
A34: 18901 | B34: 53 | C34: WA | D34: 5301000 | E34: CATALYST BREMERTON CHARTER | F34: 57848 | G34: =VLOOKUP(A34,'2020-21 Rev. Final'!$A$14:$AZ$325,52,0) -> 57924 | H34: 76
A35: 20215 | B35: 53 | C35: WA | D35: 5301050 | E35: CENTERVILLE | F35: 27254 | G35: =VLOOKUP(A35,'2020-21 Rev. Final'!$A$14:$AZ$325,52,0) -> 27289 | H35: 35
A36: 18401 | B36: 53 | C36: WA | D36: 5301080 | E36: CENTRAL KITSAP | F36: 1259533 | G36: =VLOOKUP(A36,'2020-21 Rev. Final'!$A$14:$AZ$325,52,0) -> 1261179 | H36: 1646
A37: 32356 | B37: 53 | C37: WA | D37: 5301110 | E37: CENTRAL VALLEY | F37: 2918481 | G37: =VLOOKUP(A37,'2020-21 Rev. Final'!$A$14:$AZ$325,52,0) -> 2922294 | H37: 3813
A38: 21401 | B38: 53 | C38: WA | D38: 5301140 | E38: CENTRALIA | F38: 1296700 | G38: =VLOOKUP(A38,'2020-21 Rev. Final'!$A$14:$AZ$325,52,0) -> 1298394 | H38: 1694
A39: 21302 | B39: 53 | C39: WA | D39: 5301170 | E39: CHEHALIS | F39: 537149 | G39: =VLOOKUP(A39,'2020-21 Rev. Final'!$A$14:$AZ$325,52,0) -> 537851 | H39: 702
A40: 32360 | B40: 53 | C40: WA | D40: 5301230 | E40: CHENEY | F40: 818032 | G40: =VLOOKUP(A40,'2020-21 Rev. Final'!$A$14:$AZ$325,52,0) -> 819101 | H40: 1069
A41: 33036 | B41: 53 | C41: WA | D41: 5301260 | E41: CHEWELAH | F41: 349379 | G41: =VLOOKUP(A41,'2020-21 Rev. Final'!$A$14:$AZ$325,52,0) -> 349835 | H41: 456
A42: 16049 | B42: 53 | C42: WA | D42: 5301290 | E42: CHIMACUM | F42: 164080 | G42: =VLOOKUP(A42,'2020-21 Rev. Final'!$A$14:$AZ$325,52,0) -> 164294 | H42: 214
A43: 02250 | B43: 53 | C43: WA | D43: 5301320 | E43: CLARKSTON | F43: 747399 | G43: =VLOOKUP(A43,'2020-21 Rev. Final'!$A$14:$AZ$325,52,0) -> 748375 | H43: 976
A44: 19404 | B44: 53 | C44: WA | D44: 5301350 | E44: CLE ELUM-ROSLYN | F44: 198316 | G44: =VLOOKUP(A44,'2020-21 Rev. Final'!$A$14:$AZ$325,52,0) -> 198575 | H44: 259
A45: 27400 | B45: 53 | C45: WA | D45: 5301410 | E45: CLOVER PARK | F45: 3931453 | G45: =VLOOKUP(A45,'2020-21 Rev. Final'!$A$14:$AZ$325,52,0) -> 3936589 | H45: 5136
A46: 38300 | B46: 53 | C46: WA | D46: 5301440 | E46: COLFAX | F46: 95197 | G46: =VLOOKUP(A46,'2020-21 Rev. Final'!$A$14:$AZ$325,52,0) -> 95322 | H46: 125
A47: 36250 | B47: 53 | C47: WA | D47: 5301470 | E47: COLLEGE PLACE | F47: 379700 | G47: =VLOOKUP(A47,'2020-21 Rev. Final'!$A$14:$AZ$325,52,0) -> 380196 | H47: 496
A48: 38306 | B48: 53 | C48: WA | D48: 5301500 | E48: COLTON | F48: 39692 | G48: =VLOOKUP(A48,'2020-21 Rev. Final'!$A$14:$AZ$325,52,0) -> 39744 | H48: 52
A49: 33206 | B49: 53 | C49: WA | D49: 5301560 | E49: COLUMBIA (STEV) | F49: 68549 | G49: =VLOOKUP(A49,'2020-21 Rev. Final'!$A$14:$AZ$325,52,0) -> 68639 | H49: 90
A50: 36400 | B50: 53 | C50: WA | D50: 5301590 | E50: COLUMBIA (WALLA) | F50: 233556 | G50: =VLOOKUP(A50,'2020-21 Rev. Final'!$A$14:$AZ$325,52,0) -> 233862 | H50: 306
A51: 33115 | B51: 53 | C51: WA | D51: 5301630 | E51: COLVILLE | F51: 615633 | G51: =VLOOKUP(A51,'2020-21 Rev. Final'!$A$14:$AZ$325,52,0) -> 616438 | H51: 805
A52: 29011 | B52: 53 | C52: WA | D52: 5301660 | E52: CONCRETE | F52: 137114 | G52: =VLOOKUP(A52,'2020-21 Rev. Final'!$A$14:$AZ$325,52,0) -> 137293 | H52: 179
A53: 29317 | B53: 53 | C53: WA | D53: 5301680 | E53: CONWAY | F53: 41393 | G53: =VLOOKUP(A53,'2020-21 Rev. Final'!$A$14:$AZ$325,52,0) -> 41447 | H53: 54
A54: 14099 | B54: 53 | C54: WA | D54: 5301710 | E54: COSMOPOLIS | F54: 49414 | G54: =VLOOKUP(A54,'2020-21 Rev. Final'!$A$14:$AZ$325,52,0) -> 49478 | H54: 64
A55: 13151 | B55: 53 | C55: WA | D55: 5303440 | E55: COULEE-HARTLINE | F55: 76650 | G55: =VLOOKUP(A55,'2020-21 Rev. Final'!$A$14:$AZ$325,52,0) -> 76750 | H55: 100
A56: 15204 | B56: 53 | C56: WA | D56: 5301800 | E56: COUPEVILLE | F56: 224931 | G56: =VLOOKUP(A56,'2020-21 Rev. Final'!$A$14:$AZ$325,52,0) -> 225225 | H56: 294
A57: 05313 | B57: 53 | C57: WA | D57: 5301830 | E57: CRESCENT | F57: 98561 | G57: =VLOOKUP(A57,'2020-21 Rev. Final'!$A$14:$AZ$325,52,0) -> 98690 | H57: 129
A58: 22073 | B58: 53 | C58: WA | D58: 5301860 | E58: CRESTON | F58: 14006 | G58: =VLOOKUP(A58,'2020-21 Rev. Final'!$A$14:$AZ$325,52,0) -> 14024 | H58: 18
A59: 10050 | B59: 53 | C59: WA | D59: 5301890 | E59: CURLEW | F59: 64638 | G59: =VLOOKUP(A59,'2020-21 Rev. Final'!$A$14:$AZ$325,52,0) -> 64722 | H59: 84
A60: 26059 | B60: 53 | C60: WA | D60: 5301920 | E60: CUSICK | F60: 135049 | G60: =VLOOKUP(A60,'2020-21 Rev. Final'!$A$14:$AZ$325,52,0) -> 135226 | H60: 177
A61: 19007 | B61: 53 | C61: WA | D61: 5301950 | E61: DAMMAN | F61: 0 | G61: =VLOOKUP(A61,'2020-21 Rev. Final'!$A$14:$AZ$325,52,0) -> 0 | H61: 0
A62: 31330 | B62: 53 | C62: WA | D62: 5301980 | E62: DARRINGTON | F62: 155668 | G62: =VLOOKUP(A62,'2020-21 Rev. Final'!$A$14:$AZ$325,52,0) -> 155871 | H62: 203
... 77 more rows

Sheet 2021-22 FInal (hidden)
D1: 1 | E1: =D1+1 -> 2 | F1: =E1+1 -> 3 | G1: 4 | H1: 5 | I1: 6 | J1: 7 | K1: 8 | L1: 9 | M1: 10 | N1: 11 | O1: 12 | P1: 13 | Q1: 14 | R1: 15 | S1: 16 | T1: 17 | U1: 18 | V1: 19 | W1: =V1+1 -> 20 | X1: =W1+1 -> 21 | Y1: 22 | Z1: 23 | AA1: 24 | AB1: 25 | AC1: 26 | AD1: 27 | AE1: 28 | AF1: 29 | AG1: 30 | AH1: 31 | AI1: 32 | AJ1: 33 | AK1: 34 | AL1: 35 | AM1: 36 | AN1: 37 | AO1: 38 | AP1: 39 | AQ1: 40 | AR1: 41 | AS1: 42 | AT1: 43 | AU1: 44 | AV1: 45 | AW1: 46 | AX1: 47 | AY1: 48 | AZ1: 49 | BA1: 50 | BB1: 51 | BC1: 52 | BD1: 53 | BE1: 54 | BF1: 55 | BG1: 56 | BH1: 57 | BI1: 58 | BJ1: 59 | BK1: 60 | BL1: 61 | BM1: 62 | BN1: 63 | BO1: 64 | BP1: 65 | BQ1: 66 | BR1: 67 | BS1: 68 | BT1: 69 | BU1: 70 | BV1: 71 | BW1: 72 | BX1: 73 | BY1: 74 | BZ1: 75 | CA1: 76 | CB1: 77 | CC1: 78 | CD1: 79 | CE1: 80 | CF1: 81 | CG1: 82 | CI1: =MIN(CI14:CI338) -> -0.3063775856 | CJ1: ="Loser is "&VLOOKUP(CI1,$CI$14:$CL$329,4,FALSE) -> Loser is NORTH RIVER
A2: NUMBERS IN YELLOW DRIVE THE MODEL | W2: Driver - From Assumptions Page | Z2: =Assumption!AK7 -> 273459092 | BA2: =Assumption!AK14 -> 254316956 | BB2: Driver - From Assumptions Page - School Improvement; Option A if Hold Harmless; Option B if straight deduction | BN2: Driver - From Assumptions Page | BU2: =-Assumption!AK16 -> 2088700 | BV2: - Drivers - | BW2: =-Assumption!AJ20 -> 0 | BY2: Driver | CI2: =MAX(CI14:CI338) -> 0.1035495454 | CJ2: ="Winner is "&VLOOKUP(CI2,$CI$14:$CL$329,4,FALSE) -> Winner is ORCHARD PRAIRIE
E3: WASHINGTON | N3: PRIOR YEAR | AL3: - | AP3: - | AT3: - | AX3: - | BA3: =-Assumption!AJ11 -> 0.0700000017 | BS3: - | CG3: =MIN(CG14:CG338) -> -1052644 | CH3: ="Loser is "&VLOOKUP(CG3,$CG$14:$CL$329,6,FALSE) -> Loser is SEATTLE
D4: Prior Year | E4: 2020-21 | F4: =E1 -> 2 | G4: =F1 -> 3 | H4: 4 | I4: 5 | J4: 6 | K4: 7 | L4: 8 | M4: 9 | N4: 10 | O4: 11 | P4: 12 | Q4: 13 | R4: 14 | S4: 15 | T4: 16 | U4: 17 | V4: 18 | W4: =V1 -> 19 | X4: =W1 -> 20 | Y4: 21 | Z4: 22 | AA4: 23 | AB4: 24 | AC4: 25 | AD4: Check Sum | AE4: =AD1 -> 27 | AF4: =AE1 -> 28 | AG4: 29 | AH4: Check Sum | AI4: =AH1 -> 31 | AJ4: =AI1 -> 32 | AK4: 33 | AL4: Check Sum | AM4: =AL1 -> 35 | AN4: =AM1 -> 36 | AO4: 37 | AP4: Check Sum | AQ4: =AP1 -> 39 | AR4: =AQ1 -> 40 | AS4: 41 | AT4: Check Sum | AU4: =AT1 -> 43 | AV4: =AU1 -> 44 | AW4: 45 | AX4: Check Sum | AY4: =AX1 -> 47 | AZ4: =AY1 -> 48 | BA4: =AZ1 -> 49 | BB4: 50 | BC4: 51 | BD4: 52 | BE4: 53 | BF4: 54 | BG4: 55 | BH4: 56 | BI4: 57 | BJ4: 58 | BK4: Check Sum | BL4: =BK1 -> 60 | BM4: =BL1 -> 61 | BN4: 62 | BO4: Check Sum | BP4: =BO1 -> 64 | BQ4: =BP1 -> 65 | BR4: 66 | BS4: Check Sum | BT4: =BS1 -> 68 | BU4: =BT1 -> 69 | BV4: 70 | BW4: 71 | BX4: 72 | BY4: 73 | BZ4: 74 | CA4: 75 | CB4: 76 | CC4: 77 | CD4: 78 | CE4: 79 | CF4: Prior Year | CG4: =MAX(CG14:CG338) -> 2411204 | CH4: ="Winner is "&VLOOKUP(CG4,$CG$14:$CL$329,6,FALSE) -> Winner is YAKIMA | CL4: Used for BA Dist names. | CN4: Prior Year | CY4: Used for BA Dist names. | DA4: Prior Year
D5: Curr Year | E5: 2021-22 | F5: Source: DOE Revised final district allocation model | X5: Hold Harmless Calculations for Basic. Targeted, EFIG | AD5: =+$Z$2 -> 273459092 | AH5: =+$Z$2 -> 273459092 | AL5: =+$Z$2 -> 273459092 | AP5: =+$Z$2 -> 273459092 | AT5: =+$Z$2 -> 273459092 | AX5: =+$Z$2 -> 273459092 | BA5: Total | BE5: Hold Harmless Calculations for School Improvement Deduction | BK5: =+$BA$2 -> 254316956 | BO5: =+$BA$2 -> 254316956 | BS5: =+$BA$2 -> 254316956 | CC5: =Assumption!AK24 -> 252228256 | CF5: Final Alloc | CH5: =MIN(CH14:CH338) -> -0.4418167916 | CI5: ="Loser is "&VLOOKUP(CH5,$CH$14:$CL$329,5,FALSE) -> Loser is IMPACT SALISH SEA CHARTER | CN5: Curr Year | DA5: Curr Year
Z6: =+Z2-Z13 -> 235 | AD6: =+AD5-AD13 -> 235 | AH6: =+AH5-AH13 -> 235 | AJ6: =AJ13 -> 659.130987 | AL6: =+AL5-AL13 -> 235 | AN6: =AN13 -> 40.04683682 | AP6: =+AP5-AP13 -> 235 | AR6: =AR13 -> 2.305673361 | AT6: =+AT5-AT13 -> 235 | AV6: =AV13 -> 0.1400862063 | AX6: =+AX5-AX13 -> 235 | BA6: Title I, Part A | BD6: (Prior Year) | BK6: =+BK5-BK13 -> 216 | BO6: =+BO5-BO13 -> 216 | BS6: =+BS5-BS13 -> 216 | BY6: =ROUND(SUMIF(BY14:BY329,">0",BX14:BX329)-SUMIF(BY14:BY329,">0",CC14:CC329),0) -> 0 | CC6: =IF(CC5=CC13+ROUND(BY6,0),"Rounding OK","Rounding Error= "&CC13-CC5) -> Rounding Error= -221 | CD6: =MIN(CD14:CD338) -> -1740319.043 | CE6: ="Loser is "&VLOOKUP(CD6,$CD$14:$CL$329,9,FALSE) -> Loser is TACOMA | CH6: =MAX(CH14:CH338) -> 19.22801303 | CI6: ="Winner is "&VLOOKUP(CH6,$CH$14:$CL$329,5,FALSE) -> Winner is WASHTUCNA
N7: INTIAL | S7: INTIAL | T7: PERCENT | X7: 1st Iteration | AB7: 2nd Iteration | AF7: 3rd Iteration | AJ7: 4th Iteration | AN7: 5th Iteration | AR7: 6th Iteration | AV7: 7th Iteration | BA7: Allocations | BD7: ='2021-22 FInal'!prioryear -> 2020-21 | BE7: 1st Iteration | BI7: 2nd Iteration | BM7: 3rd Iteration | BQ7: 4th Iteration | BU7: Sec. 1004 | BV7: =+BS13-BA13 -> 3.359466702 | BW7: Sec 1117 | CC7: =+CC13-CC338 -> 252228035 | CD7: =MAX(CD14:CD338) -> 5092.962839 | CE7: ="Winner is "&VLOOKUP(CD7,$CD$14:$CL$329,9,FALSE) -> Winner is CENTRAL VALLEY | CU7: Maximum Required
E8: =SEARCH("charter",E41) -> 20 | J8: Prior Years (Excluding ARRA) | N8: TOTAL | O8: Current Years | S8: TOTAL | T8: OF TOTAL | V8: Detailed guidance | X8: Section I guidence Hold Harmles | AB8: Section I guidence Hold Harmles | AF8: Section I guidence Hold Harmles | AJ8: Section I guidence Hold Harmles | AN8: Section I guidence Hold Harmles | AR8: Section I guidence Hold Harmles | AV8: Section I guidence Hold Harmles | BA8: with School | BD8: Total State | BE8: Section 1003(c) State Reser. Hold Harmless | BI8: Section 1003(c) State Reser. Hold Harmless | BM8: Section 1003(c) State Reser. Hold Harmless | BQ8: Section 1003(c) State Reser. Hold Harmless | CC8: =E5 -> 2021-22 | CE8: 2021-22 | CF8: =prioryear -> 2020-21 | CG8: CHANGE | CH8: CHANGE | CI8: CHANGE | CU8: Expenditures For
F9: TOTAL | J9: =prioryear -> 2020-21 | K9: =$J$9 -> 2020-21 | L9: =$J$9 -> 2020-21 | M9: =$J$9 -> 2020-21 | N9: =$J$9 -> 2020-21 | O9: =E5 -> 2021-22 | P9: =$O$9 -> 2021-22 | Q9: =$O$9 -> 2021-22 | R9: =$O$9 -> 2021-22 | S9: =$O$9 -> 2021-22 | T9: Prior Year | V9: attached above | W9: Conditional Flags | BA9: Improvement | BD9: Determined | BW9: Holdback for | CA9: Subtotal | CB9: Adjustment per | CC9: Final | CD9: Change from | CE9: Prelim | CF9: Net Allocations | CG9: FROM | CH9: FROM | CI9: FROM | CU9: Choice-Related | CV9: Maximum Per-Child
E10: LOCAL EDUCATION AGENCY | F10: FORMULA | G10: 5-17 | H10: PERCENT | I10: Hold Harmless | J10: BASIC | K10: CONC. | L10: TARGETED | M10: EFIG | N10: TITLE I | O10: BASIC | P10: CONC. | Q10: TARGETED | R10: EFIG | S10: TITLE I | T10: TITLE I | U10: RESIDENT | V10: Charter School | W10: Is Initial < than HH | X10: Hold Harmless | Z10: Revised | AB10: Hold Harmless | AD10: Revised | AF10: Hold Harmless | AH10: Revised | AJ10: Hold Harmless | AL10: Revised | AN10: Hold Harmless | AP10: Revised | AR10: Hold Harmless | AT10: Revised | AV10: Hold Harmless | AX10: Revised | BA10: Factored Out | BD10: Title I, Part A | BE10: Hold Harmless | BG10: Revised | BI10: Hold Harmless | BK10: Revised | BM10: Hold Harmless | BO10: Revised | BQ10: Hold Harmless | BS10: Revised | BU10: State | BV10: Net | BW10: Awards and | BX10: Subtotal After | CA10: After | CB10: Program Office | CC10: To | CD10: Final to | CE10: To | CF10: To | CG10: =prioryear -> 2020-21 | CH10: Last year | CI10: Prelim | CR10: =COUNTIF(CR14:CR329,"<0") -> 88 | CU10: Transportation | CV10: Expenditure For
D11: LEAID | E11: (LEA) | F11: COUNT | G11: POP. | H11: FORMULA | I11: Percentage | J11: ALLOCATION | K11: ALLOCATION | L11: ALLOCATION | M11: ALLOCATION | N11: ALLOCATION | O11: ALLOCATION | P11: ALLOCATION | Q11: ALLOCATION | R11: ALLOCATION | S11: ALLOCATION | T11: ALLOCATION | U11: POP. | V11: Hold Harmless adjustments | W11: Basic, Targated & EFIG | X11: Test | Y11: Pool | Z11: Allocation | AB11: Test | AC11: Pool | AD11: Allocation | AF11: Test | AG11: Pool | AH11: Allocation | AJ11: Test | AK11: Pool | AL11: Allocation | AN11: Test | AO11: Pool | AP11: Allocation | AR11: Test | AS11: Pool | AT11: Allocation | AV11: Test | AW11: Pool | AX11: Allocation | BA11: =E5 -> 2021-22 | BD11: Allocation | BE11: Test | BF11: Pool | BG11: Allocation | BI11: Test | BJ11: Pool | BK11: Allocation | BM11: Test | BN11: Pool | BO11: Allocation | BQ11: Test | BR11: Pool | BS11: Allocation | BU11: Admin | BV11: After admin | BW11: recognition | BX11: Awards | BY11: MOE | BZ11: MOE Red. | CA11: MOE | CC11: Districts | CD11: Prelim | CE11: Districts | CF11: Districts | CN11: LEAID | CR11: =SUMIF(CR14:CR329,">0") -> 4871365.887 | CU11: And Supplemental | CV11: Supplemental | DA11: LEAID
W12: 1 = Yes | X12: =COUNTIF(X14:X329,">0") -> 6 | Z12: =IF(Z13=Z2,"Okay","ERROR") -> ERROR | AB12: =COUNTIF(AB14:AB329,">0") -> 53 | AD12: =IF(AD13=AD5,"Okay","ERROR") -> ERROR | AF12: =COUNTIF(AF14:AF329,">0") -> 8 | AH12: =IF(AH13=$AH$5,"Okay","ERROR") -> ERROR | AJ12: =COUNTIF(AJ14:AJ329,">0") -> 53 | AL12: =IF(AL13=$AL$5,"Okay","ERROR") -> ERROR | AN12: =COUNTIF(AN14:AN329,">0") -> 8 | AP12: =IF(AP13=$AP$5,"Okay","ERROR") -> ERROR | AR12: =COUNTIF(AR14:AR329,">0") -> 53 | AT12: =IF(AT13=$AP$5,"Okay","ERROR") -> ERROR | AV12: =COUNTIF(AV14:AV329,">0") -> 8 | AX12: =IF(AX13=$AP$5,"Okay","ERROR") -> ERROR | BD12: (Net to districts) | BE12: =COUNTIF(BE14:BE329,">0") -> 91 | BG12: =IF(Assumption!AD12="NO","NA",IF(BG13=$BA$2,"Okay","ERROR")) -> ERROR | BI12: =COUNTIF(BI14:BI329,">0") -> 25 | BK12: =IF(Assumption!AD12="NO","NA",IF(BK13=$BA$2,"Okay","ERROR")) -> ERROR | BM12: =COUNTIF(BM14:BM329,">0") -> 0 | BO12: =IF(Assumption!AD12="NO","NA",IF(BO13=$BA$2,"Okay","ERROR")) -> ERROR | BQ12: =COUNTIF(BQ14:BQ329,">0") -> 0 | BS12: =IF(Assumption!AD12="NO","NA",IF(BS13=$BA$2,"Okay","ERROR")) -> ERROR | CC12: =CC13-CC329 -> 250091153 | CE12: =CE13-CE329 -> 273049582.7 | CF12: =CF13-CF329 -> 228452652 | CO12: Explanaton | CP12: Concentration note | CQ12: Max to contribute | CR12: Amount contributed | CS12: Test | CU12: Educational Services | CV12: Educational Services
E13: TOTAL | F13: =SUM(F14:F338) -> 272410 | G13: =SUM(G14:G338) -> 2414808 | H13: =+F13/G13 -> 0.1128081404 | J13: =SUM(J14:J338) -> 107960711.1 | K13: 18810927.5 | L13: 53334357.64 | M13: 70353733.96 | N13: 250459730.2 | O13: 116841061.3 | P13: 18986458.63 | Q13: 59326439.58 | R13: 78321794.64 | S13: 273475754.1 | T13: 386.0249602 | U13: 7614893 | V13: 16897 | W13: =SUM(W14:W338) -> 5 | X13: 1314185.666 | Y13: 271732276.7 | Z13: =ROUND(SUM(Z14:Z338),0) -> 273458857 | AB13: =SUM(AB14:AB338) -> 302825.3839 | AC13: =SUM(AC14:AC338) -> 258727771.7 | AD13: =ROUND(SUM(AD14:AD338),0) -> 273458857 | AE13: =SUM(AE14:AE338) -> 0 | AF13: =SUM(AF14:AF338) -> 11448.83781 | AG13: =SUM(AG14:AG338) -> 257563644.9 | AH13: =ROUND(SUM(AH14:AH338),0) -> 273458857 | AJ13: =SUM(AJ14:AJ338) -> 659.130987 | AK13: =SUM(AK14:AK338) -> 258425605.4 | AL13: =ROUND(SUM(AL14:AL338),0) -> 273458857 | AN13: =SUM(AN14:AN338) -> 40.04683682 | AO13: =SUM(AO14:AO338) -> 257552236.1 | AP13: =ROUND(SUM(AP14:AP338),0) -> 273458857 | AR13: =SUM(AR14:AR338) -> 2.305673361 | AS13: =SUM(AS14:AS338) -> 258424948.6 | AT13: =ROUND(SUM(AT14:AT338),0) -> 273458857 | AV13: =SUM(AV14:AV338) -> 0.1400862063 | AW13: =SUM(AW14:AW338) -> 257552196.2 | AX13: =ROUND(SUM(AX14:AX338),0) -> 273458857 | BA13: =SUM(BA14:BA338) -> 254316736.6 | BD13: =SUM(BD14:BD338) -> 228452652 | BE13: =SUM(BE14:BE338) -> 4883032.061 | BF13: =SUM(BF14:BF338) -> 182962200.6 | BG13: =ROUND(SUM(BG14:BG338),0) -> 254316737 | BI13: =SUM(BI14:BI338) -> 119849.6423 | BJ13: =SUM(BJ14:BJ338) -> 170785593.2 | BK13: =ROUND(SUM(BK14:BK338),0) -> 254316740 | BL13: =SUM(BL14:BL338) -> 0 | BM13: =SUM(BM14:BM338) -> -3 | BN13: =SUM(BN14:BN338) -> 170665743.6 | BO13: =ROUND(SUM(BO14:BO338),0) -> 254316740 | BQ13: =SUM(BQ14:BQ338) -> 0 | BR13: =SUM(BR14:BR338) -> 170665743.6 | BS13: =ROUND(SUM(BS14:BS338),0) -> 254316740 | BU13: =SUM(BU14:BU338) -> 2088699.997 | BV13: =SUM(BV14:BV338) -> 252228039.7 | BW13: =SUM(BW14:BW338) -> 0 | BX13: =SUM(BX14:BX338) -> 252228033 | BZ13: =SUM(BZ14:BZ338) -> 0 | CA13: 252228033 | CB13: 0 | CC13: 252228035 | CD13: -23732843.73 | CE13: 275960878.7 | CF13: 228452652 | CG13: =+CC13-CF13 -> 23775383 | CQ13: =SUM(CQ14:CQ329) -> 35432797.32 | CR13: =SUM(CR14:CR329) -> -5657.566944 | CS13: =SUM(CS14:CS329) -> 10
